Workbook

Sheet Short (hidden)
A1: v.calculator14 | J1: =IF(control!A1="S","Short sheet","Long sheet") -> Long sheet | L1: <== DATA ENTRY SHEET (F9 = recalculate Automatic)
A2: Developed by Albert De Vries, University of Florida | J2: English | L2: <== METRIC OR ENGLISH
A3: devries@ufl.edu | J3: $ | L3: <== CURRENCY SYMBOL
D4: link all short sheets link to the long sheet (not control sheet) | J4: English | L4: <== LANGUAGE
D5: make control sheet only dependent on long sheet | J5: /cow/year | L5: <== PRESENTATION
E7: =language!F8 -> Inputs | F7: =CONCATENATE(E7," A") -> Inputs A | G7: =CONCATENATE(E7," B") -> Inputs B | H7: A-B | J7: A-B | K7: =CONCATENATE(M7," A") -> Results A | L7: =CONCATENATE(M7," B") -> Results B | M7: =language!F170 -> Results
E8: =language!F265 -> # cows | F8: 100 | G8: 100 | H8: =F8-G8 -> 0 | J8: =K8-L8 -> -0.01041908119 | K8: =control!P328 -> 0.2219328779 | L8: =control!AE328 -> 0.2323519591 | M8: =language!F285 -> 21-day pregnancy rate (%)
E9: =language!F266 -> cull cow price ($) | F9: 650 | G9: 650 | H9: 0 | J9: -0.02416533853 | K9: =control!P330 -> 0.5914440084 | L9: =control!AE330 -> 0.6156093469 | M9: =language!F286 -> %pregnant@ 150 DIM (% of present)
E10: =language!F267 -> milk price ($/cwt) | F10: 20 | G10: 20 | H10: 0 | J10: -0.004178070848 | K10: =control!P331 -> 0.9013512109 | L10: =control!AE331 -> 0.9055292817 | M10: =language!F287 -> %pregnant@ 300 DIM (% of present)
E11: =language!F268 -> herd ME milk (lbs/cow/yr) | F11: 25000 | G11: 25000 | H11: 0 | J11: -0.08017299841 | K11: =control!R409*F8/12 -> 7.161813604 | L11: =control!AG409*G8/12 -> 7.241986602 | M11: =language!F289 -> #new pregnancies/month
E12: =language!F269 -> cost breeding ($) | F12: 8 | G12: 8 | H12: 0 | J12: 3.29984603 | K12: =control!P333 -> 139.2257427 | L12: =control!AE333 -> 135.9258967 | M12: =language!F290 -> days to conception
E13: =language!F270 -> lifetime genetic value/breeding ($) | F13: 0 | G13: 0 | H13: 0 | J13: 1.486758578 | K13: =control!P335 -> 177.6291239 | L13: =control!AE335 -> 176.1423653 | M13: =language!F291 -> days in milk
E14: =language!F271 -> additional genetic value heifer calf ($) | F14: =control!AB17 -> 0 | G14: =control!AC17 -> 0 | H14: 0 | J14: -0.1265416276 | K14: =control!P347 -> 69.87439557 | L14: =control!AE347 -> 70.00093719 | M14: =language!F292 -> milk (lbs/cow/day)
E15: =language!F272 -> basic heifer calf price ($) | F15: 200 | G15: 200 | H15: 0 | J15: 10.92718689 | K15: =control!P348 -> 53.78432974 | L15: =control!AE348 -> 42.85714286 | M15: =language!F293 -> cost/pregnancy ($)
E16: =language!F273 -> bull calf price ($) | F16: 50 | G16: 50 | H16: 0 | J16: 0.001103072828 | K16: =control!P360 -> 0.3726612146 | L16: =control!AE360 -> 0.3715581417 | M16: =language!F294 -> annual cull rate (%)
E17: =language!F274 -> average calf value ($) | F17: =control!AB21 -> 122 | G17: =control!AC21 -> 122 | H17: =F17-G17 -> 0 | J17: =K17-L17 -> 0.001339346674 | K17: =control!R353 -> 0.8803568356 | L17: =control!AG353 -> 0.8790174889 | M17: =language!F295 -> milking cows (%)
E18: =language!F275 -> annual cull rate open cows (%) | F18: 0.35 | G18: 0.35 | H18: 0 | J18: -15.50267572 | K18: =OFFSET(control!N367,0,afzet) -> 4821.458391 | L18: =OFFSET(control!AC367,0,afzet) -> 4836.961067 | M18: =language!F296 -> milk sales ($/cow/year)
E19: =language!F276 -> feed cost ($/2000lbs) | F19: 150 | G19: 150 | H19: 0 | J19: -0.2479487997 | K19: =OFFSET(control!N368,0,afzet) -> 344.3601264 | L19: =OFFSET(control!AC368,0,afzet) -> 344.6080752 | M19: =language!F297 -> cow sales ($/cow/year)
E20: =language!F277 -> heifer price ($) | F20: 2000 | G20: 2000 | H20: 0 | J20: 9.660271225 | K20: =OFFSET(control!N371,0,afzet)+OFFSET(control!N372,0,afzet) -> 236.3753101 | L20: =OFFSET(control!AC371,0,afzet)+OFFSET(control!AC372,0,afzet) -> 226.7150389 | M20: =language!F298 -> calf value ($/cow/year)
E21: =language!F278 -> other cost ($/cow/day) | F21: 3 | G21: 3 | H21: 0 | J21: 10.07333375 | K21: =OFFSET(control!N374,0,afzet)+OFFSET(control!N375,0,afzet) -> 52.50507461 | L21: =OFFSET(control!AC374,0,afzet)+OFFSET(control!AC375,0,afzet) -> 42.43174085 | M21: =language!F299 -> ovulation+breeding cost ($/cow/year)
E22: =language!F279 -> volunatary waiting period (days) | F22: 50 | G22: 50 | H22: 0 | J22: 0 | K22: =OFFSET(control!N376,0,afzet) -> 846.6140081 | L22: =OFFSET(control!AC376,0,afzet) -> 846.6140081 | M22: =language!F300 -> replacement cost ($/cow/year)
E23: =language!F280 -> 21-day service rate (%) | F23: 0.5 | G23: 0.5 | H23: 0 | J23: -8.271029596 | K23: =OFFSET(control!N378,0,afzet) -> 2817.659325 | L23: =OFFSET(control!AC378,0,afzet) -> 2825.930354 | M23: =language!F301 -> feed cost ($/cow/year)
E24: =language!F281 -> conception rate (%) | F24: 0.4 | G24: 0.4 | H24: 0 | J24: -2.461736267 | K24: =OFFSET(control!N379,0,afzet) -> 829.2092144 | L24: =OFFSET(control!AC379,0,afzet) -> 831.6709507 | M24: =language!F302 -> other cost ($/cow/year)
J25: -5.465075543 | K25: =OFFSET(control!N385,0,afzet) -> 123.3963722 | L25: =OFFSET(control!AC385,0,afzet) -> 128.8614477 | M25: =language!F303 -> profit ($/cow/year)
K26: =SUM(K18:K20)-SUM(K21:K24) -> 856.2062057 | L26: =SUM(L18:L20)-SUM(L21:L24) -> 861.6371269 | M26: check
J29: =IFERROR((J25-J21)/J21,"SAME") -> -1.542528986 | K29: =language!F304 -> return on investment on ovulation and breeding cost
J30: =IFERROR((K25-L25)/(K8-L8)/100,"SAME") -> 5.245256701 | K30: =language!F305 -> marginal value per 1 unit pregnancy rate around 22.7% ($/cow/year)
J31: =IFERROR(-(K25-L25)/(K12-L12),"SAME") -> 1.65616077 | K31: =language!F306 -> marginal value per 1 day open around 138 days ($/cow/year)

Sheet Long
A1: v.calculator14 | H1: =W25 -> profit ($/milkingslot/yr) | I1: =U25 -> 123.3963722 | J1: =IF(I1=M1,0,"!") -> ! | L1: =J1 -> ! | M1: =V25 -> 128.8614477 | N1: =I1-M1 -> -5.465075543 | P1: description | Q1: input0 | U1: =W8 -> Results
A2: Albert De Vries | H2: =language!F8 -> Inputs | I2: =CONCATENATE(H2," A") -> Inputs A | M2: =CONCATENATE(H2," B") -> Inputs B | R2: 1 | S2: Long
A3: University of Florida | I3: young calves | K3: 101 | M3: young calves | R3: 2 | S3: English
A4: devries@ufl.edu | H4: =language!F15 -> #born alive other calves/year | I4: =IFERROR(control!$N$420,0) -> 643.320826 | K4: 102 | M4: =IFERROR(control!$AC$420,0) -> 605.0467309 | R4: 3 | S4: $
H5: =language!F16 -> suggested other calf value/head | I5: =IFERROR(control!R390,0) -> 132.0041652 | K5: 103 | M5: =IFERROR(control!AG390,0) -> 100 | R5: 4 | S5: English
H6: =language!F17 -> sold other calf value/head | I6: =I5 -> 132.0041652 | K6: 104 | M6: =M5 -> 100 | R6: 5 | S6: /milkingslot/yr | U6: <== PRESENTATION
H7: =language!F18 -> #born alive heifer calves/year | I7: =IFERROR(control!$N$419,0) -> 504.8476051 | K7: 105 | M7: =IFERROR(control!$AC$419,0) -> 554.0345527 | R7: 6 | S7: output2 | T7: =control!K9 -> 1 | U7: offset
H8: =language!F19 -> #born alive heifer calves entered/year | I8: 0 | K8: 106 | M8: 0 | R8: 7 | S8: A-B | U8: =CONCATENATE(W8," A") -> Results A | V8: =CONCATENATE(W8," B") -> Results B | W8: =language!F170 -> Results
H9: =language!F20 -> #purchased heifer calves entered/year | I9: 0 | K9: 107 | M9: 0 | R9: 8 | S9: =U9-V9 -> -15.50267572 | T9: 201 | U9: =OFFSET(control!N367,0,control!$K$9) -> 4821.458391 | V9: =OFFSET(control!AC367,0,control!$K$9) -> 4836.961067 | W9: =language!F171 -> milk sales ($/milkingslot/yr)
H10: =language!F22 -> #heifer calves entered/year | I10: =I8+I9 -> 0 | K10: 108 | M10: =M8+M9 -> 0 | R10: 9 | S10: -0.2479487997 | T10: 202 | U10: =OFFSET(control!N368,0,control!$K$9) -> 344.3601264 | V10: =OFFSET(control!AC368,0,control!$K$9) -> 344.6080752 | W10: =language!F172 -> cull sales ($/milkingslot/yr)
H11: =language!F23 -> %born alive heifer calves entered : born | I11: =IFERROR(I8/I7,0) -> 0 | K11: 109 | M11: =IFERROR(M8/M7,0) -> 0 | N11: =IF(OR(I11>1.0000001,M11>1.0000001),"check:error","check:ok") -> check:ok | R11: 10 | S11: 0 | T11: 203 | U11: =OFFSET(control!N369,0,control!$K$9) -> 0 | V11: =OFFSET(control!AC369,0,control!$K$9) -> 0 | W11: =language!F173 -> variable other value ($/milkingslot/yr)
H12: =language!F9 -> suggested heifer calf value/head | I12: =IFERROR(control!R389,0) -> 300 | K12: 110 | M12: =IFERROR(control!AG389,0) -> 300 | R12: 11 | S12: -14.75608428 | T12: 204 | U12: =OFFSET(control!N371,0,control!$K$9) -> 151.4542815 | V12: =OFFSET(control!AC371,0,control!$K$9) -> 166.2103658 | W12: =language!F174 -> realized dairy calf value ($/milkingslot/yr)
H13: =language!F10 -> sold heifer calf value/head | I13: =I12 -> 300 | K13: 111 | M13: =M12 -> 300 | R13: 12 | S13: 24.4163555 | T13: 205 | U13: =OFFSET(control!N372,0,control!$K$9) -> 84.92102859 | V13: =OFFSET(control!AC372,0,control!$K$9) -> 60.50467309 | W13: =language!F175 -> realized other calf value ($/milkingslot/yr)
H14: =language!F11 -> kept heifer calf value/head | I14: =I12 -> 300 | K14: 112 | M14: =M12 -> 300 | R14: 13 | S14: 0 | T14: 206 | U14: =OFFSET(control!N370,0,control!$K$9) -> 0 | V14: =OFFSET(control!AC370,0,control!$K$9) -> 0 | W14: =language!F176 -> surplus raised heifer value ($/milkingslot/yr)
H15: =language!F12 -> realized heifer calf value/head | I15: =IFERROR(control!R391,0) -> 300 | K15: 113 | M15: =IFERROR(control!AG391,0) -> 300 | R15: 14 | S15: 0.03415435323 | T15: 207 | U15: =OFFSET(control!N373,0,control!$K$9) -> 2.809833542 | V15: =OFFSET(control!AC373,0,control!$K$9) -> 2.775679189 | W15: =language!F177 -> dystocia cost ($/milkingslot/yr)
H16: =language!F13 -> kept heifer calf enter cost/head | I16: 200 | K16: 114 | M16: 200 | R16: 15 | S16: 0 | T16: 208 | U16: =OFFSET(control!N374,0,control!$K$9) -> 0 | V16: =OFFSET(control!AC374,0,control!$K$9) -> 0 | W16: =language!F178 -> ovulation cost ($/milkingslot/yr)
H17: =language!F14 -> purchased heifer calf enter cost/head | I17: 200 | K17: 115 | M17: 200 | R17: 16 | S17: 10.07333375 | T17: 209 | U17: =OFFSET(control!N375,0,control!$K$9) -> 52.50507461 | V17: =OFFSET(control!AC375,0,control!$K$9) -> 42.43174085 | W17: =language!F179 -> breeding cost ($/milkingslot/yr)
H18: =language!F21 -> average heifer calf enter cost/head | I18: =IFERROR((I8*I16+I9*I17)/I10,0) -> 0 | K18: 116 | M18: =IFERROR((M8*M16+M9*M17)/M10,0) -> 0 | R18: 17 | S18: 0 | T18: 210 | U18: =OFFSET(control!N376,0,control!$K$9) -> 846.6140081 | V18: =OFFSET(control!AC376,0,control!$K$9) -> 846.6140081 | W18: =language!F180 -> enter cost ($/milkingslot/yr)
I19: raising heifers | K19: 117 | M19: raising heifers | R19: 18 | S19: 0 | T19: 211 | U19: =OFFSET(control!N377,0,control!$K$9) -> 0 | V19: =OFFSET(control!AC377,0,control!$K$9) -> 0 | W19: =language!F181 -> surplus raised heifer cost ($/milkingslot/yr)
H20: =language!F24 -> #heifers present | I20: =control!$H$260 -> 0 | K20: 118 | M20: =control!$W$260 -> 0 | R20: 19 | S20: -8.271029596 | T20: 212 | U20: =OFFSET(control!N378,0,control!$K$9) -> 2817.659325 | V20: =OFFSET(control!AC378,0,control!$K$9) -> 2825.930354 | W20: =language!F182 -> feed cost ($/milkingslot/yr)
H21: =language!F25 -> #heifer slots | I21: =I20 -> 0 | K21: 119 | M21: =M20 -> 0 | R21: 20 | S21: -2.461736267 | T21: 213 | U21: =OFFSET(control!N379,0,control!$K$9) -> 829.2092144 | V21: =OFFSET(control!AC379,0,control!$K$9) -> 831.6709507 | W21: =language!F183 -> other variable cost ($/milkingslot/yr)
H22: =language!F26 -> fixed cost/heifer slot/day | I22: 0 | K22: 120 | M22: 0 | R22: 21 | S22: 0 | T22: 214 | U22: =OFFSET(control!N383,0,control!$K$9) -> 730 | V22: =OFFSET(control!AC383,0,control!$K$9) -> 730 | W22: =language!F184 -> fixed cost ($/milkingslot/yr)
H23: =language!F27 -> #days @ end stage 1 | I23: 60 | K23: 121 | M23: 60 | R23: 22 | S23: -6.0903533 | T23: 215 | U23: =OFFSET(control!N380,0,control!$K$9) -> 5402.193828 | V23: =OFFSET(control!AC380,0,control!$K$9) -> 5408.284181 | W23: =language!F185 -> total revenues ($/milkingslot/yr)
H24: =language!F28 -> #days @ end stage 2 | I24: 300 | K24: 122 | M24: 300 | R24: 23 | S24: -0.6252777568 | T24: 216 | U24: =OFFSET(control!N384,0,control!$K$9) -> 5278.797456 | V24: =OFFSET(control!AC384,0,control!$K$9) -> 5279.422733 | W24: =language!F186 -> total costs ($/milkingslot/yr)
H25: =language!F29 -> #days @ end stage 3 | I25: 600 | K25: 123 | M25: 600 | R25: 24 | S25: -5.465075543 | T25: 217 | U25: =OFFSET(control!N385,0,control!$K$9) -> 123.3963722 | V25: =OFFSET(control!AC385,0,control!$K$9) -> 128.8614477 | W25: =language!F187 -> profit ($/milkingslot/yr)
H26: =language!F30 -> cost per heifer in stage 1 | I26: 2.75 | K26: 124 | M26: 2.75 | R26: 25 | S26: -5.465075543 | T26: 218 | U26: =OFFSET(control!N386,0,control!$K$9) -> 123.3963722 | V26: =OFFSET(control!AC386,0,control!$K$9) -> 128.8614477 | W26: =language!F188 -> profit (discounted) ($/milkingslot/yr)
H27: =language!F31 -> cost per heifer in stage 2 | I27: 2 | K27: 125 | M27: 2 | R27: 26 | S27: -0.6252777568 | T27: 219 | U27: =OFFSET(control!N381,0,control!$K$9) -> 4548.797456 | V27: =OFFSET(control!AC381,0,control!$K$9) -> 4549.422733 | W27: =language!F189 -> variable costs ($/milkingslot/yr)
H28: =language!F32 -> cost per heifer in stage 3 | I28: 2.25 | K28: 126 | M28: 2.25 | R28: 27 | S28: -13.58981977 | T28: 220 | U28: =OFFSET(control!N388,0,control!$K$9) -> 375.7213422 | V28: =OFFSET(control!AC388,0,control!$K$9) -> 389.311162 | W28: =language!F191 -> average calf value (born)
H29: =language!F33 -> cost per heifer after stage 3 | I29: 2.25 | K29: 127 | M29: 2.25 | R29: 28 | S29: -0.03752251934 | T29: 221 | U29: =OFFSET(control!N393,0,control!$K$9) -> 0.4424774807 | V29: =OFFSET(control!AC393,0,control!$K$9) -> 0.48 | W29: =language!F192 -> %dairy heifer calves
H30: =language!F34 -> value (calves - dystocia) | I30: =control!N424 -> 0 | K30: 128 | M30: =control!AC424 -> 0 | R30: 29 | S30: -7.231646129 | T30: 222 | U30: =OFFSET(control!N394,0,control!$K$9) -> 2003.799066 | V30: =OFFSET(control!AC394,0,control!$K$9) -> 2011.030713 | W30: =language!F193 -> IOFC ($/milkingslot/yr)
H31: =language!F35 -> raised heifer cost/head raised&kept | I31: =control!N418 -> 0 | K31: 129 | M31: =control!AC418 -> 0 | R31: 30 | S31: -0.005581308802 | T31: 223 | U31: =OFFSET(control!N395,0,control!$K$9) -> 45.93992143 | V31: =OFFSET(control!AC395,0,control!$K$9) -> 45.94550274 | W31: =language!F194 -> daily dry matter intake (lbs)
H32: =language!F36 -> surplus raised heifer sale price/head | I32: =I31+I30 -> 0 | K32: 130 | M32: =M31+M30 -> 0 | R32: 31 | S32: -194.8044912 | T32: 224 | U32: =OFFSET(control!N396,0,control!$K$9) -> 1212.696738 | V32: =OFFSET(control!AC396,0,control!$K$9) -> 1407.501229 | W32: =language!F195 -> avg. age at calving (dairy calves)
H33: =language!F43 -> #raised heifers/year | I33: =control!$H$247*365 -> 0 | K33: 131 | M33: =control!$W$247*365 -> 0 | R33: 32 | S33: 0 | T33: 225 | U33: =OFFSET(control!N401,0,control!$K$9) -> 0 | V33: =OFFSET(control!AC401,0,control!$K$9) -> 0 | W33: =language!F196 -> #dairy calves entered (/milkingslot/yr)
H34: =language!F44 -> #raised heifers calving/year | I34: =I33 -> 0 | K34: 132 | M34: =M33 -> 0 | R34: 33 | S34: -0.01147513405 | T34: 226 | U34: =OFFSET(control!N402,0,control!$K$9) -> 1.231613103 | V34: =OFFSET(control!AC402,0,control!$K$9) -> 1.243088237 | W34: =language!F197 -> #cows entered (/milkingslot/yr)
H35: =language!F48 -> %raised & calved : raised | I35: =IFERROR(I34/I33,0) -> 0 | K35: 133 | M35: =IFERROR(M34/M33,0) -> 0 | R35: 34 | S35: 0 | T35: 227 | U35: =OFFSET(control!N403,0,control!$K$9) -> 0 | V35: =OFFSET(control!AC403,0,control!$K$9) -> 0 | W35: =language!F198 -> #heifers raised (/milkingslot/yr)
I36: purchased heifers | K36: 134 | M36: purchased heifers | R36: 35 | S36: 0 | T36: 228 | U36: =OFFSET(control!N404,0,control!$K$9) -> 0 | V36: =OFFSET(control!AC404,0,control!$K$9) -> 0 | W36: =language!F199 -> #heifers sold (/milkingslot/yr)
H37: =language!F37 -> age at calving | I37: 730 | K37: 135 | M37: 730 | R37: 36 | S37: 0 | T37: 229 | U37: =OFFSET(control!N405,0,control!$K$9) -> 0.4233070041 | V37: =OFFSET(control!AC405,0,control!$K$9) -> 0.4233070041 | W37: =language!F200 -> #heifers purchased (/milkingslot/yr)
H38: =language!F38 -> %dairy heifer calves | I38: 0.48 | K38: 136 | M38: 0.48 | R38: 37 | S38: 0 | T38: 230 | U38: =OFFSET(control!N406,0,control!$K$9) -> 0.4233070041 | V38: =OFFSET(control!AC406,0,control!$K$9) -> 0.4233070041 | W38: =language!F201 -> #heifers entered (/milkingslot/yr)
H39: =language!F39 -> value dairy heifer calf/head | I39: 300 | K39: 137 | M39: 300 | R39: 38 | S39: -0.01147513405 | T39: 231 | U39: =OFFSET(control!N247,0,control!$K$9) -> 1.231613103 | V39: =OFFSET(control!AC247,0,control!$K$9) -> 1.243088237 | W39: =language!F202 -> #calvings=calves born (/milkingslot/yr)
H40: =language!F40 -> value other calf/head | I40: 100 | K40: 138 | M40: 100 | R40: 39 | S40: 0.04024615679 | T40: 232 | U40: =OFFSET(control!N253,0,control!$K$9) -> 0.6866520402 | V40: =OFFSET(control!AC253,0,control!$K$9) -> 0.6464058834 | W40: =language!F203 -> #other calves born (/milkingslot/yr)
H41: =language!F41 -> value (calves - dystocia) | I41: =control!N423 -> 169.1460904 | K41: 139 | M41: =control!AC423 -> 169.1460904 | R41: 40 | S41: =U41-V41 -> -0.04918694759 | T41: 233 | U41: =OFFSET(control!N249,0,control!$K$9) -> 0.5048476051 | V41: =OFFSET(control!AC249,0,control!$K$9) -> 0.5540345527 | W41: =language!F204 -> #dairy female calves born alive (/milkingslot/yr)
H42: =language!F42 -> purchased heifer enter cost/head | I42: 2000 | K42: 140 | M42: 2000 | S42: -0.04918694759 | T42: 234 | U42: =OFFSET(control!N252,0,control!$K$9) -> 0.5048476051 | V42: =OFFSET(control!AC252,0,control!$K$9) -> 0.5540345527 | W42: =language!F205 -> #dairy female calves sold (/milkingslot/yr)
H43: =language!F45 -> #purchased heifers calving/year | I43: 423.3070041 | K43: 141 | M43: 423.3070041 | N43: <= enter to set #milking cows present = #milking slots | S43: 0 | T43: 235 | U43: =OFFSET(control!N410,0,control!$K$9) -> 0 | V43: =OFFSET(control!AC410,0,control!$K$9) -> 0 | W43: =language!F206 -> #dairy female calves purchased(/milkingslot/yr)
I44: calving heifers and cows | K44: 142 | M44: calving heifers and cows | S44: 0 | T44: 236 | U44: =OFFSET(control!N411,0,control!$K$9) -> 0 | V44: =OFFSET(control!AC411,0,control!$K$9) -> 0 | W44: =language!F207 -> #dairy female calves entered (/milkingslot/yr)
H45: =language!F46 -> average heifer enter cost | I45: =IFERROR((I34*I31+I43*I42)/(I34+I43),0) -> 2000 | K45: 143 | M45: =IFERROR((M34*M31+M43*M42)/(M34+M43),0) -> 2000 | S45: 0.0001399994218 | T45: 237 | U45: =OFFSET(control!N326,0,control!$K$9) -> 0.5916838125 | V45: =OFFSET(control!AC326,0,control!$K$9) -> 0.5915438131 | W45: =language!F209 -> 21-day service rate
H46: =language!F47 -> #heifers calved/year | I46: =I34+I43 -> 423.3070041 | K46: 144 | M46: =M34+M43 -> 423.3070041 | S46: -0.01426685113 | T46: 238 | U46: =OFFSET(control!N327,0,control!$K$9) -> 0.3357331489 | V46: =OFFSET(control!AC327,0,control!$K$9) -> 0.35 | W46: =language!F210 -> conception rate
H47: =language!F49 -> %heifers calved that were born on the farm | I47: =IFERROR(I34*I8/I10/I46,0) -> 0 | K47: 145 | M47: =IFERROR(M34*M8/M10/M46,0) -> 0 | S47: -0.00839246507 | T47: 239 | U47: =OFFSET(control!N329,0,control!$K$9) -> 0.1986478695 | V47: =OFFSET(control!AC329,0,control!$K$9) -> 0.2070403346 | W47: =language!F211 -> 21-day pregnancy rate
H48: =language!F50 -> #milking cows present | I48: =SUM(control!I261:L261) -> 1000 | K48: 146 | M48: =SUM(control!X261:AA261) -> 1001.442891 | N48: <= goal seek (M43) | S48: -0.02416533853 | T48: 240 | U48: =OFFSET(control!N330,0,control!$K$9) -> 0.5914440084 | V48: =OFFSET(control!AC330,0,control!$K$9) -> 0.6156093469 | W48: =language!F212 -> %pregnant@150 DIM
H49: =language!F51 -> #milking slots | I49: 1000 | K49: 147 | M49: 1000 | S49: -0.004178070848 | T49: 241 | U49: =OFFSET(control!N331,0,control!$K$9) -> 0.9013512109 | V49: =OFFSET(control!AC331,0,control!$K$9) -> 0.9055292817 | W49: =language!F213 -> %pregnant@300 DIM
H50: =language!F52 -> #dry cows present | I50: =SUM(control!I262:L262) -> 135.9030334 | K50: 148 | M50: =SUM(control!X262:AA262) -> 137.8323836 | S50: -0.0002794026243 | T50: 242 | U50: =OFFSET(control!N332,0,control!$K$9) -> 0.774134913 | V50: =OFFSET(control!AC332,0,control!$K$9) -> 0.7744143156 | W50: =language!F214 -> %present@300 DIM
H51: =language!F53 -> #dry slots | I51: =I50 -> 135.9030334 | K51: 149 | M51: =M50 -> 137.8323836 | S51: 3.29984603 | T51: 243 | U51: =OFFSET(control!N333,0,control!$K$9) -> 139.2257427 | V51: =OFFSET(control!AC333,0,control!$K$9) -> 135.9258967 | W51: =language!F215 -> days to conception
H52: =language!F54 -> #total cows present | I52: =I48+I50 -> 1135.903033 | K52: 150 | M52: =M48+M50 -> 1139.275275 | S52: 1.419971516 | T52: 244 | U52: =OFFSET(control!N334,0,control!$K$9) -> 202.5690016 | V52: =OFFSET(control!AC334,0,control!$K$9) -> 201.1490301 | W52: =language!F216 -> days present
H53: =language!F55 -> #total cow slots | I53: =I52 -> 1135.903033 | K53: 151 | M53: =M52 -> 1139.275275 | S53: 1.486758578 | T53: 245 | U53: =OFFSET(control!N335,0,control!$K$9) -> 177.6291239 | V53: =OFFSET(control!AC335,0,control!$K$9) -> 176.1423653 | W53: =language!F217 -> days in milk
H54: =language!F56 -> milk price/lbs | I54: 0.09 | K54: 152 | M54: 0.09 | S54: 3.24240625 | T54: 246 | U54: =OFFSET(control!N336,0,control!$K$9) -> 416.8022672 | V54: =OFFSET(control!AC336,0,control!$K$9) -> 413.5598609 | W54: =language!F218 -> days at calving
H55: =language!F57 -> fat price/lbs | I55: 2.6 | K55: 153 | M55: 2.6 | S55: 2.084668616 | T55: 247 | U55: =OFFSET(control!N343,0,control!$K$9) -> 186.4660987 | V55: =OFFSET(control!AC343,0,control!$K$9) -> 184.38143 | W55: =language!F219 -> days to culling
H56: =language!F58 -> protein price/lbs | I56: 0 | K56: 154 | M56: 0 | S56: 2.117362612 | T56: 248 | U56: =OFFSET(control!N344,0,control!$K$9) -> 337.6354305 | V56: =OFFSET(control!AC344,0,control!$K$9) -> 335.5180679 | W56: =language!F220 -> days at leaving
H57: =language!F59 -> avg. milk price/lbs | I57: =control!N421 -> 0.1890460009 | K57: 155 | M57: =control!AC421 -> 0.1890382485 | S57: -0.01764626439 | T57: 249 | U57: =OFFSET(control!N346,0,control!$K$9) -> 61.51440177 | V57: =OFFSET(control!AC346,0,control!$K$9) -> 61.53204803 | W57: =language!F221 -> milk/cow/day (all)
H58: =language!F60 -> fixed cost/milking slot/day | I58: 2 | K58: 156 | M58: 2 | S58: -0.1265416276 | T58: 250 | U58: =OFFSET(control!N347,0,control!$K$9) -> 69.87439557 | V58: =OFFSET(control!AC347,0,control!$K$9) -> 70.00093719 | W58: =language!F222 -> milk/cow/day (wet)
H59: =language!F61 -> fixed cost/dry slot/day | I59: 0 | K59: 157 | M59: 0 | S59: 10.92718689 | T59: 251 | U59: =OFFSET(control!N348,0,control!$K$9) -> 53.78432974 | V59: =OFFSET(control!AC348,0,control!$K$9) -> 42.85714286 | W59: =language!F223 -> cost/pregnancy
H60: =language!F62 -> annual interest | I60: 0 | K60: 158 | M60: 0 | S60: -1.101860255 | T60: 252 | U60: =OFFSET(control!N349,0,control!$K$9) -> 22538.98018 | V60: =OFFSET(control!AC349,0,control!$K$9) -> 22540.08204 | W60: =language!F224 -> 305-d yield/milking cow
H61: =language!F63 -> days insemination to pregcheck (open) | I61: 35 | K61: 159 | M61: 35 | S61: 0.1214131876 | T61: 253 | U61: =OFFSET(control!N350,0,control!$K$9) -> 2.978556045 | V61: =OFFSET(control!AC350,0,control!$K$9) -> 2.857142857 | W61: =language!F225 -> breedings/conception
H62: =language!F64 -> days recheck after confirmed (pregnant) | I62: 30 | K62: 160 | M62: 30 | S62: 0.006789420407 | T62: 254 | U62: =OFFSET(control!N351,0,control!$K$9) -> 0.3935044916 | V62: =OFFSET(control!AC351,0,control!$K$9) -> 0.3867150712 | W62: =language!F226 -> %open
H63: =language!F65 -> calculate %pregnant@how-many DIM | I63: 300 | K63: 161 | M63: 300 | S63: -0.006789420407 | T63: 255 | U63: =OFFSET(control!N352,0,control!$K$9) -> 0.6064955084 | V63: =OFFSET(control!AC352,0,control!$K$9) -> 0.6132849288 | W63: =language!F227 -> %pregnant
I64: default | K64: 162 | M64: default | S64: 0.001339346674 | T64: 256 | U64: =OFFSET(control!N353,0,control!$K$9) -> 0.8803568356 | V64: =OFFSET(control!AC353,0,control!$K$9) -> 0.8790174889 | W64: =language!F228 -> %milking
I65: input1 | M65: input11 | S65: -0.001339346674 | T65: 257 | U65: =OFFSET(control!N354,0,control!$K$9) -> 0.1196431644 | V65: =OFFSET(control!AC354,0,control!$K$9) -> 0.1209825111 | W65: =language!F229 -> %dry
S66: -83.05405963 | T66: 258 | U66: =OFFSET(control!N355,0,control!$K$9) -> 25504.15438 | V66: =OFFSET(control!AC355,0,control!$K$9) -> 25587.20844 | W66: =language!F230 -> milk yield (/milkingslot/yr)
S67: -0.5857422563 | T67: 259 | U67: =OFFSET(control!N356,0,control!$K$9) -> 813.4997131 | V67: =OFFSET(control!AC356,0,control!$K$9) -> 814.0854554 | W67: =language!F231 -> cull price/head
S68: 1.387941294e-05 | T68: 260 | U68: =OFFSET(control!N357,0,control!$K$9) -> 0.0003500497444 | V68: =OFFSET(control!AC357,0,control!$K$9) -> 0.0003361703314 | W68: =language!F232 -> %culled at end of lactation
S69: -0.00317275812 | T69: 261 | U69: =OFFSET(control!N358,0,control!$K$9) -> 0.6562987167 | V69: =OFFSET(control!AC358,0,control!$K$9) -> 0.6594714749 | W69: =language!F233 -> %calved
D70: =language!F69 -> Parities | E70: heifersA | F70: 1A | G70: 2A | H70: 3A | I70: 4A+ | M70: heifersB | N70: 1B | O70: 2B | P70: 3B | Q70: 4B+ | S70: 0.00317275812 | T70: 262 | U70: =OFFSET(control!N359,0,control!$K$9) -> 0.3437012833 | V70: =OFFSET(control!AC359,0,control!$K$9) -> 0.3405285251 | W70: =language!F234 -> %culled:entered
D71: =language!F71 -> relative milk yield (%) | E71: ----- | F71: 1 | G71: 1 | H71: 1 | I71: 1 | K71: 1 | M71: ----- | N71: 1 | O71: 1 | P71: 1 | Q71: 1 | S71: 0.001103072828 | T71: 263 | U71: =OFFSET(control!N360,0,control!$K$9) -> 0.3726612146 | V71: =OFFSET(control!AC360,0,control!$K$9) -> 0.3715581417 | W71: =language!F235 -> %annual cull rate
D72: =language!F72 -> peak yield (lbs/day) | E72: ----- | F72: 72 | G72: 87 | H72: 97 | I72: 97 | K72: 2 | M72: ----- | N72: 72 | O72: 87 | P72: 97 | Q72: 97 | S72: 0.001294174698 | T72: 264 | U72: =OFFSET(control!N361,0,control!$K$9) -> 0.07962887491 | V72: =OFFSET(control!AC361,0,control!$K$9) -> 0.07833470021 | W72: =language!F236 -> %annual repro cull rate
D73: =language!F73 -> days in milk@peak | E73: ----- | F73: 104 | G73: 58 | H73: 59 | I73: 59 | K73: 3 | M73: ----- | N73: 104 | O73: 58 | P73: 59 | Q73: 59 | S73: =U73-V73 -> -83054.05963 | T73: 265 | U73: =OFFSET(control!N407,0,control!$K$9) -> 25504154.38 | V73: =OFFSET(control!AC407,0,control!$K$9) -> 25587208.44 | W73: =language!F237 -> milk yield/farm/year
D74: =language!F74 -> decline after peak (%) | E74: ----- | F74: 0.03 | G74: 0.0635 | H74: 0.0734 | I74: 0.0734 | K74: 4 | M74: ----- | N74: 0.03 | O74: 0.0635 | P74: 0.0734 | Q74: 0.0734 | S74: -0.001417390795 | T74: 266 | U74: =OFFSET(control!N397,0,control!$K$9) -> 1.438120515 | V74: =OFFSET(control!AC397,0,control!$K$9) -> 1.439537906 | W74: =language!F238 -> feed conversion (wet)
D75: =language!F75 -> % fat | E75: ----- | F75: 0.038 | G75: 0.038 | H75: 0.038 | I75: 0.038 | K75: 5 | M75: ----- | N75: 0.038 | O75: 0.038 | P75: 0.038 | Q75: 0.038 | S75: 0.006867135087 | T75: 267 | U75: =control!I412 -> 0.3865622783 | V75: =control!X412 -> 0.3796951432 | W75: =language!F239 -> %cows in parity 1
D76: =language!F76 -> % protein | E76: ----- | F76: 0.032 | G76: 0.032 | H76: 0.032 | I76: 0.032 | K76: 6 | M76: ----- | N76: 0.032 | O76: 0.032 | P76: 0.032 | Q76: 0.032 | S76: -0.002851055048 | T76: 268 | U76: =control!J412 -> 0.2546833127 | V76: =control!Y412 -> 0.2575343678 | W76: =language!F240 -> %cows in parity 2
D77: =language!F77 -> somatic cell count | F77: 200000 | G77: 200000 | H77: 200000 | I77: 200000 | K77: 7 | N77: 200000 | O77: 200000 | P77: 200000 | Q77: 200000 | S77: -0.001759253237 | T77: 269 | U77: =control!K412 -> 0.1571532063 | V77: =control!Z412 -> 0.1589124596 | W77: =language!F241 -> %cows in parity 3
D78: =language!F78 -> 305-day milk yield (lbs/year) | E78: ----- | F78: =control!FE9 -> 20356.43845 | G78: =control!FF9 -> 22569.95085 | H78: =control!FG9 -> 24603.49583 | I78: =control!FH9 -> 24603.49583 | K78: 8 | M78: ----- | N78: =control!FJ9 -> 20356.43845 | O78: =control!FK9 -> 22569.95085 | P78: =control!FL9 -> 24603.49583 | Q78: =control!FM9 -> 24603.49583 | S78: -0.002256826802 | T78: 270 | U78: =control!L412 -> 0.2016012026 | V78: =control!AA412 -> 0.2038580294 | W78: =language!F242 -> %cows in parity 4+
D79: =language!F79 -> 305-day dry matter intake (lbs/year) | E79: ----- | F79: =control!IQ7 -> 14034.47528 | G79: =control!IR7 -> 15264.58943 | H79: =control!IS7 -> 15948.75943 | I79: =control!IT7 -> 15943.8049 | K79: 9 | M79: ----- | N79: =control!IV7 -> 14034.47528 | O79: =control!IW7 -> 15264.58943 | P79: =control!IX7 -> 15948.75943 | Q79: =control!IY7 -> 15943.8049 | S79: -0.4210961405 | T79: 271 | U79: =OFFSET(control!N398,0,control!$K$9) -> 136.6506039 | V79: =OFFSET(control!AC398,0,control!$K$9) -> 137.0717001 | W79: =language!F243 -> methane (kg/milkingslot/yr)
D80: =language!F80 -> relative dry matter intake (%) | E80: ----- | F80: 1 | G80: 1 | H80: 1 | I80: 1 | K80: 10 | M80: ----- | N80: 1 | O80: 1 | P80: 1 | Q80: 1 | S80: -0.01385885755 | T80: 272 | U80: =OFFSET(control!N409,0,control!$K$9) -> 0.9762150957 | V80: =OFFSET(control!AC409,0,control!$K$9) -> 0.9900739532 | W80: =language!F244 -> #new pregnancies (/milkingslot/yr)
D81: =language!F81 -> wet cow dmi cost/lbs | E81: ----- | F81: 0.15 | G81: 0.15 | H81: 0.15 | I81: 0.15 | K81: 11 | M81: ----- | N81: 0.15 | O81: 0.15 | P81: 0.15 | Q81: 0.15 | S81: -0.009620759809 | T81: 273 | U81: =control!R409 -> 0.8594176324 | V81: =control!AG409 -> 0.8690383922 | W81: =language!F245 -> #new pregnancies/cow/year
D82: =language!F82 -> dry cow dmi cost/lbs | E82: ----- | F82: 0.12 | G82: 0.12 | H82: 0.12 | I82: 0.12 | K82: 12 | M82: ----- | N82: 0.12 | O82: 0.12 | P82: 0.12 | Q82: 0.12 | S82: =U82-V82 -> 0.0382740951 | T82: 274 | U82: =OFFSET(control!N254,0,control!$K$9) -> 0.643320826 | V82: =OFFSET(control!AC254,0,control!$K$9) -> 0.6050467309 | W82: =language!F246 -> #other calves born alive (/milkingslot/yr)
D83: =language!F83 -> fresh cull price (<= 60 days)/lbs | E83: 0 | F83: 0.6 | G83: 0.6 | H83: 0.6 | I83: 0.6 | K83: 13 | M83: 0 | N83: 0.6 | O83: 0.6 | P83: 0.6 | Q83: 0.6 | S83: =U83-V83 -> 0 | T83: 275
D84: =language!F84 -> cull price (> 60 days)/lbs | E84: 1 | F84: 0.6 | G84: 0.6 | H84: 0.6 | I84: 0.6 | K84: 14 | M84: 1 | N84: 0.6 | O84: 0.6 | P84: 0.6 | Q84: 0.6 | S84: 0 | T84: 276 | U84: =OFFSET(control!N400,0,control!$K$9) -> 0 | V84: =OFFSET(control!AC400,0,control!$K$9) -> 0 | W84: =language!F248 -> #inv. culled heifers (/milkingslot/yr)
D85: =language!F85 -> standardized body weight (lbs) | E85: 1150 | F85: 1246.500355 | G85: 1376.361449 | H85: 1376.093358 | I85: 1374.901519 | K85: 15 | M85: 1150 | N85: 1246.500355 | O85: 1376.361449 | P85: 1376.093358 | Q85: 1374.901519 | S85: 0 | T85: 277 | U85: =OFFSET(control!N239,0,control!$K$9) -> 0.4233070041 | V85: =OFFSET(control!AC239,0,control!$K$9) -> 0.4233070041 | W85: =language!F249 -> #inv. cows sold (/milkingslot/yr)
D86: =language!F86 -> relative body weight (%) | E86: 1 | F86: 1 | G86: 1 | H86: 1 | I86: 1 | K86: 16 | M86: 1 | N86: 1 | O86: 1 | P86: 1 | Q86: 1 | S86: -40.23342034 | T86: 278 | U86: =OFFSET(control!N264,0,control!$K$9) -> 17734.36517 | V86: =OFFSET(control!AC264,0,control!$K$9) -> 17774.59859 | W86: =language!F250 -> #dmi wet cows (/milkingslot/yr)
D87: =language!F87 -> realized body weight (lbs) | E87: =control!H338 -> 0 | F87: =control!I338 -> 1257.482546 | G87: =control!J338 -> 1386.19745 | H87: =control!K338 -> 1385.49572 | I87: =control!L338 -> 1383.874757 | K87: 17 | M87: =control!W338 -> 0 | N87: =control!X338 -> 1257.21092 | O87: =control!Y338 -> 1386.197369 | P87: =control!Z338 -> 1385.495919 | Q87: =control!AA338 -> 1383.874841 | S87: -18.6334712 | T87: 279 | U87: =OFFSET(control!N265,0,control!$K$9) -> 1312.537907 | V87: =OFFSET(control!AC265,0,control!$K$9) -> 1331.171378 | W87: =language!F251 -> #dmy dry cows (/milkingslot/yr)
D88: =language!F88 -> cull value/head | E88: =control!H356 -> 0 | F88: =control!I356 -> 761.0091653 | G88: =control!J356 -> 836.5821116 | H88: =control!K356 -> 832.2356715 | I88: =control!L356 -> 828.2705207 | K88: 18 | M88: =control!W356 -> 0 | N88: =control!X356 -> 760.3740187 | O88: =control!Y356 -> 836.5820544 | P88: =control!Z356 -> 832.2357428 | Q88: =control!AA356 -> 828.2705451 | S88: -0.526655314 | T88: 280 | U88: =OFFSET(control!N261,0,control!$K$9) -> 365 | V88: =OFFSET(control!AC261,0,control!$K$9) -> 365.5266553 | W88: =language!F252 -> #milking cow days (/milkingslot/yr)
D89: =language!F89 -> other cost/milking cow/day | E89: ----- | F89: 2 | G89: 2 | H89: 2 | I89: 2 | K89: 19 | M89: ----- | N89: 2 | O89: 2 | P89: 2 | Q89: 2 | S89: -0.7042128195 | T89: 281 | U89: =OFFSET(control!N262,0,control!$K$9) -> 49.6046072 | V89: =OFFSET(control!AC262,0,control!$K$9) -> 50.30882002 | W89: =language!F253 -> #dry cow days (/milkingslot/yr)
D90: =language!F90 -> other cost/dry cow/day | E90: ----- | F90: 2 | G90: 2 | H90: 2 | I90: 2 | K90: 20 | M90: ----- | N90: 2 | O90: 2 | P90: 2 | Q90: 2 | S90: -2.292626478 | T90: 282 | U90: =OFFSET(control!N267,0,control!$K$9) -> 193.1611152 | V90: =OFFSET(control!AC267,0,control!$K$9) -> 195.4537417 | W90: =language!F254 -> #fresh body weight culled (/milkingslot/yr)
D91: =language!F91 -> other cost/vwp cow/day | E91: 0 | F91: 0 | G91: 0 | H91: 0 | I91: 0 | K91: 21 | M91: 0 | N91: 0 | O91: 0 | P91: 0 | Q91: 0 | S91: 1.879378479 | T91: 283 | U91: =OFFSET(control!N268,0,control!$K$9) -> 380.7724288 | V91: =OFFSET(control!AC268,0,control!$K$9) -> 378.8930503 | W91: =language!F255 -> #later body weight culled (/milkingslot/yr)
D92: =language!F92 -> other cost/eligible open cow/day | E92: 0 | F92: 0 | G92: 0 | H92: 0 | I92: 0 | K92: 22 | M92: 0 | N92: 0 | O92: 0 | P92: 0 | Q92: 0 | S92: 0 | T92: 284 | U92: =OFFSET(control!N399,0,control!$K$9) -> 0 | V92: =OFFSET(control!AC399,0,control!$K$9) -> 0 | W92: =language!F256 -> breeding cost (parity 0) (/milkingslot/yr)
D93: =language!F93 -> other cost/pregnant cow/day | E93: 0 | F93: 0 | G93: 0 | H93: 0 | I93: 0 | K93: 23 | M93: 0 | N93: 0 | O93: 0 | P93: 0 | Q93: 0 | S93: 0 | T93: 285
D94: =language!F94 -> other cost @ calving | E94: ----- | F94: 0 | G94: 0 | H94: 0 | I94: 0 | K94: 24 | M94: ----- | N94: 0 | O94: 0 | P94: 0 | Q94: 0 | S94: 0 | T94: 286
D95: =language!F95 -> other cost @ dry off | E95: ----- | F95: 0 | G95: 0 | H95: 0 | I95: 0 | K95: 25 | M95: ----- | N95: 0 | O95: 0 | P95: 0 | Q95: 0 | S95: 0 | T95: 287
D96: =language!F96 -> other cost @ day in parity | E96: 0 | F96: 0 | G96: 0 | H96: 0 | I96: 0 | K96: 26 | M96: 0 | N96: 0 | O96: 0 | P96: 0 | Q96: 0 | S96: 0 | T96: 288
D97: =language!F97 -> day in parity @ cost | E97: 1 | F97: 1 | G97: 1 | H97: 1 | I97: 1 | K97: 27 | M97: 1 | N97: 1 | O97: 1 | P97: 1 | Q97: 1 | S97: 0 | T97: 289
D98: =language!F98 -> relative cull rate (%) | E98: 1 | F98: 1 | G98: 1 | H98: 1 | I98: 1 | K98: 28 | M98: 1 | N98: 1 | O98: 1 | P98: 1 | Q98: 1 | S98: 0 | T98: 290
D99: =language!F99 -> fresh inv. cull rate (open 1 - 60 days) | E99: 0.08 | F99: 0.06 | G99: 0.1 | H99: 0.1455228543 | I99: 0.1936057137 | K99: 29 | M99: 0.08 | N99: 0.06 | O99: 0.1 | P99: 0.1455228543 | Q99: 0.1936057137 | S99: 0 | T99: 291
D100: =language!F100 -> inv. cull rate (open 61 - 365 days) | E100: 0.01593283582 | F100: 0.1528087955 | G100: 0.2400505784 | H100: 0.3293142438 | I100: 0.4209877854 | K100: 30 | M100: 0.01593283582 | N100: 0.1528087955 | O100: 0.2400505784 | P100: 0.3293142438 | Q100: 0.4209877854 | S100: 0 | T100: 292
D101: =language!F101 -> inv. cull rate (preg. 1 - 280 days) | E101: 0.03 | F101: 0.08 | G101: 0.08 | H101: 0.08 | I101: 0.08 | K101: 31 | M101: 0.03 | N101: 0.08 | O101: 0.08 | P101: 0.08 | Q101: 0.08 | S101: 0 | T101: 293
D102: =language!F102 -> annual cull rate | E102: =control!H360 -> 0 | F102: =control!I360 -> 0.2521197932 | G102: =control!J360 -> 0.3638754224 | H102: =control!K360 -> 0.450181958 | I102: =control!L360 -> 0.5544643353 | K102: 32 | M102: =control!W360 -> 0 | N102: =control!X360 -> 0.2456607296 | O102: =control!Y360 -> 0.3638754224 | P102: =control!Z360 -> 0.450181958 | Q102: =control!AA360 -> 0.5544643353 | S102: 0 | T102: 294
D103: =language!F103 -> abortion rate | E103: 0.03 | F103: 0.1 | G103: 0.1 | H103: 0.1 | I103: 0.1 | K103: 33 | M103: 0.03 | N103: 0.1 | O103: 0.1 | P103: 0.1 | Q103: 0.1 | S103: 0 | T103: 295
D104: =language!F104 -> voluntary waiting period | E104: 400 | F104: 60 | G104: 60 | H104: 60 | I104: 60 | K104: 34 | M104: 400 | N104: 60 | O104: 60 | P104: 60 | Q104: 60 | S104: 0 | T104: 296
D105: =language!F105 -> days from VWP to first ovulation | E105: 10 | F105: 10 | G105: 10 | H105: 10 | I105: 10 | K105: 35 | M105: 10 | N105: 10 | O105: 10 | P105: 10 | Q105: 10 | S105: 0 | T105: 297
D106: =language!F106 -> days between 1st and 2nd ovulation | E106: 21 | F106: 21 | G106: 21 | H106: 21 | I106: 21 | K106: 36 | M106: 21 | N106: 21 | O106: 21 | P106: 21 | Q106: 21 | S106: 0 | T106: 298
D107: =language!F107 -> days between 2nd and 3rd ovulation | E107: 21 | F107: 21 | G107: 21 | H107: 21 | I107: 21 | K107: 37 | M107: 21 | N107: 21 | O107: 21 | P107: 21 | Q107: 21 | S107: 0 | T107: 299
D108: =language!F108 -> days between 3rd and 4th ovulation | E108: 21 | F108: 21 | G108: 21 | H108: 21 | I108: 21 | K108: 38 | M108: 21 | N108: 21 | O108: 21 | P108: 21 | Q108: 21 | S108: 0 | T108: 300
D109: =language!F109 -> days between next ovulations | E109: 21 | F109: 21 | G109: 21 | H109: 21 | I109: 21 | K109: 39 | M109: 21 | N109: 21 | O109: 21 | P109: 21 | Q109: 21 | U109: output1
D110: =language!F110 -> days to 1st ovulation | E110: =E104+E105 -> 410 | F110: =F104+F105 -> 70 | G110: =G104+G105 -> 70 | H110: =H104+H105 -> 70 | I110: =I104+I105 -> 70 | K110: 40 | M110: =M104+M105 -> 410 | N110: =N104+N105 -> 70 | O110: =O104+O105 -> 70 | P110: =P104+P105 -> 70 | Q110: =Q104+Q105 -> 70
D111: =language!F111 -> days to 2nd ovulation | E111: =E110+E106 -> 431 | F111: 91 | G111: 91 | H111: 91 | I111: 91 | K111: 41 | M111: =M110+M106 -> 431 | N111: 91 | O111: 91 | P111: 91 | Q111: 91
D112: =language!F112 -> days to 3rd ovulation | E112: 452 | F112: 112 | G112: 112 | H112: 112 | I112: 112 | K112: 42 | M112: 452 | N112: 112 | O112: 112 | P112: 112 | Q112: 112
D113: =language!F113 -> days to 4th ovulation | E113: 473 | F113: 133 | G113: 133 | H113: 133 | I113: 133 | K113: 43 | M113: 473 | N113: 133 | O113: 133 | P113: 133 | Q113: 133
D114: =language!F114 -> first day stage 1 | E114: =E110 -> 410 | F114: =F110 -> 70 | G114: =G110 -> 70 | H114: =H110 -> 70 | I114: =I110 -> 70 | K114: 44 | M114: =M110 -> 410 | N114: =N110 -> 70 | O114: =O110 -> 70 | P114: =P110 -> 70 | Q114: =Q110 -> 70
D115: =language!F115 -> first day stage 2 | E115: =E114+21 -> 431 | F115: =F114+21 -> 91 | G115: =G114+21 -> 91 | H115: =H114+21 -> 91 | I115: =I114+21 -> 91 | K115: 45 | M115: =M114+21 -> 431 | N115: 91 | O115: 91 | P115: 91 | Q115: 91
D116: =language!F116 -> first day stage 3 | E116: =E115+21 -> 452 | F116: =F115+21 -> 112 | G116: 112 | H116: 112 | I116: 112 | K116: 46 | M116: 452 | N116: 112 | O116: 112 | P116: 112 | Q116: 112
D117: =language!F117 -> first day stage 4 | E117: =E116+21 -> 473 | F117: 133 | G117: 133 | H117: 133 | I117: 133 | K117: 47 | M117: 473 | N117: 133 | O117: 133 | P117: 133 | Q117: 133
D118: =language!F118 -> stage check | E118: =IF(AND(E115>E114,E116>E115,E117>E116),"ok","error") -> ok | F118: =IF(AND(F115>F114,F116>F115,F117>F116),"ok","error") -> ok | G118: =IF(AND(G115>G114,G116>G115,G117>G116),"ok","error") -> ok | H118: =IF(AND(H115>H114,H116>H115,H117>H116),"ok","error") -> ok | I118: =IF(AND(I115>I114,I116>I115,I117>I116),"ok","error") -> ok | K118: 48 | M118: =IF(AND(M115>M114,M116>M115,M117>M116),"ok","error") -> ok | N118: =IF(AND(N115>N114,N116>N115,N117>N116),"ok","error") -> ok | O118: =IF(AND(O115>O114,O116>O115,O117>O116),"ok","error") -> ok | P118: =IF(AND(P115>P114,P116>P115,P117>P116),"ok","error") -> ok | Q118: =IF(AND(Q115>Q114,Q116>Q115,Q117>Q116),"ok","error") -> ok
D119: =language!F119 -> relative P(breeding | ovulation) | E119: 1 | F119: 1 | G119: 1 | H119: 1 | I119: 1 | K119: 49 | M119: 1 | N119: 1 | O119: 1 | P119: 1 | Q119: 1
D120: =language!F120 -> P(breeding | ovulation), stage 1 | E120: 0.6 | F120: 0.6 | G120: 0.6 | H120: 0.6 | I120: 0.6 | K120: 50 | M120: 0.6 | N120: 0.6 | O120: 0.6 | P120: 0.6 | Q120: 0.6
D121: =language!F121 -> P(breeding | ovulation), stage 2 | E121: 0.6 | F121: 0.6 | G121: 0.6 | H121: 0.6 | I121: 0.6 | K121: 51 | M121: 0.6 | N121: 0.6 | O121: 0.6 | P121: 0.6 | Q121: 0.6
D122: =language!F122 -> P(breeding | ovulation), stage 3 | E122: 0.6 | F122: 0.6 | G122: 0.6 | H122: 0.6 | I122: 0.6 | K122: 52 | M122: 0.6 | N122: 0.6 | O122: 0.6 | P122: 0.6 | Q122: 0.6
D123: =language!F123 -> P(breeding | ovulation), stage 4 | E123: 0.6 | F123: 0.6 | G123: 0.6 | H123: 0.6 | I123: 0.6 | K123: 53 | M123: 0.6 | N123: 0.6 | O123: 0.6 | P123: 0.6 | Q123: 0.6
D124: =language!F124 -> relative P(conception | breeding) | E124: 1 | F124: 1 | G124: 1 | H124: 1 | I124: 1 | K124: 54 | M124: 1 | N124: 1 | O124: 1 | P124: 1 | Q124: 1
D125: =language!F125 -> P(conception | breeding), stage 1 | E125: 0.6 | F125: =0.8*0.35 -> 0.28 | G125: 0.35 | H125: 0.35 | I125: 0.35 | K125: 55 | M125: 0.6 | N125: 0.35 | O125: 0.35 | P125: 0.35 | Q125: 0.35
D126: =language!F126 -> P(conception | breeding), stage 2 | E126: 0.55 | F126: =0.8*0.35 -> 0.28 | G126: 0.35 | H126: 0.35 | I126: 0.35 | K126: 56 | M126: 0.55 | N126: 0.35 | O126: 0.35 | P126: 0.35 | Q126: 0.35
D127: =language!F127 -> P(conception | breeding), stage 3 | E127: 0.45 | F127: =0.8*0.35 -> 0.28 | G127: 0.35 | H127: 0.35 | I127: 0.35 | K127: 57 | M127: 0.45 | N127: 0.35 | O127: 0.35 | P127: 0.35 | Q127: 0.35
D128: =language!F128 -> P(conception | breeding), stage 4 | E128: 0.4 | F128: 0.35 | G128: 0.35 | H128: 0.35 | I128: 0.35 | K128: 58 | M128: 0.4 | N128: 0.35 | O128: 0.35 | P128: 0.35 | Q128: 0.35
D129: =language!F129 -> cost / ovulation,stage 1 | E129: 0 | F129: 0 | G129: 0 | H129: 0 | I129: 0 | K129: 59 | M129: 0 | N129: 0 | O129: 0 | P129: 0 | Q129: 0
D130: =language!F130 -> cost / ovulation,stage 2 | E130: 0 | F130: 0 | G130: 0 | H130: 0 | I130: 0 | K130: 60 | M130: 0 | N130: 0 | O130: 0 | P130: 0 | Q130: 0
D131: =language!F131 -> cost / ovulation,stage 3 | E131: 0 | F131: 0 | G131: 0 | H131: 0 | I131: 0 | K131: 61 | M131: 0 | N131: 0 | O131: 0 | P131: 0 | Q131: 0
D132: =language!F132 -> cost / ovulation,stage 4 | E132: 0 | F132: 0 | G132: 0 | H132: 0 | I132: 0 | K132: 62 | M132: 0 | N132: 0 | O132: 0 | P132: 0 | Q132: 0
D133: =language!F133 -> cost / breeding, stage 1 | E133: 15 | F133: 30 | G133: 15 | H133: 15 | I133: 15 | K133: 63 | M133: 15 | N133: 15 | O133: 15 | P133: 15 | Q133: 15
D134: =language!F134 -> cost / breeding, stage 2 | E134: 15 | F134: 30 | G134: 15 | H134: 15 | I134: 15 | K134: 64 | M134: 15 | N134: 15 | O134: 15 | P134: 15 | Q134: 15
D135: =language!F135 -> cost / breeding, stage 3 | E135: 15 | F135: 30 | G135: 15 | H135: 15 | I135: 15 | K135: 65 | M135: 15 | N135: 15 | O135: 15 | P135: 15 | Q135: 15
D136: =language!F136 -> cost / breeding, stage 4 | E136: 15 | F136: 15 | G136: 15 | H136: 15 | I136: 15 | K136: 66 | M136: 15 | N136: 15 | O136: 15 | P136: 15 | Q136: 15
D137: =language!F137 -> %dairy heifer calves, stage 1 | E137: 0.48 | F137: 0.9 | G137: 0.48 | H137: 0.48 | I137: 0.48 | K137: 67 | M137: 0.48 | N137: 0.48 | O137: 0.48 | P137: 0.48 | Q137: 0.48
D138: =language!F138 -> %dairy heifer calves, stage 2 | E138: 0.48 | F138: 0.9 | G138: 0.48 | H138: 0.48 | I138: 0.48 | K138: 68 | M138: 0.48 | N138: 0.48 | O138: 0.48 | P138: 0.48 | Q138: 0.48
D139: =language!F139 -> %dairy heifer calves, stage 3 | E139: 0.48 | F139: 0.9 | G139: 0.48 | H139: 0.48 | I139: 0.48 | K139: 69 | M139: 0.48 | N139: 0.48 | O139: 0.48 | P139: 0.48 | Q139: 0.48
D140: =language!F140 -> %dairy heifer calves, stage 4 | E140: 0.48 | F140: 0.48 | G140: 0 | H140: 0 | I140: 0 | K140: 70 | M140: 0.48 | N140: 0.48 | O140: 0.48 | P140: 0.48 | Q140: 0.48
D141: =language!F141 -> %dystocia dairy heifer calf | E141: 0.039 | F141: 0.005 | G141: 0.005 | H141: 0.005 | I141: 0.005 | K141: 71 | M141: 0.039 | N141: 0.005 | O141: 0.005 | P141: 0.005 | Q141: 0.005
D142: =language!F142 -> %dystocia other calf | E142: 0.081 | F142: 0.045 | G142: 0.045 | H142: 0.045 | I142: 0.045 | K142: 72 | M142: 0.081 | N142: 0.045 | O142: 0.045 | P142: 0.045 | Q142: 0.045
D143: =language!F143 -> cost / dystocia case | E143: 93 | F143: 22 | G143: 22 | H143: 22 | I143: 22 | K143: 73 | M143: 93 | N143: 22 | O143: 22 | P143: 22 | Q143: 22
D144: =language!F144 -> %stillbirth dairy heifer calf | E144: 0.115 | F144: 0.049 | G144: 0.049 | H144: 0.049 | I144: 0.049 | K144: 74 | M144: 0.115 | N144: 0.049 | O144: 0.049 | P144: 0.049 | Q144: 0.049
D145: =language!F145 -> %stillbirth other calf | E145: 0.093 | F145: 0.049 | G145: 0.049 | H145: 0.049 | I145: 0.049 | K145: 75 | M145: 0.093 | N145: 0.049 | O145: 0.049 | P145: 0.049 | Q145: 0.049
D146: =language!F146 -> average age in parity (yr) | E146: =control!H342/365 -> 0 | F146: =control!I342/365 -> 2.583959706 | G146: =control!J342/365 -> 3.71982878 | H146: =control!K342/365 -> 4.836286263 | I146: =control!L342/365 -> 5.948228153 | K146: 76 | M146: =control!W342/365 -> 0 | N146: =control!X342/365 -> 2.574568068 | O146: =control!Y342/365 -> 3.696858895 | P146: =control!Z342/365 -> 4.813316378 | Q146: =control!AA342/365 -> 5.925258268
D147: =language!F147 -> age dam at birth of dairy calf (yr) | E147: =control!H341/365 -> 0 | F147: =control!I341/365 -> 3.129852743 | G147: =control!J341/365 -> 4.183089889 | H147: =control!K341/365 -> 5.306224999 | I147: =control!L341/365 -> 6.4259221 | K147: 77 | M147: =control!W341/365 -> 0 | N147: =control!X341/365 -> 3.153372097 | O147: =control!Y341/365 -> 4.276825432 | P147: =control!Z341/365 -> 5.396895938 | Q147: =control!AA341/365 -> 6.513077804
D148: =language!F148 -> days present/entered animal | E148: =control!H$345 -> 0 | F148: =control!I$345 -> 378.615284 | G148: =control!J$345 -> 337.7870619 | H148: =control!K$345 -> 314.2578277 | I148: =control!L$345 -> 289.8527234 | K148: 78 | M148: =control!W345 -> 0 | N148: =control!X345 -> 372.9933803 | O148: =control!Y345 -> 337.7870619 | P148: =control!Z345 -> 314.2578277 | Q148: =control!AA345 -> 289.8527234
D149: =language!F149 -> variable other value/day | E149: 0 | F149: 0 | G149: 0 | H149: 0 | I149: 0 | K149: 79 | M149: 0 | N149: 0 | O149: 0 | P149: 0 | Q149: 0
D150: =language!F150 -> value dairy heifer calf, stage 1 | E150: 300 | F150: 300 | G150: 300 | H150: 300 | I150: 300 | K150: 80 | M150: 300 | N150: 300 | O150: 300 | P150: 300 | Q150: 300
D151: =language!F151 -> value dairy heifer calf, stage 2 | E151: 300 | F151: 300 | G151: 300 | H151: 300 | I151: 300 | K151: 81 | M151: 300 | N151: 300 | O151: 300 | P151: 300 | Q151: 300
D152: =language!F152 -> value dairy heifer calf, stage 3 | E152: 300 | F152: 300 | G152: 300 | H152: 300 | I152: 300 | K152: 82 | M152: 300 | N152: 300 | O152: 300 | P152: 300 | Q152: 300
D153: =language!F153 -> value dairy heifer calf, stage 4 | E153: 300 | F153: 300 | G153: 300 | H153: 300 | I153: 300 | K153: 83 | M153: 300 | N153: 300 | O153: 300 | P153: 300 | Q153: 300
D154: =language!F154 -> value other calf, stage 1 | E154: 100 | F154: 100 | G154: 100 | H154: 100 | I154: 100 | K154: 84 | M154: 100 | N154: 100 | O154: 100 | P154: 100 | Q154: 100
D155: =language!F155 -> value other calf, stage 2 | E155: 100 | F155: 100 | G155: 100 | H155: 100 | I155: 100 | K155: 85 | M155: 100 | N155: 100 | O155: 100 | P155: 100 | Q155: 100
D156: =language!F156 -> value other calf, stage 3 | E156: 100 | F156: 100 | G156: 100 | H156: 100 | I156: 100 | K156: 86 | M156: 100 | N156: 100 | O156: 100 | P156: 100 | Q156: 100
D157: =language!F157 -> value other calf, stage 4 | E157: 100 | F157: 100 | G157: 200 | H157: 200 | I157: 200 | K157: 87 | M157: 100 | N157: 100 | O157: 100 | P157: 100 | Q157: 100
D158: =language!F158 -> gestation length (days) | E158: 280 | F158: 280 | G158: 280 | H158: 280 | I158: 280 | K158: 88 | M158: 280 | N158: 280 | O158: 280 | P158: 280 | Q158: 280
D159: =language!F159 -> dry period length (days) | E159: ----- | F159: 60 | G159: 60 | H159: 60 | I159: 60 | K159: 89 | M159: ----- | N159: 60 | O159: 60 | P159: 60 | Q159: 60
D160: =language!F160 -> dry-off day | E160: ----- | F160: =F158-F159 -> 220 | G160: =G158-G159 -> 220 | H160: =H158-H159 -> 220 | I160: =I158-I159 -> 220 | K160: 90 | M160: ----- | N160: =N158-N159 -> 220 | O160: =O158-O159 -> 220 | P160: =P158-P159 -> 220 | Q160: =Q158-Q159 -> 220
D161: =language!F161 -> last breeding day (≤ 700) | E161: 600 | F161: 350 | G161: 300 | H161: 300 | I161: 300 | K161: 91 | M161: 600 | N161: 350 | O161: 300 | P161: 300 | Q161: 300
D162: =language!F162 -> cull day open (≤ 1000) | E162: 650 | F162: 400 | G162: 350 | H162: 350 | I162: 350 | K162: 92 | M162: 650 | N162: 400 | O162: 350 | P162: 350 | Q162: 350
D163: =language!F163 -> cull day preg (≤ 1000) | E163: 1000 | F163: 1000 | G163: 1000 | H163: 1000 | I163: 1000 | K163: 93 | M163: 1000 | N163: 1000 | O163: 1000 | P163: 1000 | Q163: 1000
D164: =language!F164 -> max # breeding opportunities | E164: ='0A'!$K$7 -> 10 | F164: ='1A'!$K$7 -> 14 | G164: ='2A'!$K$7 -> 11 | H164: ='3A'!$K$7 -> 11 | I164: ='4A'!$K$7 -> 11 | K164: 94 | M164: ='0B'!$K$7 -> 10 | N164: ='1B'!$K$7 -> 14 | O164: ='2B'!$K$7 -> 11 | P164: ='3B'!$K$7 -> 11 | Q164: ='4B'!$K$7 -> 11
D165: =language!F165 -> milk yield @ cull days open (lbs/day) | E165: ----- | F165: =control!JH6 -> 52.64662427 | G165: =control!JI6 -> 48.8897185 | H165: =control!JJ6 -> 49.91669778 | I165: =control!JK6 -> 49.91669778 | K165: 95 | M165: ----- | N165: =control!JM6 -> 52.64662427 | O165: =control!JN6 -> 48.8897185 | P165: =control!JO6 -> 49.91669778 | Q165: =control!JP6 -> 49.91669778
D166: =language!F166 -> IOFC @ cull days open | E166: ----- | F166: =control!JH5 -> 3.373283431 | G166: =control!JI5 -> 2.549986945 | H166: =control!JJ5 -> 2.689838506 | I166: =control!JK5 -> 2.692488244 | K166: 96 | M166: ----- | N166: =control!JM5 -> 3.373283431 | O166: =control!JN5 -> 2.549986945 | P166: =control!JO5 -> 2.689838506 | Q166: =control!JP5 -> 2.692488244
E167: input2 | F167: input3 | G167: input4 | H167: input5 | I167: input6 | M167: input12 | N167: input13 | O167: input14 | P167: input15 | Q167: input16

Sheet extra (hidden)
A1: These are additional inputs that are not on the long!sheet, but they do affect the control!sheet
A2: The control sheet borrows from the extra!sheet using formula =iferror(extra!cell,1) therefore, the extra!sheet can be deleted when reducing the spreadsheet for distribution
A3: If the extra!sheet is deleted, then the formula becomes =iferror(#REF,1), which then produces the default value (1 in this case)
A4: Other sheets may point to the extra!sheet, if those other sheets need to influence the Calculator engine (through the control!sheet), for example the Luser!sheet or Disease!sheet
D7: Relative milk yield is useful for Luser, e.g. if cow has case of disease that does affect different parts of the lactation curve differently
D8: Cannot use this for dumping milk (0%) because milk yield --> DMI. Instead, calculate the value of dumped milk and enter it as a cost
D9: Relative milk yield by DIM | J9: IMPLEMENTED | M9: Cost per milking animal (?) NOT IMPLEMENTED
C10: days | D10: 1A | E10: 2A | F10: 3A | G10: 4+A | H10: 1B | I10: 2B | J10: 3B | K10: 4+B | M10: 0A | N10: 1A | O10: 2A | P10: 3A | Q10: 4+A | R10: 0B | S10: 1B | T10: 2B | U10: 3B | V10: 4+B
C11: 1 | D11: 1 | E11: 1 | F11: 1 | G11: 1 | H11: 1 | I11: 1 | J11: 1 | K11: 1 | M11: 0 | N11: 0 | O11: 0 | P11: 0 | Q11: 0 | R11: 0 | S11: 0 | T11: 0 | U11: 0 | V11: 0
C12: 2 | D12: 1 | E12: 1 | F12: 1 | G12: 1 | H12: 1 | I12: 1 | J12: 1 | K12: 1 | M12: 0 | N12: 0 | O12: 0 | P12: 0 | Q12: 0 | R12: 0 | S12: 0 | T12: 0 | U12: 0 | V12: 0
C13: 3 | D13: 1 | E13: 1 | F13: 1 | G13: 1 | H13: 1 | I13: 1 | J13: 1 | K13: 1 | M13: 0 | N13: 0 | O13: 0 | P13: 0 | Q13: 0 | R13: 0 | S13: 0 | T13: 0 | U13: 0 | V13: 0
C14: 4 | D14: 1 | E14: 1 | F14: 1 | G14: 1 | H14: 1 | I14: 1 | J14: 1 | K14: 1 | M14: 0 | N14: 0 | O14: 0 | P14: 0 | Q14: 0 | R14: 0 | S14: 0 | T14: 0 | U14: 0 | V14: 0
C15: 5 | D15: 1 | E15: 1 | F15: 1 | G15: 1 | H15: 1 | I15: 1 | J15: 1 | K15: 1 | M15: 0 | N15: 0 | O15: 0 | P15: 0 | Q15: 0 | R15: 0 | S15: 0 | T15: 0 | U15: 0 | V15: 0
C16: 6 | D16: 1 | E16: 1 | F16: 1 | G16: 1 | H16: 1 | I16: 1 | J16: 1 | K16: 1 | M16: 0 | N16: 0 | O16: 0 | P16: 0 | Q16: 0 | R16: 0 | S16: 0 | T16: 0 | U16: 0 | V16: 0
C17: 7 | D17: 1 | E17: 1 | F17: 1 | G17: 1 | H17: 1 | I17: 1 | J17: 1 | K17: 1 | M17: These are other variable cost. Note that heifer other variable cost are already on the control!sheet in the JD area
C18: 8 | D18: 1 | E18: 1 | F18: 1 | G18: 1 | H18: 1 | I18: 1 | J18: 1 | K18: 1 | M18: Cow other variable cost in the Engine are calculated from the long!inputs. But this could also be from the control!JD area.
C19: 9 | D19: 1 | E19: 1 | F19: 1 | G19: 1 | H19: 1 | I19: 1 | J19: 1 | K19: 1
C20: 10 | D20: 1 | E20: 1 | F20: 1 | G20: 1 | H20: 1 | I20: 1 | J20: 1 | K20: 1
C21: 11 | D21: 1 | E21: 1 | F21: 1 | G21: 1 | H21: 1 | I21: 1 | J21: 1 | K21: 1
C22: 12 | D22: 1 | E22: 1 | F22: 1 | G22: 1 | H22: 1 | I22: 1 | J22: 1 | K22: 1 | M22: One time cost applies to all animals (should be on the long!sheet)
C23: 13 | D23: 1 | E23: 1 | F23: 1 | G23: 1 | H23: 1 | I23: 1 | J23: 1 | K23: 1 | N23: calving cost
C24: 14 | D24: 1 | E24: 1 | F24: 1 | G24: 1 | H24: 1 | I24: 1 | J24: 1 | K24: 1 | N24: dry off cost
C25: 15 | D25: 1 | E25: 1 | F25: 1 | G25: 1 | H25: 1 | I25: 1 | J25: 1 | K25: 1 | N25: cull cost
C26: 16 | D26: 1 | E26: 1 | F26: 1 | G26: 1 | H26: 1 | I26: 1 | J26: 1 | K26: 1
C27: 17 | D27: 1 | E27: 1 | F27: 1 | G27: 1 | H27: 1 | I27: 1 | J27: 1 | K27: 1 | M27: Cost applying to individual cows in Luser (should be on the extra!sheet)
C28: 18 | D28: 1 | E28: 1 | F28: 1 | G28: 1 | H28: 1 | I28: 1 | J28: 1 | K28: 1 | N28: treatment cost (labor, milk dumped, drugs etc) for Luser
C29: 19 | D29: 1 | E29: 1 | F29: 1 | G29: 1 | H29: 1 | I29: 1 | J29: 1 | K29: 1
C30: 20 | D30: 1 | E30: 1 | F30: 1 | G30: 1 | H30: 1 | I30: 1 | J30: 1 | K30: 1
C31: 21 | D31: 1 | E31: 1 | F31: 1 | G31: 1 | H31: 1 | I31: 1 | J31: 1 | K31: 1
C32: 22 | D32: 1 | E32: 1 | F32: 1 | G32: 1 | H32: 1 | I32: 1 | J32: 1 | K32: 1
C33: 23 | D33: 1 | E33: 1 | F33: 1 | G33: 1 | H33: 1 | I33: 1 | J33: 1 | K33: 1
C34: 24 | D34: 1 | E34: 1 | F34: 1 | G34: 1 | H34: 1 | I34: 1 | J34: 1 | K34: 1
C35: 25 | D35: 1 | E35: 1 | F35: 1 | G35: 1 | H35: 1 | I35: 1 | J35: 1 | K35: 1
C36: 26 | D36: 1 | E36: 1 | F36: 1 | G36: 1 | H36: 1 | I36: 1 | J36: 1 | K36: 1
C37: 27 | D37: 1 | E37: 1 | F37: 1 | G37: 1 | H37: 1 | I37: 1 | J37: 1 | K37: 1
C38: 28 | D38: 1 | E38: 1 | F38: 1 | G38: 1 | H38: 1 | I38: 1 | J38: 1 | K38: 1
C39: 29 | D39: 1 | E39: 1 | F39: 1 | G39: 1 | H39: 1 | I39: 1 | J39: 1 | K39: 1
C40: 30 | D40: 1 | E40: 1 | F40: 1 | G40: 1 | H40: 1 | I40: 1 | J40: 1 | K40: 1
C41: 31 | D41: 1 | E41: 1 | F41: 1 | G41: 1 | H41: 1 | I41: 1 | J41: 1 | K41: 1
C42: 32 | D42: 1 | E42: 1 | F42: 1 | G42: 1 | H42: 1 | I42: 1 | J42: 1 | K42: 1
C43: 33 | D43: 1 | E43: 1 | F43: 1 | G43: 1 | H43: 1 | I43: 1 | J43: 1 | K43: 1
C44: 34 | D44: 1 | E44: 1 | F44: 1 | G44: 1 | H44: 1 | I44: 1 | J44: 1 | K44: 1
C45: 35 | D45: 1 | E45: 1 | F45: 1 | G45: 1 | H45: 1 | I45: 1 | J45: 1 | K45: 1
C46: 36 | D46: 1 | E46: 1 | F46: 1 | G46: 1 | H46: 1 | I46: 1 | J46: 1 | K46: 1
C47: 37 | D47: 1 | E47: 1 | F47: 1 | G47: 1 | H47: 1 | I47: 1 | J47: 1 | K47: 1
C48: 38 | D48: 1 | E48: 1 | F48: 1 | G48: 1 | H48: 1 | I48: 1 | J48: 1 | K48: 1
C49: 39 | D49: 1 | E49: 1 | F49: 1 | G49: 1 | H49: 1 | I49: 1 | J49: 1 | K49: 1
C50: 40 | D50: 1 | E50: 1 | F50: 1 | G50: 1 | H50: 1 | I50: 1 | J50: 1 | K50: 1
C51: 41 | D51: 1 | E51: 1 | F51: 1 | G51: 1 | H51: 1 | I51: 1 | J51: 1 | K51: 1
C52: 42 | D52: 1 | E52: 1 | F52: 1 | G52: 1 | H52: 1 | I52: 1 | J52: 1 | K52: 1
C53: 43 | D53: 1 | E53: 1 | F53: 1 | G53: 1 | H53: 1 | I53: 1 | J53: 1 | K53: 1
C54: 44 | D54: 1 | E54: 1 | F54: 1 | G54: 1 | H54: 1 | I54: 1 | J54: 1 | K54: 1
C55: 45 | D55: 1 | E55: 1 | F55: 1 | G55: 1 | H55: 1 | I55: 1 | J55: 1 | K55: 1
C56: 46 | D56: 1 | E56: 1 | F56: 1 | G56: 1 | H56: 1 | I56: 1 | J56: 1 | K56: 1
C57: 47 | D57: 1 | E57: 1 | F57: 1 | G57: 1 | H57: 1 | I57: 1 | J57: 1 | K57: 1
C58: 48 | D58: 1 | E58: 1 | F58: 1 | G58: 1 | H58: 1 | I58: 1 | J58: 1 | K58: 1
C59: 49 | D59: 1 | E59: 1 | F59: 1 | G59: 1 | H59: 1 | I59: 1 | J59: 1 | K59: 1
C60: 50 | D60: 1 | E60: 1 | F60: 1 | G60: 1 | H60: 1 | I60: 1 | J60: 1 | K60: 1
C61: 51 | D61: 1 | E61: 1 | F61: 1 | G61: 1 | H61: 1 | I61: 1 | J61: 1 | K61: 1
C62: 52 | D62: 1 | E62: 1 | F62: 1 | G62: 1 | H62: 1 | I62: 1 | J62: 1 | K62: 1
C63: 53 | D63: 1 | E63: 1 | F63: 1 | G63: 1 | H63: 1 | I63: 1 | J63: 1 | K63: 1
C64: 54 | D64: 1 | E64: 1 | F64: 1 | G64: 1 | H64: 1 | I64: 1 | J64: 1 | K64: 1
C65: 55 | D65: 1 | E65: 1 | F65: 1 | G65: 1 | H65: 1 | I65: 1 | J65: 1 | K65: 1
C66: 56 | D66: 1 | E66: 1 | F66: 1 | G66: 1 | H66: 1 | I66: 1 | J66: 1 | K66: 1
C67: 57 | D67: 1 | E67: 1 | F67: 1 | G67: 1 | H67: 1 | I67: 1 | J67: 1 | K67: 1
C68: 58 | D68: 1 | E68: 1 | F68: 1 | G68: 1 | H68: 1 | I68: 1 | J68: 1 | K68: 1
C69: 59 | D69: 1 | E69: 1 | F69: 1 | G69: 1 | H69: 1 | I69: 1 | J69: 1 | K69: 1
C70: 60 | D70: 1 | E70: 1 | F70: 1 | G70: 1 | H70: 1 | I70: 1 | J70: 1 | K70: 1
C71: 61 | D71: 1 | E71: 1 | F71: 1 | G71: 1 | H71: 1 | I71: 1 | J71: 1 | K71: 1
C72: 62 | D72: 1 | E72: 1 | F72: 1 | G72: 1 | H72: 1 | I72: 1 | J72: 1 | K72: 1
C73: 63 | D73: 1 | E73: 1 | F73: 1 | G73: 1 | H73: 1 | I73: 1 | J73: 1 | K73: 1
C74: 64 | D74: 1 | E74: 1 | F74: 1 | G74: 1 | H74: 1 | I74: 1 | J74: 1 | K74: 1
C75: 65 | D75: 1 | E75: 1 | F75: 1 | G75: 1 | H75: 1 | I75: 1 | J75: 1 | K75: 1
C76: 66 | D76: 1 | E76: 1 | F76: 1 | G76: 1 | H76: 1 | I76: 1 | J76: 1 | K76: 1
C77: 67 | D77: 1 | E77: 1 | F77: 1 | G77: 1 | H77: 1 | I77: 1 | J77: 1 | K77: 1
C78: 68 | D78: 1 | E78: 1 | F78: 1 | G78: 1 | H78: 1 | I78: 1 | J78: 1 | K78: 1
C79: 69 | D79: 1 | E79: 1 | F79: 1 | G79: 1 | H79: 1 | I79: 1 | J79: 1 | K79: 1
C80: 70 | D80: 1 | E80: 1 | F80: 1 | G80: 1 | H80: 1 | I80: 1 | J80: 1 | K80: 1
C81: 71 | D81: 1 | E81: 1 | F81: 1 | G81: 1 | H81: 1 | I81: 1 | J81: 1 | K81: 1
C82: 72 | D82: 1 | E82: 1 | F82: 1 | G82: 1 | H82: 1 | I82: 1 | J82: 1 | K82: 1
C83: 73 | D83: 1 | E83: 1 | F83: 1 | G83: 1 | H83: 1 | I83: 1 | J83: 1 | K83: 1
C84: 74 | D84: 1 | E84: 1 | F84: 1 | G84: 1 | H84: 1 | I84: 1 | J84: 1 | K84: 1
C85: 75 | D85: 1 | E85: 1 | F85: 1 | G85: 1 | H85: 1 | I85: 1 | J85: 1 | K85: 1
C86: 76 | D86: 1 | E86: 1 | F86: 1 | G86: 1 | H86: 1 | I86: 1 | J86: 1 | K86: 1
C87: 77 | D87: 1 | E87: 1 | F87: 1 | G87: 1 | H87: 1 | I87: 1 | J87: 1 | K87: 1
C88: 78 | D88: 1 | E88: 1 | F88: 1 | G88: 1 | H88: 1 | I88: 1 | J88: 1 | K88: 1
C89: 79 | D89: 1 | E89: 1 | F89: 1 | G89: 1 | H89: 1 | I89: 1 | J89: 1 | K89: 1
C90: 80 | D90: 1 | E90: 1 | F90: 1 | G90: 1 | H90: 1 | I90: 1 | J90: 1 | K90: 1
C91: 81 | D91: 1 | E91: 1 | F91: 1 | G91: 1 | H91: 1 | I91: 1 | J91: 1 | K91: 1
C92: 82 | D92: 1 | E92: 1 | F92: 1 | G92: 1 | H92: 1 | I92: 1 | J92: 1 | K92: 1
C93: 83 | D93: 1 | E93: 1 | F93: 1 | G93: 1 | H93: 1 | I93: 1 | J93: 1 | K93: 1
C94: 84 | D94: 1 | E94: 1 | F94: 1 | G94: 1 | H94: 1 | I94: 1 | J94: 1 | K94: 1
C95: 85 | D95: 1 | E95: 1 | F95: 1 | G95: 1 | H95: 1 | I95: 1 | J95: 1 | K95: 1
C96: 86 | D96: 1 | E96: 1 | F96: 1 | G96: 1 | H96: 1 | I96: 1 | J96: 1 | K96: 1
C97: 87 | D97: 1 | E97: 1 | F97: 1 | G97: 1 | H97: 1 | I97: 1 | J97: 1 | K97: 1
C98: 88 | D98: 1 | E98: 1 | F98: 1 | G98: 1 | H98: 1 | I98: 1 | J98: 1 | K98: 1
C99: 89 | D99: 1 | E99: 1 | F99: 1 | G99: 1 | H99: 1 | I99: 1 | J99: 1 | K99: 1
C100: 90 | D100: 1 | E100: 1 | F100: 1 | G100: 1 | H100: 1 | I100: 1 | J100: 1 | K100: 1
C101: 91 | D101: 1 | E101: 1 | F101: 1 | G101: 1 | H101: 1 | I101: 1 | J101: 1 | K101: 1
C102: 92 | D102: 1 | E102: 1 | F102: 1 | G102: 1 | H102: 1 | I102: 1 | J102: 1 | K102: 1
C103: 93 | D103: 1 | E103: 1 | F103: 1 | G103: 1 | H103: 1 | I103: 1 | J103: 1 | K103: 1
C104: 94 | D104: 1 | E104: 1 | F104: 1 | G104: 1 | H104: 1 | I104: 1 | J104: 1 | K104: 1
C105: 95 | D105: 1 | E105: 1 | F105: 1 | G105: 1 | H105: 1 | I105: 1 | J105: 1 | K105: 1
C106: 96 | D106: 1 | E106: 1 | F106: 1 | G106: 1 | H106: 1 | I106: 1 | J106: 1 | K106: 1
C107: 97 | D107: 1 | E107: 1 | F107: 1 | G107: 1 | H107: 1 | I107: 1 | J107: 1 | K107: 1
C108: 98 | D108: 1 | E108: 1 | F108: 1 | G108: 1 | H108: 1 | I108: 1 | J108: 1 | K108: 1
C109: 99 | D109: 1 | E109: 1 | F109: 1 | G109: 1 | H109: 1 | I109: 1 | J109: 1 | K109: 1
C110: 100 | D110: 1 | E110: 1 | F110: 1 | G110: 1 | H110: 1 | I110: 1 | J110: 1 | K110: 1
C111: 101 | D111: 1 | E111: 1 | F111: 1 | G111: 1 | H111: 1 | I111: 1 | J111: 1 | K111: 1
C112: 102 | D112: 1 | E112: 1 | F112: 1 | G112: 1 | H112: 1 | I112: 1 | J112: 1 | K112: 1
C113: 103 | D113: 1 | E113: 1 | F113: 1 | G113: 1 | H113: 1 | I113: 1 | J113: 1 | K113: 1
C114: 104 | D114: 1 | E114: 1 | F114: 1 | G114: 1 | H114: 1 | I114: 1 | J114: 1 | K114: 1
C115: 105 | D115: 1 | E115: 1 | F115: 1 | G115: 1 | H115: 1 | I115: 1 | J115: 1 | K115: 1
C116: 106 | D116: 1 | E116: 1 | F116: 1 | G116: 1 | H116: 1 | I116: 1 | J116: 1 | K116: 1
C117: 107 | D117: 1 | E117: 1 | F117: 1 | G117: 1 | H117: 1 | I117: 1 | J117: 1 | K117: 1
C118: 108 | D118: 1 | E118: 1 | F118: 1 | G118: 1 | H118: 1 | I118: 1 | J118: 1 | K118: 1
C119: 109 | D119: 1 | E119: 1 | F119: 1 | G119: 1 | H119: 1 | I119: 1 | J119: 1 | K119: 1
C120: 110 | D120: 1 | E120: 1 | F120: 1 | G120: 1 | H120: 1 | I120: 1 | J120: 1 | K120: 1
C121: 111 | D121: 1 | E121: 1 | F121: 1 | G121: 1 | H121: 1 | I121: 1 | J121: 1 | K121: 1
C122: 112 | D122: 1 | E122: 1 | F122: 1 | G122: 1 | H122: 1 | I122: 1 | J122: 1 | K122: 1
C123: 113 | D123: 1 | E123: 1 | F123: 1 | G123: 1 | H123: 1 | I123: 1 | J123: 1 | K123: 1
C124: 114 | D124: 1 | E124: 1 | F124: 1 | G124: 1 | H124: 1 | I124: 1 | J124: 1 | K124: 1
C125: 115 | D125: 1 | E125: 1 | F125: 1 | G125: 1 | H125: 1 | I125: 1 | J125: 1 | K125: 1
C126: 116 | D126: 1 | E126: 1 | F126: 1 | G126: 1 | H126: 1 | I126: 1 | J126: 1 | K126: 1
C127: 117 | D127: 1 | E127: 1 | F127: 1 | G127: 1 | H127: 1 | I127: 1 | J127: 1 | K127: 1
C128: 118 | D128: 1 | E128: 1 | F128: 1 | G128: 1 | H128: 1 | I128: 1 | J128: 1 | K128: 1
C129: 119 | D129: 1 | E129: 1 | F129: 1 | G129: 1 | H129: 1 | I129: 1 | J129: 1 | K129: 1
C130: 120 | D130: 1 | E130: 1 | F130: 1 | G130: 1 | H130: 1 | I130: 1 | J130: 1 | K130: 1
C131: 121 | D131: 1 | E131: 1 | F131: 1 | G131: 1 | H131: 1 | I131: 1 | J131: 1 | K131: 1
C132: 122 | D132: 1 | E132: 1 | F132: 1 | G132: 1 | H132: 1 | I132: 1 | J132: 1 | K132: 1
C133: 123 | D133: 1 | E133: 1 | F133: 1 | G133: 1 | H133: 1 | I133: 1 | J133: 1 | K133: 1
C134: 124 | D134: 1 | E134: 1 | F134: 1 | G134: 1 | H134: 1 | I134: 1 | J134: 1 | K134: 1
C135: 125 | D135: 1 | E135: 1 | F135: 1 | G135: 1 | H135: 1 | I135: 1 | J135: 1 | K135: 1
C136: 126 | D136: 1 | E136: 1 | F136: 1 | G136: 1 | H136: 1 | I136: 1 | J136: 1 | K136: 1
C137: 127 | D137: 1 | E137: 1 | F137: 1 | G137: 1 | H137: 1 | I137: 1 | J137: 1 | K137: 1
C138: 128 | D138: 1 | E138: 1 | F138: 1 | G138: 1 | H138: 1 | I138: 1 | J138: 1 | K138: 1
C139: 129 | D139: 1 | E139: 1 | F139: 1 | G139: 1 | H139: 1 | I139: 1 | J139: 1 | K139: 1
C140: 130 | D140: 1 | E140: 1 | F140: 1 | G140: 1 | H140: 1 | I140: 1 | J140: 1 | K140: 1
C141: 131 | D141: 1 | E141: 1 | F141: 1 | G141: 1 | H141: 1 | I141: 1 | J141: 1 | K141: 1
C142: 132 | D142: 1 | E142: 1 | F142: 1 | G142: 1 | H142: 1 | I142: 1 | J142: 1 | K142: 1
C143: 133 | D143: 1 | E143: 1 | F143: 1 | G143: 1 | H143: 1 | I143: 1 | J143: 1 | K143: 1
C144: 134 | D144: 1 | E144: 1 | F144: 1 | G144: 1 | H144: 1 | I144: 1 | J144: 1 | K144: 1
C145: 135 | D145: 1 | E145: 1 | F145: 1 | G145: 1 | H145: 1 | I145: 1 | J145: 1 | K145: 1
C146: 136 | D146: 1 | E146: 1 | F146: 1 | G146: 1 | H146: 1 | I146: 1 | J146: 1 | K146: 1
C147: 137 | D147: 1 | E147: 1 | F147: 1 | G147: 1 | H147: 1 | I147: 1 | J147: 1 | K147: 1
C148: 138 | D148: 1 | E148: 1 | F148: 1 | G148: 1 | H148: 1 | I148: 1 | J148: 1 | K148: 1
C149: 139 | D149: 1 | E149: 1 | F149: 1 | G149: 1 | H149: 1 | I149: 1 | J149: 1 | K149: 1
C150: 140 | D150: 1 | E150: 1 | F150: 1 | G150: 1 | H150: 1 | I150: 1 | J150: 1 | K150: 1
C151: 141 | D151: 1 | E151: 1 | F151: 1 | G151: 1 | H151: 1 | I151: 1 | J151: 1 | K151: 1
C152: 142 | D152: 1 | E152: 1 | F152: 1 | G152: 1 | H152: 1 | I152: 1 | J152: 1 | K152: 1
C153: 143 | D153: 1 | E153: 1 | F153: 1 | G153: 1 | H153: 1 | I153: 1 | J153: 1 | K153: 1
C154: 144 | D154: 1 | E154: 1 | F154: 1 | G154: 1 | H154: 1 | I154: 1 | J154: 1 | K154: 1
C155: 145 | D155: 1 | E155: 1 | F155: 1 | G155: 1 | H155: 1 | I155: 1 | J155: 1 | K155: 1
C156: 146 | D156: 1 | E156: 1 | F156: 1 | G156: 1 | H156: 1 | I156: 1 | J156: 1 | K156: 1
C157: 147 | D157: 1 | E157: 1 | F157: 1 | G157: 1 | H157: 1 | I157: 1 | J157: 1 | K157: 1
C158: 148 | D158: 1 | E158: 1 | F158: 1 | G158: 1 | H158: 1 | I158: 1 | J158: 1 | K158: 1
C159: 149 | D159: 1 | E159: 1 | F159: 1 | G159: 1 | H159: 1 | I159: 1 | J159: 1 | K159: 1
C160: 150 | D160: 1 | E160: 1 | F160: 1 | G160: 1 | H160: 1 | I160: 1 | J160: 1 | K160: 1
C161: 151 | D161: 1 | E161: 1 | F161: 1 | G161: 1 | H161: 1 | I161: 1 | J161: 1 | K161: 1
C162: 152 | D162: 1 | E162: 1 | F162: 1 | G162: 1 | H162: 1 | I162: 1 | J162: 1 | K162: 1
C163: 153 | D163: 1 | E163: 1 | F163: 1 | G163: 1 | H163: 1 | I163: 1 | J163: 1 | K163: 1
C164: 154 | D164: 1 | E164: 1 | F164: 1 | G164: 1 | H164: 1 | I164: 1 | J164: 1 | K164: 1
C165: 155 | D165: 1 | E165: 1 | F165: 1 | G165: 1 | H165: 1 | I165: 1 | J165: 1 | K165: 1
C166: 156 | D166: 1 | E166: 1 | F166: 1 | G166: 1 | H166: 1 | I166: 1 | J166: 1 | K166: 1
C167: 157 | D167: 1 | E167: 1 | F167: 1 | G167: 1 | H167: 1 | I167: 1 | J167: 1 | K167: 1
C168: 158 | D168: 1 | E168: 1 | F168: 1 | G168: 1 | H168: 1 | I168: 1 | J168: 1 | K168: 1
C169: 159 | D169: 1 | E169: 1 | F169: 1 | G169: 1 | H169: 1 | I169: 1 | J169: 1 | K169: 1
C170: 160 | D170: 1 | E170: 1 | F170: 1 | G170: 1 | H170: 1 | I170: 1 | J170: 1 | K170: 1
C171: 161 | D171: 1 | E171: 1 | F171: 1 | G171: 1 | H171: 1 | I171: 1 | J171: 1 | K171: 1
C172: 162 | D172: 1 | E172: 1 | F172: 1 | G172: 1 | H172: 1 | I172: 1 | J172: 1 | K172: 1
C173: 163 | D173: 1 | E173: 1 | F173: 1 | G173: 1 | H173: 1 | I173: 1 | J173: 1 | K173: 1
C174: 164 | D174: 1 | E174: 1 | F174: 1 | G174: 1 | H174: 1 | I174: 1 | J174: 1 | K174: 1
C175: 165 | D175: 1 | E175: 1 | F175: 1 | G175: 1 | H175: 1 | I175: 1 | J175: 1 | K175: 1
C176: 166 | D176: 1 | E176: 1 | F176: 1 | G176: 1 | H176: 1 | I176: 1 | J176: 1 | K176: 1
C177: 167 | D177: 1 | E177: 1 | F177: 1 | G177: 1 | H177: 1 | I177: 1 | J177: 1 | K177: 1
C178: 168 | D178: 1 | E178: 1 | F178: 1 | G178: 1 | H178: 1 | I178: 1 | J178: 1 | K178: 1
C179: 169 | D179: 1 | E179: 1 | F179: 1 | G179: 1 | H179: 1 | I179: 1 | J179: 1 | K179: 1
C180: 170 | D180: 1 | E180: 1 | F180: 1 | G180: 1 | H180: 1 | I180: 1 | J180: 1 | K180: 1
C181: 171 | D181: 1 | E181: 1 | F181: 1 | G181: 1 | H181: 1 | I181: 1 | J181: 1 | K181: 1
C182: 172 | D182: 1 | E182: 1 | F182: 1 | G182: 1 | H182: 1 | I182: 1 | J182: 1 | K182: 1
C183: 173 | D183: 1 | E183: 1 | F183: 1 | G183: 1 | H183: 1 | I183: 1 | J183: 1 | K183: 1
C184: 174 | D184: 1 | E184: 1 | F184: 1 | G184: 1 | H184: 1 | I184: 1 | J184: 1 | K184: 1
C185: 175 | D185: 1 | E185: 1 | F185: 1 | G185: 1 | H185: 1 | I185: 1 | J185: 1 | K185: 1
C186: 176 | D186: 1 | E186: 1 | F186: 1 | G186: 1 | H186: 1 | I186: 1 | J186: 1 | K186: 1
C187: 177 | D187: 1 | E187: 1 | F187: 1 | G187: 1 | H187: 1 | I187: 1 | J187: 1 | K187: 1
C188: 178 | D188: 1 | E188: 1 | F188: 1 | G188: 1 | H188: 1 | I188: 1 | J188: 1 | K188: 1
C189: 179 | D189: 1 | E189: 1 | F189: 1 | G189: 1 | H189: 1 | I189: 1 | J189: 1 | K189: 1
C190: 180 | D190: 1 | E190: 1 | F190: 1 | G190: 1 | H190: 1 | I190: 1 | J190: 1 | K190: 1
C191: 181 | D191: 1 | E191: 1 | F191: 1 | G191: 1 | H191: 1 | I191: 1 | J191: 1 | K191: 1
C192: 182 | D192: 1 | E192: 1 | F192: 1 | G192: 1 | H192: 1 | I192: 1 | J192: 1 | K192: 1
C193: 183 | D193: 1 | E193: 1 | F193: 1 | G193: 1 | H193: 1 | I193: 1 | J193: 1 | K193: 1
C194: 184 | D194: 1 | E194: 1 | F194: 1 | G194: 1 | H194: 1 | I194: 1 | J194: 1 | K194: 1
C195: 185 | D195: 1 | E195: 1 | F195: 1 | G195: 1 | H195: 1 | I195: 1 | J195: 1 | K195: 1
C196: 186 | D196: 1 | E196: 1 | F196: 1 | G196: 1 | H196: 1 | I196: 1 | J196: 1 | K196: 1
C197: 187 | D197: 1 | E197: 1 | F197: 1 | G197: 1 | H197: 1 | I197: 1 | J197: 1 | K197: 1
C198: 188 | D198: 1 | E198: 1 | F198: 1 | G198: 1 | H198: 1 | I198: 1 | J198: 1 | K198: 1
C199: 189 | D199: 1 | E199: 1 | F199: 1 | G199: 1 | H199: 1 | I199: 1 | J199: 1 | K199: 1
C200: 190 | D200: 1 | E200: 1 | F200: 1 | G200: 1 | H200: 1 | I200: 1 | J200: 1 | K200: 1
C201: 191 | D201: 1 | E201: 1 | F201: 1 | G201: 1 | H201: 1 | I201: 1 | J201: 1 | K201: 1
C202: 192 | D202: 1 | E202: 1 | F202: 1 | G202: 1 | H202: 1 | I202: 1 | J202: 1 | K202: 1
... 360 more rows

Sheet control (hidden)
A1: =F22 -> L | G1: ₤ | I1: Short | K1: Metric | M1: English | N1: 0 | O1: =language!F318 -> /purchased heifer | P1: offeset | Q1: 0 | R1: 1 | S1: 2 | T1: 3 | U1: 4 | V1: 5 | W1: 6 | X1: 7 | Y1: 8 | Z1: 9 | AD1: additional "short" sheet calculations | AH1: Handbook of mathematics B4+ parity | AO1: show inputs on sheet 'dashboard' | BR1: show open, present, eligible | CO1: Lima et al. (2010) model | CW1: risk of involuntary culling | DW1: bodyweight | EB1: Korver function (De Vries et al. 2006) | EL1: Hinde[1565] Effect of calf sex on 305-day milk production | EY1: =CONCATENATE("peak yield (",unit,")") -> peak yield (lbs) | EZ1: =EZ2*mult -> 73.8675 | FA1: =FA2*mult -> 91.9485 | FB1: =FB2*mult -> 96.7995 | FC1: =FC2*mult -> 96.7995 | FF1: milk yield | FG1: =A1 -> L | GB1: original Dematawewa[1481] parameters for weights of fat, protein, milk | GP1: determine fat% and protein% curves | HJ1: value of milk | HU1: somatic cell score | HY1: somatic cell score | IA1: Rodriguez-Zas et al. 2000 | IV1: drymatter intake | JK1: show IOFC and milk yield at cull days open (<= 700) | KG1: other variable cost | KL1: CH4: 1 kg = 55.65 MJ | KM1: 55.65 | KN1: Lactating cows and dry heifers | KQ1: CH4 (kg/day) | KS1: Ellis et al. 2007; JDS 90:3456-3467 | KY1: genetics | LR1: A: genetic selection of best dairy heifer calves | LX1: This was used in v.calculator8.xlsm but it was not easy to remember and too difficult to explain | MI1: B: genetic selection of best dairy heifer calves
G2: $ | I2: Long | K2: English | M2: Espanol | N2: 1 | O2: =language!F319 -> /parity 0 | P2: enter age | Q2: 0 | R2: =C339 -> 730 | S2: =I340 -> 1159.364823 | T2: =J340 -> 1569.425291 | U2: =K340 -> 1978.251025 | V2: 0 | W2: =AK339 -> 730 | X2: =X340 -> 1150.980815 | Y2: =Y340 -> 1561.041283 | Z2: =Z340 -> 1969.867017 | AB2: additional lifetime value of dairy calves | AH2: =L359 -> 0.4403095825 | AI2: %culled:entered (parity 4+ | AK2: (A) parity 0 | CN2: annual cull risk (Lima et al., 2010) | CO2: 0.28 | CP2: 0.09465820896 | CQ2: 0.2067706062 | CR2: 0.3185039745 | CS2: 0.4276757582 | CT2: 0.5339409192 | CU2: <== culled after 365 days using data in the columns below | DI2: Updated heifer growth curve based on 2013 Penn State data | DR2: 730 days | DS2: 365 days | DT2: 365 days | DU2: 365 days | DV2: 365 days | DW2: =O113/DR3 -> 1.601775257 | DX2: =P113/$DT$3 -> 0.9127370474 | DY2: =Q113/$DT$3 -> 1.007826496 | DZ2: =R113/$DT$3 -> 1.007630189 | EA2: =S113/$DT$3 -> 1.006757477 | EB2: =T113/DR3 -> 1.601775257 | EC2: =U113/$DT$3 -> 0.9127370474 | ED2: =V113/$DT$3 -> 1.007826496 | EE2: =W113/$DT$3 -> 1.007630189 | EF2: 1.006757477 | EG2: standard bodyweight multiplier | EL2: Conclusion after reading paper: | EY2: peak yield (kg) | EZ2: 33.5 | FA2: 41.7 | FB2: 43.9 | FC2: =FB2 -> 43.9 | FE2: =P99 -> 72 | FF2: 87 | FG2: 97 | FH2: 97 | FJ2: =U99 -> 72 | FK2: 87 | FL2: 97 | FM2: 97 | GB2: fat1 | GC2: fat2 | GD2: fat3 | GE2: protein1 | GF2: protein2 | GG2: protein3 | GH2: milk1 | GI2: milk2 | GJ2: milk3 | GK2: Bethard | GP2: The % curves are similar between parities. So I only use the parity 2 shapes for all parities. | HT2: a | HU2: 1.98 | HV2: 2.507 | HW2: Cole | HY2: 4.292 | HZ2: a | IA2: 4.292 | KL2: milk kg/d | KM2: 27 | KY2: Genetic model after discussions at Aarhus University, June 3+4, 2015 | LW2: all | LX2: all | LY2: selected | LZ2: selected | MA2: notselect | MB2: notselect | MC2: all | MD2: selected | ME2: notselect | MF2: per parity | MG2: all selected | MN2: all | MO2: all | MP2: selected | MQ2: selected | MR2: notselect | MS2: notselect | MT2: all | MU2: selected | MV2: notselect | MW2: per parity | MX2: all selected
G3: € | I3: Automatic | K3: =IF(A1="S",Short!J2,Long!S3) -> English | M3: Nederlands | N3: 2 | O3: =language!F320 -> /parity 1 | P3: entered | Q3: =$O$43/365 -> 0 | R3: =$O$79/365 -> 1.159745217 | S3: =I247 -> 0.8564435413 | T3: =J247 -> 0.5680393234 | U3: =K247 -> 0.3478685201 | V3: =$T$43/365 -> 0 | W3: =$T$79/365 -> 1.159745217 | X3: =X247 -> 0.8686020595 | Y3: =Y247 -> 0.5761035052 | Z3: =Z247 -> 0.3528070427 | AB3: fraction of | AC3: 3 | AD3: 0.05 | AH3: 1 | AI3: 1000 | AK3: (A) parity 1 | CN3: daily risk (annual) | CO3: =1-(1-CO$2)^(1/365) -> 0.0008996062538 | CP3: =SUMPRODUCT(CQ2:CT2,CQ3:CT3) -> 0.3614889636 | CQ3: 0.33 | CR3: 0.25 | CS3: 0.1 | CT3: 0.32 | CU3: <== approximate distribution of cows across parities (parity 0 not relevant) | DI3: I fitted a simple linear regression to keep it simple | DQ3: standard body weight | DR3: =AVERAGE(DR11:DR740) -> 717.9534051 | DS3: =AVERAGE(DS11:DS375) -> 1231.622351 | DT3: =AVERAGE(DT11:DT375) -> 1365.673015 | DU3: =AVERAGE(DU11:DU375) -> 1366.672103 | DV3: =AVERAGE(DV11:DV375) -> 1366.75749 | DW3: =O114 -> 1 | DX3: 1 | DY3: 1 | DZ3: 1 | EA3: 1 | EB3: 1 | EC3: 1 | ED3: 1 | EE3: 1 | EF3: 1 | EG3: relative bodyweight multiplier | EM3: Parity 1: use Figure 3 data: cows make extra milk only when gestating a calf | EY3: dim@peak | EZ3: 104 | FA3: 58 | FB3: 59 | FC3: =FB3 -> 59 | FE3: 104 | FF3: 58 | FG3: 59 | FH3: 59 | FJ3: 104 | FK3: 58 | FL3: 59 | FM3: 59 | FX3: SCS = log2 (SCC/100000) + 3 | GA3: a | GB3: 0.7131 | GC3: 1.0558 | GD3: 1.0503 | GE3: 0.5209 | GF3: 0.8257 | GG3: 0.7918 | GH3: 15.6862 | GI3: 24.1895 | GJ3: 23.0892 | GK3: =GK6*(GK5/GK4)^GK4*EXP(GK4) -> 31.93063733 | GL3: =peakyield*(c/b)^b*exp(b) | HT3: b | HU3: 0.002 | HV3: -0.004 | HW3: Cole | HY3: 0.06 | HZ3: b | IA3: 0.06 | JG3: vlookup IOFC | JH3: 3 | JI3: 4 | JJ3: 5 | JK3: 6 | JL3: 0 | JM3: 8 | JN3: 9 | JO3: 10 | JP3: 11 | KL3: methane g/d | KM3: 393 | KY3: Includes: | KZ3: Starting TBV when calf is born | LW3: #calves | LX3: #genetics | LY3: #calves | LZ3: #genetics | MA3: #calves | MB3: #genetics | MC3: gen/calf | MD3: gen/calf | ME3: gen/calf | MF3: %selected | MG3: %selected | MN3: #calves | MO3: #genetics | MP3: #calves | MQ3: #genetics | MR3: #calves | MS3: #genetics | MT3: gen/calf | MU3: gen/calf | MV3: gen/calf | MW3: %selected | MX3: %selected
G4: CAN$ | I4: =F20 -> Long | K4: measure | N4: 3 | O4: =language!F321 -> /parity 2 | P4: parity | Q4: 0 | R4: 1 | S4: 2 | T4: 3 | U4: 4 | V4: 0 | W4: 1 | X4: 2 | Y4: 3 | Z4: 4 | AA4: input7 | AB4: genes | AC4: yrs till expression | AD4: interest rate | AE4: multiplication | AH4: =AH3*(1-$AH$2) -> 0.5596904175 | AI4: =AH4*$AI$3 -> 559.6904175 | AK4: (A) parity 2 | CO4: =1-(1-CO3)^305 -> 0.2400505784 | CP4: 0.01593283582 | CQ4: 0.1528087955 | CR4: 0.2400505784 | CS4: 0.3293142438 | CT4: 0.4209877854 | CU4: =O128 -> 0.01593283582 | CV4: 0.1528087955 | CW4: 0.2400505784 | CX4: 0.3293142438 | CY4: 0.4209877854 | CZ4: 0.01593283582 | DA4: 0.1528087955 | DB4: 0.2400505784 | DC4: =W128 -> 0.3293142438 | DD4: 0.4209877854 | DE4: day 61-365 cull risk | DI4: Also put this function in dairyplan20.xlsm and later | DS4: 600 | DT4: 640 | DU4: 640 | DV4: 640 | DX4: 640 | DY4: =DX4 -> 640 | DZ4: =DY4 -> 640 | EA4: 640 | EC4: =DX4 -> 640 | ED4: =DY4 -> 640 | EE4: 640 | EF4: 640 | EG4: mature live weight (kg) | EM4: Parity 2: extra milk depends on calf sex born from parity 0 and parity 1. No effect of gestation sex. | EY4: monthly decline (%) | EZ4: 0.03 | FA4: 0.0635 | FB4: 0.0734 | FC4: =FB4 -> 0.0734 | FE4: 0.03 | FF4: 0.0635 | FG4: 0.0734 | FH4: 0.0734 | FJ4: 0.03 | FK4: 0.0635 | FL4: 0.0734 | FM4: 0.0734 | FP4: negative lactation curves to find DIM when milk = target for culling | FX4: SCS - 3 = log2(scc/100000) | GA4: b | GB4: 0.1743 | GC4: 0.1456 | GD4: 0.1728 | GE4: 0.1818 | GF4: 0.1464 | GG4: 0.1724 | GH4: 0.2081 | GI4: 0.1783 | GJ4: 0.2094 | GK4: =GK5*GK7/30.4 -> 0.208653311 | GL4: =c*peakdim/30.4 | GP4: calculate weighted % | HT4: c | HU4: 0 | HV4: 0 | HW4: Cole | HY4: -0.02 | HZ4: d | IA4: -0.005 | JG4: vlookup milk yield | JH4: 7 | JI4: 8 | JJ4: 9 | JK4: 10 | JL4: 0 | JM4: 12 | JN4: 13 | JO4: 14 | JP4: 15 | KL4: milk kg / DMI kg | KM4: 1.3 | KO4: compare with | KZ4: Genetic trend due to sires | LV4: 0A | LW4: =SUMIF(LY$17:LY$36,LV4,LZ$17:LZ$36) -> 0 | LX4: =SUMIF(LY$17:LY$36,LV4,MF$17:MF$36) -> 0 | LY4: =SUMIF(LY$17:LY$5016,LV4,ME$17:ME$5016) -> 0 | LZ4: =SUMIF(LY$17:LY$36,LV4,MG$17:MG$36) -> 0 | MA4: =LW4-LY4 -> 0 | MB4: =LX4-LZ4 -> 0 | MC4: =LX4/LW4 ->  | MD4: =LZ4/LY4 ->  | ME4: =MB4/MA4 ->  | MF4: =LY4/LW4 ->  | MG4: =LY4/LY$9 ->  | MM4: 0B | MN4: =SUMIF(MP$17:MP$36,MM4,MQ$17:MQ$36) -> 0 | MO4: =SUMIF(MP$17:MP$36,MM4,MW$17:MW$36) -> 0 | MP4: =SUMIF(MP$17:MP$5016,MM4,MV$17:MV$5016) -> 0 | MQ4: =SUMIF(MP$17:MP$36,MM4,MX$17:MX$36) -> 0 | MR4: =MN4-MP4 -> 0 | MS4: 0 | MT4: =MO4/MN4 ->  | MU4: =MQ4/MP4 ->  | MV4: =MS4/MR4 ->  | MW4: =MP4/MN4 ->  | MX4: =MP4/MP$9 -> 
G5: =IF(A1="S",Short!J3,Long!S4) -> $ | I5: entry | M5: =IF(A1="S",Short!J4,Long!S5) -> English | N5: 4 | O5: =language!F322 -> /parity 3 | Q5: 1 | R5: 2 | S5: 3 | T5: 4 | U5: 5 | V5: 6 | W5: 7 | X5: 8 | Y5: 9 | Z5: 10 | AB5: expressed | AC5: genetic merit | AD5: discount factor | AE5: futurefactor | AF5: generation | AH5: 0.3132533634 | AI5: 313.2533634 | AK5: (A) parity 3 | CP5: =1-(1-CP4)^(1/305) -> 5.265804952e-05 | CQ5: 0.0005435534233 | CR5: 0.0008996062538 | CS5: 0.00130882986 | CT5: 0.001789975442 | CU5: 5.265804952e-05 | CV5: 0.0005435534233 | CW5: 0.0008996062538 | CX5: 0.00130882986 | CY5: 0.001789975442 | CZ5: 5.265804952e-05 | DA5: 0.0005435534233 | DB5: 0.0008996062538 | DC5: 0.00130882986 | DD5: 0.001789975442 | DE5: daily risk (day 61-365) | DI5: Then move this evidence to dairyplan and make a note here that the evidence is in dairyplan | DS5: 42 | DT5: 42 | DU5: 42 | DV5: 42 | DX5: 42 | DY5: =DX5 -> 42 | DZ5: 42 | EA5: 42 | EC5: 42 | ED5: 42 | EE5: 42 | EF5: 42 | EG5: birth weight (kg) | EM5: Parity 3+: 100 kg extra milk if parity started with a heifer calf. No effect of gestation sex. | EY5: multiplier | EZ5: 1 | FA5: 1 | FB5: 1 | FC5: 1 | FE5: =P98 -> 1 | FF5: =Q98 -> 1 | FG5: =R98 -> 1 | FH5: =S98 -> 1 | FI5: Bethard formulas | FJ5: =U98 -> 1 | FK5: =V98 -> 1 | FL5: =W98 -> 1 | FM5: =X98 -> 1 | FP5: needs to be negative because the match() function works in ascending order | FX5: 2^(scs-3) = scc / 100000 | GA5: c | GB5: 0.00183 | GC5: 0.00283 | GD5: 0.00329 | GE5: 0.0019 | GF5: 0.00283 | GG5: 0.00329 | GH5: 0.002 | GI5: 0.00308 | GJ5: 0.00357 | GK5: =-GK9*(GK7+305)/(GK7-305) -> 0.06099096784 | GL5: =-monthlyrate*(peakdim+305)/(peakdim-305) | GQ5: =OFFSET(GB2,0,$GQ$7) -> fat2 | GR5: fat2 | GS5: fat2 | GT5: fat2 | GU5: fat2 | GV5: fat2 | GW5: fat2 | GX5: fat2 | GY5: fat2 | GZ5: protein2 | HA5: protein2 | HB5: protein2 | HC5: protein2 | HD5: protein2 | HE5: protein2 | HF5: protein2 | HG5: protein2 | HT5: d | HU5: 16.883 | HV5: 8.98 | HW5: Cole | HY5: 4.737 | HZ5: f | IA5: 4.737 | JF5: IOFC | JG5: 0 | JH5: =VLOOKUP(JH7,$JF$11:$JP$1010,JH3) -> 3.373283431 | JI5: =VLOOKUP(JI7,$JF$11:$JP$1010,JI3) -> 2.549986945 | JJ5: =VLOOKUP(JJ7,$JF$11:$JP$1010,JJ3) -> 2.689838506 | JK5: =VLOOKUP(JK7,$JF$11:$JP$1010,JK3) -> 2.692488244 | JL5: 0 | JM5: =VLOOKUP(JM7,$JF$11:$JP$1010,JM3) -> 3.373283431 | JN5: =VLOOKUP(JN7,$JF$11:$JP$1010,JN3) -> 2.549986945 | JO5: =VLOOKUP(JO7,$JF$11:$JP$1010,JO3) -> 2.689838506 | JP5: =VLOOKUP(JP7,$JF$11:$JP$1010,JP3) -> 2.692488244 | KL5: methane MJ/d | KM5: =KM3/1000*KM1 -> 21.87045 | KO5: Tables 2+3 in Wall, Coffey and Pollot: Animal 2012, page 1-11 (The effect of lactation length on greenhouse gase emissions from the national dairy herd) | KW5: . | KZ5: Effect of involuntary culling on mean and SD of TBV, including Bulmer effect | LV5: 1A | LW5: =SUMIF(LY$17:LY$36,LV5,LZ$17:LZ$36) -> 0.5570575076 | LX5: =SUMIF(LY$17:LY$36,LV5,MF$17:MF$36) -> 167.1172523 | LY5: =SUMIF(LY$17:LY$5016,LV5,ME$17:ME$5016) -> 0 | LZ5: =SUMIF(LY$17:LY$36,LV5,MG$17:MG$36) -> 0 | MA5: =LW5-LY5 -> 0.5570575076 | MB5: 167.1172523 | MC5: 300 | ME5: 300 | MF5: 0 | MM5: 1B | MN5: =SUMIF(MP$17:MP$36,MM5,MQ$17:MQ$36) -> 0.3524360122 | MO5: =SUMIF(MP$17:MP$36,MM5,MW$17:MW$36) -> 105.7308037 | MP5: =SUMIF(MP$17:MP$5016,MM5,MV$17:MV$5016) -> 0 | MQ5: =SUMIF(MP$17:MP$36,MM5,MX$17:MX$36) -> 0 | MR5: 0.3524360122 | MS5: 105.7308037 | MT5: 300 | MV5: 300 | MW5: 0
G6: currency | K6: =IF(K3="Metric","100kg","cwt") -> cwt | L6: cent | M6: speak | N6: 5 | O6: =language!F323 -> /parity 4+ | AB6: 1 | AC6: =(AF6)*$AC$3 -> 3 | AD6: =1/(1+$AD$3)^AC6 -> 0.8638375985 | AE6: =AB6*AD6 -> 0.8638375985 | AF6: 1 | AH6: 0.1753249058 | AI6: 175.3249058 | AK6: (A) parity 4+ | AY6: 0A | AZ6: 1A | BA6: 2A | BB6: 3A | BC6: 4A+ | BD6: average | BE6: average | BF6: 0A | BG6: 1A | BH6: 2A | BI6: 3A | BJ6: 4A+ | BK6: average | BL6: 0A | BM6: 1A | BN6: 2A | BO6: 3A | BP6: 4A+ | BQ6: average | BS6: 0B | BT6: 1B | BU6: 2B | BV6: 3B | BW6: 4B+ | BX6: average | BY6: average | BZ6: 0B | CA6: 1B | CB6: 2B | CC6: 3B | CD6: 4B+ | CE6: average | CF6: 0B | CG6: 1B | CH6: 2B | CI6: 3B | CJ6: 4B+ | CK6: average | CP6: 0.08 | CQ6: 0.06318248416 | CR6: 0.102419143 | CS6: 0.1455228543 | CT6: 0.1936057137 | CU6: =O127 -> 0.08 | CV6: =P127 -> 0.06 | CW6: 0.1 | CX6: 0.1455228543 | CY6: 0.1936057137 | CZ6: 0.08 | DA6: 0.06 | DB6: 0.1 | DC6: 0.1455228543 | DD6: 0.1936057137 | DE6: day 1-60 cull risk | DR6: BW (kg) | DS6: 3.9 | DT6: 6 | DU6: 6 | DV6: 6 | DW6: BW (kg) | DX6: 6 | DY6: 6 | DZ6: 6 | EA6: 6 | EB6: BW (kg) | EC6: 6 | ED6: 6 | EE6: 6 | EF6: 6 | EG6: growth rate parameter | EY6: wood a | EZ6: =EZ1*(EZ8/EZ7)^EZ7*EXP(EZ7) -> 70.4040751 | FA6: =FA1*(FA8/FA7)^FA7*EXP(FA7) -> 97.93046253 | FB6: =FB1*(FB8/FB7)^FB7*EXP(FB7) -> 103.9236565 | FC6: =FC1*(FC8/FC7)^FC7*EXP(FC7) -> 103.9236565 | FE6: =FE2*(FE8/FE7)^FE7*EXP(FE7) -> 68.62413656 | FF6: =FF2*(FF8/FF7)^FF7*EXP(FF7) -> 92.66002425 | FG6: =FG2*(FG8/FG7)^FG7*EXP(FG7) -> 104.1389127 | FH6: =FH2*(FH8/FH7)^FH7*EXP(FH7) -> 104.1389127 | FI6: =peak*(c/b)^b*exp(b) | FJ6: =FJ2*(FJ8/FJ7)^FJ7*EXP(FJ7) -> 68.62413656 | FK6: =FK2*(FK8/FK7)^FK7*EXP(FK7) -> 92.66002425 | FL6: =FL2*(FL8/FL7)^FL7*EXP(FL7) -> 104.1389127 | FM6: =FM2*(FM8/FM7)^FM7*EXP(FM7) -> 104.1389127 | FX6: 2^(scs-3) * 100000 = scc | GG6: max yield kg | GH6: =MAX(GH$11:GH$315) -> 33.49107854 | GI6: =MAX(GI$11:GI$315) -> 41.73147514 | GJ6: =MAX(GJ$11:GJ$315) -> 43.92885162 | GK6: 33.5 | GL6: =peakyield | GP6: weighted: | GQ6: =SUMPRODUCT(GP11:GP315,GQ11:GQ315)/SUM(GP11:GP315) -> 0.03883311199 | GR6: 0.0388 | GS6: 0.0388 | GT6: 0.0388 | GU6: 0.0388 | GV6: 0.0388 | GW6: 0.0388 | GX6: 0.0388 | GY6: 0.0388 | GZ6: 0.0305 | HA6: 0.0305 | HB6: 0.0305 | HC6: 0.0305 | HD6: 0.0305 | HE6: 0.0305 | HF6: 0.0305 | HG6: 0.0305 | HH6: default | HJ6: value per unit of milk | HT6: +f | HU6: 0 | HV6: 0 | HW6: addition | HZ6: +g | IA6: 0 | IC6: 0 | ID6: =SUMPRODUCT(FE11:FE315,$IB11:$IB315)/SUM(FE11:FE315) -> 361070.42 | IE6: =SUMPRODUCT(FF11:FF315,$IB11:$IB315)/SUM(FF11:FF315) -> 381668.7288 | IF6: =SUMPRODUCT(FG11:FG315,$IB11:$IB315)/SUM(FG11:FG315) -> 377776.8672 | IG6: =SUMPRODUCT(FH11:FH315,$IB11:$IB315)/SUM(FH11:FH315) -> 377776.8672 | IH6: 0 | II6: =SUMPRODUCT(FJ11:FJ315,$IB11:$IB315)/SUM(FJ11:FJ315) -> 361070.42 | IJ6: =SUMPRODUCT(FK11:FK315,$IB11:$IB315)/SUM(FK11:FK315) -> 381668.7288 | IK6: =SUMPRODUCT(FL11:FL315,$IB11:$IB315)/SUM(FL11:FL315) -> 377776.8672 | IL6: =SUMPRODUCT(FM11:FM315,$IB11:$IB315)/SUM(FM11:FM315) -> 377776.8672 | IM6: default | IO6: relative | IQ6: =P108 -> 1 | IR6: =Q108 -> 1 | IS6: =R108 -> 1 | IT6: =S108 -> 1 | IV6: =U108 -> 1 | IW6: =V108 -> 1 | IX6: =W108 -> 1 | IY6: =X108 -> 1 | JF6: milk yield | JG6: 0 | JH6: =VLOOKUP(JH7,$EY$11:$FM$1010,JH4) -> 52.64662427 | JI6: =VLOOKUP(JI7,$EY$11:$FM$1010,JI4) -> 48.8897185 | JJ6: 49.91669778 | JK6: 49.91669778 | JL6: 0 | JM6: 52.64662427 | JN6: 48.8897185 | JO6: 49.91669778 | JP6: 49.91669778 | KL6: methane g / milk kg | KM6: =KM3/KM2 -> 14.55555556 | KZ6: Effect of voluntary selection on mean and SD of TBV, including Bulmer effect | LV6: 2A | LW6: =SUMIF(LY$17:LY$36,LV6,LZ$17:LZ$36) -> 0.1911677289 | LX6: =SUMIF(LY$17:LY$36,LV6,MF$17:MF$36) -> 57.35031868 | LY6: =SUMIF(LY$17:LY$5016,LV6,ME$17:ME$5016) -> 0 | LZ6: =SUMIF(LY$17:LY$36,LV6,MG$17:MG$36) -> 0 | MA6: 0.1911677289 | MB6: 57.35031868 | MC6: 300 | ME6: 300 | MF6: 0 | MM6: 2B | MN6: =SUMIF(MP$17:MP$36,MM6,MQ$17:MQ$36) -> 0.1938816455 | MO6: =SUMIF(MP$17:MP$36,MM6,MW$17:MW$36) -> 58.16449366 | MP6: =SUMIF(MP$17:MP$5016,MM6,MV$17:MV$5016) -> 0 | MQ6: =SUMIF(MP$17:MP$36,MM6,MX$17:MX$36) -> 0 | MR6: 0.1938816455 | MS6: 58.16449366 | MT6: 300 | MV6: 300 | MW6: 0
K7: =IF(K3="Metric","kg","lbs") -> lbs | L7: unit | N7: 6 | O7: =language!F324 -> /purchasedheifer | Q7: idea: cull a cow when her iofc < target. This allows more time for high iofc cows and approaches DP results better. | AB7: 0.5 | AC7: =(AF7)*$AC$3 -> 6 | AD7: =1/(1+$AD$3)^AC7 -> 0.7462153966 | AE7: =AB7*AD7 -> 0.3731076983 | AF7: 2 | AH7: 0.09812766971 | AI7: 98.12766971 | AK7: (B) parity 0 | AX7: cull days open | AY7: =O190 -> 650 | AZ7: =P190 -> 400 | BA7: =Q190 -> 350 | BB7: =R190 -> 350 | BC7: =S190 -> 350 | BS7: =T190 -> 650 | BT7: =U190 -> 400 | BU7: =V190 -> 350 | BV7: =W190 -> 350 | BW7: =X190 -> 350 | CP7: =1-(1-CP6)^(1/60) -> 0.001388728305 | CQ7: 0.001087188072 | CR7: 0.001799247265 | CS7: 0.00261765998 | CT7: 0.003579951093 | CU7: 0.001388728305 | CV7: 0.001030725166 | CW7: 0.001754467713 | CX7: 0.00261765998 | CY7: 0.003579951093 | CZ7: 0.001388728305 | DA7: 0.001030725166 | DB7: 0.001754467713 | DC7: 0.00261765998 | DD7: 0.003579951093 | DE7: daily risk (day 1-60) | DI7: Reference: | DQ7: max body weight (kg) | DR7: =DS11+$EH$291 -> 1270.431241 | DS7: 20 | DT7: 40 | DU7: 40 | DV7: 40 | DW7: =DX11+$EH$291 -> 1362.084354 | DX7: 40 | DY7: 40 | DZ7: 40 | EA7: 40 | EB7: =EC11+$EH$291 -> 1362.084354 | EC7: 40 | ED7: 40 | EE7: 40 | EF7: 40 | EG7: maximum decrease of liveweight during lactation (kg) | EM7: first 305 days of lactation (kg/DIM) | EO7: 1A | EP7: 2A | EQ7: 3A | ER7: 4A | ET7: 1B | EU7: 2B | EV7: 3B | EW7: 4B | EY7: wood b | EZ7: =EZ8*EZ3/30.4 -> 0.208837392 | FA7: =FA8*FA3/30.4 -> 0.17804829 | FB7: =FB8*FB3/30.4 -> 0.2107855156 | FC7: =FC8*FC3/30.4 -> 0.2107855156 | FE7: =FE8*FE3/30.4 -> 0.208837392 | FF7: =FF8*FF3/30.4 -> 0.17804829 | FG7: =FG8*FG3/30.4 -> 0.2107855156 | FH7: =FH8*FH3/30.4 -> 0.2107855156 | FI7: =c*dim/30.4 | FJ7: =FJ8*FJ3/30.4 -> 0.208837392 | FK7: =FK8*FK3/30.4 -> 0.17804829 | FL7: =FL8*FL3/30.4 -> 0.2107855156 | FM7: =FM8*FM3/30.4 -> 0.2107855156 | FX7: =-SUM(FX11:FX315) -> 24603.49583 | GG7: max yield DIM | GH7: =MATCH(GH$6,GH$11:GH$315,0) -> 104 | GI7: =MATCH(GI$6,GI$11:GI$315,0) -> 58 | GJ7: =MATCH(GJ$6,GJ$11:GJ$315,0) -> 59 | GK7: 104 | GL7: =peakdim | GQ7: 1 | GR7: =P102 -> 0.038 | GS7: =Q102 -> 0.038 | GT7: =R102 -> 0.038 | GU7: =S102 -> 0.038 | GV7: =U102 -> 0.038 | GW7: =V102 -> 0.038 | GX7: =W102 -> 0.038 | GY7: =X102 -> 0.038 | GZ7: =P103 -> 0.032 | HA7: =Q103 -> 0.032 | HB7: =R103 -> 0.032 | HC7: =S103 -> 0.032 | HD7: =U103 -> 0.032 | HE7: =V103 -> 0.032 | HF7: =W103 -> 0.032 | HG7: =X103 -> 0.032 | HH7: myinputs | HJ7: =O87 -> 0.09 | HK7: =HJ7 -> 0.09 | HL7: 0.09 | HM7: 0.09 | HO7: =T87 -> 0.09 | HP7: =HO7 -> 0.09 | HQ7: =HP7 -> 0.09 | HR7: =HQ7 -> 0.09 | HS7: yield | HT7: *e | HU7: 1 | HV7: 1 | HW7: multiplication | HZ7: *h | IA7: 1 | IC7: =O104 -> 0 | ID7: 200000 | IE7: 200000 | IF7: 200000 | IG7: 200000 | IH7: 0 | II7: 200000 | IJ7: 200000 | IK7: 200000 | IL7: 200000 | IM7: myinputs | IO7: 305-day DMI | IQ7: =SUM(IQ11:IQ315) -> 14034.47528 | IR7: =SUM(IR11:IR315) -> 15264.58943 | IS7: =SUM(IS11:IS315) -> 15948.75943 | IT7: =SUM(IT11:IT315) -> 15943.8049 | IV7: =SUM(IV11:IV315) -> 14034.47528 | IW7: =SUM(IW11:IW315) -> 15264.58943 | IX7: =SUM(IX11:IX315) -> 15948.75943 | IY7: =SUM(IY11:IY315) -> 15943.8049 | JF7: =N190 -> cull day open (≤ 1000) 92 | JG7: 0 | JH7: =P190 -> 400 | JI7: =Q190 -> 350 | JJ7: =R190 -> 350 | JK7: =S190 -> 350 | JL7: 0 | JM7: =U190 -> 400 | JN7: =V190 -> 350 | JO7: =W190 -> 350 | JP7: =X190 -> 350 | KL7: methane MJ / milk kg | KM7: =KM5/KM2 -> 0.8100166667 | KO7: =AVERAGE(KO11:KO375) -> 0.3518762047 | KP7: 0.3647921827 | KQ7: 0.3646834291 | KR7: 0.1818710969 | KS7: 0.3302766479 | KT7: 0.3518762047 | KU7: 0.3647921827 | KV7: 0.3646834291 | KY7: Result are on each engine sheet and each breeding opportunity, the mean and SD of TBV | LV7: 3A | LW7: =SUMIF(LY$17:LY$36,LV7,LZ$17:LZ$36) -> 0 | LX7: =SUMIF(LY$17:LY$36,LV7,MF$17:MF$36) -> 0 | LY7: =SUMIF(LY$17:LY$5016,LV7,ME$17:ME$5016) -> 0 | LZ7: =SUMIF(LY$17:LY$36,LV7,MG$17:MG$36) -> 0 | MA7: 0 | MB7: 0 | MM7: 3B | MN7: =SUMIF(MP$17:MP$36,MM7,MQ$17:MQ$36) -> 0.3695012034 | MO7: =SUMIF(MP$17:MP$36,MM7,MW$17:MW$36) -> 110.850361 | MP7: =SUMIF(MP$17:MP$5016,MM7,MV$17:MV$5016) -> 0 | MQ7: =SUMIF(MP$17:MP$36,MM7,MX$17:MX$36) -> 0 | MR7: 0.3695012034 | MS7: 110.850361 | MT7: 300 | MV7: 300 | MW7: 0
J8: unit multiplier | K8: =IF($K$3="Metric",1,2.205) -> 2.205 | L8: mult | N8: 7 | O8: =language!F325 -> /raisedheifer | Q8: goal: find the dim at which iofc@cull is the given value, then on the Long sheet put a link to this dim@iofc | AB8: 0.25 | AC8: =(AF8)*$AC$3 -> 9 | AD8: =1/(1+$AD$3)^AC8 -> 0.6446089162 | AE8: =AB8*AD8 -> 0.1611522291 | AF8: 3 | AH8: 0.05492111643 | AI8: 54.92111643 | AK8: (B) parity 1 | AX8: entered | AY8: ='0A'!A2 -> 0 | AZ8: ='1A'!A2 -> 1.159745217 | BA8: ='2A'!A2 -> 0.8564435413 | BB8: ='3A'!A2 -> 0.5680393234 | BC8: ='4A'!A2 -> 0.3478685201 | BD8: =SUM(AZ8:BC8) -> 2.932096601 | BS8: ='0B'!A2 -> 0 | BT8: ='1B'!A2 -> 1.159745217 | BU8: ='2B'!A2 -> 0.8686020595 | BV8: ='3B'!A2 -> 0.5761035052 | BW8: ='4B'!A2 -> 0.3528070427 | CQ8: =(CQ7-CQ5)/30 -> 1.812115494e-05 | CR8: =(CR7-CR5)/30 -> 2.998803372e-05 | CS8: =(CS7-CS5)/30 -> 4.362767068e-05 | CT8: =(CT7-CT5)/30 -> 5.966585501e-05 | CV8: =(CV7-CV5)/30 -> 1.62390581e-05 | CW8: =(CW7-CW5)/30 -> 2.849538198e-05 | CX8: =(CX7-CX5)/30 -> 4.362767068e-05 | CY8: =(CY7-CY5)/30 -> 5.966585501e-05 | DA8: =(DA7-DA5)/30 -> 1.62390581e-05 | DB8: =(DB7-DB5)/30 -> 2.849538198e-05 | DC8: =(DC7-DC5)/30 -> 4.362767068e-05 | DD8: =(DD7-DD5)/30 -> 5.966585501e-05 | DE8: slope for continuity between day 60 and 61 | DI8: C. M. Jones and A. J. Heinrichs, 2013 | DQ8: birth weight (kg) | DR8: 42 | DS8: 65 | DT8: 70 | DU8: 70 | DV8: 70 | DW8: 42 | DX8: 70 | DY8: 70 | DZ8: 70 | EA8: 70 | EB8: =DW8 -> 42 | EC8: 70 | ED8: 70 | EE8: 70 | EF8: 70 | EG8: time during lactation with the minimum live weight (days) | EH8: pregnancy | EM8: actual | EO8: =EO9 -> 0 | EP8: 0 | EQ8: 0 | ER8: 0 | ET8: =ET9 -> 0 | EU8: 0 | EV8: 0 | EW8: 0 | EY8: wood c | EZ8: =-EZ4*(EZ3+305)/(EZ3-305) -> 0.06104477612 | FA8: =-FA4*(FA3+305)/(FA3-305) -> 0.09332186235 | FB8: =-FB4*(FB3+305)/(FB3-305) -> 0.1086081301 | FC8: =-FC4*(FC3+305)/(FC3-305) -> 0.1086081301 | FE8: =-FE4*(FE3+305)/(FE3-305) -> 0.06104477612 | FF8: =-FF4*(FF3+305)/(FF3-305) -> 0.09332186235 | FG8: =-FG4*(FG3+305)/(FG3-305) -> 0.1086081301 | FH8: =-FH4*(FH3+305)/(FH3-305) -> 0.1086081301 | FI8: =rate*(dim+305)/(dim-305) | FJ8: =-FJ4*(FJ3+305)/(FJ3-305) -> 0.06104477612 | FK8: =-FK4*(FK3+305)/(FK3-305) -> 0.09332186235 | FL8: =-FL4*(FL3+305)/(FL3-305) -> 0.1086081301 | FM8: =-FM4*(FM3+305)/(FM3-305) -> 0.1086081301 | FN8: days | FO8: pregnancy | FX8: negmemilk | GG8: 305-d yield kg | GH8: =SUM(GH$11:GH$315) -> 9471.729178 | GI8: =SUM(GI$11:GI$315) -> 10818.46961 | GJ8: =SUM(GJ$11:GJ$315) -> 11135.70319 | GK8: =SUM(GK$11:GK$315) -> 9472 | GR8: =SUMPRODUCT(GR11:GR315,FE11:FE315)/SUM(FE11:FE315) -> 0.03800318031 | GS8: =SUMPRODUCT(GS11:GS315,FF11:FF315)/SUM(FF11:FF315) -> 0.03803234293 | GT8: 0.03802818825 | GU8: 0.03802818825 | GV8: =SUMPRODUCT(GV11:GV315,FJ11:FJ315)/SUM(FJ11:FJ315) -> 0.03800318031 | GW8: =SUMPRODUCT(GW11:GW315,FK11:FK315)/SUM(FK11:FK315) -> 0.03803234293 | GX8: 0.03802818825 | GY8: 0.03802818825 | GZ8: =SUMPRODUCT(GZ11:GZ315,FE11:FE315)/SUM(FE11:FE315) -> 0.03196040779 | HA8: =SUMPRODUCT(HA11:HA315,FF11:FF315)/SUM(FF11:FF315) -> 0.03198237085 | HB8: 0.03197870351 | HC8: 0.03197870351 | HD8: =SUMPRODUCT(HD11:HD315,FJ11:FJ315)/SUM(FJ11:FJ315) -> 0.03196040779 | HE8: =SUMPRODUCT(HE11:HE315,FK11:FK315)/SUM(FK11:FK315) -> 0.03198237085 | HF8: 0.03197870351 | HG8: 0.03197870351 | HH8: w.average | HJ8: =O88 -> 2.6 | HK8: 2.6 | HL8: 2.6 | HM8: 2.6 | HO8: =T88 -> 2.6 | HP8: =HO8 -> 2.6 | HQ8: 2.6 | HR8: 2.6 | HS8: fat | HU8: I don't trust these curves => move to Rodriguez-Zas model => | IC8: 0 | ID8: =SUMPRODUCT(ID11:ID315,FE11:FE315)/SUM(FE11:FE315) -> 200000 | IE8: =SUMPRODUCT(IE11:IE315,FF11:FF315)/SUM(FF11:FF315) -> 200000 | IF8: 200000 | IG8: 200000 | IH8: 0 | II8: 200000 | IJ8: 200000 | IK8: 200000 | IL8: 200000 | IM8: weighted average | IO8: peak DMI | IP8: 2.3 | IQ8: =MAX(IQ11:IQ810) -> 49.57339412 | IR8: =MAX(IR11:IR810) -> 54.64151727 | IS8: =MAX(IS11:IS810) -> 57.84192141 | IT8: =MAX(IT11:IT810) -> 57.82544012 | IU8: 2.3 | IV8: =MAX(IV11:IV810) -> 49.57339412 | IW8: =MAX(IW11:IW810) -> 54.64151727 | IX8: =MAX(IX11:IX810) -> 57.84192141 | IY8: =MAX(IY11:IY810) -> 57.82544012 | JF8: value of milk/kg | JG8: 0 | JH8: see value of milk column to the left | JL8: 0 | JM8: see value of milk column to the left | JQ8: create negative values so match() works to find the DIM at which IOFC = given value. Ascending data needed | KD8: 0 | KE8: 1 | KF8: 2 | KG8: 3 | KH8: 4 | KI8: 5 | KJ8: offset | KL8: methane g / DMI kg | KM8: =KM6*KM4 -> 18.92222222 | KO8: =KO7*365 -> 128.4348147 | KP8: =KP7*365 -> 133.1491467 | KQ8: 133.1094516 | KR8: 66.38295036 | KS8: 120.5509765 | KT8: 128.4348147 | KU8: 133.1491467 | KV8: 133.1094516 | KY8: On the genetics sheet, I make further breeding decisions among animals of the same parity and breeding opportunity (sexed, beef, conventional, donor, recipient) | LV8: 4A | LW8: =SUMIF(LY$17:LY$36,LV8,LZ$17:LZ$36) -> 0 | LX8: =SUMIF(LY$17:LY$36,LV8,MF$17:MF$36) -> 0 | LY8: =SUMIF(LY$17:LY$5016,LV8,ME$17:ME$5016) -> 0 | LZ8: =SUMIF(LY$17:LY$36,LV8,MG$17:MG$36) -> 0 | MA8: 0 | MB8: 0 | MM8: 4B | MN8: =SUMIF(MP$17:MP$36,MM8,MQ$17:MQ$36) -> 0 | MO8: =SUMIF(MP$17:MP$36,MM8,MW$17:MW$36) -> 0 | MP8: =SUMIF(MP$17:MP$5016,MM8,MV$17:MV$5016) -> 0 | MQ8: =SUMIF(MP$17:MP$36,MM8,MX$17:MX$36) -> 0 | MR8: 0 | MS8: 0
K9: =MATCH(O14,presentation,0)-8 -> 1 | L9: afzet | N9: 8 | O9: =language!F326 -> /milkingslot/yr | P9: iofc@cull | Q9: 2 | R9: 5 | S9: 2 | T9: 2 | U9: 2 | V9: 2 | W9: 2 | X9: 2 | Y9: 2 | Z9: 2 | AB9: 0.125 | AC9: =(AF9)*$AC$3 -> 12 | AD9: =1/(1+$AD$3)^AC9 -> 0.5568374182 | AE9: =AB9*AD9 -> 0.06960467727 | AF9: 4 | AH9: 0.03073882258 | AI9: 30.73882258 | AK9: (B) parity 2 | AM9: =CHOOSE($AK$13,'0A'!$A$2,'1A'!$A$2,'2A'!$A$2,'3A'!$A$2,'4A'!$A$2,'0B'!$A$2,'1B'!$A$2,'2B'!$A$2,'3B'!$A$2,'4B'!$A$2) -> 0.8686020595 | AN9: =CHOOSE($AK$13,'0A'!B2,'1A'!B2,'2A'!B2,'3A'!B2,'4A'!B2,'0B'!B2,'1B'!B2,'2B'!B2,'3B'!B2,'4B'!B2) -> entered | AR9: =IFERROR(CHOOSE($AK$13,'0A'!E2,'1A'!E2,'2A'!E2,'3A'!E2,'4A'!E2,'0B'!E2,'1B'!E2,'2B'!E2,'3B'!E2,'4B'!E2),0) -> 1.017715171 | AX9: weight | AY9: =S235 -> 1.084259014 | AZ9: =I235 -> 1 | BA9: =J235 -> 1 | BB9: =K235 -> 1 | BC9: =L235 -> 2.271129314 | BD9: =SUM(AZ9:BC9) -> 5.271129314 | BE9: open | BS9: =AH235 -> 1.091121931 | BT9: =X235 -> 1 | BU9: =Y235 -> 1 | BV9: =Z235 -> 1 | BW9: =AA235 -> 2.271129314 | BX9: =SUM(BT9:BW9) -> 5.271129314 | BY9: open | CP9: 1 | CQ9: 1 | CR9: 1 | CS9: 1 | CT9: 1 | CU9: =O126 -> 1 | CV9: 1 | CW9: 1 | CX9: 1 | CY9: 1 | CZ9: 1 | DA9: 1 | DB9: 1 | DC9: 1 | DD9: 1 | DE9: multiplier | DI9: Customized Dairy Heifer Growth Chart Metric Spreadsheet | DS9: 730 | DT9: =DS9+410 -> 1140 | DU9: =DT9+410 -> 1550 | DV9: =DU9+410 -> 1960 | DX9: 1140 | DY9: 1140 | DZ9: 1140 | EA9: 1140 | EC9: 1140 | ED9: 1140 | EE9: 1140 | EF9: 1140 | EG9: age at calving (days) | EH9: 187 | EM9: Hinde[1565] | EO9: 0 | EP9: =ES37/305 ->  | EQ9: =ER47/305 -> 0.08727603206 | ER9: =ER56/305 -> 0.08727603206 | ET9: 0 | EU9: =ES38/305 ->  | EV9: =ER48/305 -> 0.1573770492 | EW9: =ER57/305 -> 0.1573770492 | EY9: 305-d yield | EZ9: =SUM(EZ11:EZ315) -> 20884.43357 | FA9: =SUM(FA11:FA315) -> 23853.71409 | FB9: =SUM(FB11:FB315) -> 24552.64015 | FC9: =SUM(FC11:FC315) -> 24552.64015 | FE9: =SUM(FE11:FE315) -> 20356.43845 | FF9: =SUM(FF11:FF315) -> 22569.95085 | FG9: =SUM(FG11:FG315) -> 24603.49583 | FH9: =SUM(FH11:FH315) -> 24603.49583 | FJ9: =SUM(FJ11:FJ315) -> 20356.43845 | FK9: =SUM(FK11:FK315) -> 22569.95085 | FL9: =SUM(FL11:FL315) -> 24603.49583 | FM9: =SUM(FM11:FM315) -> 24603.49583 | FN9: pregnant | FO9: adjustment | GG9: decline after peak | GH9: 3 | GI9: 0.0635 | GJ9: 0.0734 | GK9: 0.02997355632 | GL9: =monthlyrate | GR9: =GR7/GR6 -> 0.9793814433 | GS9: 0.9793814433 | GT9: 0.9793814433 | GU9: 0.9793814433 | GV9: 0.9793814433 | GW9: 0.9793814433 | GX9: 0.9793814433 | GY9: 0.9793814433 | GZ9: 1.049180328 | HA9: 1.049180328 | HB9: 1.049180328 | HC9: 1.049180328 | HD9: 1.049180328 | HE9: 1.049180328 | HF9: 1.049180328 | HG9: 1.049180328 | HH9: multiplier | HJ9: =O89 -> 0 | HK9: 0 | HL9: 0 | HM9: 0 | HO9: =T89 -> 0 | HP9: 0 | HQ9: 0 | HR9: 0 | HS9: protein | ID9: =ID7/ID6 -> 0.5539085699 | IE9: =IE7/IE6 -> 0.524014636 | IF9: =IF7/IF6 -> 0.5294130408 | IG9: =IG7/IG6 -> 0.5294130408 | II9: =II7/II6 -> 0.5539085699 | IJ9: =IJ7/IJ6 -> 0.524014636 | IK9: =IK7/IK6 -> 0.5294130408 | IL9: =IL7/IL6 -> 0.5294130408 | IM9: multiplier | IO9: peak DIM | IP9: DMI/day | IQ9: =MATCH(IQ$8,IQ11:IQ810,0) -> 155 | IR9: =MATCH(IR$8,IR11:IR810,0) -> 110 | IS9: =MATCH(IS$8,IS11:IS810,0) -> 104 | IT9: =MATCH(IT$8,IT11:IT810,0) -> 104 | IU9: DMI(kg/d) | IV9: =MATCH(IV$8,IV11:IV810,0) -> 155 | IW9: =MATCH(IW$8,IW11:IW810,0) -> 110 | IX9: =MATCH(IX$8,IX11:IX810,0) -> 104 | IY9: =MATCH(IY$8,IY11:IY810,0) -> 104 | JB9: check: feed efficiency | JF9: =N109 -> wet cow dmi cost/lbs 11 | JG9: 0 | JH9: =P109 -> 0.15 | JI9: =Q109 -> 0.15 | JJ9: =R109 -> 0.15 | JK9: =S109 -> 0.15 | JL9: 0 | JM9: =U109 -> 0.15 | JN9: =V109 -> 0.15 | JO9: =W109 -> 0.15 | JP9: =X109 -> 0.15 | JT9: negiofc (range) | KD9: heifers only | KL9: methane MJ / DMI kg | KM9: =KM7*KM4 -> 1.053021667 | LV9: all | LW9: =SUM(LW4:LW8) -> 0.7482252366 | LX9: 224.467571 | LY9: 0 | LZ9: 0 | MA9: 0.7482252366 | MB9: 224.467571 | MC9: 300 | ME9: 300 | MF9: 0 | MM9: all | MN9: =SUM(MN4:MN8) -> 0.9158188611 | MO9: 274.7456583 | MP9: 0 | MQ9: 0 | MR9: 0.9158188611 | MS9: 274.7456583 | MT9: 300 | MV9: 300 | MW9: 0
K10: =MATCH(M5,speak,0)*7 -> 7 | L10: speakafzet | N10: 9 | O10: =language!F327 -> /cwt | P10: max | Q10: =MAX(JG11:JG1010) -> 0 | R10: 6.63670142 | S10: 9.453869977 | T10: 10.69477936 | U10: 10.69671186 | V10: 0 | W10: 6.63670142 | X10: 9.453869977 | Y10: 10.69477936 | Z10: 10.69671186 | AD10: geneflow + discounting factor: | AE10: =SUM(AE6:AE9) -> 1.467702203 | AH10: 0.01720422445 | AI10: 17.20422445 | AK10: (B) parity 3 | AM10: open | AN10: pregnant | AO10: present | AP10: milking | AQ10: dry | AR10: conceptions | AS10: calvings | AT10: Milk yield | AU10: Dry matter intake | AV10: Income over feed cost | AY10: open | AZ10: open | BA10: open | BB10: open | BC10: open | BD10: open | BE10: %of pres. | BF10: present | BG10: present | BH10: present | BI10: present | BJ10: present | BK10: present | BL10: eligible | BM10: eligible | BN10: eligible | BO10: eligible | BP10: eligible | BQ10: eligible | BS10: open | BT10: open | BU10: open | BV10: open | BW10: open | BX10: open | BY10: %of pres. | BZ10: present | CA10: present | CB10: present | CC10: present | CD10: present | CE10: present | CF10: eligible | CG10: eligible | CH10: eligible | CI10: eligible | CJ10: eligible | CK10: eligible | CP10: lact0 | CQ10: lact1 | CR10: lact2 | CS10: lact3 | CT10: lact4+ | CU10: A0 | CV10: A1 | CW10: A2 | CX10: A3 | CY10: A4+ | CZ10: B0 | DA10: B1 | DB10: B2 | DC10: B3 | DD10: B4+ | DE10: =1 -> 1 | DI10: Penn State Univ. | DQ10: age or DIM | DR10: lact0 | DS10: lact1 | DT10: lact2 | DU10: lact3 | DV10: lact4 | DW10: 0 | DX10: 1 | DY10: 2 | DZ10: 3 | EA10: 4+ | EB10: 0 | EC10: 1 | ED10: 2 | EE10: 3 | EF10: 4+ | EG10: days pregnant | EH10: DPC | EZ10: lact1 | FA10: lact2 | FB10: lact3 | FC10: lact4+ | FD10: 0A | FE10: 1A | FF10: 2A | FG10: 3A | FH10: 4+A | FI10: 0B | FJ10: 1B | FK10: 2B | FL10: 3B | FM10: 4+B | FN10: 0 | FO10: 1 | FP10: 0A | FQ10: 1A | FR10: 2A | FS10: 3A | FT10: 4+A | FU10: 0B | FV10: 1B | FW10: 2B | FX10: 3B | FY10: 4+B | GB10: fat1 | GC10: fat2 | GD10: fat3 | GE10: protein1 | GF10: protein2 | GG10: protein3 | GH10: milk1 | GI10: milk2 | GJ10: milk3 | GP10: milk | GQ10: =GQ5 -> fat2 | GR10: 1A | GS10: 2A | GT10: 3A | GU10: 4A+ | GV10: 1B | GW10: 2B | GX10: 3B | GY10: 4B+ | GZ10: 1A | HA10: 2A | HB10: 3A | HC10: 4A+ | HD10: 1B | HE10: 2B | HF10: 3B | HG10: 4B+ | HI10: 0A | HJ10: 1A | HK10: 2A | HL10: 3A | HM10: 4A+ | HN10: 0B | HO10: 1B | HP10: 2B | HQ10: 3B | HR10: 4B+ | HT10: t | HU10: SCS1 | HV10: SCS2 | HY10: t_ | HZ10: t | IA10: SCS | IB10: SCC | IC10: 0A | ID10: 1A | IE10: 2A | IF10: 3A | IG10: 4A+ | IH10: 0B | II10: 1B | IJ10: 2B | IK10: 3B | IL10: 4B+ | IP10: 0A | IQ10: 1A | IR10: 2A | IS10: 3A | IT10: 4A+ | IU10: 0B | IV10: 1B | IW10: 2B | IX10: 3B | IY10: 4B+ | IZ10: 0A | JA10: 1A | JB10: 2A | JC10: 3A | JD10: 4A+ | JG10: 0A | JH10: 1A | JI10: 2A | JJ10: 3A | JK10: 4A+ | JL10: 0B | JM10: 1B | JN10: 2B | JO10: 3B | JP10: 4B+ | JQ10: 0A | JR10: 1A | JS10: 2A | JT10: 3A | JU10: 4A+ | JV10: 0B | JW10: 1B | JX10: 2B | JY10: 3B | JZ10: 4B+ | KD10: 0A | KE10: 1A | KF10: 2A | KG10: 3A | KH10: 4A | KI10: 0B | KM10: 0A | KN10: 1A | KO10: 2A | KP10: 3A | KQ10: 4A+ | KR10: 0B | KS10: 1B | KT10: 2B | KU10: 3B | KV10: 4B+ | KY10: calf | KZ10: 0A | LA10: 1A | LB10: 2A | LC10: 3A | LD10: 4A+ | LF10: calf | LG10: 0B | LH10: 1B | LI10: 2B | LJ10: 3B | LK10: 4B+ | LV10: check | LW10: =SUM(LZ17:LZ36) -> 0.7482252366 | LX10: =SUMPRODUCT(LZ17:LZ36,MA17:MA36) -> 224.467571 | LY10: =LW14 -> 0 | LZ10: =SUMPRODUCT(LZ17:LZ5016,MA17:MA5016,MC17:MC5016) -> 0 | MC10: =MD9*MF9+ME9*(1-MF9) ->  | MM10: check | MN10: =SUM(MQ17:MQ36) -> 0.9158188611 | MO10: =SUMPRODUCT(MQ17:MQ36,MR17:MR36) -> 274.7456583 | MP10: =MN14 -> 0 | MQ10: =SUMPRODUCT(MQ17:MQ5016,MR17:MR5016,MT17:MT5016) -> 0 | MT10: =MU9*MW9+MV9*(1-MW9) -> 
K11: =MATCH(O14,presentation,0)-8 -> 1 | L11: shortafzet | N11: 10 | O11: =language!F328 -> /cow/day | P11: min | Q11: =MIN(JG11:JG1010) -> 0 | R11: -1.035762234 | S11: -2.936763311 | T11: -3.21237707 | U11: -3.209715353 | V11: 0 | W11: -1.035762234 | X11: -2.936763311 | Y11: -3.21237707 | Z11: -3.209715353 | AB11: A | AC11: B | AH11: 0.009629039563 | AI11: 9.629039563 | AK11: (B) parity 4+ | AL11: 1 | AM11: =IFERROR(CHOOSE($AK$13,'0A'!T11,'1A'!T11,'2A'!T11,'3A'!T11,'4A'!T11,'0B'!T11,'1B'!T11,'2B'!T11,'3B'!T11,'4B'!T11)/$AM$9,0) -> 0.9973906708 | AN11: =IFERROR(CHOOSE($AK$13,'0A'!AD11,'1A'!AD11,'2A'!AD11,'3A'!AD11,'4A'!AD11,'0B'!AD11,'1B'!AD11,'2B'!AD11,'3B'!AD11,'4B'!AD11)/$AM$9,0) -> 0 | AO11: =IFERROR(CHOOSE($AK$13,'0A'!AI11,'1A'!AI11,'2A'!AI11,'3A'!AI11,'4A'!AI11,'0B'!AI11,'1B'!AI11,'2B'!AI11,'3B'!AI11,'4B'!AI11)/$AM$9,0) -> 0.9973906708 | AP11: =IFERROR(CHOOSE($AK$13,'0A'!AG11,'1A'!AG11,'2A'!AG11,'3A'!AG11,'4A'!AG11,'0B'!AG11,'1B'!AG11,'2B'!AG11,'3B'!AG11,'4B'!AG11)/$AM$9,0) -> 0.9973906708 | AQ11: =IFERROR(CHOOSE($AK$13,'0A'!AH11,'1A'!AH11,'2A'!AH11,'3A'!AH11,'4A'!AH11,'0B'!AH11,'1B'!AH11,'2B'!AH11,'3B'!AH11,'4B'!AH11)/$AM$9,0) -> 0 | AR11: =IFERROR(CHOOSE($AK$13,'0A'!Q11,'1A'!Q11,'2A'!Q11,'3A'!Q11,'4A'!Q11,'0B'!Q11,'1B'!Q11,'2B'!Q11,'3B'!Q11,'4B'!Q11)/$AM$9/$AR$9,0) -> 0 | AS11: =IFERROR(CHOOSE($AK$13,'0A'!U11,'1A'!U11,'2A'!U11,'3A'!U11,'4A'!U11,'0B'!U11,'1B'!U11,'2B'!U11,'3B'!U11,'4B'!U11)/$AM$9,0) -> 0 | AT11: =IFERROR(CHOOSE($AK$13,FD11,FE11,FF11,FG11,FH11,FI11,FJ11,FK11,FL11,FM11),0) -> 50.29630805 | AU11: =IFERROR(CHOOSE($AK$13,IP11,IQ11,IR11,IS11,IT11,IU11,IV11,IW11,IX11,IY11),0) -> 24.24900835 | AV11: =IFERROR(CHOOSE($AK$13,JG11,JH11,JI11,JJ11,JK11,JL11,JM11,JN11,JO11,JP11),0) -> 6.480769309 | AX11: 1 | AY11: ='0A'!$T11/$AY$8 ->  | AZ11: ='1A'!$T11/$AZ$8 -> 0.9984821031 | BA11: ='2A'!$T11/$BA$8 -> 0.9973906708 | BB11: ='3A'!$T11/$BB$8 -> 0.9960735099 | BC11: ='4A'!$T11/$BC$8 -> 0.9946300733 | BD11: =SUMPRODUCT($AZ$9:$BC$9,AZ11:BC11)/$BD$9 -> 0.9961584107 | BE11: =IF(BK11>0,BD11/BK11,0) -> 1 | BF11: ='0A'!$AI11/$AY$8 ->  | BG11: ='1A'!$AI11/$AZ$8 -> 0.9984821031 | BH11: ='2A'!$AI11/$BA$8 -> 0.9973906708 | BI11: ='3A'!$AI11/$BB$8 -> 0.9960735099 | BJ11: ='4A'!$AI11/$BC$8 -> 0.9946300733 | BK11: =SUMPRODUCT($AZ$9:$BC$9,BG11:BJ11)/$BD$9 -> 0.9961584107 | BL11: ='0A'!$AM11/$AY$8 ->  | BM11: ='1A'!$AM11/$AZ$8 -> 0 | BN11: ='2A'!$AM11/$BA$8 -> 0 | BO11: ='3A'!$AM11/$BB$8 -> 0 | BP11: ='4A'!$AM11/$BC$8 -> 0 | BQ11: =SUMPRODUCT($AZ$9:$BC$9,BM11:BP11)/$BD$9 -> 0 | BR11: 1 | BS11: ='0B'!$T11/$BS$8 ->  | BT11: ='1B'!$T11/$BT$8 -> 0.9984821031 | BU11: ='2B'!$T11/$BU$8 -> 0.9973906708 | BV11: ='3B'!$T11/$BV$8 -> 0.9960735099 | BW11: ='4B'!$T11/$BW$8 -> 0.9946300733 | BX11: =SUMPRODUCT($BT$9:$BW$9,BT11:BW11)/$BX$9 -> 0.9961584107 | BY11: =IF(CE11>0,BX11/CE11,0) -> 1 | BZ11: ='0B'!$AI11/$BS$8 ->  | CA11: ='1B'!$AI11/$BT$8 -> 0.9984821031 | CB11: ='2B'!$AI11/$BU$8 -> 0.9973906708 | CC11: ='3B'!$AI11/$BV$8 -> 0.9960735099 | CD11: ='4B'!$AI11/$BW$8 -> 0.9946300733 | CE11: =SUMPRODUCT($BT$9:$BW$9,CA11:CD11)/$BX$9 -> 0.9961584107 | CF11: ='0B'!$AM11/$BS$8 ->  | CG11: ='1B'!$AM11/$BT$8 -> 0 | CH11: ='2B'!$AM11/$BU$8 -> 0 | CI11: ='3B'!$AM11/$BV$8 -> 0 | CJ11: ='4B'!$AM11/$BW$8 -> 0 | CK11: =SUMPRODUCT($BT$9:$BW$9,CG11:CJ11)/$BX$9 -> 0 | CO11: 1 | CP11: =MAX(IF($CO11<=60,CP$7,CP$5)*CP$9,0) -> 0.001388728305 | CQ11: =MAX(IF($CO11<=60,(61-$CO11)*CQ$8+CQ$5,CQ$5)*CQ$9,0) -> 0.00163082272 | CR11: =MAX(IF($CO11<=60,(61-$CO11)*CR$8+CR$5,CR$5)*CR$9,0) -> 0.002698888277 | CS11: 0.003926490101 | CT11: 0.005369926743 | CU11: =MAX(IF($CO11<=60,CU$7,CU$5)*CU$9,0) -> 0.001388728305 | CV11: =MAX(IF($CO11<=60,(61-$CO11)*CV$8+CV$5,CV$5)*CV$9,0) -> 0.001517896909 | CW11: =MAX(IF($CO11<=60,(61-$CO11)*CW$8+CW$5,CW$5)*CW$9,0) -> 0.002609329173 | CX11: 0.003926490101 | CY11: 0.005369926743 | CZ11: =MAX(IF($CO11<=60,CZ$7,CZ$5)*CZ$9,0) -> 0.001388728305 | DA11: =MAX(IF($CO11<=60,(61-$CO11)*DA$8+DA$5,DA$5)*DA$9,0) -> 0.001517896909 | DB11: =MAX(IF($CO11<=60,(61-$CO11)*DB$8+DB$5,DB$5)*DB$9,0) -> 0.002609329173 | DC11: 0.003926490101 | DD11: 0.005369926743 | DE11: =$DE10*(1-CT11) -> 0.9946300733 | DF11: =1-DE375 -> 0.5339409192 | DI11: http://extension.psu.edu/animals/dairy/nutrition/heifers/monitoring-heifer-growth/customized-dairy-heifer-growth-chart/customized-dairy-heifer-growth-chart-metric-spreadsheet/view | DQ11: 1 | DR11: =MIN(MAX($DR$8,27.2+0.822*$DQ11)*mult,$DR$7) -> 92.61 | DS11: =((DS$4*(1-(1-(DS$5/DS$4)^(1/3))*EXP(-DS$6/1000*(DS$9+$DQ11)))^3)-(DS$7/DS$8*$DQ11*EXP(1-$DQ11/DS$8)))*mult -> 1190.868758 | DT11: 1405.138396 | DU11: 1407.594007 | DV11: 1407.803935 | DW11: =MIN(MAX($DW$8,27.2+0.822*$DQ11)*$DW$2*$DW$3*mult,$DW$7) -> 148.3404066 | DX11: =((DX$4*(1-(1-(DX$5/DX$4)^(1/3))*EXP(-DX$6/1000*(DX$9+$DQ11)))^3)-(DX$7/DX$8*$DQ11*EXP(1-$DQ11/DX$8)))*DX$2*DX$3*mult -> 1282.521871 | DY11: 1416.135706 | DZ11: 1415.859868 | EA11: 1414.633587 | EB11: =MIN(MAX($EB$8,27.2+0.822*$DQ11)*$EB$2*$EB$3*mult,$EB$7) -> 148.3404066 | EC11: =((EC$4*(1-(1-(EC$5/EC$4)^(1/3))*EXP(-EC$6/1000*(EC$9+$DQ11)))^3)-(EC$7/EC$8*$DQ11*EXP(1-$DQ11/EC$8)))*EC$2*EC$3*mult -> 1282.521871 | ED11: 1416.135706 | EE11: 1415.859868 | EF11: 1414.633587 | EG11: 0 | EH11: =(MAX(0,EG11-50)*$EH$9/10000)^3 -> 0 | EM11: every day of gestation (kg/day) | EN11: 0A | EO11: 1A | EP11: 2A | EQ11: 3A | ER11: 4A | ES11: 0B | ET11: 1B | EU11: 2B | EV11: 3B | EW11: 4B | EY11: 1 | EZ11: =EZ$5*EZ$6*($EY11/30.4)^EZ$7*EXP(-EZ$8*$EY11/30.4) -> 34.43866119 | FA11: =FA$5*FA$6*($EY11/30.4)^FA$7*EXP(-FA$8*$EY11/30.4) -> 53.15712737 | FB11: =FB$5*FB$6*($EY11/30.4)^FB$7*EXP(-FB$8*$EY11/30.4) -> 50.41903973 | FC11: 50.41903973 | FD11: 0 | FE11: =FE$5*FE$6*($EY11/30.4)^FE$7*EXP(-FE$8*$EY11/30.4)*IFERROR(extra!D11,1)+IF($EY11<=305,EO$8,0) -> 33.56799141 | FF11: =FF$5*FF$6*($EY11/30.4)^FF$7*EXP(-FF$8*$EY11/30.4)*IFERROR(extra!E11,1)+IF($EY11<=305,EP$8,0) -> 50.29630805 | FG11: =FG$5*FG$6*($EY11/30.4)^FG$7*EXP(-FG$8*$EY11/30.4)*IFERROR(extra!F11,1)+IF($EY11<=305,EQ$8,0) -> 50.52347227 | FH11: =FH$5*FH$6*($EY11/30.4)^FH$7*EXP(-FH$8*$EY11/30.4)*IFERROR(extra!G11,1)+IF($EY11<=305,ER$8,0) -> 50.52347227 | FI11: 0 | FJ11: =FJ$5*FJ$6*($EY11/30.4)^FJ$7*EXP(-FJ$8*$EY11/30.4)*IFERROR(extra!H11,1)+IF($EY11<=305,ET$8,0) -> 33.56799141 | FK11: =FK$5*FK$6*($EY11/30.4)^FK$7*EXP(-FK$8*$EY11/30.4)*IFERROR(extra!I11,1)+IF($EY11<=305,EU$8,0) -> 50.29630805 | FL11: =FL$5*FL$6*($EY11/30.4)^FL$7*EXP(-FL$8*$EY11/30.4)*IFERROR(extra!J11,1)+IF($EY11<=305,EV$8,0) -> 50.52347227 | FM11: =FM$5*FM$6*($EY11/30.4)^FM$7*EXP(-FM$8*$EY11/30.4)*IFERROR(extra!K11,1)+IF($EY11<=305,EW$8,0) -> 50.52347227 | FN11: 1 | FO11: 1 | FP11: 0 | FQ11: =-FE11 -> -33.56799141 | FR11: -50.29630805 | FS11: -50.52347227 | FT11: -50.52347227 | FU11: 0 | FV11: -33.56799141 | FW11: -50.29630805 | FX11: =-FL11 -> -50.52347227 | FY11: =-FM11 -> -50.52347227 | GA11: 1 | GB11: =GB$3*$GA11^GB$4*EXP(-GB$5*$GA11) -> 0.7117962203 | GC11: =GC$3*$GA11^GC$4*EXP(-GC$5*$GA11) -> 1.05281631 | GD11: =GD$3*$GA11^GD$4*EXP(-GD$5*$GA11) -> 1.046850191 | GE11: =GE$3*$GA11^GE$4*EXP(-GE$5*$GA11) -> 0.5199112296 | GF11: =GF$3*$GA11^GF$4*EXP(-GF$5*$GA11) -> 0.8233665724 | GG11: 0.7891992586 | GH11: =GH$3*$GA11^GH$4*EXP(-GH$5*$GA11) -> 15.65485895 | GI11: =GI$3*$GA11^GI$4*EXP(-GI$5*$GA11) -> 24.11511096 | GJ11: 23.00691852 | GK11: =GK$3*($GA11/30.4)^GK$4*EXP(-GK$5*$GA11/30.4) -> 15.62894946 | GP11: =OFFSET(GH11,0,IF($GQ$7>2,$GQ$7-3,$GQ$7)) -> 24.11511096 | GQ11: =OFFSET(GB11,0,$GQ$7)/OFFSET(GH11,0,IF($GQ$7>2,$GQ$7-3,$GQ$7)) -> 0.04365795006 | GR11: =$GC11/$GI11*GR$9 -> 0.04275778614 | GS11: =$GC11/$GI11*GS$9 -> 0.04275778614 | GT11: 0.04275778614 | GU11: 0.04275778614 | GV11: 0.04275778614 | GW11: 0.04275778614 | GX11: 0.04275778614 | GY11: 0.04275778614 | GZ11: =$GF11/$GI11*GZ$9 -> 0.03582235271 | HA11: 0.03582235271 | HB11: 0.03582235271 | HC11: 0.03582235271 | HD11: 0.03582235271 | HE11: 0.03582235271 | HF11: 0.03582235271 | HG11: 0.03582235271 | HH11: 1 | HI11: 0 | HJ11: =(HJ$7+GR11*HJ$8+GZ11*HJ$9) -> 0.201170244 | HK11: =(HK$7+GS11*HK$8+HA11*HK$9) -> 0.201170244 | HL11: =(HL$7+GT11*HL$8+HB11*HL$9) -> 0.201170244 | HM11: =(HM$7+GU11*HM$8+HC11*HM$9) -> 0.201170244 | HN11: 0 | HO11: =(HO$7+GV11*HO$8+HD11*HO$9) -> 0.201170244 | HP11: =(HP$7+GW11*HP$8+HE11*HP$9) -> 0.201170244 | HQ11: =(HQ$7+GX11*HQ$8+HF11*HQ$9) -> 0.201170244 | HR11: =(HR$7+GY11*HR$8+HG11*HR$9) -> 0.201170244 | HT11: 1 | HU11: =((HU$2-HU$3*$HT11+HU$4*$HT11^2/2-HU$5/$HT11)+HU$6)*HU$7 -> -14.905 | HV11: -6.469 | HY11: =(HZ11-150)/100 -> -1.49 | HZ11: 1 | IA11: =$IA$16 -> 8.58043683 | IB11: =2^(IA11-3)*100000 -> 4784966.204 | IC11: 0 | ID11: =$IB11*ID$9 -> 2650433.787 | IE11: 2507392.323 | IF11: 2533223.508 | IG11: 2533223.508 | IH11: 0 | II11: =$IB11*II$9 -> 2650433.787 | IJ11: 2507392.323 | IK11: 2533223.508 | IL11: 2533223.508 | IO11: 1 | IP11: =DW11^0.75*(0.2435*IP$8-0.0466*IP$8^2-0.1128)/IP$8*mult -> 8.179949497 | IQ11: =((0.372*(0.4*FE11/mult+15*FE11/mult*$GR11)+0.0968*(DX11/mult)^0.75)*(1-EXP(-0.192*($IO11/7+3.67))))*mult*IQ$6 -> 19.87261431 | IR11: =((0.372*(0.4*FF11/mult+15*FF11/mult*$GR11)+0.0968*(DY11/mult)^0.75)*(1-EXP(-0.192*($IO11/7+3.67))))*mult*IR$6 -> 24.24900835 | IS11: =((0.372*(0.4*FG11/mult+15*FG11/mult*$GR11)+0.0968*(DZ11/mult)^0.75)*(1-EXP(-0.192*($IO11/7+3.67))))*mult*IS$6 -> 24.29262342 | IT11: =((0.372*(0.4*FH11/mult+15*FH11/mult*$GR11)+0.0968*(EA11/mult)^0.75)*(1-EXP(-0.192*($IO11/7+3.67))))*mult*IT$6 -> 24.28344198 | IU11: =EB11^0.75*(0.2435*IU$8-0.0466*IU$8^2-0.1128)/IU$8*mult -> 8.179949497 | IV11: =((0.372*(0.4*FJ11/mult+15*FJ11/mult*$GV11)+0.0968*(DX11/mult)^0.75)*(1-EXP(-0.192*($IO11/7+3.67))))*mult*IV$6 -> 19.87261431 | IW11: =((0.372*(0.4*FK11/mult+15*FK11/mult*$GV11)+0.0968*(DY11/mult)^0.75)*(1-EXP(-0.192*($IO11/7+3.67))))*mult*IV$6 -> 24.24900835 | IX11: =((0.372*(0.4*FL11/mult+15*FL11/mult*$GV11)+0.0968*(DZ11/mult)^0.75)*(1-EXP(-0.192*($IO11/7+3.67))))*mult -> 24.29262342 | IY11: =((0.372*(0.4*FM11/mult+15*FM11/mult*$GV11)+0.0968*(EA11/mult)^0.75)*(1-EXP(-0.192*($IO11/7+3.67))))*mult -> 24.28344198 | IZ11: =IP11/DW11 -> 0.05514309747 | JA11: =FE11/IQ11 -> 1.689158301 | JB11: =FF11/IR11 -> 2.074159377 | JC11: =FG11/IS11 -> 2.079786584 | JD11: =FH11/IT11 -> 2.08057294 | JF11: 1 | JG11: 0 | JH11: =FE11*$HJ11-IQ11*JH$9 -> 3.771988876 | JI11: =FF11*$HJ11-IR11*JI$9 -> 6.480769309 | JJ11: =FG11*$HJ11-IS11*JJ$9 -> 6.51992573 | JK11: =FH11*$HJ11-IT11*JK$9 -> 6.521302945 | JL11: 0 | JM11: =FJ11*$HO11-IV11*JM$9 -> 3.771988876 | JN11: =FK11*$HO11-IW11*JN$9 -> 6.480769309 | JO11: =FL11*$HO11-IX11*JO$9 -> 6.51992573 | JP11: =FM11*$HO11-IY11*JP$9 -> 6.521302945 | JQ11: 0 | JR11: =-JH11 -> -3.771988876 | JS11: =-JI11 -> -6.480769309 | JT11: =-JJ11 -> -6.51992573 | JU11: =-JK11 -> -6.521302945 | JV11: 0 | JW11: =-JM11 -> -3.771988876 | JX11: =-JN11 -> -6.480769309 | JY11: =-JO11 -> -6.51992573 | JZ11: =-JP11 -> -6.521302945 | KC11: 1 | KD11: =IF(KC11>$O$58,$O$62,IF(KC11>$O$57,$O$61,IF(KC11>$O$56,$O$60,$O$59))) -> 2.75 | KE11: void | KF11: void | KG11: void | KH11: void | KI11: =IF(KC11>$T$58,$T$62,IF(KC11>$T$57,$T$61,IF(KC11>$T$56,$T$60,$T$59))) -> 2.75 | KL11: 1 | KM11: =(3.23+0.81*IP11)/mult/55.65 -> 0.08031863459 | KN11: =(3.23+0.81*IQ11)/mult/55.65 -> 0.1575021858 | KO11: =(3.23+0.81*IR11)/mult/55.65 -> 0.1863908642 | KP11: =(3.23+0.81*IS11)/mult/55.65 -> 0.1866787683 | KQ11: =(3.23+0.81*IT11)/mult/55.65 -> 0.1866181614 | KR11: =(3.23+0.81*IU11)/mult/55.65 -> 0.08031863459 | KS11: =(3.23+0.81*IV11)/mult/55.65 -> 0.1575021858 | KT11: =(3.23+0.81*IW11)/mult/55.65 -> 0.1863908642 | KU11: =(3.23+0.81*IX11)/mult/55.65 -> 0.1866787683 | KV11: =(3.23+0.81*IY11)/mult/55.65 -> 0.1866181614 | KX11: suggested | KY11: =#REF! ->  | KZ11: =KY29 ->  | LA11: =KZ29 ->  | LB11: =LA29 ->  | LC11: =LB29 ->  | LD11: =LC29 ->  | LE11: link TO genetics!sheet | LF11: =#REF! ->  | LG11: =LF29 ->  | LH11: =LG29 ->  | LI11: =LH29 ->  | LJ11: =LI29 ->  | LK11: =LJ29 ->  | LL11: TBV at start of parity | MD11: =IFERROR(MD9-MC9,0) -> 0 | ME11: age advantage of selection/selected calf | MU11: =IFERROR(MU9-MT9,0) -> 0 | MV11: age advantage of selection/selected calf
K12: =sign -> $ | L12: currency | N12: 11 | O12: =language!F329 -> /cow/year | P12: dim@max | Q12: 0 | R12: =MATCH(MAX(JH11:JH1010),JH11:JH1010,0) -> 33 | S12: =MATCH(MAX(JI11:JI1010),JI11:JI1010,0) -> 20 | T12: =MATCH(MAX(JJ11:JJ1010),JJ11:JJ1010,0) -> 25 | U12: =MATCH(MAX(JK11:JK1010),JK11:JK1010,0) -> 25 | V12: 0 | W12: =MATCH(MAX(JM11:JM1010),JM11:JM1010,0) -> 33 | X12: =MATCH(MAX(JN11:JN1010),JN11:JN1010,0) -> 20 | Y12: =MATCH(MAX(JO11:JO1010),JO11:JO1010,0) -> 25 | Z12: =MATCH(MAX(JP11:JP1010),JP11:JP1010,0) -> 25 | AB12: =Short!F13 -> 0 | AC12: =Short!G13 -> 0 | AD12: genetic value/breeding (NM$) | AH12: 0.005389281173 | AI12: 5.389281173 | AK12: =dashboard!$L3 -> (B) parity 2 | AL12: 2 | AM12: =IFERROR(CHOOSE($AK$13,'0A'!T12,'1A'!T12,'2A'!T12,'3A'!T12,'4A'!T12,'0B'!T12,'1B'!T12,'2B'!T12,'3B'!T12,'4B'!T12)/$AM$9,0) -> 0.9948165713 | AN12: =IFERROR(CHOOSE($AK$13,'0A'!AD12,'1A'!AD12,'2A'!AD12,'3A'!AD12,'4A'!AD12,'0B'!AD12,'1B'!AD12,'2B'!AD12,'3B'!AD12,'4B'!AD12)/$AM$9,0) -> 0 | AO12: =IFERROR(CHOOSE($AK$13,'0A'!AI12,'1A'!AI12,'2A'!AI12,'3A'!AI12,'4A'!AI12,'0B'!AI12,'1B'!AI12,'2B'!AI12,'3B'!AI12,'4B'!AI12)/$AM$9,0) -> 0.9948165713 | AP12: =IFERROR(CHOOSE($AK$13,'0A'!AG12,'1A'!AG12,'2A'!AG12,'3A'!AG12,'4A'!AG12,'0B'!AG12,'1B'!AG12,'2B'!AG12,'3B'!AG12,'4B'!AG12)/$AM$9,0) -> 0.9948165713 | AQ12: =IFERROR(CHOOSE($AK$13,'0A'!AH12,'1A'!AH12,'2A'!AH12,'3A'!AH12,'4A'!AH12,'0B'!AH12,'1B'!AH12,'2B'!AH12,'3B'!AH12,'4B'!AH12)/$AM$9,0) -> 0 | AR12: =IFERROR(CHOOSE($AK$13,'0A'!Q12,'1A'!Q12,'2A'!Q12,'3A'!Q12,'4A'!Q12,'0B'!Q12,'1B'!Q12,'2B'!Q12,'3B'!Q12,'4B'!Q12)/$AM$9/$AR$9,0) -> 0 | AS12: =IFERROR(CHOOSE($AK$13,'0A'!U12,'1A'!U12,'2A'!U12,'3A'!U12,'4A'!U12,'0B'!U12,'1B'!U12,'2B'!U12,'3B'!U12,'4B'!U12)/$AM$9,0) -> 0 | AT12: 56.72843295 | AU12: 25.99778871 | AV12: 7.372610782 | AX12: 2 | AY12: ='0A'!$T12/$AY$8 ->  | AZ12: ='1A'!$T12/$AZ$8 -> 0.9969827246 | BA12: ='2A'!$T12/$BA$8 -> 0.9948165713 | BB12: ='3A'!$T12/$BB$8 -> 0.9922058935 | BC12: ='4A'!$T12/$BC$8 -> 0.9893483281 | BD12: 0.9923761812 | BE12: 1 | BF12: ='0A'!$AI12/$AY$8 ->  | BG12: ='1A'!$AI12/$AZ$8 -> 0.9969827246 | BH12: ='2A'!$AI12/$BA$8 -> 0.9948165713 | BI12: ='3A'!$AI12/$BB$8 -> 0.9922058935 | BJ12: ='4A'!$AI12/$BC$8 -> 0.9893483281 | BK12: 0.9923761812 | BL12: ='0A'!$AM12/$AY$8 ->  | BM12: ='1A'!$AM12/$AZ$8 -> 0 | BN12: ='2A'!$AM12/$BA$8 -> 0 | BO12: ='3A'!$AM12/$BB$8 -> 0 | BP12: ='4A'!$AM12/$BC$8 -> 0 | BQ12: 0 | BR12: 2 | BS12: ='0B'!$T12/$BS$8 ->  | BT12: ='1B'!$T12/$BT$8 -> 0.9969827246 | BU12: ='2B'!$T12/$BU$8 -> 0.9948165713 | BV12: ='3B'!$T12/$BV$8 -> 0.9922058935 | BW12: ='4B'!$T12/$BW$8 -> 0.9893483281 | BX12: 0.9923761812 | BY12: 1 | BZ12: ='0B'!$AI12/$BS$8 ->  | CA12: ='1B'!$AI12/$BT$8 -> 0.9969827246 | CB12: ='2B'!$AI12/$BU$8 -> 0.9948165713 | CC12: ='3B'!$AI12/$BV$8 -> 0.9922058935 | CD12: ='4B'!$AI12/$BW$8 -> 0.9893483281 | CE12: 0.9923761812 | CF12: ='0B'!$AM12/$BS$8 ->  | CG12: ='1B'!$AM12/$BT$8 -> 0 | CH12: ='2B'!$AM12/$BU$8 -> 0 | CI12: ='3B'!$AM12/$BV$8 -> 0 | CJ12: ='4B'!$AM12/$BW$8 -> 0 | CK12: 0 | CO12: 2 | CP12: =MAX(IF($CO12<=60,CP$7,CP$5)*CP$9,0) -> 0.001388728305 | CQ12: 0.001612701565 | CR12: 0.002668900243 | CS12: 0.00388286243 | CT12: 0.005310260888 | CU12: =MAX(IF($CO12<=60,CU$7,CU$5)*CU$9,0) -> 0.001388728305 | CV12: =MAX(IF($CO12<=60,(61-$CO12)*CV$8+CV$5,CV$5)*CV$9,0) -> 0.001501657851 | CW12: 0.002580833791 | CX12: 0.00388286243 | CY12: 0.005310260888 | CZ12: =MAX(IF($CO12<=60,CZ$7,CZ$5)*CZ$9,0) -> 0.001388728305 | DA12: =MAX(IF($CO12<=60,(61-$CO12)*DA$8+DA$5,DA$5)*DA$9,0) -> 0.001501657851 | DB12: 0.002580833791 | DC12: =MAX(IF($CO12<=60,(61-$CO12)*DC$8+DC$5,DC$5)*DC$9,0) -> 0.00388286243 | DD12: 0.005310260888 | DE12: =$DE11*(1-CT12) -> 0.9893483281 | DF12: culled | DI12: Accessed October 31, 2014 | DQ12: 2 | DR12: 92.61 | DS12: 1189.597994 | DT12: 1401.873779 | DU12: 1404.314711 | DV12: 1404.523382 | DW12: 148.3404066 | DX12: 1279.542134 | DY12: 1412.845538 | DZ12: 1412.570341 | EA12: 1411.346909 | EB12: 148.3404066 | EC12: 1279.542134 | ED12: 1412.845538 | EE12: 1412.570341 | EF12: 1411.346909 | EG12: 1 | EH12: =(MAX(0,EG12-50)*$EH$9/10000)^3 -> 0 | EM12: actual male gestation | EN12: =EN14 -> 0 | EO12: 0 | EP12: =EP14 -> 0 | EQ12: 0 | ER12: 0 | ES12: 0 | ET12: 0 | EU12: =EU14 -> 0 | EV12: 0 | EW12: 0 | EY12: 2 | EZ12: =EZ$5*EZ$6*($EY12/30.4)^EZ$7*EXP(-EZ$8*$EY12/30.4) -> 39.7228585 | FA12: 59.95510709 | FB12: 58.14277515 | FC12: 58.14277515 | FD12: 0 | FE12: =FE$5*FE$6*($EY12/30.4)^FE$7*EXP(-FE$8*$EY12/30.4)*IFERROR(extra!D12,1)+IF($EY12<=305,EO$8,0) -> 38.71859494 | FF12: =FF$5*FF$6*($EY12/30.4)^FF$7*EXP(-FF$8*$EY12/30.4)*IFERROR(extra!E12,1)+IF($EY12<=305,EP$8,0) -> 56.72843295 | FG12: =FG$5*FG$6*($EY12/30.4)^FG$7*EXP(-FG$8*$EY12/30.4)*IFERROR(extra!F12,1)+IF($EY12<=305,EQ$8,0) -> 58.2632058 | FH12: =FH$5*FH$6*($EY12/30.4)^FH$7*EXP(-FH$8*$EY12/30.4)*IFERROR(extra!G12,1)+IF($EY12<=305,ER$8,0) -> 58.2632058 | FI12: 0 | FJ12: =FJ$5*FJ$6*($EY12/30.4)^FJ$7*EXP(-FJ$8*$EY12/30.4)*IFERROR(extra!H12,1)+IF($EY12<=305,ET$8,0) -> 38.71859494 | FK12: =FK$5*FK$6*($EY12/30.4)^FK$7*EXP(-FK$8*$EY12/30.4)*IFERROR(extra!I12,1)+IF($EY12<=305,EU$8,0) -> 56.72843295 | FL12: =FL$5*FL$6*($EY12/30.4)^FL$7*EXP(-FL$8*$EY12/30.4)*IFERROR(extra!J12,1)+IF($EY12<=305,EV$8,0) -> 58.2632058 | FM12: =FM$5*FM$6*($EY12/30.4)^FM$7*EXP(-FM$8*$EY12/30.4)*IFERROR(extra!K12,1)+IF($EY12<=305,EW$8,0) -> 58.2632058 | FN12: 2 | FO12: 1 | FP12: 0 | FQ12: -38.71859494 | FR12: -56.72843295 | FS12: -58.2632058 | FT12: -58.2632058 | FU12: 0 | FV12: -38.71859494 | FW12: -56.72843295 | FX12: -58.2632058 | FY12: -58.2632058 | GA12: 2 | GB12: =GB$3*$GA12^GB$4*EXP(-GB$5*$GA12) -> 0.8017342682 | GC12: 1.161324313 | GD12: 1.176179731 | GE12: =GE$3*$GA12^GE$4*EXP(-GE$5*$GA12) -> 0.5886149544 | GF12: 0.9087302166 | GG12: 0.8864523812 | GH12: 18.0478267 | GI12: 27.20353143 | GJ12: 26.50597012 | GK12: =GK$3*($GA12/30.4)^GK$4*EXP(-GK$5*$GA12/30.4) -> 18.02475519 | GP12: 27.20353143 | GQ12: 0.04269020423 | GR12: 0.04180999384 | GS12: 0.04180999384 | GT12: 0.04180999384 | GU12: 0.04180999384 | GV12: 0.04180999384 | GW12: 0.04180999384 | GX12: 0.04180999384 | GY12: 0.04180999384 | GZ12: =$GF12/$GI12*GZ$9 -> 0.03504772418 | HA12: =$GF12/$GI12*HA$9 -> 0.03504772418 | HB12: 0.03504772418 | HC12: 0.03504772418 | HD12: 0.03504772418 | HE12: 0.03504772418 | HF12: 0.03504772418 | HG12: 0.03504772418 | HH12: 2 | HI12: 0 | HJ12: 0.198705984 | HK12: 0.198705984 | HL12: 0.198705984 | HM12: 0.198705984 | HN12: 0 | HO12: 0.198705984 | HP12: 0.198705984 | HQ12: 0.198705984 | HR12: 0.198705984 | HT12: 2 | HU12: -6.4655 | HV12: -1.975 | HY12: -1.48 | HZ12: 2 | IA12: =$IA$16 -> 8.58043683 | IB12: =2^(IA12-3)*100000 -> 4784966.204 | IC12: 0 | ID12: 2650433.787 | IE12: 2507392.323 | IF12: 2533223.508 | IG12: 2533223.508 | IH12: 0 | II12: 2650433.787 | IJ12: 2507392.323 | IK12: 2533223.508 | IL12: 2533223.508 | IO12: 2 | IP12: 8.179949497 | IQ12: 21.30002752 | IR12: 25.99778871 | IS12: 26.30771746 | IT12: 26.29832228 | IU12: 8.179949497 | IV12: 21.30002752 | IW12: 25.99778871 | IX12: 26.30771746 | IY12: 26.29832228 | IZ12: 0.05514309747 | JA12: 1.817772062 | JB12: 2.182048388 | JC12: 2.214681144 | JD12: 2.215472347 | JF12: 2 | JG12: 0 | JH12: 4.498612378 | JI12: 7.372610782 | JJ12: 7.631090019 | JK12: 7.632499295 | JL12: 0 | JM12: 4.498612378 | JN12: 7.372610782 | JO12: 7.631090019 | JP12: 7.632499295 | JQ12: 0 | JR12: =-JH12 -> -4.498612378 | JS12: =-JI12 -> -7.372610782 | JT12: =-JJ12 -> -7.631090019 | JU12: =-JK12 -> -7.632499295 | JV12: 0 | JW12: =-JM12 -> -4.498612378 | JX12: =-JN12 -> -7.372610782 | JY12: =-JO12 -> -7.631090019 | JZ12: =-JP12 -> -7.632499295 | KC12: 2 | KD12: 2.75 | KI12: 2.75 | KL12: 2 | KM12: 0.08031863459 | KN12: 0.1669245734 | KO12: 0.1979346039 | KP12: 0.1999804507 | KQ12: 0.1999184329 | KR12: 0.08031863459 | KS12: 0.1669245734 | KT12: 0.1979346039 | KU12: 0.1999804507 | KV12: 0.1999184329 | KX12: realized | KY12: =KY11 ->  | KZ12: =KZ11 ->  | LE12: link FROM genetics!sheet or row above | LF12: =LF11 ->  | LG12: =LG11 ->  | LL12: TBV at start of parity
K13: =I4 -> Long | L13: entry | N13: 12 | O13: =language!F330 -> /enteredcow | P13: dim@iofc | Q13: =IFERROR(MATCH(-Q9,OFFSET(JQ11, Q12,0,1000-Q12,1),1)+Q12,Q12) -> 0 | R13: =IFERROR(MATCH(-R9,OFFSET(JR11, R12,0,1000-R12,1),1)+R12,R12) -> 243 | S13: =IFERROR(MATCH(-S9,OFFSET(JS11, S12,0,1000-S12,1),1)+S12,S12) -> 384 | T13: =IFERROR(MATCH(-T9,OFFSET(JT11, T12,0,1000-T12,1),1)+T12,T12) -> 386 | U13: =IFERROR(MATCH(-U9,OFFSET(JU11, U12,0,1000-U12,1),1)+U12,U12) -> 386 | V13: 0 | W13: =IFERROR(MATCH(-W9,OFFSET(JW11, W12,0,1000-W12,1),1)+W12,W12) -> 543 | X13: =IFERROR(MATCH(-X9,OFFSET(JX11, X12,0,1000-X12,1),1)+X12,X12) -> 384 | Y13: =IFERROR(MATCH(-Y9,OFFSET(JY11, Y12,0,1000-Y12,1),1)+Y12,Y12) -> 386 | Z13: =IFERROR(MATCH(-Z9,OFFSET(JZ11, Z12,0,1000-Z12,1),1)+Z12,Z12) -> 386 | AB13: 0.9 | AC13: 0.9 | AD13: survive gestation | AH13: 0.00301632903 | AI13: 3.01632903 | AK13: =MATCH(AK12,showparity) -> 8 | AL13: 3 | AM13: =IFERROR(CHOOSE($AK$13,'0A'!T13,'1A'!T13,'2A'!T13,'3A'!T13,'4A'!T13,'0B'!T13,'1B'!T13,'2B'!T13,'3B'!T13,'4B'!T13)/$AM$9,0) -> 0.9922774627 | AN13: =IFERROR(CHOOSE($AK$13,'0A'!AD13,'1A'!AD13,'2A'!AD13,'3A'!AD13,'4A'!AD13,'0B'!AD13,'1B'!AD13,'2B'!AD13,'3B'!AD13,'4B'!AD13)/$AM$9,0) -> 0 | AO13: =IFERROR(CHOOSE($AK$13,'0A'!AI13,'1A'!AI13,'2A'!AI13,'3A'!AI13,'4A'!AI13,'0B'!AI13,'1B'!AI13,'2B'!AI13,'3B'!AI13,'4B'!AI13)/$AM$9,0) -> 0.9922774627 | AP13: =IFERROR(CHOOSE($AK$13,'0A'!AG13,'1A'!AG13,'2A'!AG13,'3A'!AG13,'4A'!AG13,'0B'!AG13,'1B'!AG13,'2B'!AG13,'3B'!AG13,'4B'!AG13)/$AM$9,0) -> 0.9922774627 | AQ13: =IFERROR(CHOOSE($AK$13,'0A'!AH13,'1A'!AH13,'2A'!AH13,'3A'!AH13,'4A'!AH13,'0B'!AH13,'1B'!AH13,'2B'!AH13,'3B'!AH13,'4B'!AH13)/$AM$9,0) -> 0 | AR13: =IFERROR(CHOOSE($AK$13,'0A'!Q13,'1A'!Q13,'2A'!Q13,'3A'!Q13,'4A'!Q13,'0B'!Q13,'1B'!Q13,'2B'!Q13,'3B'!Q13,'4B'!Q13)/$AM$9/$AR$9,0) -> 0 | AS13: =IFERROR(CHOOSE($AK$13,'0A'!U13,'1A'!U13,'2A'!U13,'3A'!U13,'4A'!U13,'0B'!U13,'1B'!U13,'2B'!U13,'3B'!U13,'4B'!U13)/$AM$9,0) -> 0 | AT13: 60.78834758 | AU13: 27.33641686 | AV13: 7.893140313 | AX13: 3 | AY13: ='0A'!$T13/$AY$8 ->  | AZ13: ='1A'!$T13/$AZ$8 -> 0.9955017877 | BA13: ='2A'!$T13/$BA$8 -> 0.9922774627 | BB13: ='3A'!$T13/$BB$8 -> 0.9883965821 | BC13: ='4A'!$T13/$BC$8 -> 0.9841536607 | BD13: 0.9886526682 | BE13: 1 | BF13: ='0A'!$AI13/$AY$8 ->  | BG13: ='1A'!$AI13/$AZ$8 -> 0.9955017877 | BH13: ='2A'!$AI13/$BA$8 -> 0.9922774627 | BI13: ='3A'!$AI13/$BB$8 -> 0.9883965821 | BJ13: ='4A'!$AI13/$BC$8 -> 0.9841536607 | BK13: 0.9886526682 | BL13: ='0A'!$AM13/$AY$8 ->  | BM13: ='1A'!$AM13/$AZ$8 -> 0 | BN13: ='2A'!$AM13/$BA$8 -> 0 | BO13: ='3A'!$AM13/$BB$8 -> 0 | BP13: ='4A'!$AM13/$BC$8 -> 0 | BQ13: 0 | BR13: 3 | BS13: ='0B'!$T13/$BS$8 ->  | BT13: ='1B'!$T13/$BT$8 -> 0.9955017877 | BU13: ='2B'!$T13/$BU$8 -> 0.9922774627 | BV13: ='3B'!$T13/$BV$8 -> 0.9883965821 | BW13: ='4B'!$T13/$BW$8 -> 0.9841536607 | BX13: 0.9886526682 | BY13: 1 | BZ13: ='0B'!$AI13/$BS$8 ->  | CA13: ='1B'!$AI13/$BT$8 -> 0.9955017877 | CB13: ='2B'!$AI13/$BU$8 -> 0.9922774627 | CC13: ='3B'!$AI13/$BV$8 -> 0.9883965821 | CD13: ='4B'!$AI13/$BW$8 -> 0.9841536607 | CE13: 0.9886526682 | CF13: ='0B'!$AM13/$BS$8 ->  | CG13: ='1B'!$AM13/$BT$8 -> 0 | CH13: ='2B'!$AM13/$BU$8 -> 0 | CI13: ='3B'!$AM13/$BV$8 -> 0 | CJ13: ='4B'!$AM13/$BW$8 -> 0 | CK13: 0 | CO13: 3 | CP13: 0.001388728305 | CQ13: 0.00159458041 | CR13: 0.00263891221 | CS13: 0.003839234759 | CT13: 0.005250595033 | CU13: =MAX(IF($CO13<=60,CU$7,CU$5)*CU$9,0) -> 0.001388728305 | CV13: =MAX(IF($CO13<=60,(61-$CO13)*CV$8+CV$5,CV$5)*CV$9,0) -> 0.001485418793 | CW13: =MAX(IF($CO13<=60,(61-$CO13)*CW$8+CW$5,CW$5)*CW$9,0) -> 0.002552338409 | CX13: 0.003839234759 | CY13: 0.005250595033 | CZ13: 0.001388728305 | DA13: 0.001485418793 | DB13: 0.002552338409 | DC13: =MAX(IF($CO13<=60,(61-$CO13)*DC$8+DC$5,DC$5)*DC$9,0) -> 0.003839234759 | DD13: 0.005250595033 | DE13: 0.9841536607 | DF13: after 365 | DQ13: 3 | DR13: 92.61 | DS13: 1188.37964 | DT13: 1398.702812 | DU13: 1401.129152 | DV13: 1401.336576 | DW13: 148.3404066 | DX13: 1276.647875 | DY13: 1409.649754 | DZ13: 1409.375179 | EA13: 1408.154515 | EB13: 148.3404066 | EC13: 1276.647875 | ED13: 1409.649754 | EE13: 1409.375179 | EF13: 1408.154515 | EG13: 2 | EH13: 0 | EM13: actual female gestation | EN13: =EN15 -> 0 | EO13: 0 | EP13: 0 | EQ13: 0 | ER13: 0 | ES13: 0 | ET13: 0 | EU13: 0 | EV13: 0 | EW13: 0 | EY13: 3 | EZ13: =EZ$5*EZ$6*($EY13/30.4)^EZ$7*EXP(-EZ$8*$EY13/30.4) -> 43.14622925 | FA13: 64.24594687 | FB13: 63.10469435 | FC13: 63.10469435 | FD13: 0 | FE13: =FE$5*FE$6*($EY13/30.4)^FE$7*EXP(-FE$8*$EY13/30.4)*IFERROR(extra!D13,1)+IF($EY13<=305,EO$8,0) -> 42.05541687 | FF13: =FF$5*FF$6*($EY13/30.4)^FF$7*EXP(-FF$8*$EY13/30.4)*IFERROR(extra!E13,1)+IF($EY13<=305,EP$8,0) -> 60.78834758 | FG13: =FG$5*FG$6*($EY13/30.4)^FG$7*EXP(-FG$8*$EY13/30.4)*IFERROR(extra!F13,1)+IF($EY13<=305,EQ$8,0) -> 63.23540258 | FH13: =FH$5*FH$6*($EY13/30.4)^FH$7*EXP(-FH$8*$EY13/30.4)*IFERROR(extra!G13,1)+IF($EY13<=305,ER$8,0) -> 63.23540258 | FI13: 0 | FJ13: =FJ$5*FJ$6*($EY13/30.4)^FJ$7*EXP(-FJ$8*$EY13/30.4)*IFERROR(extra!H13,1)+IF($EY13<=305,ET$8,0) -> 42.05541687 | FK13: =FK$5*FK$6*($EY13/30.4)^FK$7*EXP(-FK$8*$EY13/30.4)*IFERROR(extra!I13,1)+IF($EY13<=305,EU$8,0) -> 60.78834758 | FL13: =FL$5*FL$6*($EY13/30.4)^FL$7*EXP(-FL$8*$EY13/30.4)*IFERROR(extra!J13,1)+IF($EY13<=305,EV$8,0) -> 63.23540258 | FM13: =FM$5*FM$6*($EY13/30.4)^FM$7*EXP(-FM$8*$EY13/30.4)*IFERROR(extra!K13,1)+IF($EY13<=305,EW$8,0) -> 63.23540258 | FN13: 3 | FO13: 1 | FP13: 0 | FQ13: -42.05541687 | FR13: -60.78834758 | FS13: -63.23540258 | FT13: -63.23540258 | FU13: 0 | FV13: -42.05541687 | FW13: -60.78834758 | FX13: -63.23540258 | FY13: -63.23540258 | GA13: 3 | GB13: 0.8588719008 | GC13: 1.228466597 | GD13: 1.25739993 | GE13: 0.632440281 | GF13: 0.9615805631 | GG13: 0.9475119919 | GH13: 19.59751088 | GI13: 29.15309919 | GJ13: 28.75191544 | GK13: =GK$3*($GA13/30.4)^GK$4*EXP(-GK$5*$GA13/30.4) -> 19.57672689 | GP13: 29.15309919 | GQ13: 0.04213845633 | GR13: 0.04126962218 | GS13: 0.04126962218 | GT13: 0.04126962218 | GU13: 0.04126962218 | GV13: 0.04126962218 | GW13: 0.04126962218 | GX13: 0.04126962218 | GY13: 0.04126962218 | GZ13: 0.03460597462 | HA13: 0.03460597462 | HB13: 0.03460597462 | HC13: 0.03460597462 | HD13: 0.03460597462 | HE13: 0.03460597462 | HF13: 0.03460597462 | HG13: 0.03460597462 | HH13: 3 | HI13: 0 | HJ13: 0.1973010177 | HK13: 0.1973010177 | HL13: 0.1973010177 | HM13: 0.1973010177 | HN13: 0 | HO13: 0.1973010177 | HP13: 0.1973010177 | HQ13: 0.1973010177 | HR13: 0.1973010177 | HT13: 3 | HU13: -3.653666667 | HV13: -0.4743333333 | HY13: -1.47 | HZ13: 3 | IA13: =$IA$16 -> 8.58043683 | IB13: =2^(IA13-3)*100000 -> 4784966.204 | IC13: 0 | ID13: 2650433.787 | IE13: 2507392.323 | IF13: 2533223.508 | IG13: 2533223.508 | IH13: 0 | II13: 2650433.787 | IJ13: 2507392.323 | IK13: 2533223.508 | IL13: 2533223.508 | IO13: 3 | IP13: 8.179949497 | IQ13: 22.40894602 | IR13: 27.33641686 | IS13: 27.83959665 | IT13: 27.82999427 | IU13: 8.179949497 | IV13: 22.40894602 | IW13: 27.33641686 | IX13: 27.83959665 | IY13: 27.82999427 | IZ13: 0.05514309747 | JA13: 1.876724449 | JB13: 2.223713075 | JC13: 2.271419495 | JD13: 2.272203219 | JF13: 3 | JG13: 0 | JH13: 4.936234645 | JI13: 7.893140313 | JJ13: 8.300469784 | JK13: 8.301910141 | JL13: 0 | JM13: 4.936234645 | JN13: 7.893140313 | JO13: 8.300469784 | JP13: 8.301910141 | JQ13: 0 | JR13: -4.936234645 | JS13: -7.893140313 | JT13: -8.300469784 | JU13: -8.301910141 | JV13: 0 | JW13: -4.936234645 | JX13: -7.893140313 | JY13: -8.300469784 | JZ13: -8.301910141 | KC13: 3 | KD13: 2.75 | KI13: 2.75 | KL13: 3 | KM13: 0.08031863459 | KN13: 0.1742445701 | KO13: 0.2067709193 | KP13: 0.2100924208 | KQ13: 0.2100290352 | KR13: 0.08031863459 | KS13: 0.1742445701 | KT13: 0.2067709193 | KU13: 0.2100924208 | KV13: 0.2100290352 | KX13: suggested | KY13: =#REF! ->  | KZ13: =KY14 ->  | LA13: =KZ14 ->  | LB13: =LA14 ->  | LC13: =LB14 ->  | LD13: =LC14 ->  | LE13: link TO genetics!sheet | LF13: =#REF! ->  | LG13: =LF14 ->  | LH13: =LG14 ->  | LI13: =LH14 ->  | LJ13: =LI14 ->  | LK13: =LJ14 ->  | LL13: genetic trend in TBV due to sires | LU13: sum | LV13: keep best | LW13: selected | LX13: remainder | MB13: max | ML13: sum | MM13: keep best | MN13: selected | MO13: remainder | MS13: max
K14: =K3 -> English | L14: measure | O14: =IF(A1="S",Short!J5,Long!S6) -> /milkingslot/yr | AB14: 0.48 | AC14: 0.48 | AD14: heifer calves | AH14: 0.001688210454 | AI14: 1.688210454 | AL14: 4 | AM14: =IFERROR(CHOOSE($AK$13,'0A'!T14,'1A'!T14,'2A'!T14,'3A'!T14,'4A'!T14,'0B'!T14,'1B'!T14,'2B'!T14,'3B'!T14,'4B'!T14)/$AM$9,0) -> 0.9897731102 | AN14: =IFERROR(CHOOSE($AK$13,'0A'!AD14,'1A'!AD14,'2A'!AD14,'3A'!AD14,'4A'!AD14,'0B'!AD14,'1B'!AD14,'2B'!AD14,'3B'!AD14,'4B'!AD14)/$AM$9,0) -> 0 | AO14: =IFERROR(CHOOSE($AK$13,'0A'!AI14,'1A'!AI14,'2A'!AI14,'3A'!AI14,'4A'!AI14,'0B'!AI14,'1B'!AI14,'2B'!AI14,'3B'!AI14,'4B'!AI14)/$AM$9,0) -> 0.9897731102 | AP14: =IFERROR(CHOOSE($AK$13,'0A'!AG14,'1A'!AG14,'2A'!AG14,'3A'!AG14,'4A'!AG14,'0B'!AG14,'1B'!AG14,'2B'!AG14,'3B'!AG14,'4B'!AG14)/$AM$9,0) -> 0.9897731102 | AQ14: =IFERROR(CHOOSE($AK$13,'0A'!AH14,'1A'!AH14,'2A'!AH14,'3A'!AH14,'4A'!AH14,'0B'!AH14,'1B'!AH14,'2B'!AH14,'3B'!AH14,'4B'!AH14)/$AM$9,0) -> 0 | AR14: =IFERROR(CHOOSE($AK$13,'0A'!Q14,'1A'!Q14,'2A'!Q14,'3A'!Q14,'4A'!Q14,'0B'!Q14,'1B'!Q14,'2B'!Q14,'3B'!Q14,'4B'!Q14)/$AM$9/$AR$9,0) -> 0 | AS14: =IFERROR(CHOOSE($AK$13,'0A'!U14,'1A'!U14,'2A'!U14,'3A'!U14,'4A'!U14,'0B'!U14,'1B'!U14,'2B'!U14,'3B'!U14,'4B'!U14)/$AM$9,0) -> 0 | AT14: 63.78701366 | AU14: 28.48818667 | AV14: 8.249625131 | AX14: 4 | AY14: ='0A'!$T14/$AY$8 ->  | AZ14: ='1A'!$T14/$AZ$8 -> 0.9940392167 | BA14: ='2A'!$T14/$BA$8 -> 0.9897731102 | BB14: ='3A'!$T14/$BB$8 -> 0.9846450171 | BC14: ='4A'!$T14/$BC$8 -> 0.9790449887 | BD14: 0.9849872405 | BE14: 1 | BF14: ='0A'!$AI14/$AY$8 ->  | BG14: ='1A'!$AI14/$AZ$8 -> 0.9940392167 | BH14: ='2A'!$AI14/$BA$8 -> 0.9897731102 | BI14: ='3A'!$AI14/$BB$8 -> 0.9846450171 | BJ14: ='4A'!$AI14/$BC$8 -> 0.9790449887 | BK14: 0.9849872405 | BL14: ='0A'!$AM14/$AY$8 ->  | BM14: ='1A'!$AM14/$AZ$8 -> 0 | BN14: ='2A'!$AM14/$BA$8 -> 0 | BO14: ='3A'!$AM14/$BB$8 -> 0 | BP14: ='4A'!$AM14/$BC$8 -> 0 | BQ14: 0 | BR14: 4 | BS14: ='0B'!$T14/$BS$8 ->  | BT14: ='1B'!$T14/$BT$8 -> 0.9940392167 | BU14: ='2B'!$T14/$BU$8 -> 0.9897731102 | BV14: ='3B'!$T14/$BV$8 -> 0.9846450171 | BW14: ='4B'!$T14/$BW$8 -> 0.9790449887 | BX14: 0.9849872405 | BY14: 1 | BZ14: ='0B'!$AI14/$BS$8 ->  | CA14: ='1B'!$AI14/$BT$8 -> 0.9940392167 | CB14: ='2B'!$AI14/$BU$8 -> 0.9897731102 | CC14: ='3B'!$AI14/$BV$8 -> 0.9846450171 | CD14: ='4B'!$AI14/$BW$8 -> 0.9790449887 | CE14: 0.9849872405 | CF14: ='0B'!$AM14/$BS$8 ->  | CG14: ='1B'!$AM14/$BT$8 -> 0 | CH14: ='2B'!$AM14/$BU$8 -> 0 | CI14: ='3B'!$AM14/$BV$8 -> 0 | CJ14: ='4B'!$AM14/$BW$8 -> 0 | CK14: 0 | CO14: 4 | CP14: 0.001388728305 | CQ14: 0.001576459255 | CR14: 0.002608924176 | CS14: 0.003795607089 | CT14: 0.005190929178 | CU14: 0.001388728305 | CV14: 0.001469179735 | CW14: 0.002523843027 | CX14: 0.003795607089 | CY14: 0.005190929178 | CZ14: 0.001388728305 | DA14: 0.001469179735 | DB14: 0.002523843027 | DC14: 0.003795607089 | DD14: 0.005190929178 | DE14: 0.9790449887 | DF14: days | DI14: Custom Table in customized-heifer-growth-chart-metric.xlsx: | DQ14: 4 | DR14: 92.61 | DS14: 1187.212456 | DT14: 1395.623497 | DU14: 1398.035333 | DV14: 1398.241515 | DW14: 148.3404066 | DX14: 1273.83727 | DY14: 1406.546339 | DZ14: 1406.272369 | EA14: 1405.054392 | EB14: 148.3404066 | EC14: 1273.83727 | ED14: 1406.546339 | EE14: 1406.272369 | EF14: 1405.054392 | EG14: 3 | EH14: 0 | EM14: male gestation (Hinde[1565]) | EN14: 0 | EO14: =ES25/EO16 ->  | EP14: 0 | EQ14: 0 | ER14: 0 | ES14: 0 | ET14: =ES26/ET16 ->  | EU14: 0 | EV14: 0 | EW14: 0 | EY14: 4 | EZ14: 45.72593985 | FA14: 67.41517501 | FB14: 66.81059931 | FC14: 66.81059931 | FD14: 0 | FE14: =FE$5*FE$6*($EY14/30.4)^FE$7*EXP(-FE$8*$EY14/30.4)*IFERROR(extra!D14,1)+IF($EY14<=305,EO$8,0) -> 44.56990787 | FF14: =FF$5*FF$6*($EY14/30.4)^FF$7*EXP(-FF$8*$EY14/30.4)*IFERROR(extra!E14,1)+IF($EY14<=305,EP$8,0) -> 63.78701366 | FG14: =FG$5*FG$6*($EY14/30.4)^FG$7*EXP(-FG$8*$EY14/30.4)*IFERROR(extra!F14,1)+IF($EY14<=305,EQ$8,0) -> 66.94898355 | FH14: =FH$5*FH$6*($EY14/30.4)^FH$7*EXP(-FH$8*$EY14/30.4)*IFERROR(extra!G14,1)+IF($EY14<=305,ER$8,0) -> 66.94898355 | FI14: 0 | FJ14: =FJ$5*FJ$6*($EY14/30.4)^FJ$7*EXP(-FJ$8*$EY14/30.4)*IFERROR(extra!H14,1)+IF($EY14<=305,ET$8,0) -> 44.56990787 | FK14: =FK$5*FK$6*($EY14/30.4)^FK$7*EXP(-FK$8*$EY14/30.4)*IFERROR(extra!I14,1)+IF($EY14<=305,EU$8,0) -> 63.78701366 | FL14: =FL$5*FL$6*($EY14/30.4)^FL$7*EXP(-FL$8*$EY14/30.4)*IFERROR(extra!J14,1)+IF($EY14<=305,EV$8,0) -> 66.94898355 | FM14: =FM$5*FM$6*($EY14/30.4)^FM$7*EXP(-FM$8*$EY14/30.4)*IFERROR(extra!K14,1)+IF($EY14<=305,EW$8,0) -> 66.94898355 | FN14: 4 | FO14: 1 | FP14: 0 | FQ14: -44.56990787 | FR14: -63.78701366 | FS14: -66.94898355 | FT14: -66.94898355 | FU14: 0 | FV14: -44.56990787 | FW14: -63.78701366 | FX14: -66.94898355 | FY14: -66.94898355 | GA14: 4 | GB14: 0.9013852712 | GC14: 1.277395491 | GD14: 1.317146301 | GE14: 0.6651325869 | GF14: 1.000109733 | GG14: 0.992419581 | GH14: 20.76500674 | GI14: 30.59311364 | GJ14: 30.42835838 | GK14: 20.74615633 | GP14: 30.59311364 | GQ14: 0.04175434727 | GR14: 0.04089343289 | GS14: 0.04089343289 | GT14: 0.04089343289 | GU14: 0.04089343289 | GV14: 0.04089343289 | GW14: 0.04089343289 | GX14: 0.04089343289 | GY14: 0.04089343289 | GZ14: 0.03429841989 | HA14: 0.03429841989 | HB14: 0.03429841989 | HC14: 0.03429841989 | HD14: 0.03429841989 | HE14: 0.03429841989 | HF14: 0.03429841989 | HG14: 0.03429841989 | HH14: 4 | HI14: 0 | HJ14: 0.1963229255 | HK14: 0.1963229255 | HL14: 0.1963229255 | HM14: 0.1963229255 | HN14: 0 | HO14: 0.1963229255 | HP14: 0.1963229255 | HQ14: 0.1963229255 | HR14: 0.1963229255 | HT14: 4 | HU14: -2.24875 | HV14: 0.278 | HY14: -1.46 | HZ14: 4 | IA14: =$IA$16 -> 8.58043683 | IB14: 4784966.204 | IC14: 0 | ID14: 2650433.787 | IE14: 2507392.323 | IF14: 2533223.508 | IG14: 2533223.508 | IH14: 0 | II14: 2650433.787 | IJ14: 2507392.323 | IK14: 2533223.508 | IL14: 2533223.508 | IO14: 4 | IP14: 8.179949497 | IQ14: 23.37131913 | IR14: 28.48818667 | IS14: 29.15002405 | IT14: 29.14022078 | IU14: 8.179949497 | IV14: 23.37131913 | IW14: 28.48818667 | IX14: 29.15002405 | IY14: 29.14022078 | IZ14: 0.05514309747 | JA14: 1.907034328 | JB14: 2.23906893 | JC14: 2.296704231 | JD14: 2.297476881 | JF14: 4 | JG14: 0 | JH14: 5.244396833 | JI14: 8.249625131 | JJ14: 8.771116704 | JK14: 8.772587195 | JL14: 0 | JM14: 5.244396833 | JN14: 8.249625131 | JO14: 8.771116704 | JP14: 8.772587195 | JQ14: 0 | JR14: -5.244396833 | JS14: -8.249625131 | JT14: -8.771116704 | JU14: -8.772587195 | JV14: 0 | JW14: -5.244396833 | JX14: -8.249625131 | JY14: -8.771116704 | JZ14: -8.772587195 | KC14: 4 | KD14: 2.75 | KI14: 2.75 | KL14: 4 | KM14: 0.08031863459 | KN14: 0.1805972174 | KO14: 0.2143737785 | KP14: 0.2187425823 | KQ14: 0.2186778707 | KR14: 0.08031863459 | KS14: 0.1805972174 | KT14: 0.2143737785 | KU14: 0.2187425823 | KV14: 0.2186778707 | KX14: realized | KY14: =KY13 ->  | KZ14: =KZ13 ->  | LE14: link FROM genetics!sheet or row above | LF14: =LF13 ->  | LG14: =LG13 ->  | LL14: genetic trend in TBV due to sires | LU14: =SUM(LU17:LU36) -> 0.9363663045 | LV14: =O44 -> 0 | LW14: =LV14*LU14 -> 0 | LX14: =LU14-LW14 -> 0.9363663045 | MB14: =MB36 -> 0 | MG14: dcalves | ML14: =SUM(ML17:ML36) -> 1.078068471 | MM14: =T44 -> 0 | MN14: =MM14*ML14 -> 0 | MO14: =ML14-MN14 -> 1.078068471 | MS14: =MS36 -> 0 | MX14: dcalves
K15: =M5 -> English | L15: speak | O15: presentation | Q15: idea: cull a cow when her milk yield < target. This allows more time for high milk cows and approaches DP results better. | AB15: 0.85 | AC15: 0.85 | AD15: survive raising | AH15: 0.0009448752139 | AI15: 0.9448752139 | AL15: 5 | AM15: =IFERROR(CHOOSE($AK$13,'0A'!T15,'1A'!T15,'2A'!T15,'3A'!T15,'4A'!T15,'0B'!T15,'1B'!T15,'2B'!T15,'3B'!T15,'4B'!T15)/$AM$9,0) -> 0.9873032822 | AN15: =IFERROR(CHOOSE($AK$13,'0A'!AD15,'1A'!AD15,'2A'!AD15,'3A'!AD15,'4A'!AD15,'0B'!AD15,'1B'!AD15,'2B'!AD15,'3B'!AD15,'4B'!AD15)/$AM$9,0) -> 0 | AO15: =IFERROR(CHOOSE($AK$13,'0A'!AI15,'1A'!AI15,'2A'!AI15,'3A'!AI15,'4A'!AI15,'0B'!AI15,'1B'!AI15,'2B'!AI15,'3B'!AI15,'4B'!AI15)/$AM$9,0) -> 0.9873032822 | AP15: =IFERROR(CHOOSE($AK$13,'0A'!AG15,'1A'!AG15,'2A'!AG15,'3A'!AG15,'4A'!AG15,'0B'!AG15,'1B'!AG15,'2B'!AG15,'3B'!AG15,'4B'!AG15)/$AM$9,0) -> 0.9873032822 | AQ15: =IFERROR(CHOOSE($AK$13,'0A'!AH15,'1A'!AH15,'2A'!AH15,'3A'!AH15,'4A'!AH15,'0B'!AH15,'1B'!AH15,'2B'!AH15,'3B'!AH15,'4B'!AH15)/$AM$9,0) -> 0 | AR15: =IFERROR(CHOOSE($AK$13,'0A'!Q15,'1A'!Q15,'2A'!Q15,'3A'!Q15,'4A'!Q15,'0B'!Q15,'1B'!Q15,'2B'!Q15,'3B'!Q15,'4B'!Q15)/$AM$9/$AR$9,0) -> 0 | AS15: =IFERROR(CHOOSE($AK$13,'0A'!U15,'1A'!U15,'2A'!U15,'3A'!U15,'4A'!U15,'0B'!U15,'1B'!U15,'2B'!U15,'3B'!U15,'4B'!U15)/$AM$9,0) -> 0 | AT15: 66.16887271 | AU15: 29.52688308 | AV15: 8.512032387 | AX15: 5 | AY15: ='0A'!$T15/$AY$8 ->  | AZ15: ='1A'!$T15/$AZ$8 -> 0.9925949367 | BA15: ='2A'!$T15/$BA$8 -> 0.9873032822 | BB15: ='3A'!$T15/$BB$8 -> 0.9809506492 | BC15: ='4A'!$T15/$BC$8 -> 0.9740212511 | BD15: 0.9813792786 | BE15: 1 | BF15: ='0A'!$AI15/$AY$8 ->  | BG15: ='1A'!$AI15/$AZ$8 -> 0.9925949367 | BH15: ='2A'!$AI15/$BA$8 -> 0.9873032822 | BI15: ='3A'!$AI15/$BB$8 -> 0.9809506492 | BJ15: ='4A'!$AI15/$BC$8 -> 0.9740212511 | BK15: 0.9813792786 | BL15: ='0A'!$AM15/$AY$8 ->  | BM15: ='1A'!$AM15/$AZ$8 -> 0 | BN15: ='2A'!$AM15/$BA$8 -> 0 | BO15: ='3A'!$AM15/$BB$8 -> 0 | BP15: ='4A'!$AM15/$BC$8 -> 0 | BQ15: 0 | BR15: 5 | BS15: ='0B'!$T15/$BS$8 ->  | BT15: ='1B'!$T15/$BT$8 -> 0.9925949367 | BU15: ='2B'!$T15/$BU$8 -> 0.9873032822 | BV15: ='3B'!$T15/$BV$8 -> 0.9809506492 | BW15: ='4B'!$T15/$BW$8 -> 0.9740212511 | BX15: 0.9813792786 | BY15: 1 | BZ15: ='0B'!$AI15/$BS$8 ->  | CA15: ='1B'!$AI15/$BT$8 -> 0.9925949367 | CB15: ='2B'!$AI15/$BU$8 -> 0.9873032822 | CC15: ='3B'!$AI15/$BV$8 -> 0.9809506492 | CD15: ='4B'!$AI15/$BW$8 -> 0.9740212511 | CE15: 0.9813792786 | CF15: ='0B'!$AM15/$BS$8 ->  | CG15: ='1B'!$AM15/$BT$8 -> 0 | CH15: ='2B'!$AM15/$BU$8 -> 0 | CI15: ='3B'!$AM15/$BV$8 -> 0 | CJ15: ='4B'!$AM15/$BW$8 -> 0 | CK15: 0 | CO15: 5 | CP15: 0.001388728305 | CQ15: 0.0015583381 | CR15: 0.002578936142 | CS15: 0.003751979418 | CT15: 0.005131263323 | CU15: 0.001388728305 | CV15: 0.001452940677 | CW15: 0.002495347645 | CX15: 0.003751979418 | CY15: 0.005131263323 | CZ15: 0.001388728305 | DA15: 0.001452940677 | DB15: 0.002495347645 | DC15: 0.003751979418 | DD15: 0.005131263323 | DE15: 0.9740212511 | DF15: using | DI15: Age, mo | DJ15: Age, d | DK15: BW, kg | DQ15: 5 | DR15: 92.61 | DS15: 1186.09523 | DT15: 1392.633873 | DU15: 1395.031291 | DV15: 1395.23624 | DW15: 148.3404066 | DX15: 1271.10853 | DY15: 1403.533317 | DZ15: 1403.259933 | EA15: 1402.044565 | EB15: 148.3404066 | EC15: 1271.10853 | ED15: 1403.533317 | EE15: 1403.259933 | EF15: 1402.044565 | EG15: 4 | EH15: 0 | EM15: female gestation (Hinde[1565]) | EN15: 0 | EO15: =ET25/EO16 ->  | EP15: 0 | EQ15: 0 | ER15: 0 | ES15: 0 | ET15: =ET26/ET16 ->  | EU15: 0 | EV15: 0 | EW15: 0 | EY15: 5 | EZ15: 47.81112791 | FA15: 69.93251256 | FB15: 69.77840186 | FC15: 69.77840186 | FD15: 0 | FE15: =FE$5*FE$6*($EY15/30.4)^FE$7*EXP(-FE$8*$EY15/30.4)*IFERROR(extra!D15,1)+IF($EY15<=305,EO$8,0) -> 46.60237872 | FF15: =FF$5*FF$6*($EY15/30.4)^FF$7*EXP(-FF$8*$EY15/30.4)*IFERROR(extra!E15,1)+IF($EY15<=305,EP$8,0) -> 66.16887271 | FG15: =FG$5*FG$6*($EY15/30.4)^FG$7*EXP(-FG$8*$EY15/30.4)*IFERROR(extra!F15,1)+IF($EY15<=305,EQ$8,0) -> 69.92293329 | FH15: =FH$5*FH$6*($EY15/30.4)^FH$7*EXP(-FH$8*$EY15/30.4)*IFERROR(extra!G15,1)+IF($EY15<=305,ER$8,0) -> 69.92293329 | FI15: 0 | FJ15: =FJ$5*FJ$6*($EY15/30.4)^FJ$7*EXP(-FJ$8*$EY15/30.4)*IFERROR(extra!H15,1)+IF($EY15<=305,ET$8,0) -> 46.60237872 | FK15: =FK$5*FK$6*($EY15/30.4)^FK$7*EXP(-FK$8*$EY15/30.4)*IFERROR(extra!I15,1)+IF($EY15<=305,EU$8,0) -> 66.16887271 | FL15: =FL$5*FL$6*($EY15/30.4)^FL$7*EXP(-FL$8*$EY15/30.4)*IFERROR(extra!J15,1)+IF($EY15<=305,EV$8,0) -> 69.92293329 | FM15: =FM$5*FM$6*($EY15/30.4)^FM$7*EXP(-FM$8*$EY15/30.4)*IFERROR(extra!K15,1)+IF($EY15<=305,EW$8,0) -> 69.92293329 | FN15: 5 | FO15: 1 | FP15: 0 | FQ15: -46.60237872 | FR15: -66.16887271 | FS15: -69.92293329 | FT15: -69.92293329 | FU15: 0 | FV15: -46.60237872 | FW15: -66.16887271 | FX15: -69.92293329 | FY15: -69.92293329 | GA15: 5 | GB15: 0.9354209961 | GC15: 1.315850117 | GD15: 1.364429932 | GE15: 0.6913553161 | GF15: 1.030400893 | GG15: 1.027954239 | GH15: 21.70853225 | GI15: 31.7369442 | GJ15: 31.77028041 | GK15: 21.69136708 | GP15: 31.7369442 | GQ15: 0.04146114725 | GR15: 0.04060627824 | GS15: 0.04060627824 | GT15: 0.04060627824 | GU15: 0.04060627824 | GV15: 0.04060627824 | GW15: 0.04060627824 | GX15: 0.04060627824 | GY15: 0.04060627824 | GZ15: 0.0340636559 | HA15: 0.0340636559 | HB15: 0.0340636559 | HC15: 0.0340636559 | HD15: 0.0340636559 | HE15: 0.0340636559 | HF15: 0.0340636559 | HG15: 0.0340636559 | HH15: 5 | HI15: 0 | HJ15: 0.1955763234 | HK15: 0.1955763234 | HL15: 0.1955763234 | HM15: 0.1955763234 | HN15: 0 | HO15: 0.1955763234 | HP15: 0.1955763234 | HQ15: 0.1955763234 | HR15: 0.1955763234 | HT15: 5 | HU15: -1.4066 | HV15: 0.731 | HY15: -1.45 | HZ15: 5 | IA15: =$IA$16 -> 8.58043683 | IB15: 4784966.204 | IC15: 0 | ID15: 2650433.787 | IE15: 2507392.323 | IF15: 2533223.508 | IG15: 2533223.508 | IH15: 0 | II15: 2650433.787 | IJ15: 2507392.323 | IK15: 2533223.508 | IL15: 2533223.508 | IO15: 5 | IP15: 8.179949497 | IQ15: 24.24460494 | IR15: 29.52688308 | IS15: 30.32655768 | IT15: 30.31655961 | IU15: 8.179949497 | IV15: 24.24460494 | IW15: 29.52688308 | IX15: 30.32655768 | IY15: 30.31655961 | IZ15: 0.05514309747 | JA15: 1.922175215 | JB15: 2.240970458 | JC15: 2.305666671 | JD15: 2.306427054 | JF15: 5 | JG15: 0 | JH15: 5.47763115 | JI15: 8.512032387 | JJ15: 9.126286563 | JK15: 9.127786273 | JL15: 0 | JM15: 5.47763115 | JN15: 8.512032387 | JO15: 9.126286563 | JP15: 9.127786273 | JQ15: 0 | JR15: -5.47763115 | JS15: -8.512032387 | JT15: -9.126286563 | JU15: -9.127786273 | JV15: 0 | JW15: -5.47763115 | JX15: -8.512032387 | JY15: -9.126286563 | JZ15: -9.127786273 | KC15: 5 | KD15: 2.75 | KI15: 2.75 | KL15: 5 | KM15: 0.08031863459 | KN15: 0.1863617972 | KO15: 0.2212302375 | KP15: 0.2265089081 | KQ15: 0.2264429106 | KR15: 0.08031863459 | KS15: 0.1863617972 | KT15: 0.2212302375 | KU15: 0.2265089081 | KV15: 0.2264429106 | KX15: suggested | KY15: =#REF! ->  | KZ15: =KY24 ->  | LA15: =KZ24 ->  | LB15: =LA24 ->  | LC15: =LB24 ->  | LD15: =LC24 ->  | LE15: link TO genetics!sheet | LF15: =#REF! ->  | LG15: =LF24 ->  | LH15: =LG24 ->  | LI15: =LH24 ->  | LJ15: =LI24 ->  | LK15: =LJ24 ->  | LL15: SD of TBV at start of parity | LW15: fudgefactor | MB15: sum | MC15: selected | MD15: %selected | ME15: dcalves | MF15: dcalves | MG15: x genetics | MN15: fudgefactor | MS15: sum | MT15: selected | MU15: %selected | MV15: dcalves | MW15: dcalves | MX15: x genetics
K16: =O14 -> /milkingslot/yr | L16: presentation | Q16: goal: find the dim at which milk@cull is the given value, then on the Long sheet put a link to this dim@milk | AB16: =AB12*AB13*AB14*AB15 -> 0 | AC16: =AC12*AC13*AC14*AC15 -> 0 | AD16: realized genetic value (1 generation) | AH16: 0.000528837603 | AI16: 0.528837603 | AL16: 6 | AM16: =IFERROR(CHOOSE($AK$13,'0A'!T16,'1A'!T16,'2A'!T16,'3A'!T16,'4A'!T16,'0B'!T16,'1B'!T16,'2B'!T16,'3B'!T16,'4B'!T16)/$AM$9,0) -> 0.9848677508 | AN16: =IFERROR(CHOOSE($AK$13,'0A'!AD16,'1A'!AD16,'2A'!AD16,'3A'!AD16,'4A'!AD16,'0B'!AD16,'1B'!AD16,'2B'!AD16,'3B'!AD16,'4B'!AD16)/$AM$9,0) -> 0 | AO16: =IFERROR(CHOOSE($AK$13,'0A'!AI16,'1A'!AI16,'2A'!AI16,'3A'!AI16,'4A'!AI16,'0B'!AI16,'1B'!AI16,'2B'!AI16,'3B'!AI16,'4B'!AI16)/$AM$9,0) -> 0.9848677508 | AP16: =IFERROR(CHOOSE($AK$13,'0A'!AG16,'1A'!AG16,'2A'!AG16,'3A'!AG16,'4A'!AG16,'0B'!AG16,'1B'!AG16,'2B'!AG16,'3B'!AG16,'4B'!AG16)/$AM$9,0) -> 0.9848677508 | AQ16: =IFERROR(CHOOSE($AK$13,'0A'!AH16,'1A'!AH16,'2A'!AH16,'3A'!AH16,'4A'!AH16,'0B'!AH16,'1B'!AH16,'2B'!AH16,'3B'!AH16,'4B'!AH16)/$AM$9,0) -> 0 | AR16: =IFERROR(CHOOSE($AK$13,'0A'!Q16,'1A'!Q16,'2A'!Q16,'3A'!Q16,'4A'!Q16,'0B'!Q16,'1B'!Q16,'2B'!Q16,'3B'!Q16,'4B'!Q16)/$AM$9/$AR$9,0) -> 0 | AS16: =IFERROR(CHOOSE($AK$13,'0A'!U16,'1A'!U16,'2A'!U16,'3A'!U16,'4A'!U16,'0B'!U16,'1B'!U16,'2B'!U16,'3B'!U16,'4B'!U16)/$AM$9,0) -> 0 | AT16: 68.14258819 | AU16: 30.48649236 | AV16: 8.713127239 | AX16: 6 | AY16: ='0A'!$T16/$AY$8 ->  | AZ16: ='1A'!$T16/$AZ$8 -> 0.9911688739 | BA16: ='2A'!$T16/$BA$8 -> 0.9848677508 | BB16: ='3A'!$T16/$BB$8 -> 0.9773129392 | BC16: ='4A'!$T16/$BC$8 -> 0.9690814074 | BD16: 0.9778281747 | BE16: 1 | BF16: ='0A'!$AI16/$AY$8 ->  | BG16: ='1A'!$AI16/$AZ$8 -> 0.9911688739 | BH16: ='2A'!$AI16/$BA$8 -> 0.9848677508 | BI16: ='3A'!$AI16/$BB$8 -> 0.9773129392 | BJ16: ='4A'!$AI16/$BC$8 -> 0.9690814074 | BK16: 0.9778281747 | BL16: ='0A'!$AM16/$AY$8 ->  | BM16: ='1A'!$AM16/$AZ$8 -> 0 | BN16: ='2A'!$AM16/$BA$8 -> 0 | BO16: ='3A'!$AM16/$BB$8 -> 0 | BP16: ='4A'!$AM16/$BC$8 -> 0 | BQ16: 0 | BR16: 6 | BS16: ='0B'!$T16/$BS$8 ->  | BT16: ='1B'!$T16/$BT$8 -> 0.9911688739 | BU16: ='2B'!$T16/$BU$8 -> 0.9848677508 | BV16: ='3B'!$T16/$BV$8 -> 0.9773129392 | BW16: ='4B'!$T16/$BW$8 -> 0.9690814074 | BX16: 0.9778281747 | BY16: 1 | BZ16: ='0B'!$AI16/$BS$8 ->  | CA16: ='1B'!$AI16/$BT$8 -> 0.9911688739 | CB16: ='2B'!$AI16/$BU$8 -> 0.9848677508 | CC16: ='3B'!$AI16/$BV$8 -> 0.9773129392 | CD16: ='4B'!$AI16/$BW$8 -> 0.9690814074 | CE16: 0.9778281747 | CF16: ='0B'!$AM16/$BS$8 ->  | CG16: ='1B'!$AM16/$BT$8 -> 0 | CH16: ='2B'!$AM16/$BU$8 -> 0 | CI16: ='3B'!$AM16/$BV$8 -> 0 | CJ16: ='4B'!$AM16/$BW$8 -> 0 | CK16: 0 | CO16: 6 | CP16: 0.001388728305 | CQ16: 0.001540216945 | CR16: 0.002548948108 | CS16: 0.003708351747 | CT16: 0.005071597468 | CU16: 0.001388728305 | CV16: 0.001436701619 | CW16: 0.002466852263 | CX16: 0.003708351747 | CY16: 0.005071597468 | CZ16: 0.001388728305 | DA16: 0.001436701619 | DB16: 0.002466852263 | DC16: 0.003708351747 | DD16: 0.005071597468 | DE16: 0.9690814074 | DF16: data in the | DI16: 0 | DJ16: 0 | DK16: 41 | DL16: =27.2+0.822*DJ16 -> 27.2 | DQ16: 6 | DR16: 92.61 | DS16: 1185.026774 | DT16: 1389.732016 | DU16: 1392.115102 | DV16: 1392.318825 | DW16: 148.3404066 | DX16: 1268.459897 | DY16: 1400.608748 | DZ16: 1400.335934 | EA16: 1399.123099 | EB16: 148.3404066 | EC16: 1268.459897 | ED16: 1400.608748 | EE16: 1400.335934 | EF16: 1399.123099 | EG16: 5 | EH16: 0 | EM16: dry off days | EN16: =Long!E160 -> ----- | EO16: =Long!F160 -> 220 | EP16: =Long!G160 -> 220 | EQ16: =Long!H160 -> 220 | ER16: =Long!I160 -> 220 | ES16: =Long!M160 -> ----- | ET16: =Long!N160 -> 220 | EU16: =Long!O160 -> 220 | EV16: =Long!P160 -> 220 | EW16: =Long!Q160 -> 220 | EY16: 6 | EZ16: 49.56703127 | FA16: 72.01849161 | FB16: 72.25363524 | FC16: 72.25363524 | FD16: 0 | FE16: =FE$5*FE$6*($EY16/30.4)^FE$7*EXP(-FE$8*$EY16/30.4)*IFERROR(extra!D16,1)+IF($EY16<=305,EO$8,0) -> 48.31388975 | FF16: =FF$5*FF$6*($EY16/30.4)^FF$7*EXP(-FF$8*$EY16/30.4)*IFERROR(extra!E16,1)+IF($EY16<=305,EP$8,0) -> 68.14258819 | FG16: =FG$5*FG$6*($EY16/30.4)^FG$7*EXP(-FG$8*$EY16/30.4)*IFERROR(extra!F16,1)+IF($EY16<=305,EQ$8,0) -> 72.40329359 | FH16: =FH$5*FH$6*($EY16/30.4)^FH$7*EXP(-FH$8*$EY16/30.4)*IFERROR(extra!G16,1)+IF($EY16<=305,ER$8,0) -> 72.40329359 | FI16: 0 | FJ16: =FJ$5*FJ$6*($EY16/30.4)^FJ$7*EXP(-FJ$8*$EY16/30.4)*IFERROR(extra!H16,1)+IF($EY16<=305,ET$8,0) -> 48.31388975 | FK16: =FK$5*FK$6*($EY16/30.4)^FK$7*EXP(-FK$8*$EY16/30.4)*IFERROR(extra!I16,1)+IF($EY16<=305,EU$8,0) -> 68.14258819 | FL16: =FL$5*FL$6*($EY16/30.4)^FL$7*EXP(-FL$8*$EY16/30.4)*IFERROR(extra!J16,1)+IF($EY16<=305,EV$8,0) -> 72.40329359 | FM16: =FM$5*FM$6*($EY16/30.4)^FM$7*EXP(-FM$8*$EY16/30.4)*IFERROR(extra!K16,1)+IF($EY16<=305,EW$8,0) -> 72.40329359 | FN16: 6 | FO16: 1 | FP16: 0 | FQ16: -48.31388975 | FR16: -68.14258819 | FS16: -72.40329359 | FT16: -72.40329359 | FU16: 0 | FV16: -48.31388975 | FW16: -68.14258819 | FX16: -72.40329359 | FY16: -72.40329359 | GA16: 6 | GB16: 0.9638593086 | GC16: 1.347429835 | GD16: 1.4034758 | GE16: 0.7132984785 | GF16: 1.055283888 | GG16: 1.057294079 | GH16: 22.50295177 | GI16: 32.68477483 | GJ16: 32.88903793 | GK16: 22.48728562 | GP16: 32.68477483 | GQ16: 0.04122499978 | GR16: 0.04037499978 | GS16: 0.04037499978 | GT16: 0.04037499978 | GU16: 0.04037499978 | GV16: 0.04037499978 | GW16: 0.04037499978 | GX16: 0.04037499978 | GY16: 0.04037499978 | GZ16: 0.03387458231 | HA16: 0.03387458231 | HB16: 0.03387458231 | HC16: 0.03387458231 | HD16: 0.03387458231 | HE16: 0.03387458231 | HF16: 0.03387458231 | HG16: 0.03387458231 | HH16: 6 | HI16: 0 | HJ16: 0.1949749994 | HK16: 0.1949749994 | HL16: 0.1949749994 | HM16: 0.1949749994 | HN16: 0 | HO16: 0.1949749994 | HP16: 0.1949749994 | HQ16: 0.1949749994 | HR16: 0.1949749994 | HT16: 6 | HU16: -0.8458333333 | HV16: 1.034333333 | HY16: -1.44 | HZ16: 6 | IA16: =($IA$2*EXP($IA$3*HY16+$IA$4*(HY16^2)+$IA$5/HZ16) + $IA$6)*$IA$7 -> 8.58043683 | IB16: 4784966.204 | IC16: 0 | ID16: 2650433.787 | IE16: 2507392.323 | IF16: 2533223.508 | IG16: 2533223.508 | IH16: 0 | II16: 2650433.787 | IJ16: 2507392.323 | IK16: 2533223.508 | IL16: 2533223.508 | IO16: 6 | IP16: 8.179949497 | IQ16: 25.05544609 | IR16: 30.48649236 | IS16: 31.40980636 | IT16: 31.39961939 | IU16: 8.179949497 | IV16: 25.05544609 | IW16: 30.48649236 | IX16: 31.40980636 | IY16: 31.39961939 | IZ16: 0.05514309747 | JA16: 1.928278969 | JB16: 2.235173118 | JC16: 2.305117477 | JD16: 2.305865326 | JF16: 6 | JG16: 0 | JH16: 5.661683713 | JI16: 8.713127239 | JJ16: 9.405361174 | JK16: 9.406889219 | JL16: 0 | JM16: 5.661683713 | JN16: 8.713127239 | JO16: 9.405361174 | JP16: 9.406889219 | JQ16: 0 | JR16: -5.661683713 | JS16: -8.713127239 | JT16: -9.405361174 | JU16: -9.406889219 | JV16: 0 | JW16: -5.661683713 | JX16: -8.713127239 | JY16: -9.405361174 | JZ16: -9.406889219 | KC16: 6 | KD16: 2.75 | KI16: 2.75 | KL16: 6 | KM16: 0.08031863459 | KN16: 0.1917141784 | KO16: 0.2275646406 | KP16: 0.2336594577 | KQ16: 0.2335922133 | KR16: 0.08031863459 | KS16: 0.1917141784 | KT16: 0.2275646406 | KU16: 0.2336594577 | KV16: 0.2335922133 | KX16: realized | KY16: =KY15 ->  | KZ16: =KZ15 ->  | LE16: link FROM genetics!sheet or row above | LF16: =LF15 ->  | LG16: =LG15 ->  | LL16: SD of TBV at start of parity | LR16: unrank | LS16: parity | LT16: ovu | LU16: dcalves | LV16: genetics | LW16: genetics | LX16: rank | LY16: parity | LZ16: dcalves | MA16: genetics | MB16: 0 | ME16: x selected | MF16: x genetics | MG16: x selected | MI16: unrank | MJ16: parity | MK16: ovu | ML16: dcalves | MM16: genetics | MN16: genetics | MO16: rank | MP16: parity | MQ16: dcalves | MR16: genetics | MS16: 0 | MV16: x selected | MW16: x genetics | MX16: x selected
P17: milk@cull | Q17: 30 | R17: 30 | S17: 30 | T17: 30 | U17: 30 | V17: 30 | W17: 30 | X17: 30 | Y17: 30 | Z17: 30 | AB17: =AB16*AE10 -> 0 | AC17: =AC16*AE10 -> 0 | AD17: realized genetic value (future generations) | AH17: 0.0002959853388 | AI17: 0.2959853388 | AL17: 7 | AM17: =IFERROR(CHOOSE($AK$13,'0A'!T17,'1A'!T17,'2A'!T17,'3A'!T17,'4A'!T17,'0B'!T17,'1B'!T17,'2B'!T17,'3B'!T17,'4B'!T17)/$AM$9,0) -> 0.9824662918 | AN17: =IFERROR(CHOOSE($AK$13,'0A'!AD17,'1A'!AD17,'2A'!AD17,'3A'!AD17,'4A'!AD17,'0B'!AD17,'1B'!AD17,'2B'!AD17,'3B'!AD17,'4B'!AD17)/$AM$9,0) -> 0 | AO17: =IFERROR(CHOOSE($AK$13,'0A'!AI17,'1A'!AI17,'2A'!AI17,'3A'!AI17,'4A'!AI17,'0B'!AI17,'1B'!AI17,'2B'!AI17,'3B'!AI17,'4B'!AI17)/$AM$9,0) -> 0.9824662918 | AP17: =IFERROR(CHOOSE($AK$13,'0A'!AG17,'1A'!AG17,'2A'!AG17,'3A'!AG17,'4A'!AG17,'0B'!AG17,'1B'!AG17,'2B'!AG17,'3B'!AG17,'4B'!AG17)/$AM$9,0) -> 0.9824662918 | AQ17: =IFERROR(CHOOSE($AK$13,'0A'!AH17,'1A'!AH17,'2A'!AH17,'3A'!AH17,'4A'!AH17,'0B'!AH17,'1B'!AH17,'2B'!AH17,'3B'!AH17,'4B'!AH17)/$AM$9,0) -> 0 | AR17: =IFERROR(CHOOSE($AK$13,'0A'!Q17,'1A'!Q17,'2A'!Q17,'3A'!Q17,'4A'!Q17,'0B'!Q17,'1B'!Q17,'2B'!Q17,'3B'!Q17,'4B'!Q17)/$AM$9/$AR$9,0) -> 0 | AS17: =IFERROR(CHOOSE($AK$13,'0A'!U17,'1A'!U17,'2A'!U17,'3A'!U17,'4A'!U17,'0B'!U17,'1B'!U17,'2B'!U17,'3B'!U17,'4B'!U17)/$AM$9,0) -> 0 | AT17: 69.82407482 | AU17: 31.38563799 | AV17: 8.871072242 | AX17: 7 | AY17: ='0A'!$T17/$AY$8 ->  | AZ17: ='1A'!$T17/$AZ$8 -> 0.9897609556 | BA17: ='2A'!$T17/$BA$8 -> 0.9824662918 | BB17: ='3A'!$T17/$BB$8 -> 0.9737313569 | BC17: ='4A'!$T17/$BC$8 -> 0.9642244376 | BD17: 0.9743333324 | BE17: 1 | BF17: ='0A'!$AI17/$AY$8 ->  | BG17: ='1A'!$AI17/$AZ$8 -> 0.9897609556 | BH17: ='2A'!$AI17/$BA$8 -> 0.9824662918 | BI17: ='3A'!$AI17/$BB$8 -> 0.9737313569 | BJ17: ='4A'!$AI17/$BC$8 -> 0.9642244376 | BK17: 0.9743333324 | BL17: ='0A'!$AM17/$AY$8 ->  | BM17: ='1A'!$AM17/$AZ$8 -> 0 | BN17: ='2A'!$AM17/$BA$8 -> 0 | BO17: ='3A'!$AM17/$BB$8 -> 0 | BP17: ='4A'!$AM17/$BC$8 -> 0 | BQ17: 0 | BR17: 7 | BS17: ='0B'!$T17/$BS$8 ->  | BT17: ='1B'!$T17/$BT$8 -> 0.9897609556 | BU17: ='2B'!$T17/$BU$8 -> 0.9824662918 | BV17: ='3B'!$T17/$BV$8 -> 0.9737313569 | BW17: ='4B'!$T17/$BW$8 -> 0.9642244376 | BX17: 0.9743333324 | BY17: 1 | BZ17: ='0B'!$AI17/$BS$8 ->  | CA17: ='1B'!$AI17/$BT$8 -> 0.9897609556 | CB17: ='2B'!$AI17/$BU$8 -> 0.9824662918 | CC17: ='3B'!$AI17/$BV$8 -> 0.9737313569 | CD17: ='4B'!$AI17/$BW$8 -> 0.9642244376 | CE17: 0.9743333324 | CF17: ='0B'!$AM17/$BS$8 ->  | CG17: ='1B'!$AM17/$BT$8 -> 0 | CH17: ='2B'!$AM17/$BU$8 -> 0 | CI17: ='3B'!$AM17/$BV$8 -> 0 | CJ17: ='4B'!$AM17/$BW$8 -> 0 | CK17: 0 | CO17: 7 | CP17: 0.001388728305 | CQ17: 0.00152209579 | CR17: 0.002518960075 | CS17: 0.003664724077 | CT17: 0.005011931613 | CU17: 0.001388728305 | CV17: 0.00142046256 | CW17: 0.002438356881 | CX17: 0.003664724077 | CY17: 0.005011931613 | CZ17: 0.001388728305 | DA17: 0.00142046256 | DB17: 0.002438356881 | DC17: 0.003664724077 | DD17: 0.005011931613 | DE17: 0.9642244376 | DF17: columns | DI17: 1 | DJ17: 30.4368 | DK17: 65.34944 | DL17: =27.2+0.822*DJ17 -> 52.2190496 | DQ17: 7 | DR17: 92.61 | DS17: 1184.005924 | DT17: 1386.916038 | DU17: 1389.284878 | DV17: 1389.487382 | DW17: 148.3404066 | DX17: 1265.88965 | DY17: 1397.770731 | DZ17: 1397.49847 | EA17: 1396.288092 | EB17: 148.3404066 | EC17: 1265.88965 | ED17: 1397.770731 | EE17: 1397.49847 | EF17: 1396.288092 | EG17: 6 | EH17: 0 | EY17: 7 | EZ17: 51.08599017 | FA17: 73.79562004 | FB17: 74.37372606 | FC17: 74.37372606 | FD17: 0 | FE17: =FE$5*FE$6*($EY17/30.4)^FE$7*EXP(-FE$8*$EY17/30.4)*IFERROR(extra!D17,1)+IF($EY17<=305,EO$8,0) -> 49.79444671 | FF17: =FF$5*FF$6*($EY17/30.4)^FF$7*EXP(-FF$8*$EY17/30.4)*IFERROR(extra!E17,1)+IF($EY17<=305,EP$8,0) -> 69.82407482 | FG17: =FG$5*FG$6*($EY17/30.4)^FG$7*EXP(-FG$8*$EY17/30.4)*IFERROR(extra!F17,1)+IF($EY17<=305,EQ$8,0) -> 74.52777574 | FH17: =FH$5*FH$6*($EY17/30.4)^FH$7*EXP(-FH$8*$EY17/30.4)*IFERROR(extra!G17,1)+IF($EY17<=305,ER$8,0) -> 74.52777574 | FI17: 0 | FJ17: =FJ$5*FJ$6*($EY17/30.4)^FJ$7*EXP(-FJ$8*$EY17/30.4)*IFERROR(extra!H17,1)+IF($EY17<=305,ET$8,0) -> 49.79444671 | FK17: =FK$5*FK$6*($EY17/30.4)^FK$7*EXP(-FK$8*$EY17/30.4)*IFERROR(extra!I17,1)+IF($EY17<=305,EU$8,0) -> 69.82407482 | FL17: =FL$5*FL$6*($EY17/30.4)^FL$7*EXP(-FL$8*$EY17/30.4)*IFERROR(extra!J17,1)+IF($EY17<=305,EV$8,0) -> 74.52777574 | FM17: =FM$5*FM$6*($EY17/30.4)^FM$7*EXP(-FM$8*$EY17/30.4)*IFERROR(extra!K17,1)+IF($EY17<=305,EW$8,0) -> 74.52777574 | FN17: 7 | FO17: 1 | FP17: 0 | FQ17: -49.79444671 | FR17: -69.82407482 | FS17: -74.52777574 | FT17: -74.52777574 | FU17: 0 | FV17: -49.79444671 | FW17: -69.82407482 | FX17: -74.52777574 | FY17: -74.52777574 | GA17: 7 | GB17: 0.9882975358 | GC17: 1.374119677 | GD17: 1.43662859 | GE17: 0.7321786561 | GF17: 1.076319637 | GG17: 1.082202661 | GH17: 23.19009498 | GI17: 33.49226224 | GJ17: 33.8469388 | GK17: 23.17578153 | GP17: 33.49226224 | GQ17: 0.04102797437 | GR17: 0.04018203676 | GS17: 0.04018203676 | GT17: 0.04018203676 | GU17: 0.04018203676 | GV17: 0.04018203676 | GW17: 0.04018203676 | GX17: 0.04018203676 | GY17: 0.04018203676 | GZ17: 0.03371684426 | HA17: 0.03371684426 | HB17: 0.03371684426 | HC17: 0.03371684426 | HD17: 0.03371684426 | HE17: 0.03371684426 | HF17: 0.03371684426 | HG17: 0.03371684426 | HH17: 7 | HI17: 0 | HJ17: 0.1944732956 | HK17: 0.1944732956 | HL17: 0.1944732956 | HM17: 0.1944732956 | HN17: 0 | HO17: 0.1944732956 | HP17: 0.1944732956 | HQ17: 0.1944732956 | HR17: 0.1944732956 | HT17: 7 | HU17: -0.4458571429 | HV17: 1.252142857 | HY17: -1.43 | HZ17: 7 | IA17: 7.670966443 | IB17: 2547422.663 | IC17: 0 | ID17: 1411039.244 | IE17: 1334886.759 | IF17: 1348638.778 | IG17: 1348638.778 | IH17: 0 | II17: 1411039.244 | IJ17: 1334886.759 | IK17: 1348638.778 | IL17: 1348638.778 | IO17: 7 | IP17: 8.179949497 | IQ17: 25.81850578 | IR17: 31.38563799 | IS17: 32.42211069 | IT17: 32.41174052 | IU17: 8.179949497 | IV17: 25.81850578 | IW17: 31.38563799 | IX17: 32.42211069 | IY17: 32.41174052 | IZ17: 0.05514309747 | JA17: 1.928633947 | JB17: 2.22471421 | JC17: 2.298671313 | JD17: 2.299406775 | JF17: 7 | JG17: 0 | JH17: 5.810914286 | JI17: 8.871072242 | JJ17: 9.630345556 | JK17: 9.631901082 | JL17: 0 | JM17: 5.810914286 | JN17: 8.871072242 | JO17: 9.630345556 | JP17: 9.631901082 | JQ17: 0 | JR17: -5.810914286 | JS17: -8.871072242 | JT17: -9.630345556 | JU17: -9.631901082 | JV17: 0 | JW17: -5.810914286 | JX17: -8.871072242 | JY17: -9.630345556 | JZ17: -9.631901082 | KC17: 7 | KD17: 2.75 | KI17: 2.75 | KL17: 7 | KM17: 0.08031863459 | KN17: 0.1967511531 | KO17: 0.2334999217 | KP17: 0.2403417021 | KQ17: 0.2402732483 | KR17: 0.08031863459 | KS17: 0.1967511531 | KT17: 0.2334999217 | KU17: 0.2403417021 | KV17: 0.2402732483 | LE17: voluntary selection at start of parity 0. no voluntary selection among cows | LR17: 1 | LS17: 0A | LT17: 1 | LU17: ='0A'!$X3 -> 0 | LV17: ='0A'!$D88 -> 300 | LW17: =LV17-LT17*0.00001 -> 299.99999 | LX17: =_xlfn.RANK.EQ(LW17,$LW$17:$LW$36) -> 1 | LY17: =VLOOKUP(LX17,$LR$17:$LS$36,2) -> 0A | LZ17: =VLOOKUP(LX17,$LR$17:$LU$36,4) -> 0 | MA17: =VLOOKUP(LR17,$LR$17:$LV$36,5) -> 300 | MB17: =IF(MB16=$LW$14,MB16,IF(MB16+LZ17<=$LW$14,MB16+LZ17,$LW$14)) -> 0 | MC17: =IF(MB16=$LW$14,0,IF(MB17<$LW$14,1,($LW$14-MB16)/LZ17)) -> 0 | MD17: =MB17/$LU$14 -> 0 | ME17: =LZ17*MC17 -> 0 | MF17: =LZ17*MA17 -> 0 | MG17: =MA17*MC17*LZ17 -> 0 | MI17: 1 | MJ17: 0B | MK17: 1 | ML17: ='0B'!$X3 -> 0 | MM17: ='0B'!$D88 -> 300 | MN17: =MM17-MK17*0.00001 -> 299.99999 | MO17: =_xlfn.RANK.EQ(MN17,$MN$17:$MN$36) -> 1 | MP17: =VLOOKUP(MO17,$MI$17:$MJ$36,2) -> 0B | MQ17: =VLOOKUP(MO17,$MI$17:$ML$36,4) -> 0 | MR17: =VLOOKUP(MI17,$MI$17:$MM$36,5) -> 300 | MS17: =IF(MS16=$MN$14,MS16,IF(MS16+MQ17<=$MN$14,MS16+MQ17,$MN$14)) -> 0 | MT17: =IF(MS16=$MN$14,0,IF(MS17<$MN$14,1,($MN$14-MS16)/MQ17)) -> 0 | MU17: =MS17/$ML$14 -> 0 | MV17: =MQ17*MT17 -> 0 | MW17: =MQ17*MR17 -> 0 | MX17: =MR17*MT17*MQ17 -> 0
E18: Note: the 2 input sheets to be used should be named "short" and "long" | P18: max | Q18: =MAX(FD11:FD1010) -> 0 | R18: =MAX(FE11:FE1010) -> 72 | S18: =MAX(FF11:FF1010) -> 87 | T18: 97 | U18: 97 | V18: 0 | W18: 72 | X18: 87 | Y18: 97 | Z18: 97 | AB18: used to value dairy calves | AH18: 0.0001656601578 | AI18: 0.1656601578 | AL18: 8 | AM18: =IFERROR(CHOOSE($AK$13,'0A'!T18,'1A'!T18,'2A'!T18,'3A'!T18,'4A'!T18,'0B'!T18,'1B'!T18,'2B'!T18,'3B'!T18,'4B'!T18)/$AM$9,0) -> 0.9800986841 | AN18: =IFERROR(CHOOSE($AK$13,'0A'!AD18,'1A'!AD18,'2A'!AD18,'3A'!AD18,'4A'!AD18,'0B'!AD18,'1B'!AD18,'2B'!AD18,'3B'!AD18,'4B'!AD18)/$AM$9,0) -> 0 | AO18: =IFERROR(CHOOSE($AK$13,'0A'!AI18,'1A'!AI18,'2A'!AI18,'3A'!AI18,'4A'!AI18,'0B'!AI18,'1B'!AI18,'2B'!AI18,'3B'!AI18,'4B'!AI18)/$AM$9,0) -> 0.9800986841 | AP18: =IFERROR(CHOOSE($AK$13,'0A'!AG18,'1A'!AG18,'2A'!AG18,'3A'!AG18,'4A'!AG18,'0B'!AG18,'1B'!AG18,'2B'!AG18,'3B'!AG18,'4B'!AG18)/$AM$9,0) -> 0.9800986841 | AQ18: =IFERROR(CHOOSE($AK$13,'0A'!AH18,'1A'!AH18,'2A'!AH18,'3A'!AH18,'4A'!AH18,'0B'!AH18,'1B'!AH18,'2B'!AH18,'3B'!AH18,'4B'!AH18)/$AM$9,0) -> 0 | AR18: =IFERROR(CHOOSE($AK$13,'0A'!Q18,'1A'!Q18,'2A'!Q18,'3A'!Q18,'4A'!Q18,'0B'!Q18,'1B'!Q18,'2B'!Q18,'3B'!Q18,'4B'!Q18)/$AM$9/$AR$9,0) -> 0 | AS18: =IFERROR(CHOOSE($AK$13,'0A'!U18,'1A'!U18,'2A'!U18,'3A'!U18,'4A'!U18,'0B'!U18,'1B'!U18,'2B'!U18,'3B'!U18,'4B'!U18)/$AM$9,0) -> 0 | AT18: 71.28486978 | AU18: 32.23572045 | AV18: 8.99705159 | AX18: 8 | AY18: ='0A'!$T18/$AY$8 ->  | AZ18: ='1A'!$T18/$AZ$8 -> 0.98837111 | BA18: ='2A'!$T18/$BA$8 -> 0.9800986841 | BB18: ='3A'!$T18/$BB$8 -> 0.9702053818 | BC18: ='4A'!$T18/$BC$8 -> 0.9594493419 | BD18: 0.9708941665 | BE18: 1 | BF18: ='0A'!$AI18/$AY$8 ->  | BG18: ='1A'!$AI18/$AZ$8 -> 0.98837111 | BH18: ='2A'!$AI18/$BA$8 -> 0.9800986841 | BI18: ='3A'!$AI18/$BB$8 -> 0.9702053818 | BJ18: ='4A'!$AI18/$BC$8 -> 0.9594493419 | BK18: 0.9708941665 | BL18: ='0A'!$AM18/$AY$8 ->  | BM18: ='1A'!$AM18/$AZ$8 -> 0 | BN18: ='2A'!$AM18/$BA$8 -> 0 | BO18: ='3A'!$AM18/$BB$8 -> 0 | BP18: ='4A'!$AM18/$BC$8 -> 0 | BQ18: 0 | BR18: 8 | BS18: ='0B'!$T18/$BS$8 ->  | BT18: ='1B'!$T18/$BT$8 -> 0.98837111 | BU18: ='2B'!$T18/$BU$8 -> 0.9800986841 | BV18: ='3B'!$T18/$BV$8 -> 0.9702053818 | BW18: ='4B'!$T18/$BW$8 -> 0.9594493419 | BX18: 0.9708941665 | BY18: 1 | BZ18: ='0B'!$AI18/$BS$8 ->  | CA18: ='1B'!$AI18/$BT$8 -> 0.98837111 | CB18: ='2B'!$AI18/$BU$8 -> 0.9800986841 | CC18: ='3B'!$AI18/$BV$8 -> 0.9702053818 | CD18: ='4B'!$AI18/$BW$8 -> 0.9594493419 | CE18: 0.9708941665 | CF18: ='0B'!$AM18/$BS$8 ->  | CG18: ='1B'!$AM18/$BT$8 -> 0 | CH18: ='2B'!$AM18/$BU$8 -> 0 | CI18: ='3B'!$AM18/$BV$8 -> 0 | CJ18: ='4B'!$AM18/$BW$8 -> 0 | CK18: 0 | CO18: 8 | CP18: 0.001388728305 | CQ18: 0.001503974635 | CR18: 0.002488972041 | CS18: 0.003621096406 | CT18: 0.004952265758 | CU18: 0.001388728305 | CV18: 0.001404223502 | CW18: 0.002409861499 | CX18: 0.003621096406 | CY18: 0.004952265758 | CZ18: 0.001388728305 | DA18: 0.001404223502 | DB18: 0.002409861499 | DC18: 0.003621096406 | DD18: 0.004952265758 | DE18: 0.9594493419 | DF18: on the | DI18: 2 | DJ18: 60.8736 | DK18: 89.69888 | DL18: 77.2380992 | DQ18: 8 | DR18: 92.61 | DS18: 1183.031541 | DT18: 1384.184089 | DU18: 1386.538767 | DV18: 1386.740061 | DW18: 148.3404066 | DX18: 1263.396098 | DY18: 1395.0174 | DZ18: 1394.745676 | EA18: 1393.537682 | EB18: 148.3404066 | EC18: 1263.396098 | ED18: 1395.0174 | EE18: 1394.745676 | EF18: 1393.537682 | EG18: 7 | EH18: 0 | EY18: 8 | EZ18: 52.42526285 | FA18: 75.33950401 | FB18: 76.22401593 | FC18: 76.22401593 | FD18: 0 | FE18: =FE$5*FE$6*($EY18/30.4)^FE$7*EXP(-FE$8*$EY18/30.4)*IFERROR(extra!D18,1)+IF($EY18<=305,EO$8,0) -> 51.09986022 | FF18: =FF$5*FF$6*($EY18/30.4)^FF$7*EXP(-FF$8*$EY18/30.4)*IFERROR(extra!E18,1)+IF($EY18<=305,EP$8,0) -> 71.28486978 | FG18: =FG$5*FG$6*($EY18/30.4)^FG$7*EXP(-FG$8*$EY18/30.4)*IFERROR(extra!F18,1)+IF($EY18<=305,EQ$8,0) -> 76.3818981 | FH18: =FH$5*FH$6*($EY18/30.4)^FH$7*EXP(-FH$8*$EY18/30.4)*IFERROR(extra!G18,1)+IF($EY18<=305,ER$8,0) -> 76.3818981 | FI18: 0 | FJ18: =FJ$5*FJ$6*($EY18/30.4)^FJ$7*EXP(-FJ$8*$EY18/30.4)*IFERROR(extra!H18,1)+IF($EY18<=305,ET$8,0) -> 51.09986022 | FK18: =FK$5*FK$6*($EY18/30.4)^FK$7*EXP(-FK$8*$EY18/30.4)*IFERROR(extra!I18,1)+IF($EY18<=305,EU$8,0) -> 71.28486978 | FL18: =FL$5*FL$6*($EY18/30.4)^FL$7*EXP(-FL$8*$EY18/30.4)*IFERROR(extra!J18,1)+IF($EY18<=305,EV$8,0) -> 76.3818981 | FM18: =FM$5*FM$6*($EY18/30.4)^FM$7*EXP(-FM$8*$EY18/30.4)*IFERROR(extra!K18,1)+IF($EY18<=305,EW$8,0) -> 76.3818981 | FN18: 8 | FO18: 1 | FP18: 0 | FQ18: -51.09986022 | FR18: -71.28486978 | FS18: -76.3818981 | FT18: -76.3818981 | FU18: 0 | FV18: -51.09986022 | FW18: -71.28486978 | FX18: -76.3818981 | FY18: -76.3818981 | GA18: 8 | GB18: 1.00971998 | GC18: 1.397137446 | GD18: 1.465334195 | GE18: 0.7487465614 | GF18: 1.094465892 | GG18: 1.103767444 | GH18: 23.79589602 | GI18: 34.19375693 | GJ18: 34.68266639 | GK18: 23.78281638 | GP18: 34.19375693 | GQ18: 0.04085943082 | GR18: 0.04001696833 | GS18: 0.04001696833 | GT18: 0.04001696833 | GU18: 0.04001696833 | GV18: 0.04001696833 | GW18: 0.04001696833 | GX18: 0.04001696833 | GY18: 0.04001696833 | GZ18: 0.03358192214 | HA18: 0.03358192214 | HB18: 0.03358192214 | HC18: 0.03358192214 | HD18: 0.03358192214 | HE18: 0.03358192214 | HF18: 0.03358192214 | HG18: 0.03358192214 | HH18: 8 | HI18: 0 | HJ18: 0.1940441177 | HK18: 0.1940441177 | HL18: 0.1940441177 | HM18: 0.1940441177 | HN18: 0 | HO18: 0.1940441177 | HP18: 0.1940441177 | HQ18: 0.1940441177 | HR18: 0.1940441177 | HT18: 8 | HU18: -0.146375 | HV18: 1.4165 | HY18: -1.42 | HZ18: 8 | IA18: 7.054007004 | IB18: 1661030.897 | IC18: 0 | ID18: 920059.2488 | IE18: 870404.5009 | IF18: 879371.4182 | IG18: 879371.4182 | IH18: 0 | II18: 920059.2488 | IJ18: 870404.5009 | IK18: 879371.4182 | IL18: 879371.4182 | IO18: 8 | IP18: 8.179949497 | IQ18: 26.54278572 | IR18: 32.23572045 | IS18: 33.37717204 | IT18: 33.36662416 | IU18: 8.179949497 | IV18: 26.54278572 | IW18: 32.23572045 | IX18: 33.37717204 | IY18: 33.36662416 | IZ18: 0.05514309747 | JA18: 1.925188289 | JB18: 2.211362699 | JC18: 2.288447266 | JD18: 2.289170692 | JF18: 8 | JG18: 0 | JH18: 5.934209431 | JI18: 8.99705159 | JJ18: 9.814882215 | JK18: 9.816464398 | JL18: 0 | JM18: 5.934209431 | JN18: 8.99705159 | JO18: 9.814882215 | JP18: 9.816464398 | JQ18: 0 | JR18: -5.934209431 | JS18: -8.99705159 | JT18: -9.814882215 | JU18: -9.816464398 | JV18: 0 | JW18: -5.934209431 | JX18: -8.99705159 | JY18: -9.814882215 | JZ18: -9.816464398 | KC18: 8 | KD18: 2.75 | KI18: 2.75 | KL18: 8 | KM18: 0.08031863459 | KN18: 0.2015321418 | KO18: 0.2391113358 | KP18: 0.2466460842 | KQ18: 0.2465764573 | KR18: 0.08031863459 | KS18: 0.2015321418 | KT18: 0.2391113358 | KU18: 0.2466460842 | KV18: 0.2465764573 | KX18: suggested | KY18: =#REF! ->  | LE18: link FROM genetics!sheet | LF18: =#REF! ->  | LL18: %kept | LR18: 2 | LS18: 0A | LT18: 2 | LU18: ='0A'!$X4 -> 0 | LV18: ='0A'!$D89 -> 300 | LW18: =LV18-LT18*0.00001 -> 299.99998 | LX18: =_xlfn.RANK.EQ(LW18,$LW$17:$LW$36) -> 6 | LY18: =VLOOKUP(LX18,$LR$17:$LS$36,2) -> 1A | LZ18: =VLOOKUP(LX18,$LR$17:$LU$36,4) -> 0.1114115015 | MA18: 300 | MB18: =IF(MB17=$LW$14,MB17,IF(MB17+LZ18<=$LW$14,MB17+LZ18,$LW$14)) -> 0 | MC18: =IF(MB17=$LW$14,0,IF(MB18<$LW$14,1,($LW$14-MB17)/LZ18)) -> 0 | MD18: =MB18/$LU$14 -> 0 | ME18: =LZ18*MC18 -> 0 | MF18: =LZ18*MA18 -> 33.42345046 | MG18: =MA18*MC18*LZ18 -> 0 | MI18: 2 | MJ18: 0B | MK18: 2 | ML18: ='0B'!$X4 -> 0 | MM18: ='0B'!$D89 -> 300 | MN18: =MM18-MK18*0.00001 -> 299.99998 | MO18: =_xlfn.RANK.EQ(MN18,$MN$17:$MN$36) -> 6 | MP18: =VLOOKUP(MO18,$MI$17:$MJ$36,2) -> 1B | MQ18: =VLOOKUP(MO18,$MI$17:$ML$36,4) -> 0.07048720245 | MR18: =VLOOKUP(MI18,$MI$17:$MM$36,5) -> 300 | MS18: =IF(MS17=$MN$14,MS17,IF(MS17+MQ18<=$MN$14,MS17+MQ18,$MN$14)) -> 0 | MT18: =IF(MS17=$MN$14,0,IF(MS18<$MN$14,1,($MN$14-MS17)/MQ18)) -> 0 | MU18: =MS18/$ML$14 -> 0 | MV18: =MQ18*MT18 -> 0 | MW18: =MQ18*MR18 -> 21.14616073 | MX18: =MR18*MT18*MQ18 -> 0
E19: Rename other input sheets that are not used, e.g. "parkedshort" and 'parkedlong" | P19: min | Q19: =MIN(FD10:FD1010) -> 0 | R19: =MIN(FE10:FE1010) -> 19.10837612 | S19: =MIN(FF10:FF1010) -> 8.013417992 | T19: 6.106962794 | U19: 6.106962794 | V19: 0 | W19: 19.10837612 | X19: 8.013417992 | Y19: 6.106962794 | Z19: 6.106962794 | AB19: =Short!F15 -> 200 | AC19: =Short!G15 -> 200 | AD19: basic heifer calf price | AH19: 9.271840291e-05 | AI19: 0.09271840291 | AL19: 9 | AM19: =IFERROR(CHOOSE($AK$13,'0A'!T19,'1A'!T19,'2A'!T19,'3A'!T19,'4A'!T19,'0B'!T19,'1B'!T19,'2B'!T19,'3B'!T19,'4B'!T19)/$AM$9,0) -> 0.9777647103 | AN19: =IFERROR(CHOOSE($AK$13,'0A'!AD19,'1A'!AD19,'2A'!AD19,'3A'!AD19,'4A'!AD19,'0B'!AD19,'1B'!AD19,'2B'!AD19,'3B'!AD19,'4B'!AD19)/$AM$9,0) -> 0 | AO19: =IFERROR(CHOOSE($AK$13,'0A'!AI19,'1A'!AI19,'2A'!AI19,'3A'!AI19,'4A'!AI19,'0B'!AI19,'1B'!AI19,'2B'!AI19,'3B'!AI19,'4B'!AI19)/$AM$9,0) -> 0.9777647103 | AP19: =IFERROR(CHOOSE($AK$13,'0A'!AG19,'1A'!AG19,'2A'!AG19,'3A'!AG19,'4A'!AG19,'0B'!AG19,'1B'!AG19,'2B'!AG19,'3B'!AG19,'4B'!AG19)/$AM$9,0) -> 0.9777647103 | AQ19: =IFERROR(CHOOSE($AK$13,'0A'!AH19,'1A'!AH19,'2A'!AH19,'3A'!AH19,'4A'!AH19,'0B'!AH19,'1B'!AH19,'2B'!AH19,'3B'!AH19,'4B'!AH19)/$AM$9,0) -> 0 | AR19: =IFERROR(CHOOSE($AK$13,'0A'!Q19,'1A'!Q19,'2A'!Q19,'3A'!Q19,'4A'!Q19,'0B'!Q19,'1B'!Q19,'2B'!Q19,'3B'!Q19,'4B'!Q19)/$AM$9/$AR$9,0) -> 0 | AS19: =IFERROR(CHOOSE($AK$13,'0A'!U19,'1A'!U19,'2A'!U19,'3A'!U19,'4A'!U19,'0B'!U19,'1B'!U19,'2B'!U19,'3B'!U19,'4B'!U19)/$AM$9,0) -> 0 | AT19: 72.57244975 | AU19: 33.04428851 | AV19: 9.098468595 | AX19: 9 | AY19: ='0A'!$T19/$AY$8 ->  | AZ19: ='1A'!$T19/$AZ$8 -> 0.9869992663 | BA19: ='2A'!$T19/$BA$8 -> 0.9777647103 | BB19: ='3A'!$T19/$BB$8 -> 0.9667345024 | BC19: ='4A'!$T19/$BC$8 -> 0.9547551402 | BD19: 0.967510103 | BE19: 1 | BF19: ='0A'!$AI19/$AY$8 ->  | BG19: ='1A'!$AI19/$AZ$8 -> 0.9869992663 | BH19: ='2A'!$AI19/$BA$8 -> 0.9777647103 | BI19: ='3A'!$AI19/$BB$8 -> 0.9667345024 | BJ19: ='4A'!$AI19/$BC$8 -> 0.9547551402 | BK19: 0.967510103 | BL19: ='0A'!$AM19/$AY$8 ->  | BM19: ='1A'!$AM19/$AZ$8 -> 0 | BN19: ='2A'!$AM19/$BA$8 -> 0 | BO19: ='3A'!$AM19/$BB$8 -> 0 | BP19: ='4A'!$AM19/$BC$8 -> 0 | BQ19: 0 | BR19: 9 | BS19: ='0B'!$T19/$BS$8 ->  | BT19: ='1B'!$T19/$BT$8 -> 0.9869992663 | BU19: ='2B'!$T19/$BU$8 -> 0.9777647103 | BV19: ='3B'!$T19/$BV$8 -> 0.9667345024 | BW19: ='4B'!$T19/$BW$8 -> 0.9547551402 | BX19: 0.967510103 | BY19: 1 | BZ19: ='0B'!$AI19/$BS$8 ->  | CA19: ='1B'!$AI19/$BT$8 -> 0.9869992663 | CB19: ='2B'!$AI19/$BU$8 -> 0.9777647103 | CC19: ='3B'!$AI19/$BV$8 -> 0.9667345024 | CD19: ='4B'!$AI19/$BW$8 -> 0.9547551402 | CE19: 0.967510103 | CF19: ='0B'!$AM19/$BS$8 ->  | CG19: ='1B'!$AM19/$BT$8 -> 0 | CH19: ='2B'!$AM19/$BU$8 -> 0 | CI19: ='3B'!$AM19/$BV$8 -> 0 | CJ19: ='4B'!$AM19/$BW$8 -> 0 | CK19: 0 | CO19: 9 | CP19: 0.001388728305 | CQ19: 0.00148585348 | CR19: 0.002458984007 | CS19: 0.003577468735 | CT19: 0.004892599903 | CU19: 0.001388728305 | CV19: 0.001387984444 | CW19: 0.002381366117 | CX19: 0.003577468735 | CY19: 0.004892599903 | CZ19: 0.001388728305 | DA19: 0.001387984444 | DB19: 0.002381366117 | DC19: 0.003577468735 | DD19: 0.004892599903 | DE19: 0.9547551402 | DF19: right | DI19: 3 | DJ19: 91.3104 | DK19: 111.9088469 | DL19: 102.2571488 | DQ19: 9 | DR19: 92.61 | DS19: 1182.102508 | DT19: 1381.534352 | DU19: 1383.874954 | DV19: 1384.075043 | DW19: 148.3404066 | DX19: 1260.977585 | DY19: 1392.346925 | DZ19: 1392.07572 | EA19: 1390.870039 | EB19: 148.3404066 | EC19: 1260.977585 | ED19: 1392.346925 | EE19: 1392.07572 | EF19: 1390.870039 | EG19: 8 | EH19: 0 | EK19: Data from Hinde[1565]: | EN19: parity 0 | EY19: 9 | EZ19: 53.62299786 | FA19: 76.70032064 | FB19: 77.8614453 | FC19: 77.8614453 | FD19: 0 | FE19: =FE$5*FE$6*($EY19/30.4)^FE$7*EXP(-FE$8*$EY19/30.4)*IFERROR(extra!D19,1)+IF($EY19<=305,EO$8,0) -> 52.2673144 | FF19: =FF$5*FF$6*($EY19/30.4)^FF$7*EXP(-FF$8*$EY19/30.4)*IFERROR(extra!E19,1)+IF($EY19<=305,EP$8,0) -> 72.57244975 | FG19: =FG$5*FG$6*($EY19/30.4)^FG$7*EXP(-FG$8*$EY19/30.4)*IFERROR(extra!F19,1)+IF($EY19<=305,EQ$8,0) -> 78.02271906 | FH19: =FH$5*FH$6*($EY19/30.4)^FH$7*EXP(-FH$8*$EY19/30.4)*IFERROR(extra!G19,1)+IF($EY19<=305,ER$8,0) -> 78.02271906 | FI19: 0 | FJ19: =FJ$5*FJ$6*($EY19/30.4)^FJ$7*EXP(-FJ$8*$EY19/30.4)*IFERROR(extra!H19,1)+IF($EY19<=305,ET$8,0) -> 52.2673144 | FK19: =FK$5*FK$6*($EY19/30.4)^FK$7*EXP(-FK$8*$EY19/30.4)*IFERROR(extra!I19,1)+IF($EY19<=305,EU$8,0) -> 72.57244975 | FL19: =FL$5*FL$6*($EY19/30.4)^FL$7*EXP(-FL$8*$EY19/30.4)*IFERROR(extra!J19,1)+IF($EY19<=305,EV$8,0) -> 78.02271906 | FM19: =FM$5*FM$6*($EY19/30.4)^FM$7*EXP(-FM$8*$EY19/30.4)*IFERROR(extra!K19,1)+IF($EY19<=305,EW$8,0) -> 78.02271906 | FN19: 9 | FO19: 1 | FP19: 0 | FQ19: -52.2673144 | FR19: -72.57244975 | FS19: -78.02271906 | FT19: -78.02271906 | FU19: 0 | FV19: -52.2673144 | FW19: -72.57244975 | FX19: -78.02271906 | FY19: -78.02271906 | GA19: 9 | GB19: 1.028778965 | GC19: 1.417287271 | GD19: 1.490551588 | GE19: 0.7635002964 | GF19: 1.110355141 | GG19: 1.122709626 | GH19: 24.33763164 | GI19: 34.81205716 | GJ19: 35.42202501 | GK19: 24.32568669 | GP19: 34.81205716 | GQ19: 0.04071254004 | GR19: 0.03987310622 | GS19: 0.03987310622 | GT19: 0.03987310622 | GU19: 0.03987310622 | GV19: 0.03987310622 | GW19: 0.03987310622 | GX19: 0.03987310622 | GY19: 0.03987310622 | GZ19: 0.03346434728 | HA19: 0.03346434728 | HB19: 0.03346434728 | HC19: 0.03346434728 | HD19: 0.03346434728 | HE19: 0.03346434728 | HF19: 0.03346434728 | HG19: 0.03346434728 | HH19: 9 | HI19: 0 | HJ19: 0.1936700762 | HK19: 0.1936700762 | HL19: 0.1936700762 | HM19: 0.1936700762 | HN19: 0 | HO19: 0.1936700762 | HP19: 0.1936700762 | HQ19: 0.1936700762 | HR19: 0.1936700762 | HT19: 9 | HU19: 0.08611111111 | HV19: 1.545222222 | HY19: -1.41 | HZ19: 9 | IA19: 6.609748853 | IB19: 1220794.83 | IC19: 0 | ID19: 676208.7186 | IE19: 639714.3586 | IF19: 646304.7033 | IG19: 646304.7033 | IH19: 0 | II19: 676208.7186 | IJ19: 639714.3586 | IK19: 646304.7033 | IL19: 646304.7033 | IO19: 9 | IP19: 8.179949497 | IQ19: 27.23425653 | IR19: 33.04428851 | IS19: 34.28406427 | IT19: 34.27334399 | IU19: 8.179949497 | IV19: 27.23425653 | IW19: 33.04428851 | IX19: 34.28406427 | IY19: 34.27334399 | IZ19: 0.05514309747 | JA19: 1.919175372 | JB19: 2.196217653 | JC19: 2.275772162 | JD19: 2.276483995 | JF19: 9 | JG19: 0 | JH19: 6.037476282 | JI19: 9.098468595 | JJ19: 9.968056303 | JK19: 9.969664345 | JL19: 0 | JM19: 6.037476282 | JN19: 9.098468595 | JO19: 9.968056303 | JP19: 9.969664345 | JQ19: 0 | JR19: -6.037476282 | JS19: -9.098468595 | JT19: -9.968056303 | JU19: -9.969664345 | JV19: 0 | JW19: -6.037476282 | JX19: -9.098468595 | JY19: -9.968056303 | JZ19: -9.969664345 | KC19: 9 | KD19: 2.75 | KI19: 2.75 | KL19: 9 | KM19: 0.08031863459 | KN19: 0.2060965566 | KO19: 0.2444487122 | KP19: 0.2526325008 | KQ19: 0.2525617359 | KR19: 0.08031863459 | KS19: 0.2060965566 | KT19: 0.2444487122 | KU19: 0.2526325008 | KV19: 0.2525617359 | KX19: realized | KY19: =KY18 ->  | LF19: =LF18 ->  | LL19: %kept | LR19: 3 | LS19: 0A | LT19: 3 | LU19: ='0A'!$X5 -> 0 | LV19: ='0A'!$D90 -> 300 | LW19: 299.99997 | LX19: =_xlfn.RANK.EQ(LW19,$LW$17:$LW$36) -> 11 | LY19: 2A | LZ19: 0.03823354579 | MA19: 300 | MB19: 0 | MC19: 0 | MD19: 0 | ME19: 0 | MF19: 11.47006374 | MG19: 0 | MI19: 3 | MJ19: 0B | MK19: 3 | ML19: ='0B'!$X5 -> 0 | MM19: ='0B'!$D90 -> 300 | MN19: 299.99997 | MO19: 11 | MP19: 2B | MQ19: 0.0387763291 | MR19: 300 | MS19: 0 | MT19: 0 | MU19: 0 | MV19: 0 | MW19: 11.63289873 | MX19: 0
E20: data entry sheet (on "long") ==> | F20: =INDIRECT("long!mysheet") -> Long | G20: the active input sheet, either "short" or "long", will determine the used inputs | P20: dim@max | Q20: 0 | R20: =MATCH(MAX(FE11:FE1010),FE11:FE1010,0) -> 104 | S20: =MATCH(MAX(FF11:FF1010),FF11:FF1010,0) -> 58 | T20: =MATCH(MAX(FG11:FG1010),FG11:FG1010,0) -> 59 | U20: 59 | V20: 0 | W20: 104 | X20: 58 | Y20: 59 | Z20: 59 | AB20: =Short!F16 -> 50 | AC20: =Short!G16 -> 50 | AD20: bull calf price | AH20: 5.189360163e-05 | AI20: 0.05189360163 | AL20: 10 | AM20: =IFERROR(CHOOSE($AK$13,'0A'!T20,'1A'!T20,'2A'!T20,'3A'!T20,'4A'!T20,'0B'!T20,'1B'!T20,'2B'!T20,'3B'!T20,'4B'!T20)/$AM$9,0) -> 0.9754641563 | AN20: =IFERROR(CHOOSE($AK$13,'0A'!AD20,'1A'!AD20,'2A'!AD20,'3A'!AD20,'4A'!AD20,'0B'!AD20,'1B'!AD20,'2B'!AD20,'3B'!AD20,'4B'!AD20)/$AM$9,0) -> 0 | AO20: =IFERROR(CHOOSE($AK$13,'0A'!AI20,'1A'!AI20,'2A'!AI20,'3A'!AI20,'4A'!AI20,'0B'!AI20,'1B'!AI20,'2B'!AI20,'3B'!AI20,'4B'!AI20)/$AM$9,0) -> 0.9754641563 | AP20: =IFERROR(CHOOSE($AK$13,'0A'!AG20,'1A'!AG20,'2A'!AG20,'3A'!AG20,'4A'!AG20,'0B'!AG20,'1B'!AG20,'2B'!AG20,'3B'!AG20,'4B'!AG20)/$AM$9,0) -> 0.9754641563 | AQ20: =IFERROR(CHOOSE($AK$13,'0A'!AH20,'1A'!AH20,'2A'!AH20,'3A'!AH20,'4A'!AH20,'0B'!AH20,'1B'!AH20,'2B'!AH20,'3B'!AH20,'4B'!AH20)/$AM$9,0) -> 0 | AR20: =IFERROR(CHOOSE($AK$13,'0A'!Q20,'1A'!Q20,'2A'!Q20,'3A'!Q20,'4A'!Q20,'0B'!Q20,'1B'!Q20,'2B'!Q20,'3B'!Q20,'4B'!Q20)/$AM$9/$AR$9,0) -> 0 | AS20: =IFERROR(CHOOSE($AK$13,'0A'!U20,'1A'!U20,'2A'!U20,'3A'!U20,'4A'!U20,'0B'!U20,'1B'!U20,'2B'!U20,'3B'!U20,'4B'!U20)/$AM$9,0) -> 0 | AT20: 73.7200515 | AU20: 33.81664681 | AV20: 9.180489742 | AX20: 10 | AY20: ='0A'!$T20/$AY$8 ->  | AZ20: ='1A'!$T20/$AZ$8 -> 0.9856453546 | BA20: ='2A'!$T20/$BA$8 -> 0.9754641563 | BB20: ='3A'!$T20/$BB$8 -> 0.9633182163 | BC20: ='4A'!$T20/$BC$8 -> 0.9501408716 | BD20: 0.9641805788 | BE20: 1 | BF20: ='0A'!$AI20/$AY$8 ->  | BG20: ='1A'!$AI20/$AZ$8 -> 0.9856453546 | BH20: ='2A'!$AI20/$BA$8 -> 0.9754641563 | BI20: ='3A'!$AI20/$BB$8 -> 0.9633182163 | BJ20: ='4A'!$AI20/$BC$8 -> 0.9501408716 | BK20: 0.9641805788 | BL20: ='0A'!$AM20/$AY$8 ->  | BM20: ='1A'!$AM20/$AZ$8 -> 0 | BN20: ='2A'!$AM20/$BA$8 -> 0 | BO20: ='3A'!$AM20/$BB$8 -> 0 | BP20: ='4A'!$AM20/$BC$8 -> 0 | BQ20: 0 | BR20: 10 | BS20: ='0B'!$T20/$BS$8 ->  | BT20: ='1B'!$T20/$BT$8 -> 0.9856453546 | BU20: ='2B'!$T20/$BU$8 -> 0.9754641563 | BV20: ='3B'!$T20/$BV$8 -> 0.9633182163 | BW20: ='4B'!$T20/$BW$8 -> 0.9501408716 | BX20: 0.9641805788 | BY20: 1 | BZ20: ='0B'!$AI20/$BS$8 ->  | CA20: ='1B'!$AI20/$BT$8 -> 0.9856453546 | CB20: ='2B'!$AI20/$BU$8 -> 0.9754641563 | CC20: ='3B'!$AI20/$BV$8 -> 0.9633182163 | CD20: ='4B'!$AI20/$BW$8 -> 0.9501408716 | CE20: 0.9641805788 | CF20: ='0B'!$AM20/$BS$8 ->  | CG20: ='1B'!$AM20/$BT$8 -> 0 | CH20: ='2B'!$AM20/$BU$8 -> 0 | CI20: ='3B'!$AM20/$BV$8 -> 0 | CJ20: ='4B'!$AM20/$BW$8 -> 0 | CK20: 0 | CO20: 10 | CP20: 0.001388728305 | CQ20: 0.001467732325 | CR20: 0.002428995974 | CS20: 0.003533841065 | CT20: 0.004832934048 | CU20: 0.001388728305 | CV20: 0.001371745386 | CW20: 0.002352870735 | CX20: 0.003533841065 | CY20: 0.004832934048 | CZ20: 0.001388728305 | DA20: 0.001371745386 | DB20: 0.002352870735 | DC20: 0.003533841065 | DD20: 0.004832934048 | DE20: 0.9501408716 | DI20: 4 | DJ20: 121.7472 | DK20: 134.1188138 | DL20: 127.2761984 | DQ20: 10 | DR20: 92.61 | DS20: 1181.217733 | DT20: 1378.965045 | DU20: 1381.291655 | DV20: 1381.490547 | DW20: 148.3404066 | DX20: 1258.632484 | DY20: 1389.75751 | DZ20: 1389.486809 | EA20: 1388.28337 | EB20: 148.3404066 | EC20: 1258.632484 | ED20: 1389.75751 | EE20: 1389.486809 | EF20: 1388.28337 | EG20: 9 | EH20: 0 | EN20: #bull | EO20: ='0A'!$D$125 -> 0 | EP20: ='0B'!$D$125 -> 0 | ES20: parity 1 (figure 3a) | EY20: 10 | EZ20: 54.70598969 | FA20: 77.91319718 | FB20: 79.32606313 | FC20: 79.32606313 | FD20: 0 | FE20: =FE$5*FE$6*($EY20/30.4)^FE$7*EXP(-FE$8*$EY20/30.4)*IFERROR(extra!D20,1)+IF($EY20<=305,EO$8,0) -> 53.32292629 | FF20: =FF$5*FF$6*($EY20/30.4)^FF$7*EXP(-FF$8*$EY20/30.4)*IFERROR(extra!E20,1)+IF($EY20<=305,EP$8,0) -> 73.7200515 | FG20: =FG$5*FG$6*($EY20/30.4)^FG$7*EXP(-FG$8*$EY20/30.4)*IFERROR(extra!F20,1)+IF($EY20<=305,EQ$8,0) -> 79.49037054 | FH20: =FH$5*FH$6*($EY20/30.4)^FH$7*EXP(-FH$8*$EY20/30.4)*IFERROR(extra!G20,1)+IF($EY20<=305,ER$8,0) -> 79.49037054 | FI20: 0 | FJ20: =FJ$5*FJ$6*($EY20/30.4)^FJ$7*EXP(-FJ$8*$EY20/30.4)*IFERROR(extra!H20,1)+IF($EY20<=305,ET$8,0) -> 53.32292629 | FK20: =FK$5*FK$6*($EY20/30.4)^FK$7*EXP(-FK$8*$EY20/30.4)*IFERROR(extra!I20,1)+IF($EY20<=305,EU$8,0) -> 73.7200515 | FL20: =FL$5*FL$6*($EY20/30.4)^FL$7*EXP(-FL$8*$EY20/30.4)*IFERROR(extra!J20,1)+IF($EY20<=305,EV$8,0) -> 79.49037054 | FM20: =FM$5*FM$6*($EY20/30.4)^FM$7*EXP(-FM$8*$EY20/30.4)*IFERROR(extra!K20,1)+IF($EY20<=305,EW$8,0) -> 79.49037054 | FN20: 10 | FO20: 1 | FP20: 0 | FQ20: -53.32292629 | FR20: -73.7200515 | FS20: -79.49037054 | FT20: -79.49037054 | FU20: 0 | FV20: -53.32292629 | FW20: -73.7200515 | FX20: -79.49037054 | FY20: -79.49037054 | GA20: 10 | GB20: 1.045930548 | GC20: 1.435129606 | GD20: 1.512951747 | GE20: 0.776788455 | GF20: 1.124428257 | GG20: 1.139533794 | GH20: 24.82743527 | GI20: 35.36312381 | GJ20: 36.08316071 | GK20: 24.81654074 | GP20: 35.36312381 | GQ20: 0.04058265932 | GR20: 0.03974590346 | GS20: 0.03974590346 | GT20: 0.03974590346 | GU20: 0.03974590346 | GV20: 0.03974590346 | GW20: 0.03974590346 | GX20: 0.03974590346 | GY20: 0.03974590346 | GZ20: 0.03336040145 | HA20: 0.03336040145 | HB20: 0.03336040145 | HC20: 0.03336040145 | HD20: 0.03336040145 | HE20: 0.03336040145 | HF20: 0.03336040145 | HG20: 0.03336040145 | HH20: 10 | HI20: 0 | HJ20: 0.193339349 | HK20: 0.193339349 | HL20: 0.193339349 | HM20: 0.193339349 | HN20: 0 | HO20: 0.193339349 | HP20: 0.193339349 | HQ20: 0.193339349 | HR20: 0.193339349 | HT20: 10 | HU20: 0.2717 | HV20: 1.649 | HY20: -1.4 | HZ20: 10 | IA20: 6.275497877 | IB20: 968329.386 | IC20: 0 | ID20: 536365.9454 | IE20: 507418.7707 | IF20: 512646.2047 | IG20: 512646.2047 | IH20: 0 | II20: 536365.9454 | IJ20: 507418.7707 | IK20: 512646.2047 | IL20: 512646.2047 | IO20: 10 | IP20: 8.179949497 | IQ20: 27.89711717 | IR20: 33.81664681 | IS20: 35.14915597 | IT20: 35.13826843 | IU20: 8.179949497 | IV20: 27.89711717 | IW20: 33.81664681 | IX20: 35.14915597 | IY20: 35.13826843 | IZ20: 0.05514309747 | JA20: 1.911413497 | JB20: 2.179992946 | JC20: 2.261515771 | JD20: 2.262216498 | JF20: 10 | JG20: 0 | JH20: 6.12485228 | JI20: 9.180489742 | JJ20: 10.0962431 | JK20: 10.09787623 | JL20: 0 | JM20: 6.12485228 | JN20: 9.180489742 | JO20: 10.0962431 | JP20: 10.09787623 | JQ20: 0 | JR20: -6.12485228 | JS20: -9.180489742 | JT20: -10.0962431 | JU20: -10.09787623 | JV20: 0 | JW20: -6.12485228 | JX20: -9.180489742 | JY20: -10.0962431 | JZ20: -10.09787623 | KC20: 10 | KD20: 2.75 | KI20: 2.75 | KL20: 10 | KM20: 0.08031863459 | KN20: 0.210472115 | KO20: 0.2495470673 | KP20: 0.2583429911 | KQ20: 0.2582711222 | KR20: 0.08031863459 | KS20: 0.210472115 | KT20: 0.2495470673 | KU20: 0.2583429911 | KV20: 0.2582711222 | KX20: suggested | KY20: =#REF! ->  | LE20: link FROM genetics!sheet | LF20: =#REF! ->  | LL20: reliability of voluntary selection (based on EBV is assumed) | LR20: 4 | LS20: 0A | LT20: 4 | LU20: ='0A'!$X6 -> 0 | LV20: ='0A'!$D91 -> 300 | LW20: 299.99996 | LX20: 16 | LY20: 3A | LZ20: 0 | MA20: 300 | MB20: 0 | MC20: 0 | MD20: 0 | ME20: 0 | MF20: 0 | MG20: 0 | MI20: 4 | MJ20: 0B | MK20: 4 | ML20: ='0B'!$X6 -> 0 | MM20: ='0B'!$D91 -> 300 | MN20: 299.99996 | MO20: 16 | MP20: 3B | MQ20: 0.07390024067 | MR20: 300 | MS20: 0 | MT20: 0 | MU20: 0 | MV20: 0 | MW20: 22.1700722 | MX20: 0
E21: active sheet ==> | F21: =MID(CELL("filename"),FIND("]",CELL("filename"),1)+1,255) -> Long | G21: only relevant when "Automatic" data entry sheet | P21: dim@milk | Q21: =IFERROR(MATCH(-Q17,OFFSET(FP11, Q20,0,1000-Q20,1),1)+Q20,Q20) -> 0 | R21: 744 | S21: 533 | T21: 515 | U21: 515 | V21: 0 | W21: 744 | X21: 533 | Y21: 515 | Z21: 515 | AB21: =AB14*(AB19+AB17)+(1-AB14)*AB20 -> 122 | AC21: =AC14*(AC19+AC17)+(1-AC14)*AC20 -> 122 | AD21: average calf price | AH21: 2.904435156e-05 | AI21: 0.02904435156 | AL21: 11 | AM21: =IFERROR(CHOOSE($AK$13,'0A'!T21,'1A'!T21,'2A'!T21,'3A'!T21,'4A'!T21,'0B'!T21,'1B'!T21,'2B'!T21,'3B'!T21,'4B'!T21)/$AM$9,0) -> 0.9731968115 | AN21: =IFERROR(CHOOSE($AK$13,'0A'!AD21,'1A'!AD21,'2A'!AD21,'3A'!AD21,'4A'!AD21,'0B'!AD21,'1B'!AD21,'2B'!AD21,'3B'!AD21,'4B'!AD21)/$AM$9,0) -> 0 | AO21: =IFERROR(CHOOSE($AK$13,'0A'!AI21,'1A'!AI21,'2A'!AI21,'3A'!AI21,'4A'!AI21,'0B'!AI21,'1B'!AI21,'2B'!AI21,'3B'!AI21,'4B'!AI21)/$AM$9,0) -> 0.9731968115 | AP21: =IFERROR(CHOOSE($AK$13,'0A'!AG21,'1A'!AG21,'2A'!AG21,'3A'!AG21,'4A'!AG21,'0B'!AG21,'1B'!AG21,'2B'!AG21,'3B'!AG21,'4B'!AG21)/$AM$9,0) -> 0.9731968115 | AQ21: =IFERROR(CHOOSE($AK$13,'0A'!AH21,'1A'!AH21,'2A'!AH21,'3A'!AH21,'4A'!AH21,'0B'!AH21,'1B'!AH21,'2B'!AH21,'3B'!AH21,'4B'!AH21)/$AM$9,0) -> 0 | AR21: =IFERROR(CHOOSE($AK$13,'0A'!Q21,'1A'!Q21,'2A'!Q21,'3A'!Q21,'4A'!Q21,'0B'!Q21,'1B'!Q21,'2B'!Q21,'3B'!Q21,'4B'!Q21)/$AM$9/$AR$9,0) -> 0 | AS21: =IFERROR(CHOOSE($AK$13,'0A'!U21,'1A'!U21,'2A'!U21,'3A'!U21,'4A'!U21,'0B'!U21,'1B'!U21,'2B'!U21,'3B'!U21,'4B'!U21)/$AM$9,0) -> 0 | AT21: 74.75191628 | AU21: 34.55670311 | AV21: 9.246868788 | AX21: 11 | AY21: ='0A'!$T21/$AY$8 ->  | AZ21: ='1A'!$T21/$AZ$8 -> 0.9843093061 | BA21: ='2A'!$T21/$BA$8 -> 0.9731968115 | BB21: ='3A'!$T21/$BB$8 -> 0.9599560302 | BC21: ='4A'!$T21/$BC$8 -> 0.9456055944 | BD21: 0.9609050416 | BE21: 1 | BF21: ='0A'!$AI21/$AY$8 ->  | BG21: ='1A'!$AI21/$AZ$8 -> 0.9843093061 | BH21: ='2A'!$AI21/$BA$8 -> 0.9731968115 | BI21: ='3A'!$AI21/$BB$8 -> 0.9599560302 | BJ21: ='4A'!$AI21/$BC$8 -> 0.9456055944 | BK21: 0.9609050416 | BL21: ='0A'!$AM21/$AY$8 ->  | BM21: ='1A'!$AM21/$AZ$8 -> 0 | BN21: ='2A'!$AM21/$BA$8 -> 0 | BO21: ='3A'!$AM21/$BB$8 -> 0 | BP21: ='4A'!$AM21/$BC$8 -> 0 | BQ21: 0 | BR21: 11 | BS21: ='0B'!$T21/$BS$8 ->  | BT21: ='1B'!$T21/$BT$8 -> 0.9843093061 | BU21: ='2B'!$T21/$BU$8 -> 0.9731968115 | BV21: ='3B'!$T21/$BV$8 -> 0.9599560302 | BW21: ='4B'!$T21/$BW$8 -> 0.9456055944 | BX21: 0.9609050416 | BY21: 1 | BZ21: ='0B'!$AI21/$BS$8 ->  | CA21: ='1B'!$AI21/$BT$8 -> 0.9843093061 | CB21: ='2B'!$AI21/$BU$8 -> 0.9731968115 | CC21: ='3B'!$AI21/$BV$8 -> 0.9599560302 | CD21: ='4B'!$AI21/$BW$8 -> 0.9456055944 | CE21: 0.9609050416 | CF21: ='0B'!$AM21/$BS$8 ->  | CG21: ='1B'!$AM21/$BT$8 -> 0 | CH21: ='2B'!$AM21/$BU$8 -> 0 | CI21: ='3B'!$AM21/$BV$8 -> 0 | CJ21: ='4B'!$AM21/$BW$8 -> 0 | CK21: 0 | CO21: 11 | CP21: 0.001388728305 | CQ21: 0.00144961117 | CR21: 0.00239900794 | CS21: 0.003490213394 | CT21: 0.004773268193 | CU21: 0.001388728305 | CV21: 0.001355506328 | CW21: 0.002324375353 | CX21: 0.003490213394 | CY21: 0.004773268193 | CZ21: 0.001388728305 | DA21: 0.001355506328 | DB21: 0.002324375353 | DC21: 0.003490213394 | DD21: 0.004773268193 | DE21: 0.9456055944 | DI21: 5 | DJ21: 152.184 | DK21: 156.3287808 | DL21: 152.295248 | DQ21: 11 | DR21: 92.61 | DS21: 1180.376145 | DT21: 1376.474422 | DU21: 1378.787122 | DV21: 1378.984825 | DW21: 148.3404066 | DX21: 1256.359199 | DY21: 1387.247393 | DZ21: 1386.977182 | EA21: 1385.775916 | EB21: 148.3404066 | EC21: 1256.359199 | ED21: 1387.247393 | EE21: 1386.977182 | EF21: 1385.775916 | EG21: 10 | EH21: 0 | EN21: #heifer | EO21: ='0A'!$D$120 -> 0 | EP21: ='0B'!$D$120 -> 0 | EQ21: born calf | ES21: current pregnancy status | EY21: 11 | EZ21: 55.69383629 | FA21: 79.00375372 | FB21: 80.64720186 | FC21: 80.64720186 | FD21: 0 | FE21: =FE$5*FE$6*($EY21/30.4)^FE$7*EXP(-FE$8*$EY21/30.4)*IFERROR(extra!D21,1)+IF($EY21<=305,EO$8,0) -> 54.28579839 | FF21: =FF$5*FF$6*($EY21/30.4)^FF$7*EXP(-FF$8*$EY21/30.4)*IFERROR(extra!E21,1)+IF($EY21<=305,EP$8,0) -> 74.75191628 | FG21: =FG$5*FG$6*($EY21/30.4)^FG$7*EXP(-FG$8*$EY21/30.4)*IFERROR(extra!F21,1)+IF($EY21<=305,EQ$8,0) -> 80.81424574 | FH21: =FH$5*FH$6*($EY21/30.4)^FH$7*EXP(-FH$8*$EY21/30.4)*IFERROR(extra!G21,1)+IF($EY21<=305,ER$8,0) -> 80.81424574 | FI21: 0 | FJ21: =FJ$5*FJ$6*($EY21/30.4)^FJ$7*EXP(-FJ$8*$EY21/30.4)*IFERROR(extra!H21,1)+IF($EY21<=305,ET$8,0) -> 54.28579839 | FK21: =FK$5*FK$6*($EY21/30.4)^FK$7*EXP(-FK$8*$EY21/30.4)*IFERROR(extra!I21,1)+IF($EY21<=305,EU$8,0) -> 74.75191628 | FL21: =FL$5*FL$6*($EY21/30.4)^FL$7*EXP(-FL$8*$EY21/30.4)*IFERROR(extra!J21,1)+IF($EY21<=305,EV$8,0) -> 80.81424574 | FM21: =FM$5*FM$6*($EY21/30.4)^FM$7*EXP(-FM$8*$EY21/30.4)*IFERROR(extra!K21,1)+IF($EY21<=305,EW$8,0) -> 80.81424574 | FN21: 11 | FO21: 1 | FP21: 0 | FQ21: -54.28579839 | FR21: -74.75191628 | FS21: -80.81424574 | FT21: -80.81424574 | FU21: 0 | FV21: -54.28579839 | FW21: -74.75191628 | FX21: -80.81424574 | FY21: -80.81424574 | GA21: 11 | GB21: 1.061506929 | GC21: 1.45107161 | GD21: 1.533023824 | GE21: 0.7888651907 | GF21: 1.137005555 | GG21: 1.154607779 | GH21: 25.27418076 | GI21: 35.85859839 | GJ21: 36.67936172 | GK21: 25.2642638 | GP21: 35.85859839 | GQ21: 0.04046648992 | GR21: =$GC21/$GI21*GR$9 -> 0.0396321293 | GS21: 0.0396321293 | GT21: 0.0396321293 | GU21: 0.0396321293 | GV21: 0.0396321293 | GW21: 0.0396321293 | GX21: 0.0396321293 | GY21: 0.0396321293 | GZ21: 0.03326744252 | HA21: 0.03326744252 | HB21: 0.03326744252 | HC21: 0.03326744252 | HD21: 0.03326744252 | HE21: 0.03326744252 | HF21: 0.03326744252 | HG21: 0.03326744252 | HH21: 11 | HI21: 0 | HJ21: 0.1930435362 | HK21: 0.1930435362 | HL21: 0.1930435362 | HM21: 0.1930435362 | HN21: 0 | HO21: 0.1930435362 | HP21: 0.1930435362 | HQ21: 0.1930435362 | HR21: 0.1930435362 | HT21: 11 | HU21: 0.4231818182 | HV21: 1.734636364 | HY21: -1.39 | HZ21: 11 | IA21: 6.015435135 | IB21: 808605.0057 | IC21: 0 | ID21: 447893.2423 | IE21: 423720.8577 | IF21: 428086.0349 | IG21: 428086.0349 | IH21: 0 | II21: 447893.2423 | IJ21: 423720.8577 | IK21: 428086.0349 | IL21: 428086.0349 | IO21: 11 | IP21: 8.179949497 | IQ21: 28.53446104 | IR21: 34.55670311 | IS21: 35.97712746 | IT21: 35.96607764 | IU21: 8.179949497 | IV21: 28.53446104 | IW21: 34.55670311 | IX21: 35.97712746 | IY21: 35.96607764 | IZ21: 0.05514309747 | JA21: 1.902464473 | JB21: 2.163166898 | JC21: 2.246267321 | JD21: 2.24695744 | JF21: 11 | JG21: 0 | JH21: 6.19935333 | JI21: 9.246868788 | JJ21: 10.20409865 | JK21: 10.20575613 | JL21: 0 | JM21: 6.19935333 | JN21: 9.246868788 | JO21: 10.20409865 | JP21: 10.20575613 | JQ21: 0 | JR21: -6.19935333 | JS21: -9.246868788 | JT21: -10.20409865 | JU21: -10.20575613 | JV21: 0 | JW21: -6.19935333 | JX21: -9.246868788 | JY21: -10.20409865 | JZ21: -10.20575613 | KC21: 11 | KD21: 2.75 | KI21: 2.75 | KL21: 11 | KM21: 0.08031863459 | KN21: 0.2146792367 | KO21: 0.2544321961 | KP21: 0.2638084501 | KQ21: 0.2637355099 | KR21: 0.08031863459 | KS21: 0.2146792367 | KT21: 0.2544321961 | KU21: 0.2638084501 | KV21: 0.2637355099 | KX21: realized | KY21: =KY20 ->  | LF21: =LF20 ->  | LL21: reliability of voluntary selection (based on EBV is assumed) | LR21: 5 | LS21: 1A | LT21: 1 | LU21: ='1A'!$X3 -> 0.135674578 | LV21: ='1A'!$D88 -> 300 | LW21: 299.99999 | LX21: 1 | LY21: 0A | LZ21: 0 | MA21: 300 | MB21: 0 | MC21: 0 | MD21: 0 | ME21: 0 | MF21: 0 | MG21: 0 | MI21: 5 | MJ21: 1B | MK21: 1 | ML21: ='1B'!$X3 -> 0.09044971866 | MM21: ='1B'!$D88 -> 300 | MN21: 299.99999 | MO21: 1 | MP21: 0B | MQ21: 0 | MR21: 300 | MS21: 0 | MT21: 0 | MU21: 0 | MV21: 0 | MW21: 0 | MX21: 0
E22: actual data entry sheet ==> | F22: =IF(F20="Short","S",IF(F20="Long","L",IF(AND(F20="Automatic",F21="Short"),"S","L"))) -> L | G22: determine if data in the calculations comes from the Short or Long sheet | AH22: 1.625584525e-05 | AI22: 0.01625584525 | AL22: 12 | AM22: =IFERROR(CHOOSE($AK$13,'0A'!T22,'1A'!T22,'2A'!T22,'3A'!T22,'4A'!T22,'0B'!T22,'1B'!T22,'2B'!T22,'3B'!T22,'4B'!T22)/$AM$9,0) -> 0.9709624684 | AN22: =IFERROR(CHOOSE($AK$13,'0A'!AD22,'1A'!AD22,'2A'!AD22,'3A'!AD22,'4A'!AD22,'0B'!AD22,'1B'!AD22,'2B'!AD22,'3B'!AD22,'4B'!AD22)/$AM$9,0) -> 0 | AO22: =IFERROR(CHOOSE($AK$13,'0A'!AI22,'1A'!AI22,'2A'!AI22,'3A'!AI22,'4A'!AI22,'0B'!AI22,'1B'!AI22,'2B'!AI22,'3B'!AI22,'4B'!AI22)/$AM$9,0) -> 0.9709624684 | AP22: =IFERROR(CHOOSE($AK$13,'0A'!AG22,'1A'!AG22,'2A'!AG22,'3A'!AG22,'4A'!AG22,'0B'!AG22,'1B'!AG22,'2B'!AG22,'3B'!AG22,'4B'!AG22)/$AM$9,0) -> 0.9709624684 | AQ22: =IFERROR(CHOOSE($AK$13,'0A'!AH22,'1A'!AH22,'2A'!AH22,'3A'!AH22,'4A'!AH22,'0B'!AH22,'1B'!AH22,'2B'!AH22,'3B'!AH22,'4B'!AH22)/$AM$9,0) -> 0 | AR22: =IFERROR(CHOOSE($AK$13,'0A'!Q22,'1A'!Q22,'2A'!Q22,'3A'!Q22,'4A'!Q22,'0B'!Q22,'1B'!Q22,'2B'!Q22,'3B'!Q22,'4B'!Q22)/$AM$9/$AR$9,0) -> 0 | AS22: =IFERROR(CHOOSE($AK$13,'0A'!U22,'1A'!U22,'2A'!U22,'3A'!U22,'4A'!U22,'0B'!U22,'1B'!U22,'2B'!U22,'3B'!U22,'4B'!U22)/$AM$9,0) -> 0 | AT22: 75.68630833 | AU22: 35.2674495 | AV22: 9.30042093 | AX22: 12 | AY22: ='0A'!$T22/$AY$8 ->  | AZ22: ='1A'!$T22/$AZ$8 -> 0.9829910529 | BA22: ='2A'!$T22/$BA$8 -> 0.9709624684 | BB22: ='3A'!$T22/$BB$8 -> 0.9566474594 | BC22: ='4A'!$T22/$BC$8 -> 0.9411483856 | BD22: 0.9576829494 | BE22: 1 | BF22: ='0A'!$AI22/$AY$8 ->  | BG22: ='1A'!$AI22/$AZ$8 -> 0.9829910529 | BH22: ='2A'!$AI22/$BA$8 -> 0.9709624684 | BI22: ='3A'!$AI22/$BB$8 -> 0.9566474594 | BJ22: ='4A'!$AI22/$BC$8 -> 0.9411483856 | BK22: 0.9576829494 | BL22: ='0A'!$AM22/$AY$8 ->  | BM22: ='1A'!$AM22/$AZ$8 -> 0 | BN22: ='2A'!$AM22/$BA$8 -> 0 | BO22: ='3A'!$AM22/$BB$8 -> 0 | BP22: ='4A'!$AM22/$BC$8 -> 0 | BQ22: 0 | BR22: 12 | BS22: ='0B'!$T22/$BS$8 ->  | BT22: ='1B'!$T22/$BT$8 -> 0.9829910529 | BU22: ='2B'!$T22/$BU$8 -> 0.9709624684 | BV22: ='3B'!$T22/$BV$8 -> 0.9566474594 | BW22: ='4B'!$T22/$BW$8 -> 0.9411483856 | BX22: 0.9576829494 | BY22: 1 | BZ22: ='0B'!$AI22/$BS$8 ->  | CA22: ='1B'!$AI22/$BT$8 -> 0.9829910529 | CB22: ='2B'!$AI22/$BU$8 -> 0.9709624684 | CC22: ='3B'!$AI22/$BV$8 -> 0.9566474594 | CD22: ='4B'!$AI22/$BW$8 -> 0.9411483856 | CE22: 0.9576829494 | CF22: ='0B'!$AM22/$BS$8 ->  | CG22: ='1B'!$AM22/$BT$8 -> 0 | CH22: ='2B'!$AM22/$BU$8 -> 0 | CI22: ='3B'!$AM22/$BV$8 -> 0 | CJ22: ='4B'!$AM22/$BW$8 -> 0 | CK22: 0 | CO22: 12 | CP22: 0.001388728305 | CQ22: 0.001431490016 | CR22: 0.002369019906 | CS22: 0.003446585723 | CT22: 0.004713602338 | CU22: 0.001388728305 | CV22: 0.00133926727 | CW22: 0.002295879971 | CX22: 0.003446585723 | CY22: 0.004713602338 | CZ22: 0.001388728305 | DA22: 0.00133926727 | DB22: 0.002295879971 | DC22: 0.003446585723 | DD22: 0.004713602338 | DE22: 0.9411483856 | DI22: 6 | DJ22: 182.6208 | DK22: 178.5387477 | DL22: 177.3142976 | DQ22: 12 | DR22: 92.61 | DS22: 1179.576695 | DT22: 1374.060767 | DU22: 1376.359642 | DV22: 1376.556162 | DW22: 148.3404066 | DX22: 1254.156167 | DY22: 1384.814848 | DZ22: 1384.545111 | EA22: 1383.345952 | EB22: 148.3404066 | EC22: 1254.156167 | ED22: 1384.814848 | EE22: 1384.545111 | EF22: 1383.345952 | EG22: 11 | EH22: 0 | EO22: A | EP22: B | EQ22: parity 0 | ER22: open | ES22: male | ET22: female | EY22: 12 | EZ22: 56.60133995 | FA22: 79.99129335 | FB22: 81.84704587 | FC22: 81.84704587 | FD22: 0 | FE22: =FE$5*FE$6*($EY22/30.4)^FE$7*EXP(-FE$8*$EY22/30.4)*IFERROR(extra!D22,1)+IF($EY22<=305,EO$8,0) -> 55.17035877 | FF22: =FF$5*FF$6*($EY22/30.4)^FF$7*EXP(-FF$8*$EY22/30.4)*IFERROR(extra!E22,1)+IF($EY22<=305,EP$8,0) -> 75.68630833 | FG22: =FG$5*FG$6*($EY22/30.4)^FG$7*EXP(-FG$8*$EY22/30.4)*IFERROR(extra!F22,1)+IF($EY22<=305,EQ$8,0) -> 82.01657498 | FH22: =FH$5*FH$6*($EY22/30.4)^FH$7*EXP(-FH$8*$EY22/30.4)*IFERROR(extra!G22,1)+IF($EY22<=305,ER$8,0) -> 82.01657498 | FI22: 0 | FJ22: =FJ$5*FJ$6*($EY22/30.4)^FJ$7*EXP(-FJ$8*$EY22/30.4)*IFERROR(extra!H22,1)+IF($EY22<=305,ET$8,0) -> 55.17035877 | FK22: =FK$5*FK$6*($EY22/30.4)^FK$7*EXP(-FK$8*$EY22/30.4)*IFERROR(extra!I22,1)+IF($EY22<=305,EU$8,0) -> 75.68630833 | FL22: =FL$5*FL$6*($EY22/30.4)^FL$7*EXP(-FL$8*$EY22/30.4)*IFERROR(extra!J22,1)+IF($EY22<=305,EV$8,0) -> 82.01657498 | FM22: =FM$5*FM$6*($EY22/30.4)^FM$7*EXP(-FM$8*$EY22/30.4)*IFERROR(extra!K22,1)+IF($EY22<=305,EW$8,0) -> 82.01657498 | FN22: 12 | FO22: 1 | FP22: 0 | FQ22: -55.17035877 | FR22: -75.68630833 | FS22: -82.01657498 | FT22: -82.01657498 | FU22: 0 | FV22: -55.17035877 | FW22: -75.68630833 | FX22: -82.01657498 | FY22: -82.01657498 | GA22: 12 | GB22: 1.07575809 | GC22: 1.465418961 | GD22: 1.551136219 | GE22: 0.7999219126 | GF22: 1.148327534 | GG22: 1.168208597 | GH22: 25.6845699 | GI22: 36.30725234 | GJ22: 37.22067655 | GK22: 25.67556674 | GP22: 36.30725234 | GQ22: 0.04036160453 | GR22: 0.0395294065 | GS22: 0.0395294065 | GT22: 0.0395294065 | GU22: 0.0395294065 | GV22: 0.0395294065 | GW22: 0.0395294065 | GX22: 0.0395294065 | GY22: 0.0395294065 | GZ22: 0.03318352619 | HA22: 0.03318352619 | HB22: 0.03318352619 | HC22: 0.03318352619 | HD22: 0.03318352619 | HE22: 0.03318352619 | HF22: 0.03318352619 | HG22: 0.03318352619 | HH22: 12 | HI22: 0 | HJ22: 0.1927764569 | HK22: 0.1927764569 | HL22: 0.1927764569 | HM22: 0.1927764569 | HN22: 0 | HO22: 0.1927764569 | HP22: 0.1927764569 | HQ22: 0.1927764569 | HR22: 0.1927764569 | HT22: 12 | HU22: 0.5490833333 | HV22: 1.806666667 | HY22: -1.38 | HZ22: 12 | IA22: 5.807677939 | IB22: 700156.7465 | IC22: 0 | ID22: 387822.8222 | IE22: 366892.3826 | IF22: 370672.1122 | IG22: 370672.1122 | IH22: 0 | II22: 387822.8222 | IJ22: 366892.3826 | IK22: 370672.1122 | IL22: 370672.1122 | IO22: 12 | IP22: 8.179949497 | IQ22: 29.14865538 | IR22: 35.2674495 | IS22: 36.77155049 | IT22: 36.76034317 | IU22: 8.179949497 | IV22: 29.14865538 | IW22: 35.2674495 | IX22: 36.77155049 | IY22: 36.76034317 | IZ22: 0.05514309747 | JA22: 1.892723971 | JB22: 2.146066965 | JC22: 2.230435592 | JD22: 2.231115596 | JF22: 12 | JG22: 0 | JH22: 6.263247981 | JI22: 9.30042093 | JJ22: 10.29513216 | JK22: 10.29681326 | JL22: 0 | JM22: 6.263247981 | JN22: 9.30042093 | JO22: 10.29513216 | JP22: 10.29681326 | JQ22: 0 | JR22: -6.263247981 | JS22: -9.30042093 | JT22: -10.29513216 | JU22: -10.29681326 | JV22: 0 | JW22: -6.263247981 | JX22: -9.30042093 | JY22: -10.29513216 | JZ22: -10.29681326 | KC22: 12 | KD22: 2.75 | KI22: 2.75 | KL22: 12 | KM22: 0.08031863459 | KN22: 0.2187335478 | KO22: 0.2591238494 | KP22: 0.2690524549 | KQ22: 0.2689784751 | KR22: 0.08031863459 | KS22: 0.2187335478 | KT22: 0.2591238494 | KU22: 0.2690524549 | KV22: 0.2689784751 | KY22: =IFERROR(-NORMSINV(KY19),9) -> 9 | LF22: =IFERROR(-NORMSINV(LF19),9) -> 9 | LL22: z-score = t = truncation point | LR22: 6 | LS22: 1A | LT22: 2 | LU22: ='1A'!$X4 -> 0.1114115015 | LV22: ='1A'!$D89 -> 300 | LW22: 299.99998 | LX22: 6 | LY22: 1A | LZ22: 0.1114115015 | MA22: 300 | MB22: 0 | MC22: 0 | MD22: 0 | ME22: 0 | MF22: 33.42345046 | MG22: 0 | MI22: 6 | MJ22: 1B | MK22: 2 | ML22: ='1B'!$X4 -> 0.07048720245 | MM22: ='1B'!$D89 -> 300 | MN22: 299.99998 | MO22: 6 | MP22: 1B | MQ22: 0.07048720245 | MR22: 300 | MS22: 0 | MT22: 0 | MU22: 0 | MV22: 0 | MW22: 21.14616073 | MX22: 0
E23: Note that the "control" sheet always works off my own short and long sheets, whether they are named "short" and "long" or not | AB23: age at calving and %dairy calves | AH23: 9.098240817e-06 | AI23: 0.009098240817 | AL23: 13 | AM23: =IFERROR(CHOOSE($AK$13,'0A'!T23,'1A'!T23,'2A'!T23,'3A'!T23,'4A'!T23,'0B'!T23,'1B'!T23,'2B'!T23,'3B'!T23,'4B'!T23)/$AM$9,0) -> 0.9687609231 | AN23: =IFERROR(CHOOSE($AK$13,'0A'!AD23,'1A'!AD23,'2A'!AD23,'3A'!AD23,'4A'!AD23,'0B'!AD23,'1B'!AD23,'2B'!AD23,'3B'!AD23,'4B'!AD23)/$AM$9,0) -> 0 | AO23: =IFERROR(CHOOSE($AK$13,'0A'!AI23,'1A'!AI23,'2A'!AI23,'3A'!AI23,'4A'!AI23,'0B'!AI23,'1B'!AI23,'2B'!AI23,'3B'!AI23,'4B'!AI23)/$AM$9,0) -> 0.9687609231 | AP23: =IFERROR(CHOOSE($AK$13,'0A'!AG23,'1A'!AG23,'2A'!AG23,'3A'!AG23,'4A'!AG23,'0B'!AG23,'1B'!AG23,'2B'!AG23,'3B'!AG23,'4B'!AG23)/$AM$9,0) -> 0.9687609231 | AQ23: =IFERROR(CHOOSE($AK$13,'0A'!AH23,'1A'!AH23,'2A'!AH23,'3A'!AH23,'4A'!AH23,'0B'!AH23,'1B'!AH23,'2B'!AH23,'3B'!AH23,'4B'!AH23)/$AM$9,0) -> 0 | AR23: =IFERROR(CHOOSE($AK$13,'0A'!Q23,'1A'!Q23,'2A'!Q23,'3A'!Q23,'4A'!Q23,'0B'!Q23,'1B'!Q23,'2B'!Q23,'3B'!Q23,'4B'!Q23)/$AM$9/$AR$9,0) -> 0 | AS23: =IFERROR(CHOOSE($AK$13,'0A'!U23,'1A'!U23,'2A'!U23,'3A'!U23,'4A'!U23,'0B'!U23,'1B'!U23,'2B'!U23,'3B'!U23,'4B'!U23)/$AM$9,0) -> 0 | AT23: 76.53735679 | AU23: 35.95125228 | AV23: 9.343312141 | AX23: 13 | AY23: ='0A'!$T23/$AY$8 ->  | AZ23: ='1A'!$T23/$AZ$8 -> 0.981690528 | BA23: ='2A'!$T23/$BA$8 -> 0.9687609231 | BB23: ='3A'!$T23/$BB$8 -> 0.9533920282 | BC23: ='4A'!$T23/$BC$8 -> 0.9367683408 | BD23: 0.9545137709 | BE23: 1 | BF23: ='0A'!$AI23/$AY$8 ->  | BG23: ='1A'!$AI23/$AZ$8 -> 0.981690528 | BH23: ='2A'!$AI23/$BA$8 -> 0.9687609231 | BI23: ='3A'!$AI23/$BB$8 -> 0.9533920282 | BJ23: ='4A'!$AI23/$BC$8 -> 0.9367683408 | BK23: 0.9545137709 | BL23: ='0A'!$AM23/$AY$8 ->  | BM23: ='1A'!$AM23/$AZ$8 -> 0 | BN23: ='2A'!$AM23/$BA$8 -> 0 | BO23: ='3A'!$AM23/$BB$8 -> 0 | BP23: ='4A'!$AM23/$BC$8 -> 0 | BQ23: 0 | BR23: 13 | BS23: ='0B'!$T23/$BS$8 ->  | BT23: ='1B'!$T23/$BT$8 -> 0.981690528 | BU23: ='2B'!$T23/$BU$8 -> 0.9687609231 | BV23: ='3B'!$T23/$BV$8 -> 0.9533920282 | BW23: ='4B'!$T23/$BW$8 -> 0.9367683408 | BX23: 0.9545137709 | BY23: 1 | BZ23: ='0B'!$AI23/$BS$8 ->  | CA23: ='1B'!$AI23/$BT$8 -> 0.981690528 | CB23: ='2B'!$AI23/$BU$8 -> 0.9687609231 | CC23: ='3B'!$AI23/$BV$8 -> 0.9533920282 | CD23: ='4B'!$AI23/$BW$8 -> 0.9367683408 | CE23: 0.9545137709 | CF23: ='0B'!$AM23/$BS$8 ->  | CG23: ='1B'!$AM23/$BT$8 -> 0 | CH23: ='2B'!$AM23/$BU$8 -> 0 | CI23: ='3B'!$AM23/$BV$8 -> 0 | CJ23: ='4B'!$AM23/$BW$8 -> 0 | CK23: 0 | CO23: 13 | CP23: 0.001388728305 | CQ23: 0.001413368861 | CR23: 0.002339031872 | CS23: 0.003402958053 | CT23: 0.004653936483 | CU23: 0.001388728305 | CV23: 0.001323028212 | CW23: 0.002267384589 | CX23: 0.003402958053 | CY23: 0.004653936483 | CZ23: 0.001388728305 | DA23: 0.001323028212 | DB23: 0.002267384589 | DC23: 0.003402958053 | DD23: 0.004653936483 | DE23: 0.9367683408 | DI23: 7 | DJ23: 213.0576 | DK23: 200.7487146 | DL23: 202.3333472 | DQ23: 13 | DR23: 92.61 | DS23: 1178.818357 | DT23: 1371.7224 | DU23: 1374.007532 | DV23: 1374.202876 | DW23: 148.3404066 | DX23: 1252.021853 | DY23: 1382.45818 | DZ23: 1382.188901 | EA23: 1380.991783 | EB23: 148.3404066 | EC23: 1252.021853 | ED23: 1382.45818 | EE23: 1382.188901 | EF23: 1380.991783 | EG23: 12 | EH23: 0 | EN23: =AVERAGE(ES23:ET23) -> 53.7414966 | EO23: =EO$20/(EO$20+EO$21) ->  | EP23: =EP$20/(EP$20+EP$21) ->  | EQ23: bull | ER23: 0 | ES23: 0 | ET23: 107.4829932 | EU23: kg/305 d milk | EY23: 13 | EZ23: 57.4399766 | FA23: 80.89074886 | FB23: 82.94281701 | FC23: 82.94281701 | FD23: 0 | FE23: =FE$5*FE$6*($EY23/30.4)^FE$7*EXP(-FE$8*$EY23/30.4)*IFERROR(extra!D23,1)+IF($EY23<=305,EO$8,0) -> 55.98779321 | FF23: =FF$5*FF$6*($EY23/30.4)^FF$7*EXP(-FF$8*$EY23/30.4)*IFERROR(extra!E23,1)+IF($EY23<=305,EP$8,0) -> 76.53735679 | FG23: =FG$5*FG$6*($EY23/30.4)^FG$7*EXP(-FG$8*$EY23/30.4)*IFERROR(extra!F23,1)+IF($EY23<=305,EQ$8,0) -> 83.11461578 | FH23: =FH$5*FH$6*($EY23/30.4)^FH$7*EXP(-FH$8*$EY23/30.4)*IFERROR(extra!G23,1)+IF($EY23<=305,ER$8,0) -> 83.11461578 | FI23: 0 | FJ23: =FJ$5*FJ$6*($EY23/30.4)^FJ$7*EXP(-FJ$8*$EY23/30.4)*IFERROR(extra!H23,1)+IF($EY23<=305,ET$8,0) -> 55.98779321 | FK23: =FK$5*FK$6*($EY23/30.4)^FK$7*EXP(-FK$8*$EY23/30.4)*IFERROR(extra!I23,1)+IF($EY23<=305,EU$8,0) -> 76.53735679 | FL23: =FL$5*FL$6*($EY23/30.4)^FL$7*EXP(-FL$8*$EY23/30.4)*IFERROR(extra!J23,1)+IF($EY23<=305,EV$8,0) -> 83.11461578 | FM23: =FM$5*FM$6*($EY23/30.4)^FM$7*EXP(-FM$8*$EY23/30.4)*IFERROR(extra!K23,1)+IF($EY23<=305,EW$8,0) -> 83.11461578 | FN23: 13 | FO23: 1 | FP23: 0 | FQ23: -55.98779321 | FR23: -76.53735679 | FS23: -83.11461578 | FT23: -83.11461578 | FU23: 0 | FV23: -55.98779321 | FW23: -76.53735679 | FX23: -83.11461578 | FY23: -83.11461578 | GA23: 13 | GB23: 1.088877182 | GC23: 1.478407359 | GD23: 1.56757382 | GE23: 0.8101066275 | GF23: 1.158579654 | GG23: 1.180550464 | GH23: 26.06379812 | GI23: 36.71587141 | GJ23: 37.71490488 | GK23: 26.05565229 | GP23: 36.71587141 | GQ23: 0.04026616563 | GR23: 0.03943593541 | GS23: 0.03943593541 | GT23: 0.03943593541 | GU23: 0.03943593541 | GV23: 0.03943593541 | GW23: 0.03943593541 | GX23: 0.03943593541 | GY23: 0.03943593541 | GZ23: 0.03310718047 | HA23: 0.03310718047 | HB23: 0.03310718047 | HC23: 0.03310718047 | HD23: 0.03310718047 | HE23: 0.03310718047 | HF23: 0.03310718047 | HG23: 0.03310718047 | HH23: 13 | HI23: 0 | HJ23: 0.1925334321 | HK23: 0.1925334321 | HL23: 0.1925334321 | HM23: 0.1925334321 | HN23: 0 | HO23: 0.1925334321 | HP23: 0.1925334321 | HQ23: 0.1925334321 | HR23: 0.1925334321 | HT23: 13 | HU23: 0.6553076923 | HV23: 1.868230769 | HY23: -1.37 | HZ23: 13 | IA23: 5.638132762 | IB23: 622525.4257 | IC23: 0 | ID23: 344822.1683 | IE23: 326212.4343 | IF23: 329573.0786 | IG23: 329573.0786 | IH23: 0 | II23: 344822.1683 | IJ23: 326212.4343 | IK23: 329573.0786 | IL23: 329573.0786 | IO23: 13 | IP23: 8.179949497 | IQ23: 29.7415704 | IR23: 35.95125228 | IS23: 37.53523828 | IT23: 37.52387812 | IU23: 8.179949497 | IV23: 29.7415704 | IW23: 35.95125228 | IX23: 37.53523828 | IY23: 37.52387812 | IZ23: 0.05514309747 | JA23: 1.882476025 | JB23: 2.128920467 | JC23: 2.214308995 | JD23: 2.214979366 | JF23: 13 | JG23: 0 | JH23: 6.318286421 | JI23: 9.343312141 | JJ23: 10.37205649 | JK23: 10.37376051 | JL23: 0 | JM23: 6.318286421 | JN23: 9.343312141 | JO23: 10.37205649 | JP23: 10.37376051 | JQ23: 0 | JR23: -6.318286421 | JS23: -9.343312141 | JT23: -10.37205649 | JU23: -10.37376051 | JV23: 0 | JW23: -6.318286421 | JX23: -9.343312141 | JY23: -10.37205649 | JZ23: -10.37376051 | KC23: 13 | KD23: 2.75 | KI23: 2.75 | KL23: 13 | KM23: 0.08031863459 | KN23: 0.2226473935 | KO23: 0.2636376474 | KP23: 0.2740935757 | KQ23: 0.274018587 | KR23: 0.08031863459 | KS23: 0.2226473935 | KT23: 0.2636376474 | KU23: 0.2740935757 | KV23: 0.274018587 | KY23: =IFERROR((1/SQRT(2*PI())*EXP(-(KY22^2)/2))/KY19,0) -> 0 | LF23: =IFERROR((1/SQRT(2*PI())*EXP(-(LF22^2)/2))/LF19,0) -> 0 | LL23: i = selection differential | LR23: 7 | LS23: 1A | LT23: 3 | LU23: ='1A'!$X5 -> 0.09169519526 | LV23: ='1A'!$D90 -> 300 | LW23: 299.99997 | LX23: 11 | LY23: 2A | LZ23: 0.03823354579 | MA23: 300 | MB23: 0 | MC23: 0 | MD23: 0 | ME23: 0 | MF23: 11.47006374 | MG23: 0 | MI23: 7 | MJ23: 1B | MK23: 3 | ML23: ='1B'!$X5 -> 0.0551035835 | MM23: ='1B'!$D90 -> 300 | MN23: 299.99997 | MO23: 11 | MP23: 2B | MQ23: 0.0387763291 | MR23: 300 | MS23: 0 | MT23: 0 | MU23: 0 | MV23: 0 | MW23: 11.63289873 | MX23: 0
E24: theme colors | AB24: 365 | AC24: 365 | AD24: #purchased heifers calving/year | AH24: 5.092198201e-06 | AI24: 0.005092198201 | AL24: 14 | AM24: =IFERROR(CHOOSE($AK$13,'0A'!T24,'1A'!T24,'2A'!T24,'3A'!T24,'4A'!T24,'0B'!T24,'1B'!T24,'2B'!T24,'3B'!T24,'4B'!T24)/$AM$9,0) -> 0.9665919747 | AN24: =IFERROR(CHOOSE($AK$13,'0A'!AD24,'1A'!AD24,'2A'!AD24,'3A'!AD24,'4A'!AD24,'0B'!AD24,'1B'!AD24,'2B'!AD24,'3B'!AD24,'4B'!AD24)/$AM$9,0) -> 0 | AO24: =IFERROR(CHOOSE($AK$13,'0A'!AI24,'1A'!AI24,'2A'!AI24,'3A'!AI24,'4A'!AI24,'0B'!AI24,'1B'!AI24,'2B'!AI24,'3B'!AI24,'4B'!AI24)/$AM$9,0) -> 0.9665919747 | AP24: =IFERROR(CHOOSE($AK$13,'0A'!AG24,'1A'!AG24,'2A'!AG24,'3A'!AG24,'4A'!AG24,'0B'!AG24,'1B'!AG24,'2B'!AG24,'3B'!AG24,'4B'!AG24)/$AM$9,0) -> 0.9665919747 | AQ24: =IFERROR(CHOOSE($AK$13,'0A'!AH24,'1A'!AH24,'2A'!AH24,'3A'!AH24,'4A'!AH24,'0B'!AH24,'1B'!AH24,'2B'!AH24,'3B'!AH24,'4B'!AH24)/$AM$9,0) -> 0 | AR24: =IFERROR(CHOOSE($AK$13,'0A'!Q24,'1A'!Q24,'2A'!Q24,'3A'!Q24,'4A'!Q24,'0B'!Q24,'1B'!Q24,'2B'!Q24,'3B'!Q24,'4B'!Q24)/$AM$9/$AR$9,0) -> 0 | AS24: =IFERROR(CHOOSE($AK$13,'0A'!U24,'1A'!U24,'2A'!U24,'3A'!U24,'4A'!U24,'0B'!U24,'1B'!U24,'2B'!U24,'3B'!U24,'4B'!U24)/$AM$9,0) -> 0 | AT24: 77.31623391 | AU24: 36.61003498 | AV24: 9.377244253 | AX24: 14 | AY24: ='0A'!$T24/$AY$8 ->  | AZ24: ='1A'!$T24/$AZ$8 -> 0.9804076654 | BA24: ='2A'!$T24/$BA$8 -> 0.9665919747 | BB24: ='3A'!$T24/$BB$8 -> 0.9501892694 | BC24: ='4A'!$T24/$BC$8 -> 0.9324645735 | BD24: 0.951396985 | BE24: 1 | BF24: ='0A'!$AI24/$AY$8 ->  | BG24: ='1A'!$AI24/$AZ$8 -> 0.9804076654 | BH24: ='2A'!$AI24/$BA$8 -> 0.9665919747 | BI24: ='3A'!$AI24/$BB$8 -> 0.9501892694 | BJ24: ='4A'!$AI24/$BC$8 -> 0.9324645735 | BK24: 0.951396985 | BL24: ='0A'!$AM24/$AY$8 ->  | BM24: ='1A'!$AM24/$AZ$8 -> 0 | BN24: ='2A'!$AM24/$BA$8 -> 0 | BO24: ='3A'!$AM24/$BB$8 -> 0 | BP24: ='4A'!$AM24/$BC$8 -> 0 | BQ24: 0 | BR24: 14 | BS24: ='0B'!$T24/$BS$8 ->  | BT24: ='1B'!$T24/$BT$8 -> 0.9804076654 | BU24: ='2B'!$T24/$BU$8 -> 0.9665919747 | BV24: ='3B'!$T24/$BV$8 -> 0.9501892694 | BW24: ='4B'!$T24/$BW$8 -> 0.9324645735 | BX24: 0.951396985 | BY24: 1 | BZ24: ='0B'!$AI24/$BS$8 ->  | CA24: ='1B'!$AI24/$BT$8 -> 0.9804076654 | CB24: ='2B'!$AI24/$BU$8 -> 0.9665919747 | CC24: ='3B'!$AI24/$BV$8 -> 0.9501892694 | CD24: ='4B'!$AI24/$BW$8 -> 0.9324645735 | CE24: 0.951396985 | CF24: ='0B'!$AM24/$BS$8 ->  | CG24: ='1B'!$AM24/$BT$8 -> 0 | CH24: ='2B'!$AM24/$BU$8 -> 0 | CI24: ='3B'!$AM24/$BV$8 -> 0 | CJ24: ='4B'!$AM24/$BW$8 -> 0 | CK24: 0 | CO24: 14 | CP24: 0.001388728305 | CQ24: 0.001395247706 | CR24: 0.002309043839 | CS24: 0.003359330382 | CT24: 0.004594270628 | CU24: 0.001388728305 | CV24: 0.001306789154 | CW24: 0.002238889207 | CX24: 0.003359330382 | CY24: 0.004594270628 | CZ24: 0.001388728305 | DA24: 0.001306789154 | DB24: 0.002238889207 | DC24: 0.003359330382 | DD24: 0.004594270628 | DE24: 0.9324645735 | DI24: 8 | DJ24: 243.4944 | DK24: 222.9586815 | DL24: 227.3523968 | DQ24: 14 | DR24: 92.61 | DS24: 1178.100124 | DT24: 1369.457671 | DU24: 1371.729142 | DV24: 1371.923318 | DW24: 148.3404066 | DX24: 1249.954751 | DY24: 1380.175726 | DZ24: 1379.906892 | EA24: 1378.711751 | EB24: 148.3404066 | EC24: 1249.954751 | ED24: 1380.175726 | EE24: 1379.906892 | EF24: 1378.711751 | EG24: 13 | EH24: 0 | EN24: =AVERAGE(ES24:ET24) -> 178.4580499 | EO24: =EO$21/(EO$20+EO$21) ->  | EP24: =EP$21/(EP$20+EP$21) ->  | EQ24: heifer | ER24: 142 | ES24: 171.4285714 | ET24: 185.4875283 | EU24: kg/305 d milk | EY24: 14 | EZ24: 58.21883811 | FA24: 81.71392797 | FB24: 83.94817717 | FC24: 83.94817717 | FD24: 0 | FE24: =FE$5*FE$6*($EY24/30.4)^FE$7*EXP(-FE$8*$EY24/30.4)*IFERROR(extra!D24,1)+IF($EY24<=305,EO$8,0) -> 56.74696373 | FF24: =FF$5*FF$6*($EY24/30.4)^FF$7*EXP(-FF$8*$EY24/30.4)*IFERROR(extra!E24,1)+IF($EY24<=305,EP$8,0) -> 77.31623391 | FG24: =FG$5*FG$6*($EY24/30.4)^FG$7*EXP(-FG$8*$EY24/30.4)*IFERROR(extra!F24,1)+IF($EY24<=305,EQ$8,0) -> 84.12205833 | FH24: =FH$5*FH$6*($EY24/30.4)^FH$7*EXP(-FH$8*$EY24/30.4)*IFERROR(extra!G24,1)+IF($EY24<=305,ER$8,0) -> 84.12205833 | FI24: 0 | FJ24: =FJ$5*FJ$6*($EY24/30.4)^FJ$7*EXP(-FJ$8*$EY24/30.4)*IFERROR(extra!H24,1)+IF($EY24<=305,ET$8,0) -> 56.74696373 | FK24: =FK$5*FK$6*($EY24/30.4)^FK$7*EXP(-FK$8*$EY24/30.4)*IFERROR(extra!I24,1)+IF($EY24<=305,EU$8,0) -> 77.31623391 | FL24: =FL$5*FL$6*($EY24/30.4)^FL$7*EXP(-FL$8*$EY24/30.4)*IFERROR(extra!J24,1)+IF($EY24<=305,EV$8,0) -> 84.12205833 | FM24: =FM$5*FM$6*($EY24/30.4)^FM$7*EXP(-FM$8*$EY24/30.4)*IFERROR(extra!K24,1)+IF($EY24<=305,EW$8,0) -> 84.12205833 | FN24: 14 | FO24: 1 | FP24: 0 | FQ24: -56.74696373 | FR24: -77.31623391 | FS24: -84.12205833 | FT24: -84.12205833 | FU24: 0 | FV24: -56.74696373 | FW24: -77.31623391 | FX24: -84.12205833 | FY24: -84.12205833 | GA24: 14 | GB24: 1.101016756 | GC24: 1.490222624 | GD24: 1.582561828 | GE24: 0.8195363121 | GF24: 1.16790813 | GG24: 1.191802705 | GH24: 26.41598119 | GI24: 37.08982142 | GJ24: 38.1682333 | GK24: 26.40864227 | GP24: 37.08982142 | GQ24: 0.04017874896 | GR24: 0.03935032115 | GS24: 0.03935032115 | GT24: 0.03935032115 | GU24: 0.03935032115 | GV24: 0.03935032115 | GW24: 0.03935032115 | GX24: 0.03935032115 | GY24: 0.03935032115 | GZ24: 0.03303726435 | HA24: 0.03303726435 | HB24: 0.03303726435 | HC24: 0.03303726435 | HD24: 0.03303726435 | HE24: 0.03303726435 | HF24: 0.03303726435 | HG24: 0.03303726435 | HH24: 14 | HI24: 0 | HJ24: 0.192310835 | HK24: 0.192310835 | HL24: 0.192310835 | HM24: 0.192310835 | HN24: 0 | HO24: 0.192310835 | HP24: 0.192310835 | HQ24: 0.192310835 | HR24: 0.192310835 | HT24: 14 | HU24: 0.7460714286 | HV24: 1.921571429 | HY24: -1.36 | HZ24: 14 | IA24: 5.497326964 | IB24: 564638.2894 | IC24: 0 | ID24: 312757.9874 | IE24: 295878.7276 | IF24: 298926.8737 | IG24: 298926.8737 | IH24: 0 | II24: 312757.9874 | IJ24: 295878.7276 | IK24: 298926.8737 | IL24: 298926.8737 | IO24: 14 | IP24: 8.179949497 | IQ24: 30.31472421 | IR24: 36.61003498 | IS24: 38.2704672 | IT24: 38.25895867 | IU24: 8.179949497 | IV24: 30.31472421 | IW24: 36.61003498 | IX24: 38.2704672 | IY24: 38.25895867 | IZ24: 0.05514309747 | JA24: 1.871927428 | JB24: 2.111886371 | JC24: 2.198093321 | JD24: 2.198754521 | JF24: 14 | JG24: 0 | JH24: 6.365847347 | JI24: 9.377244253 | JJ24: 10.4370132 | JK24: 10.43873948 | JL24: 0 | JM24: 6.365847347 | JN24: 9.377244253 | JO24: 10.4370132 | JP24: 10.43873948 | JQ24: 0 | JR24: -6.365847347 | JS24: -9.377244253 | JT24: -10.4370132 | JU24: -10.43873948 | JV24: 0 | JW24: -6.365847347 | JX24: -9.377244253 | JY24: -10.4370132 | JZ24: -10.43873948 | KC24: 14 | KD24: 2.75 | KI24: 2.75 | KL24: 14 | KM24: 0.08031863459 | KN24: 0.2264307951 | KO24: 0.2679862873 | KP24: 0.2789468388 | KQ24: 0.2788708707 | KR24: 0.08031863459 | KS24: 0.2264307951 | KT24: 0.2679862873 | KU24: 0.2789468388 | KV24: 0.2788708707 | KX24: engine | KY24: =KY16*SQRT((1-KY23*(KY23-KY22)*KY21)) ->  | KZ24: =H362 ->  | LA24: =I362 ->  | LB24: =J362 ->  | LC24: =K362 ->  | LD24: =L362 ->  | LF24: =LF16*SQRT((1-LF23*(LF23-LF22)*LF21)) ->  | LG24: =W362 ->  | LH24: =X362 ->  | LI24: =Y362 ->  | LJ24: =Z362 ->  | LK24: =AA362 ->  | LL24: SD TBV at end of parity | LR24: 8 | LS24: 1A | LT24: 4 | LU24: ='1A'!$X6 -> 0.2304095533 | LV24: ='1A'!$D91 -> 300 | LW24: 299.99996 | LX24: 16 | LY24: 3A | LZ24: 0 | MA24: 300 | MB24: 0 | MC24: 0 | MD24: 0 | ME24: 0 | MF24: 0 | MG24: 0 | MI24: 8 | MJ24: 1B | MK24: 4 | ML24: ='1B'!$X6 -> 0.2008884839 | MM24: ='1B'!$D91 -> 300 | MN24: 299.99996 | MO24: 16 | MP24: 3B | MQ24: 0.07390024067 | MR24: 300 | MS24: 0 | MT24: 0 | MU24: 0 | MV24: 0 | MW24: 22.1700722 | MX24: 0
F25: 3nd row, 7th column in Fill Color box | AB25: 730 | AC25: 730 | AD25: age at calving | AH25: 2.850054537e-06 | AI25: 0.002850054537 | AL25: 15 | AM25: =IFERROR(CHOOSE($AK$13,'0A'!T25,'1A'!T25,'2A'!T25,'3A'!T25,'4A'!T25,'0B'!T25,'1B'!T25,'2B'!T25,'3B'!T25,'4B'!T25)/$AM$9,0) -> 0.9644554258 | AN25: =IFERROR(CHOOSE($AK$13,'0A'!AD25,'1A'!AD25,'2A'!AD25,'3A'!AD25,'4A'!AD25,'0B'!AD25,'1B'!AD25,'2B'!AD25,'3B'!AD25,'4B'!AD25)/$AM$9,0) -> 0 | AO25: =IFERROR(CHOOSE($AK$13,'0A'!AI25,'1A'!AI25,'2A'!AI25,'3A'!AI25,'4A'!AI25,'0B'!AI25,'1B'!AI25,'2B'!AI25,'3B'!AI25,'4B'!AI25)/$AM$9,0) -> 0.9644554258 | AP25: =IFERROR(CHOOSE($AK$13,'0A'!AG25,'1A'!AG25,'2A'!AG25,'3A'!AG25,'4A'!AG25,'0B'!AG25,'1B'!AG25,'2B'!AG25,'3B'!AG25,'4B'!AG25)/$AM$9,0) -> 0.9644554258 | AQ25: =IFERROR(CHOOSE($AK$13,'0A'!AH25,'1A'!AH25,'2A'!AH25,'3A'!AH25,'4A'!AH25,'0B'!AH25,'1B'!AH25,'2B'!AH25,'3B'!AH25,'4B'!AH25)/$AM$9,0) -> 0 | AR25: =IFERROR(CHOOSE($AK$13,'0A'!Q25,'1A'!Q25,'2A'!Q25,'3A'!Q25,'4A'!Q25,'0B'!Q25,'1B'!Q25,'2B'!Q25,'3B'!Q25,'4B'!Q25)/$AM$9/$AR$9,0) -> 0 | AS25: =IFERROR(CHOOSE($AK$13,'0A'!U25,'1A'!U25,'2A'!U25,'3A'!U25,'4A'!U25,'0B'!U25,'1B'!U25,'2B'!U25,'3B'!U25,'4B'!U25)/$AM$9,0) -> 0 | AT25: 78.03193843 | AU25: 37.24539849 | AV25: 9.403578054 | AX25: 15 | AY25: ='0A'!$T25/$AY$8 ->  | AZ25: ='1A'!$T25/$AZ$8 -> 0.9791424002 | BA25: ='2A'!$T25/$BA$8 -> 0.9644554258 | BB25: ='3A'!$T25/$BB$8 -> 0.9470387243 | BC25: ='4A'!$T25/$BC$8 -> 0.9282362152 | BD25: 0.9483320805 | BE25: 1 | BF25: ='0A'!$AI25/$AY$8 ->  | BG25: ='1A'!$AI25/$AZ$8 -> 0.9791424002 | BH25: ='2A'!$AI25/$BA$8 -> 0.9644554258 | BI25: ='3A'!$AI25/$BB$8 -> 0.9470387243 | BJ25: ='4A'!$AI25/$BC$8 -> 0.9282362152 | BK25: 0.9483320805 | BL25: ='0A'!$AM25/$AY$8 ->  | BM25: ='1A'!$AM25/$AZ$8 -> 0 | BN25: ='2A'!$AM25/$BA$8 -> 0 | BO25: ='3A'!$AM25/$BB$8 -> 0 | BP25: ='4A'!$AM25/$BC$8 -> 0 | BQ25: 0 | BR25: 15 | BS25: ='0B'!$T25/$BS$8 ->  | BT25: ='1B'!$T25/$BT$8 -> 0.9791424002 | BU25: ='2B'!$T25/$BU$8 -> 0.9644554258 | BV25: ='3B'!$T25/$BV$8 -> 0.9470387243 | BW25: ='4B'!$T25/$BW$8 -> 0.9282362152 | BX25: 0.9483320805 | BY25: 1 | BZ25: ='0B'!$AI25/$BS$8 ->  | CA25: ='1B'!$AI25/$BT$8 -> 0.9791424002 | CB25: ='2B'!$AI25/$BU$8 -> 0.9644554258 | CC25: ='3B'!$AI25/$BV$8 -> 0.9470387243 | CD25: ='4B'!$AI25/$BW$8 -> 0.9282362152 | CE25: 0.9483320805 | CF25: ='0B'!$AM25/$BS$8 ->  | CG25: ='1B'!$AM25/$BT$8 -> 0 | CH25: ='2B'!$AM25/$BU$8 -> 0 | CI25: ='3B'!$AM25/$BV$8 -> 0 | CJ25: ='4B'!$AM25/$BW$8 -> 0 | CK25: 0 | CO25: 15 | CP25: 0.001388728305 | CQ25: 0.001377126551 | CR25: 0.002279055805 | CS25: 0.003315702711 | CT25: 0.004534604773 | CU25: 0.001388728305 | CV25: 0.001290550096 | CW25: 0.002210393825 | CX25: 0.003315702711 | CY25: 0.004534604773 | CZ25: 0.001388728305 | DA25: 0.001290550096 | DB25: 0.002210393825 | DC25: 0.003315702711 | DD25: 0.004534604773 | DE25: 0.9282362152 | DI25: 9 | DJ25: 273.9312 | DK25: 245.1686485 | DL25: 252.3714464 | DQ25: 15 | DR25: 92.61 | DS25: 1177.421013 | DT25: 1367.264964 | DU25: 1369.522855 | DV25: 1369.715869 | DW25: 148.3404066 | DX25: 1247.953386 | DY25: 1377.965857 | DZ25: 1377.697454 | EA25: 1376.504226 | EB25: 148.3404066 | EC25: 1247.953386 | ED25: 1377.965857 | EE25: 1377.697454 | EF25: 1376.504226 | EG25: 14 | EH25: 0 | EN25: =EN24-EN23 -> 124.7165533 | EQ25: 1A | ES25: =ES23*$EO$23 + ES24*$EO$24 ->  | ET25: =ET23*$EO$23 +ET24*$EO$24 ->  | EY25: 15 | EZ25: 58.94526024 | FA25: 82.47034128 | FB25: 84.87416367 | FC25: 84.87416367 | FD25: 0 | FE25: =FE$5*FE$6*($EY25/30.4)^FE$7*EXP(-FE$8*$EY25/30.4)*IFERROR(extra!D25,1)+IF($EY25<=305,EO$8,0) -> 57.45502064 | FF25: =FF$5*FF$6*($EY25/30.4)^FF$7*EXP(-FF$8*$EY25/30.4)*IFERROR(extra!E25,1)+IF($EY25<=305,EP$8,0) -> 78.03193843 | FG25: =FG$5*FG$6*($EY25/30.4)^FG$7*EXP(-FG$8*$EY25/30.4)*IFERROR(extra!F25,1)+IF($EY25<=305,EQ$8,0) -> 85.04996282 | FH25: =FH$5*FH$6*($EY25/30.4)^FH$7*EXP(-FH$8*$EY25/30.4)*IFERROR(extra!G25,1)+IF($EY25<=305,ER$8,0) -> 85.04996282 | FI25: 0 | FJ25: =FJ$5*FJ$6*($EY25/30.4)^FJ$7*EXP(-FJ$8*$EY25/30.4)*IFERROR(extra!H25,1)+IF($EY25<=305,ET$8,0) -> 57.45502064 | FK25: =FK$5*FK$6*($EY25/30.4)^FK$7*EXP(-FK$8*$EY25/30.4)*IFERROR(extra!I25,1)+IF($EY25<=305,EU$8,0) -> 78.03193843 | FL25: =FL$5*FL$6*($EY25/30.4)^FL$7*EXP(-FL$8*$EY25/30.4)*IFERROR(extra!J25,1)+IF($EY25<=305,EV$8,0) -> 85.04996282 | FM25: =FM$5*FM$6*($EY25/30.4)^FM$7*EXP(-FM$8*$EY25/30.4)*IFERROR(extra!K25,1)+IF($EY25<=305,EW$8,0) -> 85.04996282 | FN25: 15 | FO25: 1 | FP25: 0 | FQ25: -57.45502064 | FR25: -78.03193843 | FS25: -85.04996282 | FT25: -85.04996282 | FU25: 0 | FV25: -57.45502064 | FW25: -78.03193843 | FX25: -85.04996282 | FY25: -85.04996282 | GA25: 15 | GB25: 1.112299545 | GC25: 1.501014004 | GD25: 1.596281581 | GE25: 0.8283051385 | GF25: 1.176430415 | GG25: 1.202101663 | GH25: 26.74443975 | GI25: 37.43342439 | GJ25: 38.58565934 | GK25: 26.73786229 | GP25: 37.43342439 | GQ25: 0.04009822849 | GR25: 0.0392714609 | GS25: 0.0392714609 | GT25: 0.0392714609 | GU25: 0.0392714609 | GV25: 0.0392714609 | GW25: 0.0392714609 | GX25: 0.0392714609 | GY25: 0.0392714609 | GZ25: 0.03297287568 | HA25: 0.03297287568 | HB25: 0.03297287568 | HC25: 0.03297287568 | HD25: 0.03297287568 | HE25: 0.03297287568 | HF25: 0.03297287568 | HG25: 0.03297287568 | HH25: 15 | HI25: 0 | HJ25: 0.1921057983 | HK25: 0.1921057983 | HL25: 0.1921057983 | HM25: 0.1921057983 | HN25: 0 | HO25: 0.1921057983 | HP25: 0.1921057983 | HQ25: 0.1921057983 | HR25: 0.1921057983 | HT25: 15 | HU25: 0.8244666667 | HV25: 1.968333333 | HY25: -1.35 | HZ25: 15 | IA25: 5.37866566 | IB25: =2^(IA25-3)*100000 -> 520055.5233 | IC25: 0 | ID25: 288063.2112 | IE25: 272516.7057 | IF25: 275324.176 | IG25: 275324.176 | IH25: 0 | II25: 288063.2112 | IJ25: 272516.7057 | IK25: 275324.176 | IL25: 275324.176 | IO25: 15 | IP25: 8.179949497 | IQ25: 30.86937821 | IR25: 37.24539849 | IS25: 38.97912244 | IT25: 38.96746989 | IU25: 8.179949497 | IV25: 30.86937821 | IW25: 37.24539849 | IX25: 38.97912244 | IY25: 38.96746989 | IZ25: 0.05514309747 | JA25: 1.861230254 | JB25: 2.095075945 | JC25: 2.181936316 | JD25: 2.182588786 | JF25: 15 | JG25: 0 | JH25: 6.407035876 | JI25: 9.403578054 | JJ25: 10.49172264 | JK25: 10.49347052 | JL25: 0 | JM25: 6.407035876 | JN25: 9.403578054 | JO25: 10.49172264 | JP25: 10.49347052 | JQ25: 0 | JR25: -6.407035876 | JS25: -9.403578054 | JT25: -10.49172264 | JU25: -10.49347052 | JV25: 0 | JW25: -6.407035876 | JX25: -9.403578054 | JY25: -10.49172264 | JZ25: -10.49347052 | KC25: 15 | KD25: 2.75 | KI25: 2.75 | KL25: 15 | KM25: 0.08031863459 | KN25: 0.230092079 | KO25: 0.2721803365 | KP25: 0.2836246885 | KQ25: 0.2835477697 | KR25: 0.08031863459 | KS25: 0.230092079 | KT25: 0.2721803365 | KU25: 0.2836246885 | KV25: 0.2835477697 | KY25: =KY23*KY16*SQRT(KY21) ->  | KZ25: Breeders' equation | LF25: =LF23*LF16*SQRT(LF21) ->  | LG25: Breeders' equation | LL25: ∆ TBV due to voluntary selection | LR25: 9 | LS25: 2A | LT25: 1 | LU25: ='2A'!$X3 -> 0.0637013032 | LV25: ='2A'!$D88 -> 300 | LW25: 299.99999 | LX25: 1 | LY25: 0A | LZ25: 0 | MA25: 300 | MB25: 0 | MC25: 0 | MD25: 0 | ME25: 0 | MF25: 0 | MG25: 0 | MI25: 9 | MJ25: 2B | MK25: 1 | ML25: ='2B'!$X3 -> 0.06460564005 | MM25: ='2B'!$D88 -> 300 | MN25: 299.99999 | MO25: 1 | MP25: 0B | MQ25: 0 | MR25: 300 | MS25: 0 | MT25: 0 | MU25: 0 | MV25: 0 | MW25: 0 | MX25: 0
F26: 3nd row, 9th column in Fill Color box | AB26: 0.48 | AC26: 0.48 | AD26: %dairy calves | AH26: 1.595148214e-06 | AI26: 0.001595148214 | AL26: 16 | AM26: =IFERROR(CHOOSE($AK$13,'0A'!T26,'1A'!T26,'2A'!T26,'3A'!T26,'4A'!T26,'0B'!T26,'1B'!T26,'2B'!T26,'3B'!T26,'4B'!T26)/$AM$9,0) -> 0.962351082 | AN26: =IFERROR(CHOOSE($AK$13,'0A'!AD26,'1A'!AD26,'2A'!AD26,'3A'!AD26,'4A'!AD26,'0B'!AD26,'1B'!AD26,'2B'!AD26,'3B'!AD26,'4B'!AD26)/$AM$9,0) -> 0 | AO26: =IFERROR(CHOOSE($AK$13,'0A'!AI26,'1A'!AI26,'2A'!AI26,'3A'!AI26,'4A'!AI26,'0B'!AI26,'1B'!AI26,'2B'!AI26,'3B'!AI26,'4B'!AI26)/$AM$9,0) -> 0.962351082 | AP26: =IFERROR(CHOOSE($AK$13,'0A'!AG26,'1A'!AG26,'2A'!AG26,'3A'!AG26,'4A'!AG26,'0B'!AG26,'1B'!AG26,'2B'!AG26,'3B'!AG26,'4B'!AG26)/$AM$9,0) -> 0.962351082 | AQ26: =IFERROR(CHOOSE($AK$13,'0A'!AH26,'1A'!AH26,'2A'!AH26,'3A'!AH26,'4A'!AH26,'0B'!AH26,'1B'!AH26,'2B'!AH26,'3B'!AH26,'4B'!AH26)/$AM$9,0) -> 0 | AR26: =IFERROR(CHOOSE($AK$13,'0A'!Q26,'1A'!Q26,'2A'!Q26,'3A'!Q26,'4A'!Q26,'0B'!Q26,'1B'!Q26,'2B'!Q26,'3B'!Q26,'4B'!Q26)/$AM$9/$AR$9,0) -> 0 | AS26: =IFERROR(CHOOSE($AK$13,'0A'!U26,'1A'!U26,'2A'!U26,'3A'!U26,'4A'!U26,'0B'!U26,'1B'!U26,'2B'!U26,'3B'!U26,'4B'!U26)/$AM$9,0) -> 0 | AT26: 78.69183371 | AU26: 37.85870253 | AV26: 9.423417861 | AX26: 16 | AY26: ='0A'!$T26/$AY$8 ->  | AZ26: ='1A'!$T26/$AZ$8 -> 0.9778946683 | BA26: ='2A'!$T26/$BA$8 -> 0.962351082 | BB26: ='3A'!$T26/$BB$8 -> 0.9439399425 | BC26: ='4A'!$T26/$BC$8 -> 0.9240824149 | BD26: 0.9453185564 | BE26: 1 | BF26: ='0A'!$AI26/$AY$8 ->  | BG26: ='1A'!$AI26/$AZ$8 -> 0.9778946683 | BH26: ='2A'!$AI26/$BA$8 -> 0.962351082 | BI26: ='3A'!$AI26/$BB$8 -> 0.9439399425 | BJ26: ='4A'!$AI26/$BC$8 -> 0.9240824149 | BK26: 0.9453185564 | BL26: ='0A'!$AM26/$AY$8 ->  | BM26: ='1A'!$AM26/$AZ$8 -> 0 | BN26: ='2A'!$AM26/$BA$8 -> 0 | BO26: ='3A'!$AM26/$BB$8 -> 0 | BP26: ='4A'!$AM26/$BC$8 -> 0 | BQ26: 0 | BR26: 16 | BS26: ='0B'!$T26/$BS$8 ->  | BT26: ='1B'!$T26/$BT$8 -> 0.9778946683 | BU26: ='2B'!$T26/$BU$8 -> 0.962351082 | BV26: ='3B'!$T26/$BV$8 -> 0.9439399425 | BW26: ='4B'!$T26/$BW$8 -> 0.9240824149 | BX26: 0.9453185564 | BY26: 1 | BZ26: ='0B'!$AI26/$BS$8 ->  | CA26: ='1B'!$AI26/$BT$8 -> 0.9778946683 | CB26: ='2B'!$AI26/$BU$8 -> 0.962351082 | CC26: ='3B'!$AI26/$BV$8 -> 0.9439399425 | CD26: ='4B'!$AI26/$BW$8 -> 0.9240824149 | CE26: 0.9453185564 | CF26: ='0B'!$AM26/$BS$8 ->  | CG26: ='1B'!$AM26/$BT$8 -> 0 | CH26: ='2B'!$AM26/$BU$8 -> 0 | CI26: ='3B'!$AM26/$BV$8 -> 0 | CJ26: ='4B'!$AM26/$BW$8 -> 0 | CK26: 0 | CO26: 16 | CP26: 0.001388728305 | CQ26: 0.001359005396 | CR26: 0.002249067771 | CS26: 0.00327207504 | CT26: 0.004474938918 | CU26: 0.001388728305 | CV26: 0.001274311038 | CW26: 0.002181898443 | CX26: 0.00327207504 | CY26: 0.004474938918 | CZ26: 0.001388728305 | DA26: 0.001274311038 | DB26: 0.002181898443 | DC26: 0.00327207504 | DD26: 0.004474938918 | DE26: 0.9240824149 | DI26: 10 | DJ26: 304.368 | DK26: 267.3786154 | DL26: 277.390496 | DQ26: 16 | DR26: 92.61 | DS26: 1176.780059 | DT26: 1365.14269 | DU26: 1367.387083 | DV26: 1367.578943 | DW26: 148.3404066 | DX26: 1246.016308 | DY26: 1375.826974 | DZ26: 1375.558987 | EA26: 1374.367611 | EB26: 148.3404066 | EC26: 1246.016308 | ED26: 1375.826974 | EE26: 1375.558987 | EF26: 1374.367611 | EG26: 15 | EH26: 0 | EQ26: 1B | ES26: =ES23*$EP$23 + ES24*$EP$24 ->  | ET26: =ET23*$EP$23 + ET24*$EP$24 ->  | EY26: 16 | EZ26: 59.62525496 | FA26: 83.16777094 | FB26: 85.7298336 | FC26: 85.7298336 | FD26: 0 | FE26: =FE$5*FE$6*($EY26/30.4)^FE$7*EXP(-FE$8*$EY26/30.4)*IFERROR(extra!D26,1)+IF($EY26<=305,EO$8,0) -> 58.1178239 | FF26: =FF$5*FF$6*($EY26/30.4)^FF$7*EXP(-FF$8*$EY26/30.4)*IFERROR(extra!E26,1)+IF($EY26<=305,EP$8,0) -> 78.69183371 | FG26: =FG$5*FG$6*($EY26/30.4)^FG$7*EXP(-FG$8*$EY26/30.4)*IFERROR(extra!F26,1)+IF($EY26<=305,EQ$8,0) -> 85.90740509 | FH26: =FH$5*FH$6*($EY26/30.4)^FH$7*EXP(-FH$8*$EY26/30.4)*IFERROR(extra!G26,1)+IF($EY26<=305,ER$8,0) -> 85.90740509 | FI26: 0 | FJ26: =FJ$5*FJ$6*($EY26/30.4)^FJ$7*EXP(-FJ$8*$EY26/30.4)*IFERROR(extra!H26,1)+IF($EY26<=305,ET$8,0) -> 58.1178239 | FK26: =FK$5*FK$6*($EY26/30.4)^FK$7*EXP(-FK$8*$EY26/30.4)*IFERROR(extra!I26,1)+IF($EY26<=305,EU$8,0) -> 78.69183371 | FL26: =FL$5*FL$6*($EY26/30.4)^FL$7*EXP(-FL$8*$EY26/30.4)*IFERROR(extra!J26,1)+IF($EY26<=305,EV$8,0) -> 85.90740509 | FM26: =FM$5*FM$6*($EY26/30.4)^FM$7*EXP(-FM$8*$EY26/30.4)*IFERROR(extra!K26,1)+IF($EY26<=305,EW$8,0) -> 85.90740509 | FN26: 16 | FO26: 1 | FP26: 0 | FQ26: -58.1178239 | FR26: -78.69183371 | FS26: -85.90740509 | FT26: -85.90740509 | FU26: 0 | FV26: -58.1178239 | FW26: -78.69183371 | FX26: -85.90740509 | FY26: -85.90740509 | GA26: 16 | GB26: 1.122825862 | GC26: 1.510903311 | GD26: 1.608881422 | GE26: 0.8364901244 | GF26: 1.184242372 | GG26: 1.211558868 | GH26: 27.05189499 | GI26: 37.75021699 | GJ26: 38.97128349 | GK26: 27.04603783 | GP26: 37.75021699 | GQ26: 0.04002369871 | GR26: 0.03919846781 | GS26: 0.03919846781 | GT26: 0.03919846781 | GU26: 0.03919846781 | GV26: 0.03919846781 | GW26: 0.03919846781 | GX26: 0.03919846781 | GY26: 0.03919846781 | GZ26: 0.03291328895 | HA26: 0.03291328895 | HB26: 0.03291328895 | HC26: 0.03291328895 | HD26: 0.03291328895 | HE26: 0.03291328895 | HF26: 0.03291328895 | HG26: 0.03291328895 | HH26: 16 | HI26: 0 | HJ26: 0.1919160163 | HK26: 0.1919160163 | HL26: 0.1919160163 | HM26: 0.1919160163 | HN26: 0 | HO26: 0.1919160163 | HP26: 0.1919160163 | HQ26: 0.1919160163 | HR26: 0.1919160163 | HT26: 16 | HU26: 0.8928125 | HV26: 2.00975 | HY26: -1.34 | HZ26: 16 | IA26: 5.277419909 | IB26: 484810.152 | IC26: 0 | ID26: 268540.498 | IE26: 254047.6153 | IF26: 256664.8168 | IG26: 256664.8168 | IH26: 0 | II26: 268540.498 | IJ26: 254047.6153 | IK26: 256664.8168 | IL26: 256664.8168 | IO26: 16 | IP26: 8.179949497 | IQ26: 31.40660183 | IR26: 37.85870253 | IS26: 39.6627971 | IT26: 39.65100471 | IU26: 8.179949497 | IV26: 31.40660183 | IW26: 37.85870253 | IX26: 39.6627971 | IY26: 39.65100471 | IZ26: 0.05514309747 | JA26: 1.850497046 | JB26: 2.078566576 | JC26: 2.165944194 | JD26: 2.166588355 | JF26: 16 | JG26: 0 | JH26: 6.442750966 | JI26: 9.423417861 | JJ26: 10.53758739 | JK26: 10.53935625 | JL26: 0 | JM26: 6.442750966 | JN26: 9.423417861 | JO26: 10.53758739 | JP26: 10.53935625 | JQ26: 0 | JR26: -6.442750966 | JS26: -9.423417861 | JT26: -10.53758739 | JU26: -10.53935625 | JV26: 0 | JW26: -6.442750966 | JX26: -9.423417861 | JY26: -10.53758739 | JZ26: -10.53935625 | KC26: 16 | KD26: 2.75 | KI26: 2.75 | KL26: 16 | KM26: 0.08031863459 | KN26: 0.2336383045 | KO26: 0.2762287707 | KP26: 0.2881376407 | KQ26: 0.2880597989 | KR26: 0.08031863459 | KS26: 0.2336383045 | KT26: 0.2762287707 | KU26: 0.2881376407 | KV26: 0.2880597989 | KY26: =KY25/KY16 ->  | LF26: =LF25/LF16 ->  | LL26: ∆ TBV due to voluntary selection (units SD) | LR26: 10 | LS26: 2A | LT26: 2 | LU26: ='2A'!$X4 -> 0.04927261652 | LV26: ='2A'!$D89 -> 300 | LW26: 299.99998 | LX26: 6 | LY26: 1A | LZ26: 0.1114115015 | MA26: 300 | MB26: 0 | MC26: 0 | MD26: 0 | ME26: 0 | MF26: 33.42345046 | MG26: 0 | MI26: 10 | MJ26: 2B | MK26: 2 | ML26: ='2B'!$X4 -> 0.04997211623 | MM26: ='2B'!$D89 -> 300 | MN26: 299.99998 | MO26: 6 | MP26: 1B | MQ26: 0.07048720245 | MR26: 300 | MS26: 0 | MT26: 0 | MU26: 0 | MV26: 0 | MW26: 21.14616073 | MX26: 0
F27: 3nd row, 1st column in Fill Color box | AH27: 8.927891698e-07 | AI27: 0.0008927891698 | AL27: 17 | AM27: =IFERROR(CHOOSE($AK$13,'0A'!T27,'1A'!T27,'2A'!T27,'3A'!T27,'4A'!T27,'0B'!T27,'1B'!T27,'2B'!T27,'3B'!T27,'4B'!T27)/$AM$9,0) -> 0.9602787522 | AN27: =IFERROR(CHOOSE($AK$13,'0A'!AD27,'1A'!AD27,'2A'!AD27,'3A'!AD27,'4A'!AD27,'0B'!AD27,'1B'!AD27,'2B'!AD27,'3B'!AD27,'4B'!AD27)/$AM$9,0) -> 0 | AO27: =IFERROR(CHOOSE($AK$13,'0A'!AI27,'1A'!AI27,'2A'!AI27,'3A'!AI27,'4A'!AI27,'0B'!AI27,'1B'!AI27,'2B'!AI27,'3B'!AI27,'4B'!AI27)/$AM$9,0) -> 0.9602787522 | AP27: =IFERROR(CHOOSE($AK$13,'0A'!AG27,'1A'!AG27,'2A'!AG27,'3A'!AG27,'4A'!AG27,'0B'!AG27,'1B'!AG27,'2B'!AG27,'3B'!AG27,'4B'!AG27)/$AM$9,0) -> 0.9602787522 | AQ27: =IFERROR(CHOOSE($AK$13,'0A'!AH27,'1A'!AH27,'2A'!AH27,'3A'!AH27,'4A'!AH27,'0B'!AH27,'1B'!AH27,'2B'!AH27,'3B'!AH27,'4B'!AH27)/$AM$9,0) -> 0 | AR27: =IFERROR(CHOOSE($AK$13,'0A'!Q27,'1A'!Q27,'2A'!Q27,'3A'!Q27,'4A'!Q27,'0B'!Q27,'1B'!Q27,'2B'!Q27,'3B'!Q27,'4B'!Q27)/$AM$9/$AR$9,0) -> 0 | AS27: =IFERROR(CHOOSE($AK$13,'0A'!U27,'1A'!U27,'2A'!U27,'3A'!U27,'4A'!U27,'0B'!U27,'1B'!U27,'2B'!U27,'3B'!U27,'4B'!U27)/$AM$9,0) -> 0 | AT27: 79.30202762 | AU27: 38.45112246 | AV27: 9.437671265 | AX27: 17 | AY27: ='0A'!$T27/$AY$8 ->  | AZ27: ='1A'!$T27/$AZ$8 -> 0.9766644064 | BA27: ='2A'!$T27/$BA$8 -> 0.9602787522 | BB27: ='3A'!$T27/$BB$8 -> 0.9408924821 | BC27: ='4A'!$T27/$BC$8 -> 0.9200023387 | BD27: 0.9423559213 | BE27: 1 | BF27: ='0A'!$AI27/$AY$8 ->  | BG27: ='1A'!$AI27/$AZ$8 -> 0.9766644064 | BH27: ='2A'!$AI27/$BA$8 -> 0.9602787522 | BI27: ='3A'!$AI27/$BB$8 -> 0.9408924821 | BJ27: ='4A'!$AI27/$BC$8 -> 0.9200023387 | BK27: 0.9423559213 | BL27: ='0A'!$AM27/$AY$8 ->  | BM27: ='1A'!$AM27/$AZ$8 -> 0 | BN27: ='2A'!$AM27/$BA$8 -> 0 | BO27: ='3A'!$AM27/$BB$8 -> 0 | BP27: ='4A'!$AM27/$BC$8 -> 0 | BQ27: 0 | BR27: 17 | BS27: ='0B'!$T27/$BS$8 ->  | BT27: ='1B'!$T27/$BT$8 -> 0.9766644064 | BU27: ='2B'!$T27/$BU$8 -> 0.9602787522 | BV27: ='3B'!$T27/$BV$8 -> 0.9408924821 | BW27: ='4B'!$T27/$BW$8 -> 0.9200023387 | BX27: 0.9423559213 | BY27: 1 | BZ27: ='0B'!$AI27/$BS$8 ->  | CA27: ='1B'!$AI27/$BT$8 -> 0.9766644064 | CB27: ='2B'!$AI27/$BU$8 -> 0.9602787522 | CC27: ='3B'!$AI27/$BV$8 -> 0.9408924821 | CD27: ='4B'!$AI27/$BW$8 -> 0.9200023387 | CE27: 0.9423559213 | CF27: ='0B'!$AM27/$BS$8 ->  | CG27: ='1B'!$AM27/$BT$8 -> 0 | CH27: ='2B'!$AM27/$BU$8 -> 0 | CI27: ='3B'!$AM27/$BV$8 -> 0 | CJ27: ='4B'!$AM27/$BW$8 -> 0 | CK27: 0 | CO27: 17 | CP27: 0.001388728305 | CQ27: 0.001340884241 | CR27: =MAX(IF($CO27<=60,(61-$CO27)*CR$8+CR$5,CR$5)*CR$9,0) -> 0.002219079737 | CS27: =MAX(IF($CO27<=60,(61-$CO27)*CS$8+CS$5,CS$5)*CS$9,0) -> 0.00322844737 | CT27: =MAX(IF($CO27<=60,(61-$CO27)*CT$8+CT$5,CT$5)*CT$9,0) -> 0.004415273063 | CU27: 0.001388728305 | CV27: 0.00125807198 | CW27: 0.002153403061 | CX27: 0.00322844737 | CY27: 0.004415273063 | CZ27: 0.001388728305 | DA27: 0.00125807198 | DB27: 0.002153403061 | DC27: 0.00322844737 | DD27: 0.004415273063 | DE27: 0.9200023387 | DI27: 11 | DJ27: 334.8048 | DK27: 289.5885823 | DL27: 302.4095456 | DQ27: 17 | DR27: 92.61 | DS27: 1176.176319 | DT27: 1363.089295 | DU27: 1365.32027 | DV27: 1365.510983 | DW27: 148.3404066 | DX27: 1244.142098 | DY27: 1373.757508 | DZ27: 1373.489924 | EA27: 1372.30034 | EB27: 148.3404066 | EC27: 1244.142098 | ED27: 1373.757508 | EE27: 1373.489924 | EF27: 1372.30034 | EG27: 16 | EH27: 0 | EQ27: This is milk in 305 days. I suggest we make it milk per day of pregnancy. | EY27: 17 | EZ27: 60.26381624 | FA27: 83.81267226 | FB27: 86.52271997 | FC27: 86.52271997 | FD27: 0 | FE27: =FE$5*FE$6*($EY27/30.4)^FE$7*EXP(-FE$8*$EY27/30.4)*IFERROR(extra!D27,1)+IF($EY27<=305,EO$8,0) -> 58.74024124 | FF27: =FF$5*FF$6*($EY27/30.4)^FF$7*EXP(-FF$8*$EY27/30.4)*IFERROR(extra!E27,1)+IF($EY27<=305,EP$8,0) -> 79.30202762 | FG27: =FG$5*FG$6*($EY27/30.4)^FG$7*EXP(-FG$8*$EY27/30.4)*IFERROR(extra!F27,1)+IF($EY27<=305,EQ$8,0) -> 86.70193376 | FH27: =FH$5*FH$6*($EY27/30.4)^FH$7*EXP(-FH$8*$EY27/30.4)*IFERROR(extra!G27,1)+IF($EY27<=305,ER$8,0) -> 86.70193376 | FI27: 0 | FJ27: =FJ$5*FJ$6*($EY27/30.4)^FJ$7*EXP(-FJ$8*$EY27/30.4)*IFERROR(extra!H27,1)+IF($EY27<=305,ET$8,0) -> 58.74024124 | FK27: =FK$5*FK$6*($EY27/30.4)^FK$7*EXP(-FK$8*$EY27/30.4)*IFERROR(extra!I27,1)+IF($EY27<=305,EU$8,0) -> 79.30202762 | FL27: =FL$5*FL$6*($EY27/30.4)^FL$7*EXP(-FL$8*$EY27/30.4)*IFERROR(extra!J27,1)+IF($EY27<=305,EV$8,0) -> 86.70193376 | FM27: =FM$5*FM$6*($EY27/30.4)^FM$7*EXP(-FM$8*$EY27/30.4)*IFERROR(extra!K27,1)+IF($EY27<=305,EW$8,0) -> 86.70193376 | FN27: 17 | FO27: 1 | FP27: 0 | FQ27: =-FE27 -> -58.74024124 | FR27: -79.30202762 | FS27: -86.70193376 | FT27: -86.70193376 | FU27: 0 | FV27: -58.74024124 | FW27: -79.30202762 | FX27: -86.70193376 | FY27: -86.70193376 | GA27: 17 | GB27: 1.132678826 | GC27: 1.519991338 | GD27: 1.620484378 | GE27: 0.8441551213 | GF27: 1.191423328 | GG27: 1.220266816 | GH27: 27.34060724 | GI27: 38.04313296 | GJ27: 39.32851585 | GK27: 27.33543279 | GP27: 38.04313296 | GQ27: 0.03995442068 | GR27: 0.03913061819 | GS27: 0.03913061819 | GT27: 0.03913061819 | GU27: 0.03913061819 | GV27: 0.03913061819 | GW27: 0.03913061819 | GX27: 0.03913061819 | GY27: 0.03913061819 | GZ27: 0.03285791206 | HA27: 0.03285791206 | HB27: 0.03285791206 | HC27: 0.03285791206 | HD27: 0.03285791206 | HE27: 0.03285791206 | HF27: 0.03285791206 | HG27: 0.03285791206 | HH27: 17 | HI27: 0 | HJ27: 0.1917396073 | HK27: 0.1917396073 | HL27: 0.1917396073 | HM27: 0.1917396073 | HN27: 0 | HO27: 0.1917396073 | HP27: 0.1917396073 | HQ27: 0.1917396073 | HR27: 0.1917396073 | HT27: 17 | HU27: 0.9528823529 | HV27: 2.046764706 | HY27: -1.33 | HZ27: 17 | IA27: 5.190112554 | IB27: 456341.087 | IC27: 0 | ID27: 252771.2389 | IE27: 239129.4086 | IF27: 241592.9225 | IG27: 241592.9225 | IH27: 0 | II27: 252771.2389 | IJ27: 239129.4086 | IK27: 241592.9225 | IL27: 241592.9225 | IO27: 17 | IP27: 8.179949497 | IQ27: 31.9273177 | IR27: 38.45112246 | IS27: 40.32286125 | IT27: 40.31093309 | IU27: 8.179949497 | IV27: 31.9273177 | IW27: 38.45112246 | IX27: 40.32286125 | IY27: 40.31093309 | IZ27: 0.05514309747 | JA27: 1.839811342 | JB27: 2.062411252 | JC27: 2.150192994 | JD27: 2.150829244 | JF27: 17 | JG27: 0 | JH27: 6.473733131 | JI27: 9.437671265 | JJ27: 10.57576554 | JK27: 10.57755477 | JL27: 0 | JM27: 6.473733131 | JN27: 9.437671265 | JO27: 10.57576554 | JP27: 10.57755477 | JQ27: 0 | JR27: -6.473733131 | JS27: -9.437671265 | JT27: -10.57576554 | JU27: -10.57755477 | JV27: 0 | JW27: -6.473733131 | JX27: -9.437671265 | JY27: -10.57576554 | JZ27: -10.57755477 | KC27: 17 | KD27: 2.75 | KI27: 2.75 | KL27: 17 | KM27: 0.08031863459 | KN27: 0.2370755621 | KO27: 0.2801393484 | KP27: 0.2924947395 | KQ27: 0.2924160014 | KR27: 0.08031863459 | KS27: 0.2370755621 | KT27: 0.2801393484 | KU27: 0.2924947395 | KV27: 0.2924160014 | KY27: =KY25/KY19 ->  | LF27: =LF25/LF19 ->  | LL27: ∆ TBV due to voluntary selection per kept calf | LR27: 11 | LS27: 2A | LT27: 3 | LU27: ='2A'!$X5 -> 0.03823354579 | LV27: ='2A'!$D90 -> 300 | LW27: 299.99997 | LX27: 11 | LY27: 2A | LZ27: 0.03823354579 | MA27: 300 | MB27: 0 | MC27: 0 | MD27: 0 | ME27: 0 | MF27: 11.47006374 | MG27: 0 | MI27: 11 | MJ27: 2B | MK27: 3 | ML27: ='2B'!$X5 -> 0.0387763291 | MM27: ='2B'!$D90 -> 300 | MN27: 299.99997 | MO27: 11 | MP27: 2B | MQ27: 0.0387763291 | MR27: 300 | MS27: 0 | MT27: 0 | MU27: 0 | MV27: 0 | MW27: 11.63289873 | MX27: 0
E28: blue text: depends on "short" and "long" | AB28: feed cost: convert cost/ton to wet cost/day and dry cost/day | AH28: 4.996855432e-07 | AI28: 0.0004996855432 | AL28: 18 | AM28: =IFERROR(CHOOSE($AK$13,'0A'!T28,'1A'!T28,'2A'!T28,'3A'!T28,'4A'!T28,'0B'!T28,'1B'!T28,'2B'!T28,'3B'!T28,'4B'!T28)/$AM$9,0) -> 0.9582382485 | AN28: =IFERROR(CHOOSE($AK$13,'0A'!AD28,'1A'!AD28,'2A'!AD28,'3A'!AD28,'4A'!AD28,'0B'!AD28,'1B'!AD28,'2B'!AD28,'3B'!AD28,'4B'!AD28)/$AM$9,0) -> 0 | AO28: =IFERROR(CHOOSE($AK$13,'0A'!AI28,'1A'!AI28,'2A'!AI28,'3A'!AI28,'4A'!AI28,'0B'!AI28,'1B'!AI28,'2B'!AI28,'3B'!AI28,'4B'!AI28)/$AM$9,0) -> 0.9582382485 | AP28: =IFERROR(CHOOSE($AK$13,'0A'!AG28,'1A'!AG28,'2A'!AG28,'3A'!AG28,'4A'!AG28,'0B'!AG28,'1B'!AG28,'2B'!AG28,'3B'!AG28,'4B'!AG28)/$AM$9,0) -> 0.9582382485 | AQ28: =IFERROR(CHOOSE($AK$13,'0A'!AH28,'1A'!AH28,'2A'!AH28,'3A'!AH28,'4A'!AH28,'0B'!AH28,'1B'!AH28,'2B'!AH28,'3B'!AH28,'4B'!AH28)/$AM$9,0) -> 0 | AR28: =IFERROR(CHOOSE($AK$13,'0A'!Q28,'1A'!Q28,'2A'!Q28,'3A'!Q28,'4A'!Q28,'0B'!Q28,'1B'!Q28,'2B'!Q28,'3B'!Q28,'4B'!Q28)/$AM$9/$AR$9,0) -> 0 | AS28: =IFERROR(CHOOSE($AK$13,'0A'!U28,'1A'!U28,'2A'!U28,'3A'!U28,'4A'!U28,'0B'!U28,'1B'!U28,'2B'!U28,'3B'!U28,'4B'!U28)/$AM$9,0) -> 0 | AT28: 79.8676474 | AU28: 39.02368987 | AV28: 9.447092347 | AX28: 18 | AY28: ='0A'!$T28/$AY$8 ->  | AZ28: ='1A'!$T28/$AZ$8 -> 0.9754515524 | BA28: ='2A'!$T28/$BA$8 -> 0.9582382485 | BB28: ='3A'!$T28/$BB$8 -> 0.9378959092 | BC28: ='4A'!$T28/$BC$8 -> 0.9159951699 | BD28: 0.9394436935 | BE28: 1 | BF28: ='0A'!$AI28/$AY$8 ->  | BG28: ='1A'!$AI28/$AZ$8 -> 0.9754515524 | BH28: ='2A'!$AI28/$BA$8 -> 0.9582382485 | BI28: ='3A'!$AI28/$BB$8 -> 0.9378959092 | BJ28: ='4A'!$AI28/$BC$8 -> 0.9159951699 | BK28: 0.9394436935 | BL28: ='0A'!$AM28/$AY$8 ->  | BM28: ='1A'!$AM28/$AZ$8 -> 0 | BN28: ='2A'!$AM28/$BA$8 -> 0 | BO28: ='3A'!$AM28/$BB$8 -> 0 | BP28: ='4A'!$AM28/$BC$8 -> 0 | BQ28: 0 | BR28: 18 | BS28: ='0B'!$T28/$BS$8 ->  | BT28: ='1B'!$T28/$BT$8 -> 0.9754515524 | BU28: ='2B'!$T28/$BU$8 -> 0.9582382485 | BV28: ='3B'!$T28/$BV$8 -> 0.9378959092 | BW28: ='4B'!$T28/$BW$8 -> 0.9159951699 | BX28: 0.9394436935 | BY28: 1 | BZ28: ='0B'!$AI28/$BS$8 ->  | CA28: ='1B'!$AI28/$BT$8 -> 0.9754515524 | CB28: ='2B'!$AI28/$BU$8 -> 0.9582382485 | CC28: ='3B'!$AI28/$BV$8 -> 0.9378959092 | CD28: ='4B'!$AI28/$BW$8 -> 0.9159951699 | CE28: 0.9394436935 | CF28: ='0B'!$AM28/$BS$8 ->  | CG28: ='1B'!$AM28/$BT$8 -> 0 | CH28: ='2B'!$AM28/$BU$8 -> 0 | CI28: ='3B'!$AM28/$BV$8 -> 0 | CJ28: ='4B'!$AM28/$BW$8 -> 0 | CK28: 0 | CO28: 18 | CP28: 0.001388728305 | CQ28: =MAX(IF($CO28<=60,(61-$CO28)*CQ$8+CQ$5,CQ$5)*CQ$9,0) -> 0.001322763086 | CR28: 0.002189091704 | CS28: 0.003184819699 | CT28: 0.004355607208 | CU28: 0.001388728305 | CV28: 0.001241832921 | CW28: 0.002124907679 | CX28: 0.003184819699 | CY28: 0.004355607208 | CZ28: 0.001388728305 | DA28: 0.001241832921 | DB28: 0.002124907679 | DC28: 0.003184819699 | DD28: 0.004355607208 | DE28: 0.9159951699 | DI28: 12 | DJ28: 365.2416 | DK28: 311.7985492 | DL28: 327.4285952 | DQ28: 18 | DR28: 92.61 | DS28: 1175.608867 | DT28: 1361.103252 | DU28: 1363.32089 | DV28: 1363.510462 | DW28: 148.3404066 | DX28: 1242.329364 | DY28: 1371.755922 | DZ28: 1371.488728 | EA28: 1370.300877 | EB28: 148.3404066 | EC28: 1242.329364 | ED28: 1371.755922 | EE28: 1371.488728 | EF28: 1370.300877 | EG28: 17 | EH28: 0 | EY28: 18 | EZ28: 60.86514161 | FA28: 84.4104641 | FB28: 87.25916233 | FC28: 87.25916233 | FD28: 0 | FE28: =FE$5*FE$6*($EY28/30.4)^FE$7*EXP(-FE$8*$EY28/30.4)*IFERROR(extra!D28,1)+IF($EY28<=305,EO$8,0) -> 59.32636405 | FF28: =FF$5*FF$6*($EY28/30.4)^FF$7*EXP(-FF$8*$EY28/30.4)*IFERROR(extra!E28,1)+IF($EY28<=305,EP$8,0) -> 79.8676474 | FG28: =FG$5*FG$6*($EY28/30.4)^FG$7*EXP(-FG$8*$EY28/30.4)*IFERROR(extra!F28,1)+IF($EY28<=305,EQ$8,0) -> 87.4399015 | FH28: =FH$5*FH$6*($EY28/30.4)^FH$7*EXP(-FH$8*$EY28/30.4)*IFERROR(extra!G28,1)+IF($EY28<=305,ER$8,0) -> 87.4399015 | FI28: 0 | FJ28: =FJ$5*FJ$6*($EY28/30.4)^FJ$7*EXP(-FJ$8*$EY28/30.4)*IFERROR(extra!H28,1)+IF($EY28<=305,ET$8,0) -> 59.32636405 | FK28: =FK$5*FK$6*($EY28/30.4)^FK$7*EXP(-FK$8*$EY28/30.4)*IFERROR(extra!I28,1)+IF($EY28<=305,EU$8,0) -> 79.8676474 | FL28: =FL$5*FL$6*($EY28/30.4)^FL$7*EXP(-FL$8*$EY28/30.4)*IFERROR(extra!J28,1)+IF($EY28<=305,EV$8,0) -> 87.4399015 | FM28: =FM$5*FM$6*($EY28/30.4)^FM$7*EXP(-FM$8*$EY28/30.4)*IFERROR(extra!K28,1)+IF($EY28<=305,EW$8,0) -> 87.4399015 | FN28: 18 | FO28: 1 | FP28: 0 | FQ28: -59.32636405 | FR28: -79.8676474 | FS28: -87.4399015 | FT28: -87.4399015 | FU28: 0 | FV28: -59.32636405 | FW28: -79.8676474 | FX28: -87.4399015 | FY28: -87.4399015 | GA28: 18 | GB28: 1.141928136 | GC28: 1.528362501 | GD28: 1.631193699 | GE28: 0.8513536995 | GF28: 1.198039724 | GG28: 1.228303129 | GH28: 27.61247623 | GI28: 38.31463504 | GJ28: 39.66022601 | GK28: 27.60795002 | GP28: 38.31463504 | GQ28: 0.03988978361 | GR28: 0.03906731384 | GS28: 0.03906731384 | GT28: 0.03906731384 | GU28: 0.03906731384 | GV28: 0.03906731384 | GW28: 0.03906731384 | GX28: 0.03906731384 | GY28: 0.03906731384 | GZ28: 0.0328062556 | HA28: 0.0328062556 | HB28: 0.0328062556 | HC28: 0.0328062556 | HD28: 0.0328062556 | HE28: 0.0328062556 | HF28: 0.0328062556 | HG28: 0.0328062556 | HH28: 18 | HI28: 0 | HJ28: 0.191575016 | HK28: 0.191575016 | HL28: 0.191575016 | HM28: 0.191575016 | HN28: 0 | HO28: 0.191575016 | HP28: 0.191575016 | HQ28: 0.191575016 | HR28: 0.191575016 | HT28: 18 | HU28: 1.006055556 | HV28: 2.080111111 | HY28: -1.32 | HZ28: 18 | IA28: 5.114130995 | IB28: 432929.1654 | IC28: 0 | ID28: 239803.1748 | IE28: 226861.219 | IF28: 229198.3459 | IG28: 229198.3459 | IH28: 0 | II28: 239803.1748 | IJ28: 226861.219 | IK28: 229198.3459 | IL28: 229198.3459 | IO28: 18 | IP28: 8.179949497 | IQ28: 32.43233408 | IR28: 39.02368987 | IS28: 40.96051141 | IT28: 40.9484514 | IU28: 8.179949497 | IV28: 32.43233408 | IW28: 39.02368987 | IX28: 40.96051141 | IY28: 40.9484514 | IZ28: 0.05514309747 | JA28: 1.829235105 | JB28: 2.046645196 | JC28: 2.134736567 | JD28: 2.135365283 | JF28: 18 | JG28: 0 | JH28: 6.500599028 | JI28: 9.447092347 | JJ28: 10.60722382 | JK28: 10.60903282 | JL28: 0 | JM28: 6.500599028 | JN28: 9.447092347 | JO28: 10.60722382 | JP28: 10.60903282 | JQ28: 0 | JR28: -6.500599028 | JS28: -9.447092347 | JT28: -10.60722382 | JU28: -10.60903282 | JV28: 0 | JW28: -6.500599028 | JX28: -9.447092347 | JY28: -10.60722382 | JZ28: -10.60903282 | KC28: 18 | KD28: 2.75 | KI28: 2.75 | KL28: 18 | KM28: 0.08031863459 | KN28: 0.2404091869 | KO28: 0.2839188791 | KP28: 0.2967038829 | KQ28: 0.2966242745 | KR28: 0.08031863459 | KS28: 0.2404091869 | KT28: 0.2839188791 | KU28: 0.2967038829 | KV28: 0.2966242745 | KY28: =-KY25/(1-KY19) ->  | LF28: =-LF25/(1-LF19) ->  | LL28: ∆ TBV due to voluntary selection per sold calf | LR28: 12 | LS28: 2A | LT28: 4 | LU28: ='2A'!$X6 -> 0 | LV28: ='2A'!$D91 -> 300 | LW28: 299.99996 | LX28: 16 | LY28: 3A | LZ28: 0 | MA28: 300 | MB28: 0 | MC28: 0 | MD28: 0 | ME28: 0 | MF28: 0 | MG28: 0 | MI28: 12 | MJ28: 2B | MK28: 4 | ML28: ='2B'!$X6 -> 0.1231755971 | MM28: ='2B'!$D91 -> 300 | MN28: 299.99996 | MO28: 16 | MP28: 3B | MQ28: 0.07390024067 | MR28: 300 | MS28: 0 | MT28: 0 | MU28: 0 | MV28: 0 | MW28: 22.1700722 | MX28: 0
E29: black and green depends only on "long". Green and black alternate to draw attention to change in formulas | AB29: A | AC29: B | AH29: 2.796692103e-07 | AI29: 0.0002796692103 | AL29: 19 | AM29: =IFERROR(CHOOSE($AK$13,'0A'!T29,'1A'!T29,'2A'!T29,'3A'!T29,'4A'!T29,'0B'!T29,'1B'!T29,'2B'!T29,'3B'!T29,'4B'!T29)/$AM$9,0) -> 0.9562293861 | AN29: =IFERROR(CHOOSE($AK$13,'0A'!AD29,'1A'!AD29,'2A'!AD29,'3A'!AD29,'4A'!AD29,'0B'!AD29,'1B'!AD29,'2B'!AD29,'3B'!AD29,'4B'!AD29)/$AM$9,0) -> 0 | AO29: =IFERROR(CHOOSE($AK$13,'0A'!AI29,'1A'!AI29,'2A'!AI29,'3A'!AI29,'4A'!AI29,'0B'!AI29,'1B'!AI29,'2B'!AI29,'3B'!AI29,'4B'!AI29)/$AM$9,0) -> 0.9562293861 | AP29: =IFERROR(CHOOSE($AK$13,'0A'!AG29,'1A'!AG29,'2A'!AG29,'3A'!AG29,'4A'!AG29,'0B'!AG29,'1B'!AG29,'2B'!AG29,'3B'!AG29,'4B'!AG29)/$AM$9,0) -> 0.9562293861 | AQ29: =IFERROR(CHOOSE($AK$13,'0A'!AH29,'1A'!AH29,'2A'!AH29,'3A'!AH29,'4A'!AH29,'0B'!AH29,'1B'!AH29,'2B'!AH29,'3B'!AH29,'4B'!AH29)/$AM$9,0) -> 0 | AR29: =IFERROR(CHOOSE($AK$13,'0A'!Q29,'1A'!Q29,'2A'!Q29,'3A'!Q29,'4A'!Q29,'0B'!Q29,'1B'!Q29,'2B'!Q29,'3B'!Q29,'4B'!Q29)/$AM$9/$AR$9,0) -> 0 | AS29: =IFERROR(CHOOSE($AK$13,'0A'!U29,'1A'!U29,'2A'!U29,'3A'!U29,'4A'!U29,'0B'!U29,'1B'!U29,'2B'!U29,'3B'!U29,'4B'!U29)/$AM$9,0) -> 0 | AT29: 80.39304241 | AU29: 39.57732215 | AV29: 9.452313608 | AX29: 19 | AY29: ='0A'!$T29/$AY$8 ->  | AZ29: ='1A'!$T29/$AZ$8 -> 0.9742560449 | BA29: ='2A'!$T29/$BA$8 -> 0.9562293861 | BB29: ='3A'!$T29/$BB$8 -> 0.934949798 | BC29: ='4A'!$T29/$BC$8 -> 0.9120601083 | BD29: 0.9365814009 | BE29: 1 | BF29: ='0A'!$AI29/$AY$8 ->  | BG29: ='1A'!$AI29/$AZ$8 -> 0.9742560449 | BH29: ='2A'!$AI29/$BA$8 -> 0.9562293861 | BI29: ='3A'!$AI29/$BB$8 -> 0.934949798 | BJ29: ='4A'!$AI29/$BC$8 -> 0.9120601083 | BK29: 0.9365814009 | BL29: ='0A'!$AM29/$AY$8 ->  | BM29: ='1A'!$AM29/$AZ$8 -> 0 | BN29: ='2A'!$AM29/$BA$8 -> 0 | BO29: ='3A'!$AM29/$BB$8 -> 0 | BP29: ='4A'!$AM29/$BC$8 -> 0 | BQ29: 0 | BR29: 19 | BS29: ='0B'!$T29/$BS$8 ->  | BT29: ='1B'!$T29/$BT$8 -> 0.9742560449 | BU29: ='2B'!$T29/$BU$8 -> 0.9562293861 | BV29: ='3B'!$T29/$BV$8 -> 0.934949798 | BW29: ='4B'!$T29/$BW$8 -> 0.9120601083 | BX29: 0.9365814009 | BY29: 1 | BZ29: ='0B'!$AI29/$BS$8 ->  | CA29: ='1B'!$AI29/$BT$8 -> 0.9742560449 | CB29: ='2B'!$AI29/$BU$8 -> 0.9562293861 | CC29: ='3B'!$AI29/$BV$8 -> 0.934949798 | CD29: ='4B'!$AI29/$BW$8 -> 0.9120601083 | CE29: 0.9365814009 | CF29: ='0B'!$AM29/$BS$8 ->  | CG29: ='1B'!$AM29/$BT$8 -> 0 | CH29: ='2B'!$AM29/$BU$8 -> 0 | CI29: ='3B'!$AM29/$BV$8 -> 0 | CJ29: ='4B'!$AM29/$BW$8 -> 0 | CK29: 0 | CO29: 19 | CP29: 0.001388728305 | CQ29: 0.001304641931 | CR29: 0.00215910367 | CS29: 0.003141192028 | CT29: 0.004295941353 | CU29: 0.001388728305 | CV29: 0.001225593863 | CW29: 0.002096412297 | CX29: 0.003141192028 | CY29: 0.004295941353 | CZ29: 0.001388728305 | DA29: 0.001225593863 | DB29: 0.002096412297 | DC29: 0.003141192028 | DD29: 0.004295941353 | DE29: 0.9120601083 | DI29: 13 | DJ29: 395.6784 | DK29: 334.0085162 | DL29: 352.4476448 | DQ29: 19 | DR29: 94.41369 | DS29: 1175.076799 | DT29: 1359.183066 | DU29: 1361.387446 | DV29: 1361.575883 | DW29: 151.2295126 | DX29: 1240.576738 | DY29: 1369.820707 | DZ29: 1369.55389 | EA29: 1368.367715 | EB29: 151.2295126 | EC29: 1240.576738 | ED29: 1369.820707 | EE29: 1369.55389 | EF29: 1368.367715 | EG29: 18 | EH29: 0 | EY29: 19 | EZ29: 61.43279599 | FA29: 84.96574322 | FB29: 87.94455149 | FC29: 87.94455149 | FD29: 0 | FE29: =FE$5*FE$6*($EY29/30.4)^FE$7*EXP(-FE$8*$EY29/30.4)*IFERROR(extra!D29,1)+IF($EY29<=305,EO$8,0) -> 59.87966712 | FF29: =FF$5*FF$6*($EY29/30.4)^FF$7*EXP(-FF$8*$EY29/30.4)*IFERROR(extra!E29,1)+IF($EY29<=305,EP$8,0) -> 80.39304241 | FG29: =FG$5*FG$6*($EY29/30.4)^FG$7*EXP(-FG$8*$EY29/30.4)*IFERROR(extra!F29,1)+IF($EY29<=305,EQ$8,0) -> 88.12671031 | FH29: =FH$5*FH$6*($EY29/30.4)^FH$7*EXP(-FH$8*$EY29/30.4)*IFERROR(extra!G29,1)+IF($EY29<=305,ER$8,0) -> 88.12671031 | FI29: 0 | FJ29: =FJ$5*FJ$6*($EY29/30.4)^FJ$7*EXP(-FJ$8*$EY29/30.4)*IFERROR(extra!H29,1)+IF($EY29<=305,ET$8,0) -> 59.87966712 | FK29: =FK$5*FK$6*($EY29/30.4)^FK$7*EXP(-FK$8*$EY29/30.4)*IFERROR(extra!I29,1)+IF($EY29<=305,EU$8,0) -> 80.39304241 | FL29: =FL$5*FL$6*($EY29/30.4)^FL$7*EXP(-FL$8*$EY29/30.4)*IFERROR(extra!J29,1)+IF($EY29<=305,EV$8,0) -> 88.12671031 | FM29: =FM$5*FM$6*($EY29/30.4)^FM$7*EXP(-FM$8*$EY29/30.4)*IFERROR(extra!K29,1)+IF($EY29<=305,EW$8,0) -> 88.12671031 | FN29: 19 | FO29: 1 | FP29: 0 | FQ29: -59.87966712 | FR29: -80.39304241 | FS29: -88.12671031 | FT29: -88.12671031 | FU29: 0 | FV29: -59.87966712 | FW29: -80.39304241 | FX29: -88.12671031 | FY29: -88.12671031 | GA29: 19 | GB29: 1.150632853 | GC29: 1.536088252 | GD29: 1.641096955 | GE29: 0.8581312769 | GF29: 1.204147803 | GG29: 1.235733642 | GH29: 27.86911528 | GI29: 38.56681242 | GJ29: 39.96885389 | GK29: 27.86520557 | GP29: 38.56681242 | GQ29: 0.03982927693 | GR29: 0.03900805472 | GS29: 0.03900805472 | GT29: 0.03900805472 | GU29: 0.03900805472 | GV29: 0.03900805472 | GW29: 0.03900805472 | GX29: 0.03900805472 | GY29: 0.03900805472 | GZ29: 0.03275791042 | HA29: 0.03275791042 | HB29: 0.03275791042 | HC29: 0.03275791042 | HD29: 0.03275791042 | HE29: 0.03275791042 | HF29: 0.03275791042 | HG29: 0.03275791042 | HH29: 19 | HI29: 0 | HJ29: 0.1914209423 | HK29: 0.1914209423 | HL29: 0.1914209423 | HM29: 0.1914209423 | HN29: 0 | HO29: 0.1914209423 | HP29: 0.1914209423 | HQ29: 0.1914209423 | HR29: 0.1914209423 | HT29: 19 | HU29: 1.053421053 | HV29: 2.110368421 | HY29: -1.31 | HZ29: 19 | IA29: 5.04747498 | IB29: 413381.8307 | IC29: 0 | ID29: 228975.7387 | IE29: 216618.1295 | IF29: 218849.732 | IG29: 218849.732 | IH29: 0 | II29: 228975.7387 | IJ29: 216618.1295 | IK29: 218849.732 | IL29: 218849.732 | IO29: 19 | IP29: 8.299146632 | IQ29: 32.9223684 | IR29: 39.57732215 | IS29: 41.5768066 | IT29: 41.56461853 | IU29: 8.299146632 | IV29: 32.9223684 | IW29: 39.57732215 | IX29: 41.5768066 | IY29: 41.56461853 | IZ29: 0.05487782438 | JA29: 1.818814078 | JB29: 2.031290599 | JC29: 2.119612292 | JD29: 2.120233829 | JF29: 19 | JG29: 0 | JH29: 6.523867044 | JI29: 9.452313608 | JJ29: 10.63277694 | JK29: 10.63460515 | JL29: 0 | JM29: 6.523867044 | JN29: 9.452313608 | JO29: 10.63277694 | JP29: 10.63460515 | JQ29: 0 | JR29: -6.523867044 | JS29: -9.452313608 | JT29: -10.63277694 | JU29: -10.63460515 | JV29: 0 | JW29: -6.523867044 | JX29: -9.452313608 | JY29: -10.63277694 | JZ29: -10.63460515 | KC29: 19 | KD29: 2.75 | KI29: 2.75 | KL29: 19 | KM29: 0.08110545764 | KN29: 0.2436439148 | KO29: 0.2875734186 | KP29: 0.3007720617 | KQ29: 0.300691608 | KR29: 0.08110545764 | KS29: 0.2436439148 | KT29: 0.2875734186 | KU29: 0.3007720617 | KV29: 0.300691608 | KX29: engine | KY29: =KY12+KY25 ->  | KZ29: =H363 ->  | LA29: =I363 ->  | LB29: =J363 ->  | LC29: =K363 ->  | LD29: =L363 ->  | LF29: =LF12+LF25 ->  | LG29: =W363 ->  | LH29: =X363 ->  | LI29: =Y363 ->  | LJ29: =Z363 ->  | LK29: =AA363 ->  | LL29: TBV at end of parity | LR29: 13 | LS29: 3A | LT29: 1 | LU29: ='3A'!$X3 -> 0.03993047073 | LV29: ='3A'!$D88 -> 300 | LW29: 299.99999 | LX29: 1 | LY29: 0A | LZ29: 0 | MA29: 300 | MB29: 0 | MC29: 0 | MD29: 0 | ME29: 0 | MF29: 0 | MG29: 0 | MI29: 13 | MJ29: 3B | MK29: 1 | ML29: ='3B'!$X3 -> 0.04049734447 | MM29: ='3B'!$D88 -> 300 | MN29: 299.99999 | MO29: 1 | MP29: 0B | MQ29: 0 | MR29: 300 | MS29: 0 | MT29: 0 | MU29: 0 | MV29: 0 | MW29: 0 | MX29: 0
E30: red is a typed number (not a formula) | AB30: =Short!F19 -> 150 | AC30: =Short!G19 -> 150 | AD30: $/ton | AH30: 1.565281771e-07 | AI30: 0.0001565281771 | AL30: 20 | AM30: =IFERROR(CHOOSE($AK$13,'0A'!T30,'1A'!T30,'2A'!T30,'3A'!T30,'4A'!T30,'0B'!T30,'1B'!T30,'2B'!T30,'3B'!T30,'4B'!T30)/$AM$9,0) -> 0.9542519832 | AN30: =IFERROR(CHOOSE($AK$13,'0A'!AD30,'1A'!AD30,'2A'!AD30,'3A'!AD30,'4A'!AD30,'0B'!AD30,'1B'!AD30,'2B'!AD30,'3B'!AD30,'4B'!AD30)/$AM$9,0) -> 0 | AO30: =IFERROR(CHOOSE($AK$13,'0A'!AI30,'1A'!AI30,'2A'!AI30,'3A'!AI30,'4A'!AI30,'0B'!AI30,'1B'!AI30,'2B'!AI30,'3B'!AI30,'4B'!AI30)/$AM$9,0) -> 0.9542519832 | AP30: =IFERROR(CHOOSE($AK$13,'0A'!AG30,'1A'!AG30,'2A'!AG30,'3A'!AG30,'4A'!AG30,'0B'!AG30,'1B'!AG30,'2B'!AG30,'3B'!AG30,'4B'!AG30)/$AM$9,0) -> 0.9542519832 | AQ30: =IFERROR(CHOOSE($AK$13,'0A'!AH30,'1A'!AH30,'2A'!AH30,'3A'!AH30,'4A'!AH30,'0B'!AH30,'1B'!AH30,'2B'!AH30,'3B'!AH30,'4B'!AH30)/$AM$9,0) -> 0 | AR30: =IFERROR(CHOOSE($AK$13,'0A'!Q30,'1A'!Q30,'2A'!Q30,'3A'!Q30,'4A'!Q30,'0B'!Q30,'1B'!Q30,'2B'!Q30,'3B'!Q30,'4B'!Q30)/$AM$9/$AR$9,0) -> 0 | AS30: =IFERROR(CHOOSE($AK$13,'0A'!U30,'1A'!U30,'2A'!U30,'3A'!U30,'4A'!U30,'0B'!U30,'1B'!U30,'2B'!U30,'3B'!U30,'4B'!U30)/$AM$9,0) -> 0 | AT30: 80.88193676 | AU30: 40.11284455 | AV30: 9.453869977 | AX30: 20 | AY30: ='0A'!$T30/$AY$8 ->  | AZ30: ='1A'!$T30/$AZ$8 -> 0.9730778237 | BA30: ='2A'!$T30/$BA$8 -> 0.9542519832 | BB30: ='3A'!$T30/$BB$8 -> 0.9320537309 | BC30: ='4A'!$T30/$BC$8 -> 0.9081963704 | BD30: 0.9337685806 | BE30: 1 | BF30: ='0A'!$AI30/$AY$8 ->  | BG30: ='1A'!$AI30/$AZ$8 -> 0.9730778237 | BH30: ='2A'!$AI30/$BA$8 -> 0.9542519832 | BI30: ='3A'!$AI30/$BB$8 -> 0.9320537309 | BJ30: ='4A'!$AI30/$BC$8 -> 0.9081963704 | BK30: 0.9337685806 | BL30: ='0A'!$AM30/$AY$8 ->  | BM30: ='1A'!$AM30/$AZ$8 -> 0 | BN30: ='2A'!$AM30/$BA$8 -> 0 | BO30: ='3A'!$AM30/$BB$8 -> 0 | BP30: ='4A'!$AM30/$BC$8 -> 0 | BQ30: 0 | BR30: 20 | BS30: ='0B'!$T30/$BS$8 ->  | BT30: ='1B'!$T30/$BT$8 -> 0.9730778237 | BU30: ='2B'!$T30/$BU$8 -> 0.9542519832 | BV30: ='3B'!$T30/$BV$8 -> 0.9320537309 | BW30: ='4B'!$T30/$BW$8 -> 0.9081963704 | BX30: 0.9337685806 | BY30: 1 | BZ30: ='0B'!$AI30/$BS$8 ->  | CA30: ='1B'!$AI30/$BT$8 -> 0.9730778237 | CB30: ='2B'!$AI30/$BU$8 -> 0.9542519832 | CC30: ='3B'!$AI30/$BV$8 -> 0.9320537309 | CD30: ='4B'!$AI30/$BW$8 -> 0.9081963704 | CE30: 0.9337685806 | CF30: ='0B'!$AM30/$BS$8 ->  | CG30: ='1B'!$AM30/$BT$8 -> 0 | CH30: ='2B'!$AM30/$BU$8 -> 0 | CI30: ='3B'!$AM30/$BV$8 -> 0 | CJ30: ='4B'!$AM30/$BW$8 -> 0 | CK30: 0 | CO30: 20 | CP30: 0.001388728305 | CQ30: 0.001286520776 | CR30: 0.002129115636 | CS30: 0.003097564358 | CT30: 0.004236275498 | CU30: 0.001388728305 | CV30: 0.001209354805 | CW30: 0.002067916915 | CX30: 0.003097564358 | CY30: 0.004236275498 | CZ30: 0.001388728305 | DA30: 0.001209354805 | DB30: 0.002067916915 | DC30: 0.003097564358 | DD30: 0.004236275498 | DE30: 0.9081963704 | DI30: 14 | DJ30: 426.1152 | DK30: 356.2184831 | DL30: 377.4666944 | DQ30: 20 | DR30: 96.2262 | DS30: 1174.579229 | DT30: 1357.327267 | DU30: 1359.518469 | DV30: 1359.705779 | DW30: 154.1327462 | DX30: 1238.882882 | DY30: 1367.950384 | DZ30: 1367.683931 | EA30: 1366.499376 | EB30: 154.1327462 | EC30: 1238.882882 | ED30: 1367.950384 | EE30: 1367.683931 | EF30: 1366.499376 | EG30: 19 | EH30: 0 | EN30: parity 1 | EO30: A | EP30: B | ES30: parity 2 (figure 3b) | EY30: 20 | EZ30: 61.96983505 | FA30: 85.48244554 | FB30: 88.58351389 | FC30: 88.58351389 | FD30: 0 | FE30: =FE$5*FE$6*($EY30/30.4)^FE$7*EXP(-FE$8*$EY30/30.4)*IFERROR(extra!D30,1)+IF($EY30<=305,EO$8,0) -> 60.40312889 | FF30: =FF$5*FF$6*($EY30/30.4)^FF$7*EXP(-FF$8*$EY30/30.4)*IFERROR(extra!E30,1)+IF($EY30<=305,EP$8,0) -> 80.88193676 | FG30: =FG$5*FG$6*($EY30/30.4)^FG$7*EXP(-FG$8*$EY30/30.4)*IFERROR(extra!F30,1)+IF($EY30<=305,EQ$8,0) -> 88.76699619 | FH30: =FH$5*FH$6*($EY30/30.4)^FH$7*EXP(-FH$8*$EY30/30.4)*IFERROR(extra!G30,1)+IF($EY30<=305,ER$8,0) -> 88.76699619 | FI30: 0 | FJ30: =FJ$5*FJ$6*($EY30/30.4)^FJ$7*EXP(-FJ$8*$EY30/30.4)*IFERROR(extra!H30,1)+IF($EY30<=305,ET$8,0) -> 60.40312889 | FK30: =FK$5*FK$6*($EY30/30.4)^FK$7*EXP(-FK$8*$EY30/30.4)*IFERROR(extra!I30,1)+IF($EY30<=305,EU$8,0) -> 80.88193676 | FL30: =FL$5*FL$6*($EY30/30.4)^FL$7*EXP(-FL$8*$EY30/30.4)*IFERROR(extra!J30,1)+IF($EY30<=305,EV$8,0) -> 88.76699619 | FM30: =FM$5*FM$6*($EY30/30.4)^FM$7*EXP(-FM$8*$EY30/30.4)*IFERROR(extra!K30,1)+IF($EY30<=305,EW$8,0) -> 88.76699619 | FN30: 20 | FO30: 1 | FP30: 0 | FQ30: -60.40312889 | FR30: -80.88193676 | FS30: -88.76699619 | FT30: -88.76699619 | FU30: 0 | FV30: -60.40312889 | FW30: -80.88193676 | FX30: -88.76699619 | FY30: -88.76699619 | GA30: 20 | GB30: 1.158843493 | GC30: 1.543229645 | GD30: 1.650269115 | GE30: 0.8645267195 | GF30: 1.209795621 | GG30: 1.242614714 | GH30: 28.11190722 | GI30: 38.80145396 | GJ30: 40.25649325 | GK30: 28.10858462 | GP30: 38.80145396 | GQ30: 0.03977246952 | GR30: 0.0389524186 | GS30: 0.0389524186 | GT30: 0.0389524186 | GU30: 0.0389524186 | GV30: 0.0389524186 | GW30: 0.0389524186 | GX30: 0.0389524186 | GY30: 0.0389524186 | GZ30: 0.03271253103 | HA30: 0.03271253103 | HB30: 0.03271253103 | HC30: 0.03271253103 | HD30: 0.03271253103 | HE30: 0.03271253103 | HF30: 0.03271253103 | HG30: 0.03271253103 | HH30: 20 | HI30: 0 | HJ30: 0.1912762884 | HK30: 0.1912762884 | HL30: 0.1912762884 | HM30: 0.1912762884 | HN30: 0 | HO30: 0.1912762884 | HP30: 0.1912762884 | HQ30: 0.1912762884 | HR30: 0.1912762884 | HT30: 20 | HU30: 1.09585 | HV30: 2.138 | HY30: -1.3 | HZ30: 20 | IA30: 4.988587606 | IB30: 396848.2946 | IC30: 0 | ID30: 219817.6713 | IE30: 207954.3146 | IF30: 210096.6624 | IG30: 210096.6624 | IH30: 0 | II30: 219817.6713 | IJ30: 207954.3146 | IK30: 210096.6624 | IL30: 210096.6624 | IO30: 20 | IP30: 8.418354517 | IQ30: 33.39806484 | IR30: 40.11284455 | IS30: 42.17269519 | IT30: 42.16038273 | IU30: 8.418354517 | IV30: 33.39806484 | IW30: 40.11284455 | IX30: 42.17269519 | IY30: 42.16038273 | IZ30: 0.05461756001 | JA30: 1.8085817 | JB30: 2.016360038 | JC30: 2.104845227 | JD30: 2.105459923 | JF30: 20 | JG30: 0 | JH30: 6.543976574 | JI30: 9.453869977 | JJ30: 10.65311728 | JK30: 10.65496415 | JL30: 0 | JM30: 6.543976574 | JN30: 9.453869977 | JO30: 10.65311728 | JP30: 10.65496415 | JQ30: 0 | JR30: -6.543976574 | JS30: -9.453869977 | JT30: -10.65311728 | JU30: -10.65496415 | JV30: 0 | JW30: -6.543976574 | JX30: -9.453869977 | JY30: -10.65311728 | JZ30: -10.65496415 | KC30: 20 | KD30: 2.75 | KI30: 2.75 | KL30: 20 | KM30: 0.08189235165 | KN30: 0.246783998 | KO30: 0.2911084143 | KP30: 0.3047055361 | KQ30: 0.3046242613 | KR30: 0.08189235165 | KS30: 0.246783998 | KT30: 0.2911084143 | KU30: 0.3047055361 | KV30: 0.3046242613 | KX30: check | KZ30: =H336 -> 0 | LA30: =I336 -> 429.3648234 | LB30: =J336 -> 410.0604673 | LC30: =K336 -> 408.8257344 | LD30: =L336 -> 407.4063812 | LG30: =W336 -> 0 | LH30: =X336 -> 420.9808154 | LI30: =Y336 -> 410.0604673 | LJ30: =Z336 -> 408.8257344 | LK30: =AA336 -> 407.4063812 | LL30: days at calving | LR30: 14 | LS30: 3A | LT30: 2 | LU30: ='3A'!$X4 -> 0.03062174152 | LV30: ='3A'!$D89 -> 300 | LW30: 299.99998 | LX30: 6 | LY30: 1A | LZ30: 0.1114115015 | MA30: 300 | MB30: 0 | MC30: 0 | MD30: 0 | ME30: 0 | MF30: 33.42345046 | MG30: 0 | MI30: 14 | MJ30: 3B | MK30: 2 | ML30: ='3B'!$X4 -> 0.0310564637 | MM30: ='3B'!$D89 -> 300 | MN30: 299.99998 | MO30: 6 | MP30: 1B | MQ30: 0.07048720245 | MR30: 300 | MS30: 0 | MT30: 0 | MU30: 0 | MV30: 0 | MW30: 21.14616073 | MX30: 0
F31: 2nd row, 10th column, means "long" value depends on "control" value: it is not a direct input, or a function of direct inputs, on the long sheet | AB31: =IF(unit="kg",1000,2000/2.205) -> 907.0294785 | AC31: =IF(unit="kg",1000,2000/2.205) -> 907.0294785 | AD31: kg feed in the ton | AH31: 8.760732078e-08 | AI31: 8.760732078e-05 | AL31: 21 | AM31: =IFERROR(CHOOSE($AK$13,'0A'!T31,'1A'!T31,'2A'!T31,'3A'!T31,'4A'!T31,'0B'!T31,'1B'!T31,'2B'!T31,'3B'!T31,'4B'!T31)/$AM$9,0) -> 0.9523058611 | AN31: =IFERROR(CHOOSE($AK$13,'0A'!AD31,'1A'!AD31,'2A'!AD31,'3A'!AD31,'4A'!AD31,'0B'!AD31,'1B'!AD31,'2B'!AD31,'3B'!AD31,'4B'!AD31)/$AM$9,0) -> 0 | AO31: =IFERROR(CHOOSE($AK$13,'0A'!AI31,'1A'!AI31,'2A'!AI31,'3A'!AI31,'4A'!AI31,'0B'!AI31,'1B'!AI31,'2B'!AI31,'3B'!AI31,'4B'!AI31)/$AM$9,0) -> 0.9523058611 | AP31: =IFERROR(CHOOSE($AK$13,'0A'!AG31,'1A'!AG31,'2A'!AG31,'3A'!AG31,'4A'!AG31,'0B'!AG31,'1B'!AG31,'2B'!AG31,'3B'!AG31,'4B'!AG31)/$AM$9,0) -> 0.9523058611 | AQ31: =IFERROR(CHOOSE($AK$13,'0A'!AH31,'1A'!AH31,'2A'!AH31,'3A'!AH31,'4A'!AH31,'0B'!AH31,'1B'!AH31,'2B'!AH31,'3B'!AH31,'4B'!AH31)/$AM$9,0) -> 0 | AR31: =IFERROR(CHOOSE($AK$13,'0A'!Q31,'1A'!Q31,'2A'!Q31,'3A'!Q31,'4A'!Q31,'0B'!Q31,'1B'!Q31,'2B'!Q31,'3B'!Q31,'4B'!Q31)/$AM$9/$AR$9,0) -> 0 | AS31: =IFERROR(CHOOSE($AK$13,'0A'!U31,'1A'!U31,'2A'!U31,'3A'!U31,'4A'!U31,'0B'!U31,'1B'!U31,'2B'!U31,'3B'!U31,'4B'!U31)/$AM$9,0) -> 0 | AT31: 81.33754578 | AU31: 40.63100674 | AV31: 9.452217168 | AX31: 21 | AY31: ='0A'!$T31/$AY$8 ->  | AZ31: ='1A'!$T31/$AZ$8 -> 0.9719168292 | BA31: ='2A'!$T31/$BA$8 -> 0.9523058611 | BB31: ='3A'!$T31/$BB$8 -> 0.9292072978 | BC31: ='4A'!$T31/$BC$8 -> 0.9044031887 | BD31: 0.9310047789 | BE31: 1 | BF31: ='0A'!$AI31/$AY$8 ->  | BG31: ='1A'!$AI31/$AZ$8 -> 0.9719168292 | BH31: ='2A'!$AI31/$BA$8 -> 0.9523058611 | BI31: ='3A'!$AI31/$BB$8 -> 0.9292072978 | BJ31: ='4A'!$AI31/$BC$8 -> 0.9044031887 | BK31: 0.9310047789 | BL31: ='0A'!$AM31/$AY$8 ->  | BM31: ='1A'!$AM31/$AZ$8 -> 0 | BN31: ='2A'!$AM31/$BA$8 -> 0 | BO31: ='3A'!$AM31/$BB$8 -> 0 | BP31: ='4A'!$AM31/$BC$8 -> 0 | BQ31: 0 | BR31: 21 | BS31: ='0B'!$T31/$BS$8 ->  | BT31: ='1B'!$T31/$BT$8 -> 0.9719168292 | BU31: ='2B'!$T31/$BU$8 -> 0.9523058611 | BV31: ='3B'!$T31/$BV$8 -> 0.9292072978 | BW31: ='4B'!$T31/$BW$8 -> 0.9044031887 | BX31: 0.9310047789 | BY31: 1 | BZ31: ='0B'!$AI31/$BS$8 ->  | CA31: ='1B'!$AI31/$BT$8 -> 0.9719168292 | CB31: ='2B'!$AI31/$BU$8 -> 0.9523058611 | CC31: ='3B'!$AI31/$BV$8 -> 0.9292072978 | CD31: ='4B'!$AI31/$BW$8 -> 0.9044031887 | CE31: 0.9310047789 | CF31: ='0B'!$AM31/$BS$8 ->  | CG31: ='1B'!$AM31/$BT$8 -> 0 | CH31: ='2B'!$AM31/$BU$8 -> 0 | CI31: ='3B'!$AM31/$BV$8 -> 0 | CJ31: ='4B'!$AM31/$BW$8 -> 0 | CK31: 0 | CO31: 21 | CP31: 0.001388728305 | CQ31: 0.001268399621 | CR31: 0.002099127603 | CS31: 0.003053936687 | CT31: 0.004176609643 | CU31: 0.001388728305 | CV31: 0.001193115747 | CW31: 0.002039421533 | CX31: 0.003053936687 | CY31: 0.004176609643 | CZ31: 0.001388728305 | DA31: 0.001193115747 | DB31: 0.002039421533 | DC31: 0.003053936687 | DD31: 0.004176609643 | DE31: 0.9044031887 | DI31: 15 | DJ31: 456.552 | DK31: 385.6431266 | DL31: 402.485744 | DQ31: 21 | DR31: 98.03871 | DS31: =((DS$4*(1-(1-(DS$5/DS$4)^(1/3))*EXP(-DS$6/1000*(DS$9+$DQ31)))^3)-(DS$7/DS$8*$DQ31*EXP(1-$DQ31/DS$8)))*mult -> 1174.115289 | DT31: 1355.534418 | DU31: 1357.712519 | DV31: 1357.898709 | DW31: 157.0359799 | DX31: =((DX$4*(1-(1-(DX$5/DX$4)^(1/3))*EXP(-DX$6/1000*(DX$9+$DQ31)))^3)-(DX$7/DX$8*$DQ31*EXP(1-$DQ31/DX$8)))*DX$2*DX$3*mult -> 1237.246482 | DY31: 1366.143503 | DZ31: 1365.877402 | EA31: 1364.694411 | EB31: 157.0359799 | EC31: =((EC$4*(1-(1-(EC$5/EC$4)^(1/3))*EXP(-EC$6/1000*(EC$9+$DQ31)))^3)-(EC$7/EC$8*$DQ31*EXP(1-$DQ31/EC$8)))*EC$2*EC$3*mult -> 1237.246482 | ED31: 1366.143503 | EE31: 1365.877402 | EF31: 1364.694411 | EG31: 20 | EH31: 0 | EN31: #bull | EO31: ='1A'!$D$125 -> 0.2872527132 | EP31: ='1B'!$D$125 -> 0.4516730709 | EQ31: born calf | ER31: born calf | EY31: 21 | EZ31: 62.47889964 | FA31: 85.96396929 | FB31: 89.18005276 | FC31: 89.18005276 | FD31: 0 | FE31: =FE$5*FE$6*($EY31/30.4)^FE$7*EXP(-FE$8*$EY31/30.4)*IFERROR(extra!D31,1)+IF($EY31<=305,EO$8,0) -> 60.89932344 | FF31: =FF$5*FF$6*($EY31/30.4)^FF$7*EXP(-FF$8*$EY31/30.4)*IFERROR(extra!E31,1)+IF($EY31<=305,EP$8,0) -> 81.33754578 | FG31: =FG$5*FG$6*($EY31/30.4)^FG$7*EXP(-FG$8*$EY31/30.4)*IFERROR(extra!F31,1)+IF($EY31<=305,EQ$8,0) -> 89.36477067 | FH31: =FH$5*FH$6*($EY31/30.4)^FH$7*EXP(-FH$8*$EY31/30.4)*IFERROR(extra!G31,1)+IF($EY31<=305,ER$8,0) -> 89.36477067 | FI31: 0 | FJ31: =FJ$5*FJ$6*($EY31/30.4)^FJ$7*EXP(-FJ$8*$EY31/30.4)*IFERROR(extra!H31,1)+IF($EY31<=305,ET$8,0) -> 60.89932344 | FK31: =FK$5*FK$6*($EY31/30.4)^FK$7*EXP(-FK$8*$EY31/30.4)*IFERROR(extra!I31,1)+IF($EY31<=305,EU$8,0) -> 81.33754578 | FL31: =FL$5*FL$6*($EY31/30.4)^FL$7*EXP(-FL$8*$EY31/30.4)*IFERROR(extra!J31,1)+IF($EY31<=305,EV$8,0) -> 89.36477067 | FM31: =FM$5*FM$6*($EY31/30.4)^FM$7*EXP(-FM$8*$EY31/30.4)*IFERROR(extra!K31,1)+IF($EY31<=305,EW$8,0) -> 89.36477067 | FN31: 21 | FO31: 1 | FP31: 0 | FQ31: -60.89932344 | FR31: -81.33754578 | FS31: -89.36477067 | FT31: -89.36477067 | FU31: 0 | FV31: -60.89932344 | FW31: -81.33754578 | FX31: -89.36477067 | FY31: -89.36477067 | GA31: 21 | GB31: 1.166603628 | GC31: 1.549839288 | GD31: 1.658774895 | GE31: 0.8705735645 | GF31: 1.215024592 | GG31: 1.248994995 | GH31: =GH$3*$GA31^GH$4*EXP(-GH$5*$GA31) -> 28.34204707 | GI31: 39.02010419 | GJ31: 40.52495569 | GK31: 28.33928429 | GP31: 39.02010419 | GQ31: 0.0397189941 | GR31: =$GC31/$GI31*GR$9 -> 0.03890004576 | GS31: 0.03890004576 | GT31: 0.03890004576 | GU31: 0.03890004576 | GV31: 0.03890004576 | GW31: 0.03890004576 | GX31: 0.03890004576 | GY31: 0.03890004576 | GZ31: 0.03266982308 | HA31: 0.03266982308 | HB31: 0.03266982308 | HC31: 0.03266982308 | HD31: 0.03266982308 | HE31: 0.03266982308 | HF31: 0.03266982308 | HG31: 0.03266982308 | HH31: 21 | HI31: 0 | HJ31: 0.191140119 | HK31: 0.191140119 | HL31: 0.191140119 | HM31: 0.191140119 | HN31: 0 | HO31: 0.191140119 | HP31: 0.191140119 | HQ31: 0.191140119 | HR31: 0.191140119 | HT31: 21 | HU31: =((HU$2-HU$3*$HT31+HU$4*$HT31^2/2-HU$5/$HT31)+HU$6)*HU$7 -> 1.134047619 | HV31: 2.163380952 | HY31: -1.29 | HZ31: 21 | IA31: 4.936239238 | IB31: 382706.721 | IC31: 0 | ID31: =$IB31*ID$9 -> 211984.5325 | IE31: 200543.9231 | IF31: 202609.9289 | IG31: 202609.9289 | IH31: 0 | II31: =$IB31*II$9 -> 211984.5325 | IJ31: 200543.9231 | IK31: 202609.9289 | IL31: 202609.9289 | IO31: 21 | IP31: 8.537002337 | IQ31: 33.86000765 | IR31: 40.63100674 | IS31: 42.74903517 | IT31: 42.73660188 | IU31: 8.537002337 | IV31: 33.86000765 | IW31: 40.63100674 | IX31: 42.74903517 | IY31: 42.73660188 | IZ31: 0.05436335254 | JA31: 1.798562011 | JB31: 2.001858982 | JC31: 2.090451172 | JD31: 2.091059343 | JF31: 21 | JG31: 0 | JH31: 6.561302781 | JI31: 9.452217168 | JJ31: 10.66883762 | JK31: 10.67070262 | JL31: 0 | JM31: 6.561302781 | JN31: 9.452217168 | JO31: 10.66883762 | JP31: 10.67070262 | JQ31: 0 | JR31: -6.561302781 | JS31: -9.452217168 | JT31: -10.66883762 | JU31: -10.67070262 | JV31: 0 | JW31: -6.561302781 | JX31: -9.452217168 | JY31: -10.66883762 | JZ31: -10.67070262 | KC31: 21 | KD31: 2.75 | KI31: 2.75 | KL31: 21 | KM31: 0.08267554865 | KN31: 0.2498332932 | KO31: 0.294528815 | KP31: 0.3085099697 | KQ31: 0.3084278973 | KR31: 0.08267554865 | KS31: 0.2498332932 | KT31: 0.294528815 | KU31: 0.3085099697 | KV31: 0.3084278973 | KX31: check | KZ31: =KZ12-KZ29 ->  | LA31: =LA12-LA29 ->  | LB31: =LB12-LB29 ->  | LC31: =LC12-LC29 ->  | LD31: =LD12-LD29 ->  | LG31: =LG12-LG29 ->  | LH31: =LH12-LH29 ->  | LI31: =LI12-LI29 ->  | LJ31: =LJ12-LJ29 ->  | LK31: =LK12-LK29 ->  | LL31: ∆ TBV (start - end parity) | LR31: 15 | LS31: 3A | LT31: 3 | LU31: ='3A'!$X5 -> 0.02355887756 | LV31: ='3A'!$D90 -> 300 | LW31: 299.99997 | LX31: 11 | LY31: 2A | LZ31: 0.03823354579 | MA31: 300 | MB31: 0 | MC31: 0 | MD31: 0 | ME31: 0 | MF31: 11.47006374 | MG31: 0 | MI31: 15 | MJ31: 3B | MK31: 3 | ML31: ='3B'!$X5 -> 0.02389333165 | MM31: ='3B'!$D90 -> 300 | MN31: 299.99997 | MO31: 11 | MP31: 2B | MQ31: 0.0387763291 | MR31: 300 | MS31: 0 | MT31: 0 | MU31: 0 | MV31: 0 | MW31: 11.63289873 | MX31: 0
E32: Note: Trace Dependents will not work for dependents in an offset() function: be careful with deleting cells | AB32: =AB30/AB31 -> 0.165375 | AC32: =AC30/AC31 -> 0.165375 | AD32: cost/kg feed | AH32: 4.903297794e-08 | AI32: 4.903297794e-05 | AL32: 22 | AM32: =IFERROR(CHOOSE($AK$13,'0A'!T32,'1A'!T32,'2A'!T32,'3A'!T32,'4A'!T32,'0B'!T32,'1B'!T32,'2B'!T32,'3B'!T32,'4B'!T32)/$AM$9,0) -> 0.9503908444 | AN32: =IFERROR(CHOOSE($AK$13,'0A'!AD32,'1A'!AD32,'2A'!AD32,'3A'!AD32,'4A'!AD32,'0B'!AD32,'1B'!AD32,'2B'!AD32,'3B'!AD32,'4B'!AD32)/$AM$9,0) -> 0 | AO32: =IFERROR(CHOOSE($AK$13,'0A'!AI32,'1A'!AI32,'2A'!AI32,'3A'!AI32,'4A'!AI32,'0B'!AI32,'1B'!AI32,'2B'!AI32,'3B'!AI32,'4B'!AI32)/$AM$9,0) -> 0.9503908444 | AP32: =IFERROR(CHOOSE($AK$13,'0A'!AG32,'1A'!AG32,'2A'!AG32,'3A'!AG32,'4A'!AG32,'0B'!AG32,'1B'!AG32,'2B'!AG32,'3B'!AG32,'4B'!AG32)/$AM$9,0) -> 0.9503908444 | AQ32: =IFERROR(CHOOSE($AK$13,'0A'!AH32,'1A'!AH32,'2A'!AH32,'3A'!AH32,'4A'!AH32,'0B'!AH32,'1B'!AH32,'2B'!AH32,'3B'!AH32,'4B'!AH32)/$AM$9,0) -> 0 | AR32: =IFERROR(CHOOSE($AK$13,'0A'!Q32,'1A'!Q32,'2A'!Q32,'3A'!Q32,'4A'!Q32,'0B'!Q32,'1B'!Q32,'2B'!Q32,'3B'!Q32,'4B'!Q32)/$AM$9/$AR$9,0) -> 0 | AS32: =IFERROR(CHOOSE($AK$13,'0A'!U32,'1A'!U32,'2A'!U32,'3A'!U32,'4A'!U32,'0B'!U32,'1B'!U32,'2B'!U32,'3B'!U32,'4B'!U32)/$AM$9,0) -> 0 | AT32: 81.76266643 | AU32: 41.13249564 | AV32: 9.447745916 | AX32: 22 | AY32: ='0A'!$T32/$AY$8 ->  | AZ32: ='1A'!$T32/$AZ$8 -> 0.970773003 | BA32: ='2A'!$T32/$BA$8 -> 0.9503908444 | BB32: ='3A'!$T32/$BB$8 -> 0.9264100967 | BC32: ='4A'!$T32/$BC$8 -> 0.9006798116 | BD32: 0.9282895515 | BE32: 1 | BF32: ='0A'!$AI32/$AY$8 ->  | BG32: ='1A'!$AI32/$AZ$8 -> 0.970773003 | BH32: ='2A'!$AI32/$BA$8 -> 0.9503908444 | BI32: ='3A'!$AI32/$BB$8 -> 0.9264100967 | BJ32: ='4A'!$AI32/$BC$8 -> 0.9006798116 | BK32: 0.9282895515 | BL32: ='0A'!$AM32/$AY$8 ->  | BM32: ='1A'!$AM32/$AZ$8 -> 0 | BN32: ='2A'!$AM32/$BA$8 -> 0 | BO32: ='3A'!$AM32/$BB$8 -> 0 | BP32: ='4A'!$AM32/$BC$8 -> 0 | BQ32: 0 | BR32: 22 | BS32: ='0B'!$T32/$BS$8 ->  | BT32: ='1B'!$T32/$BT$8 -> 0.970773003 | BU32: ='2B'!$T32/$BU$8 -> 0.9503908444 | BV32: ='3B'!$T32/$BV$8 -> 0.9264100967 | BW32: ='4B'!$T32/$BW$8 -> 0.9006798116 | BX32: 0.9282895515 | BY32: 1 | BZ32: ='0B'!$AI32/$BS$8 ->  | CA32: ='1B'!$AI32/$BT$8 -> 0.970773003 | CB32: ='2B'!$AI32/$BU$8 -> 0.9503908444 | CC32: ='3B'!$AI32/$BV$8 -> 0.9264100967 | CD32: ='4B'!$AI32/$BW$8 -> 0.9006798116 | CE32: 0.9282895515 | CF32: ='0B'!$AM32/$BS$8 ->  | CG32: ='1B'!$AM32/$BT$8 -> 0 | CH32: ='2B'!$AM32/$BU$8 -> 0 | CI32: ='3B'!$AM32/$BV$8 -> 0 | CJ32: ='4B'!$AM32/$BW$8 -> 0 | CK32: 0 | CO32: 22 | CP32: 0.001388728305 | CQ32: 0.001250278466 | CR32: 0.002069139569 | CS32: 0.003010309016 | CT32: 0.004116943788 | CU32: 0.001388728305 | CV32: 0.001176876689 | CW32: 0.002010926151 | CX32: 0.003010309016 | CY32: 0.004116943788 | CZ32: 0.001388728305 | DA32: 0.001176876689 | DB32: 0.002010926151 | DC32: 0.003010309016 | DD32: 0.004116943788 | DE32: 0.9006798116 | DI32: 16 | DJ32: 486.9888 | DK32: 415.0677702 | DL32: 427.5047936 | DQ32: 22 | DR32: 99.85122 | DS32: 1173.684129 | DT32: 1353.803106 | DU32: 1355.968186 | DV32: 1356.153262 | DW32: 159.9392136 | DX32: 1235.66625 | DY32: 1364.39864 | DZ32: 1364.13288 | EA32: 1362.9514 | EB32: 159.9392136 | EC32: 1235.66625 | ED32: 1364.39864 | EE32: 1364.13288 | EF32: 1362.9514 | EG32: 21 | EH32: 0 | EN32: #heifer | EO32: ='1A'!$D$120 -> 0.569190828 | EP32: ='1B'!$D$120 -> 0.4169289886 | EQ32: parity 0 | ER32: parity 1 | EY32: 22 | EZ32: 62.96228906 | FA32: 86.41327051 | FB32: 89.73765781 | FC32: 89.73765781 | FD32: 0 | FE32: =FE$5*FE$6*($EY32/30.4)^FE$7*EXP(-FE$8*$EY32/30.4)*IFERROR(extra!D32,1)+IF($EY32<=305,EO$8,0) -> 61.37049193 | FF32: =FF$5*FF$6*($EY32/30.4)^FF$7*EXP(-FF$8*$EY32/30.4)*IFERROR(extra!E32,1)+IF($EY32<=305,EP$8,0) -> 81.76266643 | FG32: =FG$5*FG$6*($EY32/30.4)^FG$7*EXP(-FG$8*$EY32/30.4)*IFERROR(extra!F32,1)+IF($EY32<=305,EQ$8,0) -> 89.92353068 | FH32: =FH$5*FH$6*($EY32/30.4)^FH$7*EXP(-FH$8*$EY32/30.4)*IFERROR(extra!G32,1)+IF($EY32<=305,ER$8,0) -> 89.92353068 | FI32: 0 | FJ32: =FJ$5*FJ$6*($EY32/30.4)^FJ$7*EXP(-FJ$8*$EY32/30.4)*IFERROR(extra!H32,1)+IF($EY32<=305,ET$8,0) -> 61.37049193 | FK32: =FK$5*FK$6*($EY32/30.4)^FK$7*EXP(-FK$8*$EY32/30.4)*IFERROR(extra!I32,1)+IF($EY32<=305,EU$8,0) -> 81.76266643 | FL32: =FL$5*FL$6*($EY32/30.4)^FL$7*EXP(-FL$8*$EY32/30.4)*IFERROR(extra!J32,1)+IF($EY32<=305,EV$8,0) -> 89.92353068 | FM32: =FM$5*FM$6*($EY32/30.4)^FM$7*EXP(-FM$8*$EY32/30.4)*IFERROR(extra!K32,1)+IF($EY32<=305,EW$8,0) -> 89.92353068 | FN32: 22 | FO32: 1 | FP32: 0 | FQ32: -61.37049193 | FR32: -81.76266643 | FS32: -89.92353068 | FT32: -89.92353068 | FU32: 0 | FV32: -61.37049193 | FW32: -81.76266643 | FX32: -89.92353068 | FY32: -89.92353068 | GA32: 22 | GB32: =GB$3*$GA32^GB$4*EXP(-GB$5*$GA32) -> 1.173951118 | GC32: 1.555962857 | GD32: 1.666670583 | GE32: 0.8763009681 | GF32: 1.219870673 | GG32: 1.254916799 | GH32: 28.56057526 | GI32: 39.22410668 | GJ32: 40.77582028 | GK32: 28.55834687 | GP32: 39.22410668 | GQ32: 0.03966853521 | GR32: 0.03885062727 | GS32: 0.03885062727 | GT32: 0.03885062727 | GU32: 0.03885062727 | GV32: 0.03885062727 | GW32: 0.03885062727 | GX32: 0.03885062727 | GY32: 0.03885062727 | GZ32: 0.03262953375 | HA32: 0.03262953375 | HB32: 0.03262953375 | HC32: 0.03262953375 | HD32: 0.03262953375 | HE32: 0.03262953375 | HF32: 0.03262953375 | HG32: 0.03262953375 | HH32: 22 | HI32: 0 | HJ32: 0.1910116309 | HK32: 0.1910116309 | HL32: 0.1910116309 | HM32: 0.1910116309 | HN32: 0 | HO32: 0.1910116309 | HP32: 0.1910116309 | HQ32: 0.1910116309 | HR32: 0.1910116309 | HT32: 22 | HU32: 1.168590909 | HV32: 2.186818182 | HY32: -1.28 | HZ32: 22 | IA32: 4.88944601 | IB32: 370492.9293 | IC32: 0 | ID32: 205219.2086 | IE32: 194143.7175 | IF32: 196143.7883 | IG32: 196143.7883 | IH32: 0 | II32: 205219.2086 | IJ32: 194143.7175 | IK32: 196143.7883 | IL32: 196143.7883 | IO32: 22 | IP32: 8.655103005 | IQ32: 34.30873131 | IR32: 41.13249564 | IS32: 43.30660973 | IT32: 43.29405904 | IU32: 8.655103005 | IV32: 34.30873131 | IW32: 41.13249564 | IX32: 43.30660973 | IY32: 43.29405904 | IZ32: 0.05411495287 | JA32: 1.788771825 | JB32: 1.98778764 | JC32: 2.076438937 | JD32: 2.077040884 | JF32: 22 | JG32: 0 | JH32: 6.576168055 | JI32: 9.447745916 | JJ32: 10.68044879 | JK32: 10.68233139 | JL32: 0 | JM32: 6.576168055 | JN32: 9.447745916 | JO32: 10.68044879 | JP32: 10.68233139 | JQ32: 0 | JR32: -6.576168055 | JS32: -9.447745916 | JT32: -10.68044879 | JU32: -10.68233139 | JV32: 0 | JW32: -6.576168055 | JX32: -9.447745916 | JY32: -10.68044879 | JZ32: -10.68233139 | KC32: 22 | KD32: 2.75 | KI32: 2.75 | KL32: 22 | KM32: 0.0834551339 | KN32: 0.2527953285 | KO32: 0.2978391548 | KP32: 0.3121905323 | KQ32: 0.3121076849 | KR32: 0.0834551339 | KS32: 0.2527953285 | KT32: 0.2978391548 | KU32: 0.3121905323 | KV32: 0.3121076849 | KX32: check | KZ32: =KZ31/KZ30*365 ->  | LA32: =LA31/LA30*365 ->  | LB32: =LB31/LB30*365 ->  | LC32: =LC31/LC30*365 ->  | LD32: =LD31/LD30*365 ->  | LG32: =LG31/LG30*365 ->  | LH32: =LH31/LH30*365 ->  | LI32: =LI31/LI30*365 ->  | LJ32: =LJ31/LJ30*365 ->  | LK32: =LK31/LK30*365 ->  | LL32: ∆ TBV/year | LR32: 16 | LS32: 3A | LT32: 4 | LU32: ='3A'!$X6 -> 0 | LV32: ='3A'!$D91 -> 300 | LW32: 299.99996 | LX32: 16 | LY32: 3A | LZ32: 0 | MA32: 300 | MB32: 0 | MC32: 0 | MD32: 0 | ME32: 0 | MF32: 0 | MG32: 0 | MI32: 16 | MJ32: 3B | MK32: 4 | ML32: ='3B'!$X6 -> 0.07390024067 | MM32: ='3B'!$D91 -> 300 | MN32: 299.99996 | MO32: 16 | MP32: 3B | MQ32: 0.07390024067 | MR32: 300 | MS32: 0 | MT32: 0 | MU32: 0 | MV32: 0 | MW32: 22.1700722 | MX32: 0
E33: Note: the first set of inputs are from a single column on the long sheet (heifer raising, milk price etc.). Sometimes the data are needed in all parities: if not type NA. | AB33: 0.5 | AC33: 0.5 | AD33: %dry matter in feed | AH33: 2.74432879e-08 | AI33: 2.74432879e-05 | AL33: 23 | AM33: =IFERROR(CHOOSE($AK$13,'0A'!T33,'1A'!T33,'2A'!T33,'3A'!T33,'4A'!T33,'0B'!T33,'1B'!T33,'2B'!T33,'3B'!T33,'4B'!T33)/$AM$9,0) -> 0.9485067603 | AN33: =IFERROR(CHOOSE($AK$13,'0A'!AD33,'1A'!AD33,'2A'!AD33,'3A'!AD33,'4A'!AD33,'0B'!AD33,'1B'!AD33,'2B'!AD33,'3B'!AD33,'4B'!AD33)/$AM$9,0) -> 0 | AO33: =IFERROR(CHOOSE($AK$13,'0A'!AI33,'1A'!AI33,'2A'!AI33,'3A'!AI33,'4A'!AI33,'0B'!AI33,'1B'!AI33,'2B'!AI33,'3B'!AI33,'4B'!AI33)/$AM$9,0) -> 0.9485067603 | AP33: =IFERROR(CHOOSE($AK$13,'0A'!AG33,'1A'!AG33,'2A'!AG33,'3A'!AG33,'4A'!AG33,'0B'!AG33,'1B'!AG33,'2B'!AG33,'3B'!AG33,'4B'!AG33)/$AM$9,0) -> 0.9485067603 | AQ33: =IFERROR(CHOOSE($AK$13,'0A'!AH33,'1A'!AH33,'2A'!AH33,'3A'!AH33,'4A'!AH33,'0B'!AH33,'1B'!AH33,'2B'!AH33,'3B'!AH33,'4B'!AH33)/$AM$9,0) -> 0 | AR33: =IFERROR(CHOOSE($AK$13,'0A'!Q33,'1A'!Q33,'2A'!Q33,'3A'!Q33,'4A'!Q33,'0B'!Q33,'1B'!Q33,'2B'!Q33,'3B'!Q33,'4B'!Q33)/$AM$9/$AR$9,0) -> 0 | AS33: =IFERROR(CHOOSE($AK$13,'0A'!U33,'1A'!U33,'2A'!U33,'3A'!U33,'4A'!U33,'0B'!U33,'1B'!U33,'2B'!U33,'3B'!U33,'4B'!U33)/$AM$9,0) -> 0 | AT33: 82.15974822 | AU33: 41.61794529 | AV33: 9.440793158 | AX33: 23 | AY33: ='0A'!$T33/$AY$8 ->  | AZ33: ='1A'!$T33/$AZ$8 -> 0.9696462873 | BA33: ='2A'!$T33/$BA$8 -> 0.9485067603 | BB33: ='3A'!$T33/$BB$8 -> 0.9236617331 | BC33: ='4A'!$T33/$BC$8 -> 0.8970255033 | BD33: 0.9256224627 | BE33: 1 | BF33: ='0A'!$AI33/$AY$8 ->  | BG33: ='1A'!$AI33/$AZ$8 -> 0.9696462873 | BH33: ='2A'!$AI33/$BA$8 -> 0.9485067603 | BI33: ='3A'!$AI33/$BB$8 -> 0.9236617331 | BJ33: ='4A'!$AI33/$BC$8 -> 0.8970255033 | BK33: 0.9256224627 | BL33: ='0A'!$AM33/$AY$8 ->  | BM33: ='1A'!$AM33/$AZ$8 -> 0 | BN33: ='2A'!$AM33/$BA$8 -> 0 | BO33: ='3A'!$AM33/$BB$8 -> 0 | BP33: ='4A'!$AM33/$BC$8 -> 0 | BQ33: 0 | BR33: 23 | BS33: ='0B'!$T33/$BS$8 ->  | BT33: ='1B'!$T33/$BT$8 -> 0.9696462873 | BU33: ='2B'!$T33/$BU$8 -> 0.9485067603 | BV33: ='3B'!$T33/$BV$8 -> 0.9236617331 | BW33: ='4B'!$T33/$BW$8 -> 0.8970255033 | BX33: 0.9256224627 | BY33: 1 | BZ33: ='0B'!$AI33/$BS$8 ->  | CA33: ='1B'!$AI33/$BT$8 -> 0.9696462873 | CB33: ='2B'!$AI33/$BU$8 -> 0.9485067603 | CC33: ='3B'!$AI33/$BV$8 -> 0.9236617331 | CD33: ='4B'!$AI33/$BW$8 -> 0.8970255033 | CE33: 0.9256224627 | CF33: ='0B'!$AM33/$BS$8 ->  | CG33: ='1B'!$AM33/$BT$8 -> 0 | CH33: ='2B'!$AM33/$BU$8 -> 0 | CI33: ='3B'!$AM33/$BV$8 -> 0 | CJ33: ='4B'!$AM33/$BW$8 -> 0 | CK33: 0 | CO33: 23 | CP33: 0.001388728305 | CQ33: 0.001232157311 | CR33: 0.002039151535 | CS33: 0.002966681346 | CT33: 0.004057277933 | CU33: 0.001388728305 | CV33: 0.001160637631 | CW33: 0.001982430769 | CX33: 0.002966681346 | CY33: 0.004057277933 | CZ33: 0.001388728305 | DA33: 0.001160637631 | DB33: 0.001982430769 | DC33: 0.002966681346 | DD33: 0.004057277933 | DE33: 0.8970255033 | DI33: 17 | DJ33: 517.4256 | DK33: 444.4924137 | DL33: 452.5238432 | DQ33: 23 | DR33: 101.66373 | DS33: 1173.28492 | DT33: 1352.131947 | DU33: 1354.284084 | DV33: 1354.468053 | DW33: 162.8424472 | DX33: 1234.140921 | DY33: 1362.714403 | DZ33: 1362.44897 | EA33: 1361.268948 | EB33: 162.8424472 | EC33: 1234.140921 | ED33: 1362.714403 | EE33: 1362.44897 | EF33: 1361.268948 | EG33: 22 | EH33: 0 | EO33: =EO$23*EO$31/(EO$31+EO$32) ->  | EP33: =EP$23*EP$31/(EP$31+EP$32) ->  | EQ33: bull | ER33: bull | ES33: 0 | ET33: kg/305 d milk | EY33: 23 | EZ33: 63.42201869 | FA33: 86.83293803 | FB33: 90.25939146 | FC33: 90.25939146 | FD33: 0 | FE33: =FE$5*FE$6*($EY33/30.4)^FE$7*EXP(-FE$8*$EY33/30.4)*IFERROR(extra!D33,1)+IF($EY33<=305,EO$8,0) -> 61.81859879 | FF33: =FF$5*FF$6*($EY33/30.4)^FF$7*EXP(-FF$8*$EY33/30.4)*IFERROR(extra!E33,1)+IF($EY33<=305,EP$8,0) -> 82.15974822 | FG33: =FG$5*FG$6*($EY33/30.4)^FG$7*EXP(-FG$8*$EY33/30.4)*IFERROR(extra!F33,1)+IF($EY33<=305,EQ$8,0) -> 90.44634499 | FH33: =FH$5*FH$6*($EY33/30.4)^FH$7*EXP(-FH$8*$EY33/30.4)*IFERROR(extra!G33,1)+IF($EY33<=305,ER$8,0) -> 90.44634499 | FI33: 0 | FJ33: =FJ$5*FJ$6*($EY33/30.4)^FJ$7*EXP(-FJ$8*$EY33/30.4)*IFERROR(extra!H33,1)+IF($EY33<=305,ET$8,0) -> 61.81859879 | FK33: =FK$5*FK$6*($EY33/30.4)^FK$7*EXP(-FK$8*$EY33/30.4)*IFERROR(extra!I33,1)+IF($EY33<=305,EU$8,0) -> 82.15974822 | FL33: =FL$5*FL$6*($EY33/30.4)^FL$7*EXP(-FL$8*$EY33/30.4)*IFERROR(extra!J33,1)+IF($EY33<=305,EV$8,0) -> 90.44634499 | FM33: =FM$5*FM$6*($EY33/30.4)^FM$7*EXP(-FM$8*$EY33/30.4)*IFERROR(extra!K33,1)+IF($EY33<=305,EW$8,0) -> 90.44634499 | FN33: 23 | FO33: 1 | FP33: 0 | FQ33: -61.81859879 | FR33: -82.15974822 | FS33: -90.44634499 | FT33: -90.44634499 | FU33: 0 | FV33: -61.81859879 | FW33: -82.15974822 | FX33: -90.44634499 | FY33: -90.44634499 | GA33: 23 | GB33: 1.180919091 | GC33: 1.561640281 | GD33: 1.674005467 | GE33: 0.8817344497 | GF33: 1.224365298 | GG33: 1.260417176 | GH33: 28.7684037 | GI33: 39.41463813 | GJ33: 41.01047265 | GK33: 28.76668592 | GP33: 39.41463813 | GQ33: 0.03962081997 | GR33: 0.03880389584 | GS33: 0.03880389584 | GT33: 0.03880389584 | GU33: 0.03880389584 | GV33: 0.03880389584 | GW33: 0.03880389584 | GX33: 0.03880389584 | GY33: 0.03880389584 | GZ33: 0.03259144434 | HA33: 0.03259144434 | HB33: 0.03259144434 | HC33: 0.03259144434 | HD33: 0.03259144434 | HE33: 0.03259144434 | HF33: 0.03259144434 | HG33: 0.03259144434 | HH33: 23 | HI33: 0 | HJ33: 0.1908901292 | HK33: 0.1908901292 | HL33: 0.1908901292 | HM33: 0.1908901292 | HN33: 0 | HO33: 0.1908901292 | HP33: 0.1908901292 | HQ33: 0.1908901292 | HR33: 0.1908901292 | HT33: 23 | HU33: 1.199956522 | HV33: 2.208565217 | HY33: -1.27 | HZ33: 23 | IA33: 4.847411478 | IB33: 359853.9458 | IC33: 0 | ID33: 199326.1845 | IE33: 188568.7344 | IF33: 190511.3717 | IG33: 190511.3717 | IH33: 0 | II33: 199326.1845 | IJ33: 188568.7344 | IK33: 190511.3717 | IL33: 190511.3717 | IO33: 23 | IP33: 8.772668911 | IQ33: 34.74472851 | IR33: 41.61794529 | IS33: 43.84613931 | IT33: 43.83347454 | IU33: 8.772668911 | IV33: 34.74472851 | IW33: 41.61794529 | IX33: 43.84613931 | IY33: 43.83347454 | IZ33: 0.05387212646 | JA33: 1.779222387 | JB33: 1.974142348 | JC33: 2.062812061 | JD33: 2.063408067 | JF33: 23 | JG33: 0 | JH33: 6.588851033 | JI33: 9.440793158 | JJ33: 10.68839358 | JK33: 10.6902933 | JL33: 0 | JM33: 6.588851033 | JN33: 9.440793158 | JO33: 10.68839358 | JP33: 10.6902933 | JQ33: 0 | JR33: -6.588851033 | JS33: -9.440793158 | JT33: -10.68839358 | JU33: -10.6902933 | JV33: 0 | JW33: -6.588851033 | JX33: -9.440793158 | JY33: -10.68839358 | JZ33: -10.6902933 | KC33: 23 | KD33: 2.75 | KI33: 2.75 | KL33: 23 | KM33: 0.08423118917 | KN33: 0.255673356 | KO33: 0.3010436192 | KP33: 0.3157519795 | KQ33: 0.3156683791 | KR33: 0.08423118917 | KS33: 0.255673356 | KT33: 0.3010436192 | KU33: 0.3157519795 | KV33: 0.3156683791 | LE33: these reliabilities come FROM genetics sheet and go TO the engine sheets | LR33: 17 | LS33: 4A | LT33: 1 | LU33: ='4A'!$X3*L$235 -> 0.05213391984 | LV33: ='4A'!$D88 -> 300 | LW33: 299.99999 | LX33: 1 | LY33: 0A | LZ33: 0 | MA33: 300 | MB33: 0 | MC33: 0 | MD33: 0 | ME33: 0 | MF33: 0 | MG33: 0 | MI33: 17 | MJ33: 4B | MK33: 1 | ML33: ='4B'!$X3*AA$235 -> 0.0528740401 | MM33: ='4B'!$D88 -> 300 | MN33: 299.99999 | MO33: 1 | MP33: 0B | MQ33: 0 | MR33: 300 | MS33: 0 | MT33: 0 | MU33: 0 | MV33: 0 | MW33: 0 | MX33: 0
O34: =white cells | S34: INPUT DATA SHEET: | T34: =A1 -> L | AB34: =AB32/AB33 -> 0.33075 | AC34: =AC32/AC33 -> 0.33075 | AD34: cost/kg dry matter | AH34: =AH33*(1-$AH$2) -> 1.535974526e-08 | AI34: =AH34*$AI$3 -> 1.535974526e-05 | AJ34: =SUM(AI4:AI36) -> 1271.129308 | AL34: 24 | AM34: =IFERROR(CHOOSE($AK$13,'0A'!T34,'1A'!T34,'2A'!T34,'3A'!T34,'4A'!T34,'0B'!T34,'1B'!T34,'2B'!T34,'3B'!T34,'4B'!T34)/$AM$9,0) -> 0.9466534394 | AN34: =IFERROR(CHOOSE($AK$13,'0A'!AD34,'1A'!AD34,'2A'!AD34,'3A'!AD34,'4A'!AD34,'0B'!AD34,'1B'!AD34,'2B'!AD34,'3B'!AD34,'4B'!AD34)/$AM$9,0) -> 0 | AO34: =IFERROR(CHOOSE($AK$13,'0A'!AI34,'1A'!AI34,'2A'!AI34,'3A'!AI34,'4A'!AI34,'0B'!AI34,'1B'!AI34,'2B'!AI34,'3B'!AI34,'4B'!AI34)/$AM$9,0) -> 0.9466534394 | AP34: =IFERROR(CHOOSE($AK$13,'0A'!AG34,'1A'!AG34,'2A'!AG34,'3A'!AG34,'4A'!AG34,'0B'!AG34,'1B'!AG34,'2B'!AG34,'3B'!AG34,'4B'!AG34)/$AM$9,0) -> 0.9466534394 | AQ34: =IFERROR(CHOOSE($AK$13,'0A'!AH34,'1A'!AH34,'2A'!AH34,'3A'!AH34,'4A'!AH34,'0B'!AH34,'1B'!AH34,'2B'!AH34,'3B'!AH34,'4B'!AH34)/$AM$9,0) -> 0 | AR34: =IFERROR(CHOOSE($AK$13,'0A'!Q34,'1A'!Q34,'2A'!Q34,'3A'!Q34,'4A'!Q34,'0B'!Q34,'1B'!Q34,'2B'!Q34,'3B'!Q34,'4B'!Q34)/$AM$9/$AR$9,0) -> 0 | AS34: =IFERROR(CHOOSE($AK$13,'0A'!U34,'1A'!U34,'2A'!U34,'3A'!U34,'4A'!U34,'0B'!U34,'1B'!U34,'2B'!U34,'3B'!U34,'4B'!U34)/$AM$9,0) -> 0 | AT34: 82.53094959 | AU34: 42.08794472 | AV34: 9.431650919 | AX34: 24 | AY34: ='0A'!$T34/$AY$8 ->  | AZ34: ='1A'!$T34/$AZ$8 -> 0.9685366255 | BA34: ='2A'!$T34/$BA$8 -> 0.9466534394 | BB34: ='3A'!$T34/$BB$8 -> 0.9209618203 | BC34: ='4A'!$T34/$BC$8 -> 0.8934395433 | BD34: 0.9230030858 | BE34: 1 | BF34: ='0A'!$AI34/$AY$8 ->  | BG34: ='1A'!$AI34/$AZ$8 -> 0.9685366255 | BH34: ='2A'!$AI34/$BA$8 -> 0.9466534394 | BI34: ='3A'!$AI34/$BB$8 -> 0.9209618203 | BJ34: ='4A'!$AI34/$BC$8 -> 0.8934395433 | BK34: 0.9230030858 | BL34: ='0A'!$AM34/$AY$8 ->  | BM34: ='1A'!$AM34/$AZ$8 -> 0 | BN34: ='2A'!$AM34/$BA$8 -> 0 | BO34: ='3A'!$AM34/$BB$8 -> 0 | BP34: ='4A'!$AM34/$BC$8 -> 0 | BQ34: 0 | BR34: 24 | BS34: ='0B'!$T34/$BS$8 ->  | BT34: ='1B'!$T34/$BT$8 -> 0.9685366255 | BU34: ='2B'!$T34/$BU$8 -> 0.9466534394 | BV34: ='3B'!$T34/$BV$8 -> 0.9209618203 | BW34: ='4B'!$T34/$BW$8 -> 0.8934395433 | BX34: 0.9230030858 | BY34: 1 | BZ34: ='0B'!$AI34/$BS$8 ->  | CA34: ='1B'!$AI34/$BT$8 -> 0.9685366255 | CB34: ='2B'!$AI34/$BU$8 -> 0.9466534394 | CC34: ='3B'!$AI34/$BV$8 -> 0.9209618203 | CD34: ='4B'!$AI34/$BW$8 -> 0.8934395433 | CE34: 0.9230030858 | CF34: ='0B'!$AM34/$BS$8 ->  | CG34: ='1B'!$AM34/$BT$8 -> 0 | CH34: ='2B'!$AM34/$BU$8 -> 0 | CI34: ='3B'!$AM34/$BV$8 -> 0 | CJ34: ='4B'!$AM34/$BW$8 -> 0 | CK34: 0 | CO34: 24 | CP34: 0.001388728305 | CQ34: 0.001214036156 | CR34: 0.002009163501 | CS34: 0.002923053675 | CT34: 0.003997612078 | CU34: 0.001388728305 | CV34: 0.001144398573 | CW34: 0.001953935387 | CX34: 0.002923053675 | CY34: 0.003997612078 | CZ34: 0.001388728305 | DA34: 0.001144398573 | DB34: 0.001953935387 | DC34: 0.002923053675 | DD34: 0.003997612078 | DE34: 0.8934395433 | DI34: 18 | DJ34: 547.8624 | DK34: 473.9170573 | DL34: 477.5428928 | DQ34: 24 | DR34: 103.47624 | DS34: 1172.916845 | DT34: 1350.519585 | DU34: 1352.658855 | DV34: 1352.841724 | DW34: 165.7456809 | DX34: 1232.669259 | DY34: 1361.089421 | DZ34: 1360.824305 | EA34: 1359.645691 | EB34: 165.7456809 | EC34: 1232.669259 | ED34: 1361.089421 | EE34: 1360.824305 | EF34: 1359.645691 | EG34: 23 | EH34: 0 | EM34: =AVERAGE(ES33:ES34) -> 96.82539683 | EN34: =AVERAGE(ES33,ES34) -> 96.82539683 | EO34: =EO$23*EO$32/(EO$31+EO$32) ->  | EP34: =EP$23*EP$32/(EP$31+EP$32) ->  | EQ34: bull | ER34: heifer | ES34: 193.6507937 | ET34: kg/305 d milk | EY34: 24 | EZ34: 63.85986582 | FA34: 87.22525308 | FB34: 90.74795757 | FC34: 90.74795757 | FD34: 0 | FE34: =FE$5*FE$6*($EY34/30.4)^FE$7*EXP(-FE$8*$EY34/30.4)*IFERROR(extra!D34,1)+IF($EY34<=305,EO$8,0) -> 62.24537637 | FF34: =FF$5*FF$6*($EY34/30.4)^FF$7*EXP(-FF$8*$EY34/30.4)*IFERROR(extra!E34,1)+IF($EY34<=305,EP$8,0) -> 82.53094959 | FG34: =FG$5*FG$6*($EY34/30.4)^FG$7*EXP(-FG$8*$EY34/30.4)*IFERROR(extra!F34,1)+IF($EY34<=305,EQ$8,0) -> 90.93592306 | FH34: =FH$5*FH$6*($EY34/30.4)^FH$7*EXP(-FH$8*$EY34/30.4)*IFERROR(extra!G34,1)+IF($EY34<=305,ER$8,0) -> 90.93592306 | FI34: 0 | FJ34: =FJ$5*FJ$6*($EY34/30.4)^FJ$7*EXP(-FJ$8*$EY34/30.4)*IFERROR(extra!H34,1)+IF($EY34<=305,ET$8,0) -> 62.24537637 | FK34: =FK$5*FK$6*($EY34/30.4)^FK$7*EXP(-FK$8*$EY34/30.4)*IFERROR(extra!I34,1)+IF($EY34<=305,EU$8,0) -> 82.53094959 | FL34: =FL$5*FL$6*($EY34/30.4)^FL$7*EXP(-FL$8*$EY34/30.4)*IFERROR(extra!J34,1)+IF($EY34<=305,EV$8,0) -> 90.93592306 | FM34: =FM$5*FM$6*($EY34/30.4)^FM$7*EXP(-FM$8*$EY34/30.4)*IFERROR(extra!K34,1)+IF($EY34<=305,EW$8,0) -> 90.93592306 | FN34: 24 | FO34: 1 | FP34: 0 | FQ34: -62.24537637 | FR34: -82.53094959 | FS34: -90.93592306 | FT34: -90.93592306 | FU34: 0 | FV34: -62.24537637 | FW34: -82.53094959 | FX34: -90.93592306 | FY34: -90.93592306 | GA34: 24 | GB34: 1.187536706 | GC34: 1.566906684 | GD34: 1.680822975 | GE34: 0.8868964832 | GF34: 1.228536119 | GG34: 1.265528772 | GH34: 28.96633655 | GI34: 39.59273543 | GJ34: 41.2301361 | GK34: 28.96510708 | GP34: 39.59273543 | GQ34: 0.03957561071 | GR34: 0.03875961874 | GS34: 0.03875961874 | GT34: 0.03875961874 | GU34: 0.03875961874 | GV34: 0.03875961874 | GW34: 0.03875961874 | GX34: 0.03875961874 | GY34: 0.03875961874 | GZ34: 0.03255536436 | HA34: 0.03255536436 | HB34: 0.03255536436 | HC34: 0.03255536436 | HD34: 0.03255536436 | HE34: 0.03255536436 | HF34: 0.03255536436 | HG34: 0.03255536436 | HH34: 24 | HI34: 0 | HJ34: 0.1907750087 | HK34: 0.1907750087 | HL34: 0.1907750087 | HM34: 0.1907750087 | HN34: 0 | HO34: 0.1907750087 | HP34: 0.1907750087 | HQ34: 0.1907750087 | HR34: 0.1907750087 | HT34: 24 | HU34: 1.228541667 | HV34: 2.228833333 | HY34: -1.26 | HZ34: 24 | IA34: 4.80948411 | IB34: 350516.9256 | IC34: 0 | ID34: 194154.329 | IE34: 183675.9992 | IF34: 185568.2315 | IG34: 185568.2315 | IH34: 0 | II34: 194154.329 | IJ34: 183675.9992 | IK34: 185568.2315 | IL34: 185568.2315 | IO34: 24 | IP34: 8.889711947 | IQ34: 35.16845634 | IR34: 42.08794472 | IS34: 44.36829115 | IT34: 44.35551553 | IU34: 8.889711947 | IV34: 35.16845634 | IW34: 42.08794472 | IX34: 44.36829115 | IY34: 44.35551553 | IZ34: 0.05363465218 | JA34: 1.769920629 | JB34: 1.960916603 | JC34: 2.049570103 | JD34: 2.050160436 | JF34: 24 | JG34: 0 | JH34: 6.599593769 | JI34: 9.431650919 | JJ34: 10.69305784 | JK34: 10.69497418 | JL34: 0 | JM34: 6.599593769 | JN34: 9.431650919 | JO34: 10.69305784 | JP34: 10.69497418 | JQ34: 0 | JR34: -6.599593769 | JS34: -9.431650919 | JT34: -10.69305784 | JU34: -10.69497418 | JV34: 0 | JW34: -6.599593769 | JX34: -9.431650919 | JY34: -10.69305784 | JZ34: -10.69497418 | KC34: 24 | KD34: 2.75 | KI34: 2.75 | KL34: 24 | KM34: 0.08500379296 | KN34: 0.2584703933 | KO34: 0.3041460963 | KP34: 0.3191987159 | KQ34: 0.3191143838 | KR34: 0.08500379296 | KS34: 0.2584703933 | KT34: 0.3041460963 | KU34: 0.3191987159 | KV34: 0.3191143838 | KZ34: =#REF! ->  | LA34: =#REF! ->  | LB34: =#REF! ->  | LC34: =#REF! ->  | LD34: =#REF! ->  | LE34: link FROM genetics!sheet | LG34: =#REF! ->  | LH34: =#REF! ->  | LI34: =#REF! ->  | LJ34: =#REF! ->  | LK34: =#REF! ->  | LL34: "reliability" = how involuntary cull culling depends on TBV | LR34: 18 | LS34: 4A | LT34: 2 | LU34: ='4A'!$X4*L$235 -> 0.03957821275 | LV34: ='4A'!$D89 -> 300 | LW34: 299.99998 | LX34: 6 | LY34: 1A | LZ34: 0.1114115015 | MA34: 300 | MB34: 0 | MC34: 0 | MD34: 0 | ME34: 0 | MF34: 33.42345046 | MG34: 0 | MI34: 18 | MJ34: 4B | MK34: 2 | ML34: ='4B'!$X4*AA$235 -> 0.04014008565 | MM34: ='4B'!$D89 -> 300 | MN34: 299.99998 | MO34: 6 | MP34: 1B | MQ34: 0.07048720245 | MR34: 300 | MS34: 0 | MT34: 0 | MU34: 0 | MV34: 0 | MW34: 21.14616073 | MX34: 0
N35: offeset | O35: 0 | P35: 1 | Q35: 2 | R35: 3 | S35: 4 | T35: 5 | U35: 6 | V35: 7 | W35: 8 | X35: 9 | Y35: difference | AB35: =AB34/mult -> 0.15 | AC35: =AC34/mult -> 0.15 | AD35: =CONCATENATE("wet cow dmi cost/",unit) -> wet cow dmi cost/lbs | AH35: =AH34*(1-$AH$2) -> 8.596702238e-09 | AI35: =AH35*$AI$3 -> 8.596702238e-06 | AJ35: =AI38*AI3 -> 1271.129308 | AL35: 25 | AM35: =IFERROR(CHOOSE($AK$13,'0A'!T35,'1A'!T35,'2A'!T35,'3A'!T35,'4A'!T35,'0B'!T35,'1B'!T35,'2B'!T35,'3B'!T35,'4B'!T35)/$AM$9,0) -> 0.944830715 | AN35: =IFERROR(CHOOSE($AK$13,'0A'!AD35,'1A'!AD35,'2A'!AD35,'3A'!AD35,'4A'!AD35,'0B'!AD35,'1B'!AD35,'2B'!AD35,'3B'!AD35,'4B'!AD35)/$AM$9,0) -> 0 | AO35: =IFERROR(CHOOSE($AK$13,'0A'!AI35,'1A'!AI35,'2A'!AI35,'3A'!AI35,'4A'!AI35,'0B'!AI35,'1B'!AI35,'2B'!AI35,'3B'!AI35,'4B'!AI35)/$AM$9,0) -> 0.944830715 | AP35: =IFERROR(CHOOSE($AK$13,'0A'!AG35,'1A'!AG35,'2A'!AG35,'3A'!AG35,'4A'!AG35,'0B'!AG35,'1B'!AG35,'2B'!AG35,'3B'!AG35,'4B'!AG35)/$AM$9,0) -> 0.944830715 | AQ35: =IFERROR(CHOOSE($AK$13,'0A'!AH35,'1A'!AH35,'2A'!AH35,'3A'!AH35,'4A'!AH35,'0B'!AH35,'1B'!AH35,'2B'!AH35,'3B'!AH35,'4B'!AH35)/$AM$9,0) -> 0 | AR35: =IFERROR(CHOOSE($AK$13,'0A'!Q35,'1A'!Q35,'2A'!Q35,'3A'!Q35,'4A'!Q35,'0B'!Q35,'1B'!Q35,'2B'!Q35,'3B'!Q35,'4B'!Q35)/$AM$9/$AR$9,0) -> 0 | AS35: =IFERROR(CHOOSE($AK$13,'0A'!U35,'1A'!U35,'2A'!U35,'3A'!U35,'4A'!U35,'0B'!U35,'1B'!U35,'2B'!U35,'3B'!U35,'4B'!U35)/$AM$9,0) -> 0 | AT35: 82.87818323 | AU35: 42.54304416 | AV35: 9.420573452 | AX35: 25 | AY35: ='0A'!$T35/$AY$8 ->  | AZ35: ='1A'!$T35/$AZ$8 -> 0.9674439617 | BA35: ='2A'!$T35/$BA$8 -> 0.944830715 | BB35: ='3A'!$T35/$BB$8 -> 0.9183099789 | BC35: ='4A'!$T35/$BC$8 -> 0.8899212264 | BD35: 0.9204310027 | BE35: 1 | BF35: ='0A'!$AI35/$AY$8 ->  | BG35: ='1A'!$AI35/$AZ$8 -> 0.9674439617 | BH35: ='2A'!$AI35/$BA$8 -> 0.944830715 | BI35: ='3A'!$AI35/$BB$8 -> 0.9183099789 | BJ35: ='4A'!$AI35/$BC$8 -> 0.8899212264 | BK35: 0.9204310027 | BL35: ='0A'!$AM35/$AY$8 ->  | BM35: ='1A'!$AM35/$AZ$8 -> 0 | BN35: ='2A'!$AM35/$BA$8 -> 0 | BO35: ='3A'!$AM35/$BB$8 -> 0 | BP35: ='4A'!$AM35/$BC$8 -> 0 | BQ35: 0 | BR35: 25 | BS35: ='0B'!$T35/$BS$8 ->  | BT35: ='1B'!$T35/$BT$8 -> 0.9674439617 | BU35: ='2B'!$T35/$BU$8 -> 0.944830715 | BV35: ='3B'!$T35/$BV$8 -> 0.9183099789 | BW35: ='4B'!$T35/$BW$8 -> 0.8899212264 | BX35: 0.9204310027 | BY35: 1 | BZ35: ='0B'!$AI35/$BS$8 ->  | CA35: ='1B'!$AI35/$BT$8 -> 0.9674439617 | CB35: ='2B'!$AI35/$BU$8 -> 0.944830715 | CC35: ='3B'!$AI35/$BV$8 -> 0.9183099789 | CD35: ='4B'!$AI35/$BW$8 -> 0.8899212264 | CE35: 0.9204310027 | CF35: ='0B'!$AM35/$BS$8 ->  | CG35: ='1B'!$AM35/$BT$8 -> 0 | CH35: ='2B'!$AM35/$BU$8 -> 0 | CI35: ='3B'!$AM35/$BV$8 -> 0 | CJ35: ='4B'!$AM35/$BW$8 -> 0 | CK35: 0 | CO35: 25 | CP35: 0.001388728305 | CQ35: 0.001195915001 | CR35: 0.001979175468 | CS35: 0.002879426004 | CT35: 0.003937946223 | CU35: 0.001388728305 | CV35: 0.001128159515 | CW35: 0.001925440005 | CX35: 0.002879426004 | CY35: 0.003937946223 | CZ35: 0.001388728305 | DA35: 0.001128159515 | DB35: 0.001925440005 | DC35: 0.002879426004 | DD35: 0.003937946223 | DE35: 0.8899212264 | DI35: 19 | DJ35: 578.2992 | DK35: 503.3417008 | DL35: 502.5619424 | DQ35: 25 | DR35: 105.28875 | DS35: 1172.57911 | DT35: 1348.964688 | DU35: 1351.091169 | DV35: 1351.272943 | DW35: 168.6489146 | DX35: 1231.250047 | DY35: 1359.522355 | DZ35: 1359.257544 | EA35: 1358.080287 | EB35: 168.6489146 | EC35: 1231.250047 | ED35: 1359.522355 | EE35: 1359.257544 | EF35: 1358.080287 | EG35: 24 | EH35: 0 | EO35: =EO$24*EO$31/(EO$31+EO$32) ->  | EP35: =EP$24*EP$31/(EP$31+EP$32) ->  | EQ35: heifer | ER35: bull | ES35: 268.9342404 | ET35: kg/305 d milk | EY35: 25 | EZ35: 64.27740651 | FA35: 87.59223713 | FB35: 91.20575663 | FC35: 91.20575663 | FD35: 0 | FE35: =FE$5*FE$6*($EY35/30.4)^FE$7*EXP(-FE$8*$EY35/30.4)*IFERROR(extra!D35,1)+IF($EY35<=305,EO$8,0) -> 62.65236089 | FF35: =FF$5*FF$6*($EY35/30.4)^FF$7*EXP(-FF$8*$EY35/30.4)*IFERROR(extra!E35,1)+IF($EY35<=305,EP$8,0) -> 82.87818323 | FG35: =FG$5*FG$6*($EY35/30.4)^FG$7*EXP(-FG$8*$EY35/30.4)*IFERROR(extra!F35,1)+IF($EY35<=305,EQ$8,0) -> 91.39467036 | FH35: =FH$5*FH$6*($EY35/30.4)^FH$7*EXP(-FH$8*$EY35/30.4)*IFERROR(extra!G35,1)+IF($EY35<=305,ER$8,0) -> 91.39467036 | FI35: 0 | FJ35: =FJ$5*FJ$6*($EY35/30.4)^FJ$7*EXP(-FJ$8*$EY35/30.4)*IFERROR(extra!H35,1)+IF($EY35<=305,ET$8,0) -> 62.65236089 | FK35: =FK$5*FK$6*($EY35/30.4)^FK$7*EXP(-FK$8*$EY35/30.4)*IFERROR(extra!I35,1)+IF($EY35<=305,EU$8,0) -> 82.87818323 | FL35: =FL$5*FL$6*($EY35/30.4)^FL$7*EXP(-FL$8*$EY35/30.4)*IFERROR(extra!J35,1)+IF($EY35<=305,EV$8,0) -> 91.39467036 | FM35: =FM$5*FM$6*($EY35/30.4)^FM$7*EXP(-FM$8*$EY35/30.4)*IFERROR(extra!K35,1)+IF($EY35<=305,EW$8,0) -> 91.39467036 | FN35: 25 | FO35: 1 | FP35: 0 | FQ35: -62.65236089 | FR35: -82.87818323 | FS35: -91.39467036 | FT35: -91.39467036 | FU35: 0 | FV35: -62.65236089 | FW35: -82.87818323 | FX35: -91.39467036 | FY35: -91.39467036 | GA35: 25 | GB35: 1.193829778 | GC35: 1.571793138 | GD35: 1.687161583 | GE35: 0.8918069717 | GF35: 1.232407598 | GG35: 1.270280507 | GH35: 29.15508686 | GI35: 39.75931743 | GJ35: 41.43589663 | GK35: 29.15432475 | GP35: 39.75931743 | GQ35: 0.03953269924 | GR35: 0.03871759204 | GS35: 0.03871759204 | GT35: 0.03871759204 | GU35: 0.03871759204 | GV35: 0.03871759204 | GW35: 0.03871759204 | GX35: 0.03871759204 | GY35: 0.03871759204 | GZ35: 0.03252112692 | HA35: 0.03252112692 | HB35: 0.03252112692 | HC35: 0.03252112692 | HD35: 0.03252112692 | HE35: 0.03252112692 | HF35: 0.03252112692 | HG35: 0.03252112692 | HH35: 25 | HI35: 0 | HJ35: 0.1906657393 | HK35: 0.1906657393 | HL35: 0.1906657393 | HM35: 0.1906657393 | HN35: 0 | HO35: 0.1906657393 | HP35: 0.1906657393 | HQ35: 0.1906657393 | HR35: 0.1906657393 | HT35: 25 | HU35: 1.25468 | HV35: 2.2478 | HY35: -1.25 | HZ35: 25 | IA35: 4.775125827 | IB35: 342267.8604 | IC35: 0 | ID35: 189585.1011 | IE35: 179353.3683 | IF35: 181201.0687 | IG35: 181201.0687 | IH35: 0 | II35: 189585.1011 | IJ35: 179353.3683 | IK35: 181201.0687 | IL35: 181201.0687 | IO35: 25 | IP35: 9.006243537 | IQ35: 35.58034136 | IR35: 42.54304416 | IS35: 44.87368689 | IT35: 44.86080352 | IU35: 9.006243537 | IV35: 35.58034136 | IW35: 42.54304416 | IX35: 44.87368689 | IY35: 44.86080352 | IZ35: 0.05340232138 | JA35: 1.760870146 | JB35: 1.948101855 | JC35: 2.036709633 | JD35: 2.037294546 | JF35: 25 | JG35: 0 | JH35: 6.608607505 | JI35: 9.420573452 | JJ35: 10.69477936 | JK35: 10.69671186 | JL35: 0 | JM35: 6.608607505 | JN35: 9.420573452 | JO35: 10.69477936 | JP35: 10.69671186 | JQ35: 0 | JR35: -6.608607505 | JS35: -9.420573452 | JT35: -10.69477936 | JU35: -10.69671186 | JV35: 0 | JW35: -6.608607505 | JX35: -9.420573452 | JY35: -10.69477936 | JZ35: -10.69671186 | KC35: 25 | KD35: 2.75 | KI35: 2.75 | KL35: 25 | KM35: 0.08577302068 | KN35: 0.2611892558 | KO35: 0.3071502182 | KP35: 0.3225348449 | KQ35: 0.3224498015 | KR35: 0.08577302068 | KS35: 0.2611892558 | KT35: 0.3071502182 | KU35: 0.3225348449 | KV35: 0.3224498015 | LR35: 19 | LS35: 4A | LT35: 3 | LU35: ='4A'!$X5*L$235 -> 0.03014478852 | LV35: ='4A'!$D90 -> 300 | LW35: 299.99997 | LX35: 11 | LY35: 2A | LZ35: 0.03823354579 | MA35: 300 | MB35: 0 | MC35: 0 | MD35: 0 | ME35: 0 | MF35: 11.47006374 | MG35: 0 | MI35: 19 | MJ35: 4B | MK35: 3 | ML35: ='4B'!$X5*AA$235 -> 0.03057273962 | MM35: ='4B'!$D90 -> 300 | MN35: 299.99997 | MO35: 11 | MP35: 2B | MQ35: 0.0387763291 | MR35: 300 | MS35: 0 | MT35: 0 | MU35: 0 | MV35: 0 | MW35: 11.63289873 | MX35: 0
